Workbook

Sheet Main
A1: Total Class | B1: =MAX(K:K) -> 10
A2: Start | B2: =ADDRESS(ROW(K8),COLUMN(K8)+1,4) -> L8
A3: End | B3: =ADDRESS(ROW(K8)+10-1,COLUMN(M8),4) -> M17 | H3: Multi Class Financial Statement
A4: Col Start | B4: =COLUMN(INDIRECT(ClassStart)) -> 12
A5: Col End | B5: =COLUMN(INDIRECT(ClassEnd)) -> 13
A6: Row Start | B6: =ROW(INDIRECT(ClassStart)) -> 8 | K6: ="Class Details: " & FundCode -> Class Details: BAPAC
A7: Row End | B7: =ROW(INDIRECT(ClassEnd)) -> 17 | F7: Report Details | K7: No | L7: Class | M7: Currency
K8: 1 | L8: BAPACMYR | M8: MYR
F9: Company Name: | G9: BIMB Investment Management Berhad | K9: 2 | L9: BAPACUSD | M9: USD
F10: Company ID: | G10: BI | K10: 3
F11: Fund Code: | G11: BAPAC | K11: 4
F12: Fund Name: | G12: =VLOOKUP($G$11,InFund!$A:$I,MATCH("FundName",InFund!$2:$2,0),0) -> BIMB-ARABESQUE ASIA PACIFIC SHARIAH-ESG EQUITY | K12: 5
F13: Fund Currency: | G13: =VLOOKUP($G$11,InFund!$A:$I,MATCH("FundCurrency",InFund!$2:$2,0),0) -> USD | K13: 6
F14: Islamic Flag | G14: =VLOOKUP($G$11,InFund!$A:$I,MATCH("Islamic",InFund!$2:$2,0),0) -> 1 | K14: 7
F15: Last Financial Year End: | G15: =VLOOKUP(FundCode,InFund!A:G,7,0) -> 2020-10-30 | K15: 8
F16: Financial Year Start: | G16: =FinanceYrEnd+1 -> 2020-10-31 | K16: 9
F17: Value Date: | G17: 2020-10-30 | K17: 10

Sheet BS
I1: GD1 | J1: =Class1 -> BAPACMYR | K1: =Class2 -> BAPACUSD | L1: =Class3 -> 0 | M1: =Class4 -> 0 | N1: =Class5 -> 0 | O1: =Class6 -> 0 | P1: =Class7 -> 0 | Q1: =Class8 -> 0 | R1: =Class9 -> 0 | S1: =Class10 -> 0 | T1: =FundCode -> BAPAC
C4: Balance Check | D4: =I101-I122 -> 0
F5: =CompanyName -> BIMB Investment Management Berhad
F6: =Main!$G$12 -> BIMB-ARABESQUE ASIA PACIFIC SHARIAH-ESG EQUITY
F7: Balance Sheet
F8: ="For The Financial Period Ended " & TEXT(ValueDate,"dd mmmm yyyy") -> For The Financial Period Ended 30 October 2020
I10: =ValueDate -> 2020-10-30 | J10: 2020-10-30 | K10: 2020-10-30 | L10: 2020-10-30 | M10: 2020-10-30 | N10: 2020-10-30 | O10: 2020-10-30 | P10: 2020-10-30 | Q10: 2020-10-30 | R10: 2020-10-30 | S10: 2020-10-30 | T10: 2020-10-30
C11: AssetRptGrp | D11: qCurrencyCode | I11: =FundCurrency -> USD | J11: ="Class " & IF(ISNA(VLOOKUP(J$1,InUP!$A:$P,MATCH(BS!$D11,InUP!$2:$2,0),0)),"",VLOOKUP(J$1,InUP!$A:$P,MATCH(BS!$D11,InUP!$2:$2,0),0)) -> Class MYR | K11: ="Class " & IF(ISNA(VLOOKUP(K$1,InUP!$A:$P,MATCH(BS!$D11,InUP!$2:$2,0),0)),"",VLOOKUP(K$1,InUP!$A:$P,MATCH(BS!$D11,InUP!$2:$2,0),0)) -> Class USD | L11: ="Class " & IF(ISNA(VLOOKUP(L$1,InUP!$A:$P,MATCH(BS!$D11,InUP!$2:$2,0),0)),"",VLOOKUP(L$1,InUP!$A:$P,MATCH(BS!$D11,InUP!$2:$2,0),0)) -> Class | M11: ="Class " & IF(ISNA(VLOOKUP(M$1,InUP!$A:$P,MATCH(BS!$D11,InUP!$2:$2,0),0)),"",VLOOKUP(M$1,InUP!$A:$P,MATCH(BS!$D11,InUP!$2:$2,0),0)) -> Class | N11: ="Class " & IF(ISNA(VLOOKUP(N$1,InUP!$A:$P,MATCH(BS!$D11,InUP!$2:$2,0),0)),"",VLOOKUP(N$1,InUP!$A:$P,MATCH(BS!$D11,InUP!$2:$2,0),0)) -> Class | O11: ="Class " & IF(ISNA(VLOOKUP(O$1,InUP!$A:$P,MATCH(BS!$D11,InUP!$2:$2,0),0)),"",VLOOKUP(O$1,InUP!$A:$P,MATCH(BS!$D11,InUP!$2:$2,0),0)) -> Class | P11: ="Class " & IF(ISNA(VLOOKUP(P$1,InUP!$A:$P,MATCH(BS!$D11,InUP!$2:$2,0),0)),"",VLOOKUP(P$1,InUP!$A:$P,MATCH(BS!$D11,InUP!$2:$2,0),0)) -> Class | Q11: ="Class " & IF(ISNA(VLOOKUP(Q$1,InUP!$A:$P,MATCH(BS!$D11,InUP!$2:$2,0),0)),"",VLOOKUP(Q$1,InUP!$A:$P,MATCH(BS!$D11,InUP!$2:$2,0),0)) -> Class | R11: ="Class " & IF(ISNA(VLOOKUP(R$1,InUP!$A:$P,MATCH(BS!$D11,InUP!$2:$2,0),0)),"",VLOOKUP(R$1,InUP!$A:$P,MATCH(BS!$D11,InUP!$2:$2,0),0)) -> Class | S11: ="Class " & IF(ISNA(VLOOKUP(S$1,InUP!$A:$P,MATCH(BS!$D11,InUP!$2:$2,0),0)),"",VLOOKUP(S$1,InUP!$A:$P,MATCH(BS!$D11,InUP!$2:$2,0),0)) -> Class | T11: =FundCurrency -> USD
J12: =FundCurrency -> USD | K12: USD | L12: USD | M12: USD | N12: USD | O12: USD | P12: USD | Q12: USD | R12: USD | S12: USD
D14: ASSET | F14: =OFFSET(Label!$E$1,MATCH(BS!D14,Label!$E:$E,0)-1,Main!$G$14+1) -> Assets
D15: INV | F15: =OFFSET( Label!$E$1,MATCH(BS!D15, Label!$E:$E,0)-1, Main!$G$14+1) -> Investments
D16: UFISCP | F16: =OFFSET( Label!$E$1,MATCH(BS!D16, Label!$E:$E,0)-1, Main!$G$14+1) -> Unquoted Fixed Income Securities - Islamic Commercial Paper | I16: =SUM(I17:I19) -> 0 | J16: 0 | K16: 0 | L16: 0 | M16: 0 | N16: 0 | O16: =SUM(O17:O19) -> 0 | P16: 0 | Q16: 0 | R16: =SUM(R17:R19) -> 0 | S16: 0 | T16: =SUM(T17:T19) -> 0 | U16: =ROUND(I16-SUM(J16:S16),1) -> 0
C17: BICOST_CP | D17: UFISCP1 | E17: BIACCP | F17: =OFFSET( Label!$E$1,MATCH(BS!D17, Label!$E:$E,0)-1, Main!$G$14+1) -> Investment Cost -CP | I17: =SUMIF(InTB!$M:$M,$E17,InTB!$K:$K)+SUMIF(InTB!$N:$N,$C17,InTB!$K:$K)+SUMIF(InTB!$N:$N,$B17,InTB!$K:$K) -> 0 | J17: =IF(J$1=0,0,ROUND($T17*J$108,2))+SUMIFS(InTB!$K:$K,InTB!$M:$M,$E17,InTB!$C:$C,BS!J$1)+SUMIFS(InTB!$K:$K,InTB!$N:$N,$C17,InTB!$C:$C,BS!J$1)+SUMIFS(InTB!$K:$K,InTB!$N:$N,$B17,InTB!$C:$C,BS!J$1) -> 0 | K17: =IF(K$1=0,0,ROUND($T17*K$108,2))+SUMIFS(InTB!$K:$K,InTB!$M:$M,$E17,InTB!$C:$C,BS!K$1)+SUMIFS(InTB!$K:$K,InTB!$N:$N,$C17,InTB!$C:$C,BS!K$1)+SUMIFS(InTB!$K:$K,InTB!$N:$N,$B17,InTB!$C:$C,BS!K$1) -> 0 | L17: =IF(L$1=0,0,ROUND($T17*L$108,2))+SUMIFS(InTB!$K:$K,InTB!$M:$M,$E17,InTB!$C:$C,BS!L$1)+SUMIFS(InTB!$K:$K,InTB!$N:$N,$C17,InTB!$C:$C,BS!L$1)+SUMIFS(InTB!$K:$K,InTB!$N:$N,$B17,InTB!$C:$C,BS!L$1) -> 0 | M17: =IF(M$1=0,0,ROUND($T17*M$108,2))+SUMIFS(InTB!$K:$K,InTB!$M:$M,$E17,InTB!$C:$C,BS!M$1)+SUMIFS(InTB!$K:$K,InTB!$N:$N,$C17,InTB!$C:$C,BS!M$1)+SUMIFS(InTB!$K:$K,InTB!$N:$N,$B17,InTB!$C:$C,BS!M$1) -> 0 | N17: =IF(N$1=0,0,ROUND($T17*N$108,2))+SUMIFS(InTB!$K:$K,InTB!$M:$M,$E17,InTB!$C:$C,BS!N$1)+SUMIFS(InTB!$K:$K,InTB!$N:$N,$C17,InTB!$C:$C,BS!N$1)+SUMIFS(InTB!$K:$K,InTB!$N:$N,$B17,InTB!$C:$C,BS!N$1) -> 0 | O17: =IF(O$1=0,0,ROUND($T17*O$108,2))+SUMIFS(InTB!$K:$K,InTB!$M:$M,$E17,InTB!$C:$C,BS!O$1)+SUMIFS(InTB!$K:$K,InTB!$N:$N,$C17,InTB!$C:$C,BS!O$1)+SUMIFS(InTB!$K:$K,InTB!$N:$N,$B17,InTB!$C:$C,BS!O$1) -> 0 | P17: =IF(P$1=0,0,ROUND($T17*P$108,2))+SUMIFS(InTB!$K:$K,InTB!$M:$M,$E17,InTB!$C:$C,BS!P$1)+SUMIFS(InTB!$K:$K,InTB!$N:$N,$C17,InTB!$C:$C,BS!P$1)+SUMIFS(InTB!$K:$K,InTB!$N:$N,$B17,InTB!$C:$C,BS!P$1) -> 0 | Q17: =IF(Q$1=0,0,ROUND($T17*Q$108,2))+SUMIFS(InTB!$K:$K,InTB!$M:$M,$E17,InTB!$C:$C,BS!Q$1)+SUMIFS(InTB!$K:$K,InTB!$N:$N,$C17,InTB!$C:$C,BS!Q$1)+SUMIFS(InTB!$K:$K,InTB!$N:$N,$B17,InTB!$C:$C,BS!Q$1) -> 0 | R17: =IF(R$1=0,0,ROUND($T17*R$108,2))+SUMIFS(InTB!$K:$K,InTB!$M:$M,$E17,InTB!$C:$C,BS!R$1)+SUMIFS(InTB!$K:$K,InTB!$N:$N,$C17,InTB!$C:$C,BS!R$1)+SUMIFS(InTB!$K:$K,InTB!$N:$N,$B17,InTB!$C:$C,BS!R$1) -> 0 | S17: =IF(S$1=0,0,ROUND($T17*S$108,2))+SUMIFS(InTB!$K:$K,InTB!$M:$M,$E17,InTB!$C:$C,BS!S$1)+SUMIFS(InTB!$K:$K,InTB!$N:$N,$C17,InTB!$C:$C,BS!S$1)+SUMIFS(InTB!$K:$K,InTB!$N:$N,$B17,InTB!$C:$C,BS!S$1) -> 0 | T17: =SUMIF(InTBBase!$M:$M,$E17,InTBBase!$K:$K)+SUMIF(InTBBase!$N:$N,$C17,InTBBase!$K:$K)+SUMIF(InTBBase!$N:$N,$B17,InTBBase!$K:$K) -> 0 | U17: =ROUND(I17-SUM(J17:S17),1) -> 0
C18: BIACCE_CP | D18: UFISCP2 | E18: BIADCP | F18: =OFFSET( Label!$E$1,MATCH(BS!D18, Label!$E:$E,0)-1, Main!$G$14+1) -> Accreation of Discount- CP | I18: =SUMIF(InTB!$M:$M,$E18,InTB!$K:$K)+SUMIF(InTB!$N:$N,$C18,InTB!$K:$K)+SUMIF(InTB!$N:$N,$B18,InTB!$K:$K) -> 0 | J18: =IF(J$1=0,0,ROUND($T18*J$108,2))+SUMIFS(InTB!$K:$K,InTB!$M:$M,$E18,InTB!$C:$C,BS!J$1)+SUMIFS(InTB!$K:$K,InTB!$N:$N,$C18,InTB!$C:$C,BS!J$1)+SUMIFS(InTB!$K:$K,InTB!$N:$N,$B18,InTB!$C:$C,BS!J$1) -> 0 | K18: =IF(K$1=0,0,ROUND($T18*K$108,2))+SUMIFS(InTB!$K:$K,InTB!$M:$M,$E18,InTB!$C:$C,BS!K$1)+SUMIFS(InTB!$K:$K,InTB!$N:$N,$C18,InTB!$C:$C,BS!K$1)+SUMIFS(InTB!$K:$K,InTB!$N:$N,$B18,InTB!$C:$C,BS!K$1) -> 0 | L18: =IF(L$1=0,0,ROUND($T18*L$108,2))+SUMIFS(InTB!$K:$K,InTB!$M:$M,$E18,InTB!$C:$C,BS!L$1)+SUMIFS(InTB!$K:$K,InTB!$N:$N,$C18,InTB!$C:$C,BS!L$1)+SUMIFS(InTB!$K:$K,InTB!$N:$N,$B18,InTB!$C:$C,BS!L$1) -> 0 | M18: =IF(M$1=0,0,ROUND($T18*M$108,2))+SUMIFS(InTB!$K:$K,InTB!$M:$M,$E18,InTB!$C:$C,BS!M$1)+SUMIFS(InTB!$K:$K,InTB!$N:$N,$C18,InTB!$C:$C,BS!M$1)+SUMIFS(InTB!$K:$K,InTB!$N:$N,$B18,InTB!$C:$C,BS!M$1) -> 0 | N18: =IF(N$1=0,0,ROUND($T18*N$108,2))+SUMIFS(InTB!$K:$K,InTB!$M:$M,$E18,InTB!$C:$C,BS!N$1)+SUMIFS(InTB!$K:$K,InTB!$N:$N,$C18,InTB!$C:$C,BS!N$1)+SUMIFS(InTB!$K:$K,InTB!$N:$N,$B18,InTB!$C:$C,BS!N$1) -> 0 | O18: =IF(O$1=0,0,ROUND($T18*O$108,2))+SUMIFS(InTB!$K:$K,InTB!$M:$M,$E18,InTB!$C:$C,BS!O$1)+SUMIFS(InTB!$K:$K,InTB!$N:$N,$C18,InTB!$C:$C,BS!O$1)+SUMIFS(InTB!$K:$K,InTB!$N:$N,$B18,InTB!$C:$C,BS!O$1) -> 0 | P18: =IF(P$1=0,0,ROUND($T18*P$108,2))+SUMIFS(InTB!$K:$K,InTB!$M:$M,$E18,InTB!$C:$C,BS!P$1)+SUMIFS(InTB!$K:$K,InTB!$N:$N,$C18,InTB!$C:$C,BS!P$1)+SUMIFS(InTB!$K:$K,InTB!$N:$N,$B18,InTB!$C:$C,BS!P$1) -> 0 | Q18: =IF(Q$1=0,0,ROUND($T18*Q$108,2))+SUMIFS(InTB!$K:$K,InTB!$M:$M,$E18,InTB!$C:$C,BS!Q$1)+SUMIFS(InTB!$K:$K,InTB!$N:$N,$C18,InTB!$C:$C,BS!Q$1)+SUMIFS(InTB!$K:$K,InTB!$N:$N,$B18,InTB!$C:$C,BS!Q$1) -> 0 | R18: =IF(R$1=0,0,ROUND($T18*R$108,2))+SUMIFS(InTB!$K:$K,InTB!$M:$M,$E18,InTB!$C:$C,BS!R$1)+SUMIFS(InTB!$K:$K,InTB!$N:$N,$C18,InTB!$C:$C,BS!R$1)+SUMIFS(InTB!$K:$K,InTB!$N:$N,$B18,InTB!$C:$C,BS!R$1) -> 0 | S18: =IF(S$1=0,0,ROUND($T18*S$108,2))+SUMIFS(InTB!$K:$K,InTB!$M:$M,$E18,InTB!$C:$C,BS!S$1)+SUMIFS(InTB!$K:$K,InTB!$N:$N,$C18,InTB!$C:$C,BS!S$1)+SUMIFS(InTB!$K:$K,InTB!$N:$N,$B18,InTB!$C:$C,BS!S$1) -> 0 | T18: =SUMIF(InTBBase!$M:$M,$E18,InTBBase!$K:$K)+SUMIF(InTBBase!$N:$N,$C18,InTBBase!$K:$K)+SUMIF(InTBBase!$N:$N,$B18,InTBBase!$K:$K) -> 0 | U18: 0
C19: BIURGL_CP | D19: UFISCP3 | E19: BIAUCP | F19: =OFFSET( Label!$E$1,MATCH(BS!D19, Label!$E:$E,0)-1, Main!$G$14+1) -> Unrealised Reserves on Investment -CP | I19: =SUMIF(InTB!$M:$M,$E19,InTB!$K:$K)+SUMIF(InTB!$N:$N,$C19,InTB!$K:$K)+SUMIF(InTB!$N:$N,$B19,InTB!$K:$K) -> 0 | J19: =IF(J$1=0,0,ROUND($T19*J$108,2))+SUMIFS(InTB!$K:$K,InTB!$M:$M,$E19,InTB!$C:$C,BS!J$1)+SUMIFS(InTB!$K:$K,InTB!$N:$N,$C19,InTB!$C:$C,BS!J$1)+SUMIFS(InTB!$K:$K,InTB!$N:$N,$B19,InTB!$C:$C,BS!J$1) -> 0 | K19: =IF(K$1=0,0,ROUND($T19*K$108,2))+SUMIFS(InTB!$K:$K,InTB!$M:$M,$E19,InTB!$C:$C,BS!K$1)+SUMIFS(InTB!$K:$K,InTB!$N:$N,$C19,InTB!$C:$C,BS!K$1)+SUMIFS(InTB!$K:$K,InTB!$N:$N,$B19,InTB!$C:$C,BS!K$1) -> 0 | L19: =IF(L$1=0,0,ROUND($T19*L$108,2))+SUMIFS(InTB!$K:$K,InTB!$M:$M,$E19,InTB!$C:$C,BS!L$1)+SUMIFS(InTB!$K:$K,InTB!$N:$N,$C19,InTB!$C:$C,BS!L$1)+SUMIFS(InTB!$K:$K,InTB!$N:$N,$B19,InTB!$C:$C,BS!L$1) -> 0 | M19: =IF(M$1=0,0,ROUND($T19*M$108,2))+SUMIFS(InTB!$K:$K,InTB!$M:$M,$E19,InTB!$C:$C,BS!M$1)+SUMIFS(InTB!$K:$K,InTB!$N:$N,$C19,InTB!$C:$C,BS!M$1)+SUMIFS(InTB!$K:$K,InTB!$N:$N,$B19,InTB!$C:$C,BS!M$1) -> 0 | N19: =IF(N$1=0,0,ROUND($T19*N$108,2))+SUMIFS(InTB!$K:$K,InTB!$M:$M,$E19,InTB!$C:$C,BS!N$1)+SUMIFS(InTB!$K:$K,InTB!$N:$N,$C19,InTB!$C:$C,BS!N$1)+SUMIFS(InTB!$K:$K,InTB!$N:$N,$B19,InTB!$C:$C,BS!N$1) -> 0 | O19: =IF(O$1=0,0,ROUND($T19*O$108,2))+SUMIFS(InTB!$K:$K,InTB!$M:$M,$E19,InTB!$C:$C,BS!O$1)+SUMIFS(InTB!$K:$K,InTB!$N:$N,$C19,InTB!$C:$C,BS!O$1)+SUMIFS(InTB!$K:$K,InTB!$N:$N,$B19,InTB!$C:$C,BS!O$1) -> 0 | P19: =IF(P$1=0,0,ROUND($T19*P$108,2))+SUMIFS(InTB!$K:$K,InTB!$M:$M,$E19,InTB!$C:$C,BS!P$1)+SUMIFS(InTB!$K:$K,InTB!$N:$N,$C19,InTB!$C:$C,BS!P$1)+SUMIFS(InTB!$K:$K,InTB!$N:$N,$B19,InTB!$C:$C,BS!P$1) -> 0 | Q19: =IF(Q$1=0,0,ROUND($T19*Q$108,2))+SUMIFS(InTB!$K:$K,InTB!$M:$M,$E19,InTB!$C:$C,BS!Q$1)+SUMIFS(InTB!$K:$K,InTB!$N:$N,$C19,InTB!$C:$C,BS!Q$1)+SUMIFS(InTB!$K:$K,InTB!$N:$N,$B19,InTB!$C:$C,BS!Q$1) -> 0 | R19: =IF(R$1=0,0,ROUND($T19*R$108,2))+SUMIFS(InTB!$K:$K,InTB!$M:$M,$E19,InTB!$C:$C,BS!R$1)+SUMIFS(InTB!$K:$K,InTB!$N:$N,$C19,InTB!$C:$C,BS!R$1)+SUMIFS(InTB!$K:$K,InTB!$N:$N,$B19,InTB!$C:$C,BS!R$1) -> 0 | S19: =IF(S$1=0,0,ROUND($T19*S$108,2))+SUMIFS(InTB!$K:$K,InTB!$M:$M,$E19,InTB!$C:$C,BS!S$1)+SUMIFS(InTB!$K:$K,InTB!$N:$N,$C19,InTB!$C:$C,BS!S$1)+SUMIFS(InTB!$K:$K,InTB!$N:$N,$B19,InTB!$C:$C,BS!S$1) -> 0 | T19: =SUMIF(InTBBase!$M:$M,$E19,InTBBase!$K:$K)+SUMIF(InTBBase!$N:$N,$C19,InTBBase!$K:$K)+SUMIF(InTBBase!$N:$N,$B19,InTBBase!$K:$K) -> 0 | U19: 0
U20: 0
D21: UFISCB | F21: =OFFSET( Label!$E$1,MATCH(BS!D21, Label!$E:$E,0)-1, Main!$G$14+1) -> Unquoted Fixed Income Securities -Commercial SUKUK | I21: =SUM(I22:I27) -> 0 | J21: 0 | K21: 0 | L21: 0 | M21: 0 | N21: 0 | O21: =SUM(O22:O27) -> 0 | P21: 0 | Q21: 0 | R21: =SUM(R22:R27) -> 0 | S21: 0 | T21: =SUM(T22:T27) -> 0 | U21: 0
C22: BICOST_*BND | D22: UFISCOST1 | E22: BIACCB | F22: =OFFSET( Label!$E$1,MATCH(BS!D22, Label!$E:$E,0)-1, Main!$G$14+1) -> Investment Cost - CB | I22: =SUMIF(InTB!$M:$M,$E22,InTB!$K:$K)+SUMIF(InTB!$N:$N,$C22,InTB!$K:$K)+SUMIF(InTB!$N:$N,$B22,InTB!$K:$K) -> 0 | J22: =IF(J$1=0,0,ROUND($T22*J$108,2))+SUMIFS(InTB!$K:$K,InTB!$M:$M,$E22,InTB!$C:$C,BS!J$1)+SUMIFS(InTB!$K:$K,InTB!$N:$N,$C22,InTB!$C:$C,BS!J$1)+SUMIFS(InTB!$K:$K,InTB!$N:$N,$B22,InTB!$C:$C,BS!J$1) -> 0 | K22: =IF(K$1=0,0,ROUND($T22*K$108,2))+SUMIFS(InTB!$K:$K,InTB!$M:$M,$E22,InTB!$C:$C,BS!K$1)+SUMIFS(InTB!$K:$K,InTB!$N:$N,$C22,InTB!$C:$C,BS!K$1)+SUMIFS(InTB!$K:$K,InTB!$N:$N,$B22,InTB!$C:$C,BS!K$1) -> 0 | L22: =IF(L$1=0,0,ROUND($T22*L$108,2))+SUMIFS(InTB!$K:$K,InTB!$M:$M,$E22,InTB!$C:$C,BS!L$1)+SUMIFS(InTB!$K:$K,InTB!$N:$N,$C22,InTB!$C:$C,BS!L$1)+SUMIFS(InTB!$K:$K,InTB!$N:$N,$B22,InTB!$C:$C,BS!L$1) -> 0 | M22: =IF(M$1=0,0,ROUND($T22*M$108,2))+SUMIFS(InTB!$K:$K,InTB!$M:$M,$E22,InTB!$C:$C,BS!M$1)+SUMIFS(InTB!$K:$K,InTB!$N:$N,$C22,InTB!$C:$C,BS!M$1)+SUMIFS(InTB!$K:$K,InTB!$N:$N,$B22,InTB!$C:$C,BS!M$1) -> 0 | N22: =IF(N$1=0,0,ROUND($T22*N$108,2))+SUMIFS(InTB!$K:$K,InTB!$M:$M,$E22,InTB!$C:$C,BS!N$1)+SUMIFS(InTB!$K:$K,InTB!$N:$N,$C22,InTB!$C:$C,BS!N$1)+SUMIFS(InTB!$K:$K,InTB!$N:$N,$B22,InTB!$C:$C,BS!N$1) -> 0 | O22: =IF(O$1=0,0,ROUND($T22*O$108,2))+SUMIFS(InTB!$K:$K,InTB!$M:$M,$E22,InTB!$C:$C,BS!O$1)+SUMIFS(InTB!$K:$K,InTB!$N:$N,$C22,InTB!$C:$C,BS!O$1)+SUMIFS(InTB!$K:$K,InTB!$N:$N,$B22,InTB!$C:$C,BS!O$1) -> 0 | P22: =IF(P$1=0,0,ROUND($T22*P$108,2))+SUMIFS(InTB!$K:$K,InTB!$M:$M,$E22,InTB!$C:$C,BS!P$1)+SUMIFS(InTB!$K:$K,InTB!$N:$N,$C22,InTB!$C:$C,BS!P$1)+SUMIFS(InTB!$K:$K,InTB!$N:$N,$B22,InTB!$C:$C,BS!P$1) -> 0 | Q22: =IF(Q$1=0,0,ROUND($T22*Q$108,2))+SUMIFS(InTB!$K:$K,InTB!$M:$M,$E22,InTB!$C:$C,BS!Q$1)+SUMIFS(InTB!$K:$K,InTB!$N:$N,$C22,InTB!$C:$C,BS!Q$1)+SUMIFS(InTB!$K:$K,InTB!$N:$N,$B22,InTB!$C:$C,BS!Q$1) -> 0 | R22: =IF(R$1=0,0,ROUND($T22*R$108,2))+SUMIFS(InTB!$K:$K,InTB!$M:$M,$E22,InTB!$C:$C,BS!R$1)+SUMIFS(InTB!$K:$K,InTB!$N:$N,$C22,InTB!$C:$C,BS!R$1)+SUMIFS(InTB!$K:$K,InTB!$N:$N,$B22,InTB!$C:$C,BS!R$1) -> 0 | S22: =IF(S$1=0,0,ROUND($T22*S$108,2))+SUMIFS(InTB!$K:$K,InTB!$M:$M,$E22,InTB!$C:$C,BS!S$1)+SUMIFS(InTB!$K:$K,InTB!$N:$N,$C22,InTB!$C:$C,BS!S$1)+SUMIFS(InTB!$K:$K,InTB!$N:$N,$B22,InTB!$C:$C,BS!S$1) -> 0 | T22: =SUMIF(InTBBase!$M:$M,$E22,InTBBase!$K:$K)+SUMIF(InTBBase!$N:$N,$C22,InTBBase!$K:$K)+SUMIF(InTBBase!$N:$N,$B22,InTBBase!$K:$K) -> 0 | U22: 0
C23: BIPACQ_*BND | D23: UFISCOST2 | E23: BIAPCB | F23: =OFFSET( Label!$E$1,MATCH(BS!D23, Label!$E:$E,0)-1, Main!$G$14+1) -> Pre-Acq Interest - CB | I23: =SUMIF(InTB!$M:$M,$E23,InTB!$K:$K)+SUMIF(InTB!$N:$N,$C23,InTB!$K:$K)+SUMIF(InTB!$N:$N,$B23,InTB!$K:$K) -> 0 | J23: =IF(J$1=0,0,ROUND($T23*J$108,2))+SUMIFS(InTB!$K:$K,InTB!$M:$M,$E23,InTB!$C:$C,BS!J$1)+SUMIFS(InTB!$K:$K,InTB!$N:$N,$C23,InTB!$C:$C,BS!J$1)+SUMIFS(InTB!$K:$K,InTB!$N:$N,$B23,InTB!$C:$C,BS!J$1) -> 0 | K23: =IF(K$1=0,0,ROUND($T23*K$108,2))+SUMIFS(InTB!$K:$K,InTB!$M:$M,$E23,InTB!$C:$C,BS!K$1)+SUMIFS(InTB!$K:$K,InTB!$N:$N,$C23,InTB!$C:$C,BS!K$1)+SUMIFS(InTB!$K:$K,InTB!$N:$N,$B23,InTB!$C:$C,BS!K$1) -> 0 | L23: =IF(L$1=0,0,ROUND($T23*L$108,2))+SUMIFS(InTB!$K:$K,InTB!$M:$M,$E23,InTB!$C:$C,BS!L$1)+SUMIFS(InTB!$K:$K,InTB!$N:$N,$C23,InTB!$C:$C,BS!L$1)+SUMIFS(InTB!$K:$K,InTB!$N:$N,$B23,InTB!$C:$C,BS!L$1) -> 0 | M23: =IF(M$1=0,0,ROUND($T23*M$108,2))+SUMIFS(InTB!$K:$K,InTB!$M:$M,$E23,InTB!$C:$C,BS!M$1)+SUMIFS(InTB!$K:$K,InTB!$N:$N,$C23,InTB!$C:$C,BS!M$1)+SUMIFS(InTB!$K:$K,InTB!$N:$N,$B23,InTB!$C:$C,BS!M$1) -> 0 | N23: =IF(N$1=0,0,ROUND($T23*N$108,2))+SUMIFS(InTB!$K:$K,InTB!$M:$M,$E23,InTB!$C:$C,BS!N$1)+SUMIFS(InTB!$K:$K,InTB!$N:$N,$C23,InTB!$C:$C,BS!N$1)+SUMIFS(InTB!$K:$K,InTB!$N:$N,$B23,InTB!$C:$C,BS!N$1) -> 0 | O23: =IF(O$1=0,0,ROUND($T23*O$108,2))+SUMIFS(InTB!$K:$K,InTB!$M:$M,$E23,InTB!$C:$C,BS!O$1)+SUMIFS(InTB!$K:$K,InTB!$N:$N,$C23,InTB!$C:$C,BS!O$1)+SUMIFS(InTB!$K:$K,InTB!$N:$N,$B23,InTB!$C:$C,BS!O$1) -> 0 | P23: =IF(P$1=0,0,ROUND($T23*P$108,2))+SUMIFS(InTB!$K:$K,InTB!$M:$M,$E23,InTB!$C:$C,BS!P$1)+SUMIFS(InTB!$K:$K,InTB!$N:$N,$C23,InTB!$C:$C,BS!P$1)+SUMIFS(InTB!$K:$K,InTB!$N:$N,$B23,InTB!$C:$C,BS!P$1) -> 0 | Q23: =IF(Q$1=0,0,ROUND($T23*Q$108,2))+SUMIFS(InTB!$K:$K,InTB!$M:$M,$E23,InTB!$C:$C,BS!Q$1)+SUMIFS(InTB!$K:$K,InTB!$N:$N,$C23,InTB!$C:$C,BS!Q$1)+SUMIFS(InTB!$K:$K,InTB!$N:$N,$B23,InTB!$C:$C,BS!Q$1) -> 0 | R23: =IF(R$1=0,0,ROUND($T23*R$108,2))+SUMIFS(InTB!$K:$K,InTB!$M:$M,$E23,InTB!$C:$C,BS!R$1)+SUMIFS(InTB!$K:$K,InTB!$N:$N,$C23,InTB!$C:$C,BS!R$1)+SUMIFS(InTB!$K:$K,InTB!$N:$N,$B23,InTB!$C:$C,BS!R$1) -> 0 | S23: =IF(S$1=0,0,ROUND($T23*S$108,2))+SUMIFS(InTB!$K:$K,InTB!$M:$M,$E23,InTB!$C:$C,BS!S$1)+SUMIFS(InTB!$K:$K,InTB!$N:$N,$C23,InTB!$C:$C,BS!S$1)+SUMIFS(InTB!$K:$K,InTB!$N:$N,$B23,InTB!$C:$C,BS!S$1) -> 0 | T23: =SUMIF(InTBBase!$M:$M,$E23,InTBBase!$K:$K)+SUMIF(InTBBase!$N:$N,$C23,InTBBase!$K:$K)+SUMIF(InTBBase!$N:$N,$B23,InTBBase!$K:$K) -> 0 | U23: 0
C24: BIAMRT_*BND | D24: UFISCOST3 | E24: BIAACB | F24: =OFFSET( Label!$E$1,MATCH(BS!D24, Label!$E:$E,0)-1, Main!$G$14+1) -> Premium on Acquisition- CB | I24: =SUMIF(InTB!$M:$M,$E24,InTB!$K:$K)+SUMIF(InTB!$N:$N,$C24,InTB!$K:$K)+SUMIF(InTB!$N:$N,$B24,InTB!$K:$K) -> 0 | J24: =IF(J$1=0,0,ROUND($T24*J$108,2))+SUMIFS(InTB!$K:$K,InTB!$M:$M,$E24,InTB!$C:$C,BS!J$1)+SUMIFS(InTB!$K:$K,InTB!$N:$N,$C24,InTB!$C:$C,BS!J$1)+SUMIFS(InTB!$K:$K,InTB!$N:$N,$B24,InTB!$C:$C,BS!J$1) -> 0 | K24: =IF(K$1=0,0,ROUND($T24*K$108,2))+SUMIFS(InTB!$K:$K,InTB!$M:$M,$E24,InTB!$C:$C,BS!K$1)+SUMIFS(InTB!$K:$K,InTB!$N:$N,$C24,InTB!$C:$C,BS!K$1)+SUMIFS(InTB!$K:$K,InTB!$N:$N,$B24,InTB!$C:$C,BS!K$1) -> 0 | L24: =IF(L$1=0,0,ROUND($T24*L$108,2))+SUMIFS(InTB!$K:$K,InTB!$M:$M,$E24,InTB!$C:$C,BS!L$1)+SUMIFS(InTB!$K:$K,InTB!$N:$N,$C24,InTB!$C:$C,BS!L$1)+SUMIFS(InTB!$K:$K,InTB!$N:$N,$B24,InTB!$C:$C,BS!L$1) -> 0 | M24: =IF(M$1=0,0,ROUND($T24*M$108,2))+SUMIFS(InTB!$K:$K,InTB!$M:$M,$E24,InTB!$C:$C,BS!M$1)+SUMIFS(InTB!$K:$K,InTB!$N:$N,$C24,InTB!$C:$C,BS!M$1)+SUMIFS(InTB!$K:$K,InTB!$N:$N,$B24,InTB!$C:$C,BS!M$1) -> 0 | N24: =IF(N$1=0,0,ROUND($T24*N$108,2))+SUMIFS(InTB!$K:$K,InTB!$M:$M,$E24,InTB!$C:$C,BS!N$1)+SUMIFS(InTB!$K:$K,InTB!$N:$N,$C24,InTB!$C:$C,BS!N$1)+SUMIFS(InTB!$K:$K,InTB!$N:$N,$B24,InTB!$C:$C,BS!N$1) -> 0 | O24: =IF(O$1=0,0,ROUND($T24*O$108,2))+SUMIFS(InTB!$K:$K,InTB!$M:$M,$E24,InTB!$C:$C,BS!O$1)+SUMIFS(InTB!$K:$K,InTB!$N:$N,$C24,InTB!$C:$C,BS!O$1)+SUMIFS(InTB!$K:$K,InTB!$N:$N,$B24,InTB!$C:$C,BS!O$1) -> 0 | P24: =IF(P$1=0,0,ROUND($T24*P$108,2))+SUMIFS(InTB!$K:$K,InTB!$M:$M,$E24,InTB!$C:$C,BS!P$1)+SUMIFS(InTB!$K:$K,InTB!$N:$N,$C24,InTB!$C:$C,BS!P$1)+SUMIFS(InTB!$K:$K,InTB!$N:$N,$B24,InTB!$C:$C,BS!P$1) -> 0 | Q24: =IF(Q$1=0,0,ROUND($T24*Q$108,2))+SUMIFS(InTB!$K:$K,InTB!$M:$M,$E24,InTB!$C:$C,BS!Q$1)+SUMIFS(InTB!$K:$K,InTB!$N:$N,$C24,InTB!$C:$C,BS!Q$1)+SUMIFS(InTB!$K:$K,InTB!$N:$N,$B24,InTB!$C:$C,BS!Q$1) -> 0 | R24: =IF(R$1=0,0,ROUND($T24*R$108,2))+SUMIFS(InTB!$K:$K,InTB!$M:$M,$E24,InTB!$C:$C,BS!R$1)+SUMIFS(InTB!$K:$K,InTB!$N:$N,$C24,InTB!$C:$C,BS!R$1)+SUMIFS(InTB!$K:$K,InTB!$N:$N,$B24,InTB!$C:$C,BS!R$1) -> 0 | S24: =IF(S$1=0,0,ROUND($T24*S$108,2))+SUMIFS(InTB!$K:$K,InTB!$M:$M,$E24,InTB!$C:$C,BS!S$1)+SUMIFS(InTB!$K:$K,InTB!$N:$N,$C24,InTB!$C:$C,BS!S$1)+SUMIFS(InTB!$K:$K,InTB!$N:$N,$B24,InTB!$C:$C,BS!S$1) -> 0 | T24: =SUMIF(InTBBase!$M:$M,$E24,InTBBase!$K:$K)+SUMIF(InTBBase!$N:$N,$C24,InTBBase!$K:$K)+SUMIF(InTBBase!$N:$N,$B24,InTBBase!$K:$K) -> 0 | U24: 0
C25: BIACCE_*BND | D25: UFISCOST4 | E25: BIADCB | F25: =OFFSET( Label!$E$1,MATCH(BS!D25, Label!$E:$E,0)-1, Main!$G$14+1) -> Accretion of Discount - CB | I25: =SUMIF(InTB!$M:$M,$E25,InTB!$K:$K)+SUMIF(InTB!$N:$N,$C25,InTB!$K:$K)+SUMIF(InTB!$N:$N,$B25,InTB!$K:$K) -> 0 | J25: =IF(J$1=0,0,ROUND($T25*J$108,2))+SUMIFS(InTB!$K:$K,InTB!$M:$M,$E25,InTB!$C:$C,BS!J$1)+SUMIFS(InTB!$K:$K,InTB!$N:$N,$C25,InTB!$C:$C,BS!J$1)+SUMIFS(InTB!$K:$K,InTB!$N:$N,$B25,InTB!$C:$C,BS!J$1) -> 0 | K25: =IF(K$1=0,0,ROUND($T25*K$108,2))+SUMIFS(InTB!$K:$K,InTB!$M:$M,$E25,InTB!$C:$C,BS!K$1)+SUMIFS(InTB!$K:$K,InTB!$N:$N,$C25,InTB!$C:$C,BS!K$1)+SUMIFS(InTB!$K:$K,InTB!$N:$N,$B25,InTB!$C:$C,BS!K$1) -> 0 | L25: =IF(L$1=0,0,ROUND($T25*L$108,2))+SUMIFS(InTB!$K:$K,InTB!$M:$M,$E25,InTB!$C:$C,BS!L$1)+SUMIFS(InTB!$K:$K,InTB!$N:$N,$C25,InTB!$C:$C,BS!L$1)+SUMIFS(InTB!$K:$K,InTB!$N:$N,$B25,InTB!$C:$C,BS!L$1) -> 0 | M25: =IF(M$1=0,0,ROUND($T25*M$108,2))+SUMIFS(InTB!$K:$K,InTB!$M:$M,$E25,InTB!$C:$C,BS!M$1)+SUMIFS(InTB!$K:$K,InTB!$N:$N,$C25,InTB!$C:$C,BS!M$1)+SUMIFS(InTB!$K:$K,InTB!$N:$N,$B25,InTB!$C:$C,BS!M$1) -> 0 | N25: =IF(N$1=0,0,ROUND($T25*N$108,2))+SUMIFS(InTB!$K:$K,InTB!$M:$M,$E25,InTB!$C:$C,BS!N$1)+SUMIFS(InTB!$K:$K,InTB!$N:$N,$C25,InTB!$C:$C,BS!N$1)+SUMIFS(InTB!$K:$K,InTB!$N:$N,$B25,InTB!$C:$C,BS!N$1) -> 0 | O25: =IF(O$1=0,0,ROUND($T25*O$108,2))+SUMIFS(InTB!$K:$K,InTB!$M:$M,$E25,InTB!$C:$C,BS!O$1)+SUMIFS(InTB!$K:$K,InTB!$N:$N,$C25,InTB!$C:$C,BS!O$1)+SUMIFS(InTB!$K:$K,InTB!$N:$N,$B25,InTB!$C:$C,BS!O$1) -> 0 | P25: =IF(P$1=0,0,ROUND($T25*P$108,2))+SUMIFS(InTB!$K:$K,InTB!$M:$M,$E25,InTB!$C:$C,BS!P$1)+SUMIFS(InTB!$K:$K,InTB!$N:$N,$C25,InTB!$C:$C,BS!P$1)+SUMIFS(InTB!$K:$K,InTB!$N:$N,$B25,InTB!$C:$C,BS!P$1) -> 0 | Q25: =IF(Q$1=0,0,ROUND($T25*Q$108,2))+SUMIFS(InTB!$K:$K,InTB!$M:$M,$E25,InTB!$C:$C,BS!Q$1)+SUMIFS(InTB!$K:$K,InTB!$N:$N,$C25,InTB!$C:$C,BS!Q$1)+SUMIFS(InTB!$K:$K,InTB!$N:$N,$B25,InTB!$C:$C,BS!Q$1) -> 0 | R25: =IF(R$1=0,0,ROUND($T25*R$108,2))+SUMIFS(InTB!$K:$K,InTB!$M:$M,$E25,InTB!$C:$C,BS!R$1)+SUMIFS(InTB!$K:$K,InTB!$N:$N,$C25,InTB!$C:$C,BS!R$1)+SUMIFS(InTB!$K:$K,InTB!$N:$N,$B25,InTB!$C:$C,BS!R$1) -> 0 | S25: =IF(S$1=0,0,ROUND($T25*S$108,2))+SUMIFS(InTB!$K:$K,InTB!$M:$M,$E25,InTB!$C:$C,BS!S$1)+SUMIFS(InTB!$K:$K,InTB!$N:$N,$C25,InTB!$C:$C,BS!S$1)+SUMIFS(InTB!$K:$K,InTB!$N:$N,$B25,InTB!$C:$C,BS!S$1) -> 0 | T25: =SUMIF(InTBBase!$M:$M,$E25,InTBBase!$K:$K)+SUMIF(InTBBase!$N:$N,$C25,InTBBase!$K:$K)+SUMIF(InTBBase!$N:$N,$B25,InTBBase!$K:$K) -> 0 | U25: 0
C26: BIURGL_*BND | D26: UFISCOST5 | E26: BIAUCB | F26: =OFFSET( Label!$E$1,MATCH(BS!D26, Label!$E:$E,0)-1, Main!$G$14+1) -> Unrealised Reserves on Investment - CB | I26: =SUMIF(InTB!$M:$M,$E26,InTB!$K:$K)+SUMIF(InTB!$N:$N,$C26,InTB!$K:$K)+SUMIF(InTB!$N:$N,$B26,InTB!$K:$K) -> 0 | J26: =IF(J$1=0,0,ROUND($T26*J$108,2))+SUMIFS(InTB!$K:$K,InTB!$M:$M,$E26,InTB!$C:$C,BS!J$1)+SUMIFS(InTB!$K:$K,InTB!$N:$N,$C26,InTB!$C:$C,BS!J$1)+SUMIFS(InTB!$K:$K,InTB!$N:$N,$B26,InTB!$C:$C,BS!J$1) -> 0 | K26: =IF(K$1=0,0,ROUND($T26*K$108,2))+SUMIFS(InTB!$K:$K,InTB!$M:$M,$E26,InTB!$C:$C,BS!K$1)+SUMIFS(InTB!$K:$K,InTB!$N:$N,$C26,InTB!$C:$C,BS!K$1)+SUMIFS(InTB!$K:$K,InTB!$N:$N,$B26,InTB!$C:$C,BS!K$1) -> 0 | L26: =IF(L$1=0,0,ROUND($T26*L$108,2))+SUMIFS(InTB!$K:$K,InTB!$M:$M,$E26,InTB!$C:$C,BS!L$1)+SUMIFS(InTB!$K:$K,InTB!$N:$N,$C26,InTB!$C:$C,BS!L$1)+SUMIFS(InTB!$K:$K,InTB!$N:$N,$B26,InTB!$C:$C,BS!L$1) -> 0 | M26: =IF(M$1=0,0,ROUND($T26*M$108,2))+SUMIFS(InTB!$K:$K,InTB!$M:$M,$E26,InTB!$C:$C,BS!M$1)+SUMIFS(InTB!$K:$K,InTB!$N:$N,$C26,InTB!$C:$C,BS!M$1)+SUMIFS(InTB!$K:$K,InTB!$N:$N,$B26,InTB!$C:$C,BS!M$1) -> 0 | N26: =IF(N$1=0,0,ROUND($T26*N$108,2))+SUMIFS(InTB!$K:$K,InTB!$M:$M,$E26,InTB!$C:$C,BS!N$1)+SUMIFS(InTB!$K:$K,InTB!$N:$N,$C26,InTB!$C:$C,BS!N$1)+SUMIFS(InTB!$K:$K,InTB!$N:$N,$B26,InTB!$C:$C,BS!N$1) -> 0 | O26: =IF(O$1=0,0,ROUND($T26*O$108,2))+SUMIFS(InTB!$K:$K,InTB!$M:$M,$E26,InTB!$C:$C,BS!O$1)+SUMIFS(InTB!$K:$K,InTB!$N:$N,$C26,InTB!$C:$C,BS!O$1)+SUMIFS(InTB!$K:$K,InTB!$N:$N,$B26,InTB!$C:$C,BS!O$1) -> 0 | P26: =IF(P$1=0,0,ROUND($T26*P$108,2))+SUMIFS(InTB!$K:$K,InTB!$M:$M,$E26,InTB!$C:$C,BS!P$1)+SUMIFS(InTB!$K:$K,InTB!$N:$N,$C26,InTB!$C:$C,BS!P$1)+SUMIFS(InTB!$K:$K,InTB!$N:$N,$B26,InTB!$C:$C,BS!P$1) -> 0 | Q26: =IF(Q$1=0,0,ROUND($T26*Q$108,2))+SUMIFS(InTB!$K:$K,InTB!$M:$M,$E26,InTB!$C:$C,BS!Q$1)+SUMIFS(InTB!$K:$K,InTB!$N:$N,$C26,InTB!$C:$C,BS!Q$1)+SUMIFS(InTB!$K:$K,InTB!$N:$N,$B26,InTB!$C:$C,BS!Q$1) -> 0 | R26: =IF(R$1=0,0,ROUND($T26*R$108,2))+SUMIFS(InTB!$K:$K,InTB!$M:$M,$E26,InTB!$C:$C,BS!R$1)+SUMIFS(InTB!$K:$K,InTB!$N:$N,$C26,InTB!$C:$C,BS!R$1)+SUMIFS(InTB!$K:$K,InTB!$N:$N,$B26,InTB!$C:$C,BS!R$1) -> 0 | S26: =IF(S$1=0,0,ROUND($T26*S$108,2))+SUMIFS(InTB!$K:$K,InTB!$M:$M,$E26,InTB!$C:$C,BS!S$1)+SUMIFS(InTB!$K:$K,InTB!$N:$N,$C26,InTB!$C:$C,BS!S$1)+SUMIFS(InTB!$K:$K,InTB!$N:$N,$B26,InTB!$C:$C,BS!S$1) -> 0 | T26: =SUMIF(InTBBase!$M:$M,$E26,InTBBase!$K:$K)+SUMIF(InTBBase!$N:$N,$C26,InTBBase!$K:$K)+SUMIF(InTBBase!$N:$N,$B26,InTBBase!$K:$K) -> 0 | U26: 0
C27: BIURFX_*BND | D27: UFISCOST6 | F27: =OFFSET( Label!$E$1,MATCH(BS!D27, Label!$E:$E,0)-1, Main!$G$14+1) -> Unrealised FOREX Gains/(Loss) on Foreign - CB | I27: =SUMIF(InTB!$M:$M,$E27,InTB!$K:$K)+SUMIF(InTB!$N:$N,$C27,InTB!$K:$K)+SUMIF(InTB!$N:$N,$B27,InTB!$K:$K) -> 0 | J27: =IF(J$1=0,0,ROUND($T27*J$108,2))+SUMIFS(InTB!$K:$K,InTB!$M:$M,$E27,InTB!$C:$C,BS!J$1)+SUMIFS(InTB!$K:$K,InTB!$N:$N,$C27,InTB!$C:$C,BS!J$1)+SUMIFS(InTB!$K:$K,InTB!$N:$N,$B27,InTB!$C:$C,BS!J$1) -> 0 | K27: =IF(K$1=0,0,ROUND($T27*K$108,2))+SUMIFS(InTB!$K:$K,InTB!$M:$M,$E27,InTB!$C:$C,BS!K$1)+SUMIFS(InTB!$K:$K,InTB!$N:$N,$C27,InTB!$C:$C,BS!K$1)+SUMIFS(InTB!$K:$K,InTB!$N:$N,$B27,InTB!$C:$C,BS!K$1) -> 0 | L27: =IF(L$1=0,0,ROUND($T27*L$108,2))+SUMIFS(InTB!$K:$K,InTB!$M:$M,$E27,InTB!$C:$C,BS!L$1)+SUMIFS(InTB!$K:$K,InTB!$N:$N,$C27,InTB!$C:$C,BS!L$1)+SUMIFS(InTB!$K:$K,InTB!$N:$N,$B27,InTB!$C:$C,BS!L$1) -> 0 | M27: =IF(M$1=0,0,ROUND($T27*M$108,2))+SUMIFS(InTB!$K:$K,InTB!$M:$M,$E27,InTB!$C:$C,BS!M$1)+SUMIFS(InTB!$K:$K,InTB!$N:$N,$C27,InTB!$C:$C,BS!M$1)+SUMIFS(InTB!$K:$K,InTB!$N:$N,$B27,InTB!$C:$C,BS!M$1) -> 0 | N27: =IF(N$1=0,0,ROUND($T27*N$108,2))+SUMIFS(InTB!$K:$K,InTB!$M:$M,$E27,InTB!$C:$C,BS!N$1)+SUMIFS(InTB!$K:$K,InTB!$N:$N,$C27,InTB!$C:$C,BS!N$1)+SUMIFS(InTB!$K:$K,InTB!$N:$N,$B27,InTB!$C:$C,BS!N$1) -> 0 | O27: =IF(O$1=0,0,ROUND($T27*O$108,2))+SUMIFS(InTB!$K:$K,InTB!$M:$M,$E27,InTB!$C:$C,BS!O$1)+SUMIFS(InTB!$K:$K,InTB!$N:$N,$C27,InTB!$C:$C,BS!O$1)+SUMIFS(InTB!$K:$K,InTB!$N:$N,$B27,InTB!$C:$C,BS!O$1) -> 0 | P27: =IF(P$1=0,0,ROUND($T27*P$108,2))+SUMIFS(InTB!$K:$K,InTB!$M:$M,$E27,InTB!$C:$C,BS!P$1)+SUMIFS(InTB!$K:$K,InTB!$N:$N,$C27,InTB!$C:$C,BS!P$1)+SUMIFS(InTB!$K:$K,InTB!$N:$N,$B27,InTB!$C:$C,BS!P$1) -> 0 | Q27: =IF(Q$1=0,0,ROUND($T27*Q$108,2))+SUMIFS(InTB!$K:$K,InTB!$M:$M,$E27,InTB!$C:$C,BS!Q$1)+SUMIFS(InTB!$K:$K,InTB!$N:$N,$C27,InTB!$C:$C,BS!Q$1)+SUMIFS(InTB!$K:$K,InTB!$N:$N,$B27,InTB!$C:$C,BS!Q$1) -> 0 | R27: =IF(R$1=0,0,ROUND($T27*R$108,2))+SUMIFS(InTB!$K:$K,InTB!$M:$M,$E27,InTB!$C:$C,BS!R$1)+SUMIFS(InTB!$K:$K,InTB!$N:$N,$C27,InTB!$C:$C,BS!R$1)+SUMIFS(InTB!$K:$K,InTB!$N:$N,$B27,InTB!$C:$C,BS!R$1) -> 0 | S27: =IF(S$1=0,0,ROUND($T27*S$108,2))+SUMIFS(InTB!$K:$K,InTB!$M:$M,$E27,InTB!$C:$C,BS!S$1)+SUMIFS(InTB!$K:$K,InTB!$N:$N,$C27,InTB!$C:$C,BS!S$1)+SUMIFS(InTB!$K:$K,InTB!$N:$N,$B27,InTB!$C:$C,BS!S$1) -> 0 | T27: =SUMIF(InTBBase!$M:$M,$E27,InTBBase!$K:$K)+SUMIF(InTBBase!$N:$N,$C27,InTBBase!$K:$K)+SUMIF(InTBBase!$N:$N,$B27,InTBBase!$K:$K) -> 0 | U27: 0
U28: 0
D29: FVUFIS | F29: =OFFSET( Label!$E$1,MATCH(BS!D29, Label!$E:$E,0)-1, Main!$G$14+1) -> Fair Value for Unquoted fixed income securities | I29: =I16+I21 -> 0 | J29: =J16+J21 -> 0 | K29: 0 | L29: 0 | M29: 0 | N29: 0 | O29: 0 | P29: 0 | Q29: 0 | R29: 0 | S29: 0 | T29: =T16+T21 -> 0 | U29: 0
U30: 0
D31: QS | F31: =OFFSET( Label!$E$1,MATCH(BS!D31, Label!$E:$E,0)-1, Main!$G$14+1) -> Quoted Securities | I31: =SUM(I32:I38) -> 3551643 | J31: 3506241.83 | K31: 45401.17 | L31: 0 | M31: 0 | N31: 0 | O31: =SUM(O32:O38) -> 0 | P31: 0 | Q31: 0 | R31: =SUM(R32:R38) -> 0 | S31: 0 | T31: 3551643 | U31: 0
B32: BICOST_LNS | C32: BICOST_EQT | D32: QS1 | E32: BIACLS | F32: =UPPER(OFFSET( Label!$E$1,MATCH(BS!D32, Label!$E:$E,0)-1, Main!$G$14+1)) -> LOCAL LISTED SECURITIES | I32: =SUMIF(InTB!$M:$M,$E32,InTB!$K:$K)+SUMIF(InTB!$N:$N,$C32,InTB!$K:$K)+SUMIF(InTB!$N:$N,$B32,InTB!$K:$K) -> 0 | J32: =IF(J$1=0,0,ROUND($T32*J$108,2))+SUMIFS(InTB!$K:$K,InTB!$M:$M,$E32,InTB!$C:$C,BS!J$1)+SUMIFS(InTB!$K:$K,InTB!$N:$N,$C32,InTB!$C:$C,BS!J$1)+SUMIFS(InTB!$K:$K,InTB!$N:$N,$B32,InTB!$C:$C,BS!J$1) -> 0 | K32: =IF(K$1=0,0,ROUND($T32*K$108,2))+SUMIFS(InTB!$K:$K,InTB!$M:$M,$E32,InTB!$C:$C,BS!K$1)+SUMIFS(InTB!$K:$K,InTB!$N:$N,$C32,InTB!$C:$C,BS!K$1)+SUMIFS(InTB!$K:$K,InTB!$N:$N,$B32,InTB!$C:$C,BS!K$1) -> 0 | L32: =IF(L$1=0,0,ROUND($T32*L$108,2))+SUMIFS(InTB!$K:$K,InTB!$M:$M,$E32,InTB!$C:$C,BS!L$1)+SUMIFS(InTB!$K:$K,InTB!$N:$N,$C32,InTB!$C:$C,BS!L$1)+SUMIFS(InTB!$K:$K,InTB!$N:$N,$B32,InTB!$C:$C,BS!L$1) -> 0 | M32: =IF(M$1=0,0,ROUND($T32*M$108,2))+SUMIFS(InTB!$K:$K,InTB!$M:$M,$E32,InTB!$C:$C,BS!M$1)+SUMIFS(InTB!$K:$K,InTB!$N:$N,$C32,InTB!$C:$C,BS!M$1)+SUMIFS(InTB!$K:$K,InTB!$N:$N,$B32,InTB!$C:$C,BS!M$1) -> 0 | N32: =IF(N$1=0,0,ROUND($T32*N$108,2))+SUMIFS(InTB!$K:$K,InTB!$M:$M,$E32,InTB!$C:$C,BS!N$1)+SUMIFS(InTB!$K:$K,InTB!$N:$N,$C32,InTB!$C:$C,BS!N$1)+SUMIFS(InTB!$K:$K,InTB!$N:$N,$B32,InTB!$C:$C,BS!N$1) -> 0 | O32: =IF(O$1=0,0,ROUND($T32*O$108,2))+SUMIFS(InTB!$K:$K,InTB!$M:$M,$E32,InTB!$C:$C,BS!O$1)+SUMIFS(InTB!$K:$K,InTB!$N:$N,$C32,InTB!$C:$C,BS!O$1)+SUMIFS(InTB!$K:$K,InTB!$N:$N,$B32,InTB!$C:$C,BS!O$1) -> 0 | P32: =IF(P$1=0,0,ROUND($T32*P$108,2))+SUMIFS(InTB!$K:$K,InTB!$M:$M,$E32,InTB!$C:$C,BS!P$1)+SUMIFS(InTB!$K:$K,InTB!$N:$N,$C32,InTB!$C:$C,BS!P$1)+SUMIFS(InTB!$K:$K,InTB!$N:$N,$B32,InTB!$C:$C,BS!P$1) -> 0 | Q32: =IF(Q$1=0,0,ROUND($T32*Q$108,2))+SUMIFS(InTB!$K:$K,InTB!$M:$M,$E32,InTB!$C:$C,BS!Q$1)+SUMIFS(InTB!$K:$K,InTB!$N:$N,$C32,InTB!$C:$C,BS!Q$1)+SUMIFS(InTB!$K:$K,InTB!$N:$N,$B32,InTB!$C:$C,BS!Q$1) -> 0 | R32: =IF(R$1=0,0,ROUND($T32*R$108,2))+SUMIFS(InTB!$K:$K,InTB!$M:$M,$E32,InTB!$C:$C,BS!R$1)+SUMIFS(InTB!$K:$K,InTB!$N:$N,$C32,InTB!$C:$C,BS!R$1)+SUMIFS(InTB!$K:$K,InTB!$N:$N,$B32,InTB!$C:$C,BS!R$1) -> 0 | S32: =IF(S$1=0,0,ROUND($T32*S$108,2))+SUMIFS(InTB!$K:$K,InTB!$M:$M,$E32,InTB!$C:$C,BS!S$1)+SUMIFS(InTB!$K:$K,InTB!$N:$N,$C32,InTB!$C:$C,BS!S$1)+SUMIFS(InTB!$K:$K,InTB!$N:$N,$B32,InTB!$C:$C,BS!S$1) -> 0 | T32: =SUMIF(InTBBase!$M:$M,$E32,InTBBase!$K:$K)+SUMIF(InTBBase!$N:$N,$C32,InTBBase!$K:$K)+SUMIF(InTBBase!$N:$N,$B32,InTBBase!$K:$K) -> 0 | U32: 0
B33: BIURGL_LNS | C33: BIURGL_EQT | D33: QS2 | E33: BIAULS | F33: =OFFSET( Label!$E$1,MATCH(BS!D33, Label!$E:$E,0)-1, Main!$G$14+1) -> Unrealised Gains/(Loss) on Local Listed Securities | I33: =SUMIF(InTB!$M:$M,$E33,InTB!$K:$K)+SUMIF(InTB!$N:$N,$C33,InTB!$K:$K)+SUMIF(InTB!$N:$N,$B33,InTB!$K:$K) -> 0 | J33: =IF(J$1=0,0,ROUND($T33*J$108,2))+SUMIFS(InTB!$K:$K,InTB!$M:$M,$E33,InTB!$C:$C,BS!J$1)+SUMIFS(InTB!$K:$K,InTB!$N:$N,$C33,InTB!$C:$C,BS!J$1)+SUMIFS(InTB!$K:$K,InTB!$N:$N,$B33,InTB!$C:$C,BS!J$1) -> 0 | K33: =IF(K$1=0,0,ROUND($T33*K$108,2))+SUMIFS(InTB!$K:$K,InTB!$M:$M,$E33,InTB!$C:$C,BS!K$1)+SUMIFS(InTB!$K:$K,InTB!$N:$N,$C33,InTB!$C:$C,BS!K$1)+SUMIFS(InTB!$K:$K,InTB!$N:$N,$B33,InTB!$C:$C,BS!K$1) -> 0 | L33: =IF(L$1=0,0,ROUND($T33*L$108,2))+SUMIFS(InTB!$K:$K,InTB!$M:$M,$E33,InTB!$C:$C,BS!L$1)+SUMIFS(InTB!$K:$K,InTB!$N:$N,$C33,InTB!$C:$C,BS!L$1)+SUMIFS(InTB!$K:$K,InTB!$N:$N,$B33,InTB!$C:$C,BS!L$1) -> 0 | M33: =IF(M$1=0,0,ROUND($T33*M$108,2))+SUMIFS(InTB!$K:$K,InTB!$M:$M,$E33,InTB!$C:$C,BS!M$1)+SUMIFS(InTB!$K:$K,InTB!$N:$N,$C33,InTB!$C:$C,BS!M$1)+SUMIFS(InTB!$K:$K,InTB!$N:$N,$B33,InTB!$C:$C,BS!M$1) -> 0 | N33: =IF(N$1=0,0,ROUND($T33*N$108,2))+SUMIFS(InTB!$K:$K,InTB!$M:$M,$E33,InTB!$C:$C,BS!N$1)+SUMIFS(InTB!$K:$K,InTB!$N:$N,$C33,InTB!$C:$C,BS!N$1)+SUMIFS(InTB!$K:$K,InTB!$N:$N,$B33,InTB!$C:$C,BS!N$1) -> 0 | O33: =IF(O$1=0,0,ROUND($T33*O$108,2))+SUMIFS(InTB!$K:$K,InTB!$M:$M,$E33,InTB!$C:$C,BS!O$1)+SUMIFS(InTB!$K:$K,InTB!$N:$N,$C33,InTB!$C:$C,BS!O$1)+SUMIFS(InTB!$K:$K,InTB!$N:$N,$B33,InTB!$C:$C,BS!O$1) -> 0 | P33: =IF(P$1=0,0,ROUND($T33*P$108,2))+SUMIFS(InTB!$K:$K,InTB!$M:$M,$E33,InTB!$C:$C,BS!P$1)+SUMIFS(InTB!$K:$K,InTB!$N:$N,$C33,InTB!$C:$C,BS!P$1)+SUMIFS(InTB!$K:$K,InTB!$N:$N,$B33,InTB!$C:$C,BS!P$1) -> 0 | Q33: =IF(Q$1=0,0,ROUND($T33*Q$108,2))+SUMIFS(InTB!$K:$K,InTB!$M:$M,$E33,InTB!$C:$C,BS!Q$1)+SUMIFS(InTB!$K:$K,InTB!$N:$N,$C33,InTB!$C:$C,BS!Q$1)+SUMIFS(InTB!$K:$K,InTB!$N:$N,$B33,InTB!$C:$C,BS!Q$1) -> 0 | R33: =IF(R$1=0,0,ROUND($T33*R$108,2))+SUMIFS(InTB!$K:$K,InTB!$M:$M,$E33,InTB!$C:$C,BS!R$1)+SUMIFS(InTB!$K:$K,InTB!$N:$N,$C33,InTB!$C:$C,BS!R$1)+SUMIFS(InTB!$K:$K,InTB!$N:$N,$B33,InTB!$C:$C,BS!R$1) -> 0 | S33: =IF(S$1=0,0,ROUND($T33*S$108,2))+SUMIFS(InTB!$K:$K,InTB!$M:$M,$E33,InTB!$C:$C,BS!S$1)+SUMIFS(InTB!$K:$K,InTB!$N:$N,$C33,InTB!$C:$C,BS!S$1)+SUMIFS(InTB!$K:$K,InTB!$N:$N,$B33,InTB!$C:$C,BS!S$1) -> 0 | T33: =SUMIF(InTBBase!$M:$M,$E33,InTBBase!$K:$K)+SUMIF(InTBBase!$N:$N,$C33,InTBBase!$K:$K)+SUMIF(InTBBase!$N:$N,$B33,InTBBase!$K:$K) -> 0 | U33: 0
C34: BICOST_O-EQT | D34: QS3 | E34: BIACFS | F34: =UPPER(OFFSET( Label!$E$1,MATCH(BS!D34, Label!$E:$E,0)-1, Main!$G$14+1)) -> FOREIGN LISTED SECURITIES | I34: =SUMIF(InTB!$M:$M,$E34,InTB!$K:$K)+SUMIF(InTB!$N:$N,$C34,InTB!$K:$K)+SUMIF(InTB!$N:$N,$B34,InTB!$K:$K) -> 3628764.85 | J34: =IF(J$1=0,0,ROUND($T34*J$108,2))+SUMIFS(InTB!$K:$K,InTB!$M:$M,$E34,InTB!$C:$C,BS!J$1)+SUMIFS(InTB!$K:$K,InTB!$N:$N,$C34,InTB!$C:$C,BS!J$1)+SUMIFS(InTB!$K:$K,InTB!$N:$N,$B34,InTB!$C:$C,BS!J$1) -> 3582377.82 | K34: =IF(K$1=0,0,ROUND($T34*K$108,2))+SUMIFS(InTB!$K:$K,InTB!$M:$M,$E34,InTB!$C:$C,BS!K$1)+SUMIFS(InTB!$K:$K,InTB!$N:$N,$C34,InTB!$C:$C,BS!K$1)+SUMIFS(InTB!$K:$K,InTB!$N:$N,$B34,InTB!$C:$C,BS!K$1) -> 46387.03 | L34: =IF(L$1=0,0,ROUND($T34*L$108,2))+SUMIFS(InTB!$K:$K,InTB!$M:$M,$E34,InTB!$C:$C,BS!L$1)+SUMIFS(InTB!$K:$K,InTB!$N:$N,$C34,InTB!$C:$C,BS!L$1)+SUMIFS(InTB!$K:$K,InTB!$N:$N,$B34,InTB!$C:$C,BS!L$1) -> 0 | M34: =IF(M$1=0,0,ROUND($T34*M$108,2))+SUMIFS(InTB!$K:$K,InTB!$M:$M,$E34,InTB!$C:$C,BS!M$1)+SUMIFS(InTB!$K:$K,InTB!$N:$N,$C34,InTB!$C:$C,BS!M$1)+SUMIFS(InTB!$K:$K,InTB!$N:$N,$B34,InTB!$C:$C,BS!M$1) -> 0 | N34: =IF(N$1=0,0,ROUND($T34*N$108,2))+SUMIFS(InTB!$K:$K,InTB!$M:$M,$E34,InTB!$C:$C,BS!N$1)+SUMIFS(InTB!$K:$K,InTB!$N:$N,$C34,InTB!$C:$C,BS!N$1)+SUMIFS(InTB!$K:$K,InTB!$N:$N,$B34,InTB!$C:$C,BS!N$1) -> 0 | O34: =IF(O$1=0,0,ROUND($T34*O$108,2))+SUMIFS(InTB!$K:$K,InTB!$M:$M,$E34,InTB!$C:$C,BS!O$1)+SUMIFS(InTB!$K:$K,InTB!$N:$N,$C34,InTB!$C:$C,BS!O$1)+SUMIFS(InTB!$K:$K,InTB!$N:$N,$B34,InTB!$C:$C,BS!O$1) -> 0 | P34: =IF(P$1=0,0,ROUND($T34*P$108,2))+SUMIFS(InTB!$K:$K,InTB!$M:$M,$E34,InTB!$C:$C,BS!P$1)+SUMIFS(InTB!$K:$K,InTB!$N:$N,$C34,InTB!$C:$C,BS!P$1)+SUMIFS(InTB!$K:$K,InTB!$N:$N,$B34,InTB!$C:$C,BS!P$1) -> 0 | Q34: =IF(Q$1=0,0,ROUND($T34*Q$108,2))+SUMIFS(InTB!$K:$K,InTB!$M:$M,$E34,InTB!$C:$C,BS!Q$1)+SUMIFS(InTB!$K:$K,InTB!$N:$N,$C34,InTB!$C:$C,BS!Q$1)+SUMIFS(InTB!$K:$K,InTB!$N:$N,$B34,InTB!$C:$C,BS!Q$1) -> 0 | R34: =IF(R$1=0,0,ROUND($T34*R$108,2))+SUMIFS(InTB!$K:$K,InTB!$M:$M,$E34,InTB!$C:$C,BS!R$1)+SUMIFS(InTB!$K:$K,InTB!$N:$N,$C34,InTB!$C:$C,BS!R$1)+SUMIFS(InTB!$K:$K,InTB!$N:$N,$B34,InTB!$C:$C,BS!R$1) -> 0 | S34: =IF(S$1=0,0,ROUND($T34*S$108,2))+SUMIFS(InTB!$K:$K,InTB!$M:$M,$E34,InTB!$C:$C,BS!S$1)+SUMIFS(InTB!$K:$K,InTB!$N:$N,$C34,InTB!$C:$C,BS!S$1)+SUMIFS(InTB!$K:$K,InTB!$N:$N,$B34,InTB!$C:$C,BS!S$1) -> 0 | T34: =SUMIF(InTBBase!$M:$M,$E34,InTBBase!$K:$K)+SUMIF(InTBBase!$N:$N,$C34,InTBBase!$K:$K)+SUMIF(InTBBase!$N:$N,$B34,InTBBase!$K:$K) -> 3628764.85 | U34: 0
C35: BIURGL_O-EQT | D35: QS4 | E35: BIAUFS | F35: =OFFSET( Label!$E$1,MATCH(BS!D35, Label!$E:$E,0)-1, Main!$G$14+1) -> Unrealised Gains/(Loss) on Foreign Listed Securities | I35: =SUMIF(InTB!$M:$M,$E35,InTB!$K:$K)+SUMIF(InTB!$N:$N,$C35,InTB!$K:$K)+SUMIF(InTB!$N:$N,$B35,InTB!$K:$K) -> -101784.33 | J35: =IF(J$1=0,0,ROUND($T35*J$108,2))+SUMIFS(InTB!$K:$K,InTB!$M:$M,$E35,InTB!$C:$C,BS!J$1)+SUMIFS(InTB!$K:$K,InTB!$N:$N,$C35,InTB!$C:$C,BS!J$1)+SUMIFS(InTB!$K:$K,InTB!$N:$N,$B35,InTB!$C:$C,BS!J$1) -> -100483.21 | K35: =IF(K$1=0,0,ROUND($T35*K$108,2))+SUMIFS(InTB!$K:$K,InTB!$M:$M,$E35,InTB!$C:$C,BS!K$1)+SUMIFS(InTB!$K:$K,InTB!$N:$N,$C35,InTB!$C:$C,BS!K$1)+SUMIFS(InTB!$K:$K,InTB!$N:$N,$B35,InTB!$C:$C,BS!K$1) -> -1301.12 | L35: =IF(L$1=0,0,ROUND($T35*L$108,2))+SUMIFS(InTB!$K:$K,InTB!$M:$M,$E35,InTB!$C:$C,BS!L$1)+SUMIFS(InTB!$K:$K,InTB!$N:$N,$C35,InTB!$C:$C,BS!L$1)+SUMIFS(InTB!$K:$K,InTB!$N:$N,$B35,InTB!$C:$C,BS!L$1) -> 0 | M35: =IF(M$1=0,0,ROUND($T35*M$108,2))+SUMIFS(InTB!$K:$K,InTB!$M:$M,$E35,InTB!$C:$C,BS!M$1)+SUMIFS(InTB!$K:$K,InTB!$N:$N,$C35,InTB!$C:$C,BS!M$1)+SUMIFS(InTB!$K:$K,InTB!$N:$N,$B35,InTB!$C:$C,BS!M$1) -> 0 | N35: =IF(N$1=0,0,ROUND($T35*N$108,2))+SUMIFS(InTB!$K:$K,InTB!$M:$M,$E35,InTB!$C:$C,BS!N$1)+SUMIFS(InTB!$K:$K,InTB!$N:$N,$C35,InTB!$C:$C,BS!N$1)+SUMIFS(InTB!$K:$K,InTB!$N:$N,$B35,InTB!$C:$C,BS!N$1) -> 0 | O35: =IF(O$1=0,0,ROUND($T35*O$108,2))+SUMIFS(InTB!$K:$K,InTB!$M:$M,$E35,InTB!$C:$C,BS!O$1)+SUMIFS(InTB!$K:$K,InTB!$N:$N,$C35,InTB!$C:$C,BS!O$1)+SUMIFS(InTB!$K:$K,InTB!$N:$N,$B35,InTB!$C:$C,BS!O$1) -> 0 | P35: =IF(P$1=0,0,ROUND($T35*P$108,2))+SUMIFS(InTB!$K:$K,InTB!$M:$M,$E35,InTB!$C:$C,BS!P$1)+SUMIFS(InTB!$K:$K,InTB!$N:$N,$C35,InTB!$C:$C,BS!P$1)+SUMIFS(InTB!$K:$K,InTB!$N:$N,$B35,InTB!$C:$C,BS!P$1) -> 0 | Q35: =IF(Q$1=0,0,ROUND($T35*Q$108,2))+SUMIFS(InTB!$K:$K,InTB!$M:$M,$E35,InTB!$C:$C,BS!Q$1)+SUMIFS(InTB!$K:$K,InTB!$N:$N,$C35,InTB!$C:$C,BS!Q$1)+SUMIFS(InTB!$K:$K,InTB!$N:$N,$B35,InTB!$C:$C,BS!Q$1) -> 0 | R35: =IF(R$1=0,0,ROUND($T35*R$108,2))+SUMIFS(InTB!$K:$K,InTB!$M:$M,$E35,InTB!$C:$C,BS!R$1)+SUMIFS(InTB!$K:$K,InTB!$N:$N,$C35,InTB!$C:$C,BS!R$1)+SUMIFS(InTB!$K:$K,InTB!$N:$N,$B35,InTB!$C:$C,BS!R$1) -> 0 | S35: =IF(S$1=0,0,ROUND($T35*S$108,2))+SUMIFS(InTB!$K:$K,InTB!$M:$M,$E35,InTB!$C:$C,BS!S$1)+SUMIFS(InTB!$K:$K,InTB!$N:$N,$C35,InTB!$C:$C,BS!S$1)+SUMIFS(InTB!$K:$K,InTB!$N:$N,$B35,InTB!$C:$C,BS!S$1) -> 0 | T35: =SUMIF(InTBBase!$M:$M,$E35,InTBBase!$K:$K)+SUMIF(InTBBase!$N:$N,$C35,InTBBase!$K:$K)+SUMIF(InTBBase!$N:$N,$B35,InTBBase!$K:$K) -> -101784.33 | U35: 0
B36: BIURFX_*EQT | C36: BIURFX_LNS | D36: QS5 | E36: BIAFFS | F36: =OFFSET( Label!$E$1,MATCH(BS!D36, Label!$E:$E,0)-1, Main!$G$14+1) -> Unrealised FOREX Gains/(Loss) on Foreign Listed Securities | I36: =SUMIF(InTB!$M:$M,$E36,InTB!$K:$K)+SUMIF(InTB!$N:$N,$C36,InTB!$K:$K)+SUMIF(InTB!$N:$N,$B36,InTB!$K:$K) -> 24662.48 | J36: =IF(J$1=0,0,ROUND($T36*J$108,2))+SUMIFS(InTB!$K:$K,InTB!$M:$M,$E36,InTB!$C:$C,BS!J$1)+SUMIFS(InTB!$K:$K,InTB!$N:$N,$C36,InTB!$C:$C,BS!J$1)+SUMIFS(InTB!$K:$K,InTB!$N:$N,$B36,InTB!$C:$C,BS!J$1) -> 24347.22 | K36: =IF(K$1=0,0,ROUND($T36*K$108,2))+SUMIFS(InTB!$K:$K,InTB!$M:$M,$E36,InTB!$C:$C,BS!K$1)+SUMIFS(InTB!$K:$K,InTB!$N:$N,$C36,InTB!$C:$C,BS!K$1)+SUMIFS(InTB!$K:$K,InTB!$N:$N,$B36,InTB!$C:$C,BS!K$1) -> 315.26 | L36: =IF(L$1=0,0,ROUND($T36*L$108,2))+SUMIFS(InTB!$K:$K,InTB!$M:$M,$E36,InTB!$C:$C,BS!L$1)+SUMIFS(InTB!$K:$K,InTB!$N:$N,$C36,InTB!$C:$C,BS!L$1)+SUMIFS(InTB!$K:$K,InTB!$N:$N,$B36,InTB!$C:$C,BS!L$1) -> 0 | M36: =IF(M$1=0,0,ROUND($T36*M$108,2))+SUMIFS(InTB!$K:$K,InTB!$M:$M,$E36,InTB!$C:$C,BS!M$1)+SUMIFS(InTB!$K:$K,InTB!$N:$N,$C36,InTB!$C:$C,BS!M$1)+SUMIFS(InTB!$K:$K,InTB!$N:$N,$B36,InTB!$C:$C,BS!M$1) -> 0 | N36: =IF(N$1=0,0,ROUND($T36*N$108,2))+SUMIFS(InTB!$K:$K,InTB!$M:$M,$E36,InTB!$C:$C,BS!N$1)+SUMIFS(InTB!$K:$K,InTB!$N:$N,$C36,InTB!$C:$C,BS!N$1)+SUMIFS(InTB!$K:$K,InTB!$N:$N,$B36,InTB!$C:$C,BS!N$1) -> 0 | O36: =IF(O$1=0,0,ROUND($T36*O$108,2))+SUMIFS(InTB!$K:$K,InTB!$M:$M,$E36,InTB!$C:$C,BS!O$1)+SUMIFS(InTB!$K:$K,InTB!$N:$N,$C36,InTB!$C:$C,BS!O$1)+SUMIFS(InTB!$K:$K,InTB!$N:$N,$B36,InTB!$C:$C,BS!O$1) -> 0 | P36: =IF(P$1=0,0,ROUND($T36*P$108,2))+SUMIFS(InTB!$K:$K,InTB!$M:$M,$E36,InTB!$C:$C,BS!P$1)+SUMIFS(InTB!$K:$K,InTB!$N:$N,$C36,InTB!$C:$C,BS!P$1)+SUMIFS(InTB!$K:$K,InTB!$N:$N,$B36,InTB!$C:$C,BS!P$1) -> 0 | Q36: =IF(Q$1=0,0,ROUND($T36*Q$108,2))+SUMIFS(InTB!$K:$K,InTB!$M:$M,$E36,InTB!$C:$C,BS!Q$1)+SUMIFS(InTB!$K:$K,InTB!$N:$N,$C36,InTB!$C:$C,BS!Q$1)+SUMIFS(InTB!$K:$K,InTB!$N:$N,$B36,InTB!$C:$C,BS!Q$1) -> 0 | R36: =IF(R$1=0,0,ROUND($T36*R$108,2))+SUMIFS(InTB!$K:$K,InTB!$M:$M,$E36,InTB!$C:$C,BS!R$1)+SUMIFS(InTB!$K:$K,InTB!$N:$N,$C36,InTB!$C:$C,BS!R$1)+SUMIFS(InTB!$K:$K,InTB!$N:$N,$B36,InTB!$C:$C,BS!R$1) -> 0 | S36: =IF(S$1=0,0,ROUND($T36*S$108,2))+SUMIFS(InTB!$K:$K,InTB!$M:$M,$E36,InTB!$C:$C,BS!S$1)+SUMIFS(InTB!$K:$K,InTB!$N:$N,$C36,InTB!$C:$C,BS!S$1)+SUMIFS(InTB!$K:$K,InTB!$N:$N,$B36,InTB!$C:$C,BS!S$1) -> 0 | T36: =SUMIF(InTBBase!$M:$M,$E36,InTBBase!$K:$K)+SUMIF(InTBBase!$N:$N,$C36,InTBBase!$K:$K)+SUMIF(InTBBase!$N:$N,$B36,InTBBase!$K:$K) -> 24662.48 | U36: 0
C37: BICOST_DEV | D37: QS6 | E37: BIACDR | F37: =UPPER(OFFSET( Label!$E$1,MATCH(BS!D37, Label!$E:$E,0)-1, Main!$G$14+1)) -> QUOTED DERIVATIVES | I37: =SUMIF(InTB!$M:$M,$E37,InTB!$K:$K)+SUMIF(InTB!$N:$N,$C37,InTB!$K:$K)+SUMIF(InTB!$N:$N,$B37,InTB!$K:$K) -> 0 | J37: =IF(J$1=0,0,ROUND($T37*J$108,2))+SUMIFS(InTB!$K:$K,InTB!$M:$M,$E37,InTB!$C:$C,BS!J$1)+SUMIFS(InTB!$K:$K,InTB!$N:$N,$C37,InTB!$C:$C,BS!J$1)+SUMIFS(InTB!$K:$K,InTB!$N:$N,$B37,InTB!$C:$C,BS!J$1) -> 0 | K37: =IF(K$1=0,0,ROUND($T37*K$108,2))+SUMIFS(InTB!$K:$K,InTB!$M:$M,$E37,InTB!$C:$C,BS!K$1)+SUMIFS(InTB!$K:$K,InTB!$N:$N,$C37,InTB!$C:$C,BS!K$1)+SUMIFS(InTB!$K:$K,InTB!$N:$N,$B37,InTB!$C:$C,BS!K$1) -> 0 | L37: =IF(L$1=0,0,ROUND($T37*L$108,2))+SUMIFS(InTB!$K:$K,InTB!$M:$M,$E37,InTB!$C:$C,BS!L$1)+SUMIFS(InTB!$K:$K,InTB!$N:$N,$C37,InTB!$C:$C,BS!L$1)+SUMIFS(InTB!$K:$K,InTB!$N:$N,$B37,InTB!$C:$C,BS!L$1) -> 0 | M37: =IF(M$1=0,0,ROUND($T37*M$108,2))+SUMIFS(InTB!$K:$K,InTB!$M:$M,$E37,InTB!$C:$C,BS!M$1)+SUMIFS(InTB!$K:$K,InTB!$N:$N,$C37,InTB!$C:$C,BS!M$1)+SUMIFS(InTB!$K:$K,InTB!$N:$N,$B37,InTB!$C:$C,BS!M$1) -> 0 | N37: =IF(N$1=0,0,ROUND($T37*N$108,2))+SUMIFS(InTB!$K:$K,InTB!$M:$M,$E37,InTB!$C:$C,BS!N$1)+SUMIFS(InTB!$K:$K,InTB!$N:$N,$C37,InTB!$C:$C,BS!N$1)+SUMIFS(InTB!$K:$K,InTB!$N:$N,$B37,InTB!$C:$C,BS!N$1) -> 0 | O37: =IF(O$1=0,0,ROUND($T37*O$108,2))+SUMIFS(InTB!$K:$K,InTB!$M:$M,$E37,InTB!$C:$C,BS!O$1)+SUMIFS(InTB!$K:$K,InTB!$N:$N,$C37,InTB!$C:$C,BS!O$1)+SUMIFS(InTB!$K:$K,InTB!$N:$N,$B37,InTB!$C:$C,BS!O$1) -> 0 | P37: =IF(P$1=0,0,ROUND($T37*P$108,2))+SUMIFS(InTB!$K:$K,InTB!$M:$M,$E37,InTB!$C:$C,BS!P$1)+SUMIFS(InTB!$K:$K,InTB!$N:$N,$C37,InTB!$C:$C,BS!P$1)+SUMIFS(InTB!$K:$K,InTB!$N:$N,$B37,InTB!$C:$C,BS!P$1) -> 0 | Q37: =IF(Q$1=0,0,ROUND($T37*Q$108,2))+SUMIFS(InTB!$K:$K,InTB!$M:$M,$E37,InTB!$C:$C,BS!Q$1)+SUMIFS(InTB!$K:$K,InTB!$N:$N,$C37,InTB!$C:$C,BS!Q$1)+SUMIFS(InTB!$K:$K,InTB!$N:$N,$B37,InTB!$C:$C,BS!Q$1) -> 0 | R37: =IF(R$1=0,0,ROUND($T37*R$108,2))+SUMIFS(InTB!$K:$K,InTB!$M:$M,$E37,InTB!$C:$C,BS!R$1)+SUMIFS(InTB!$K:$K,InTB!$N:$N,$C37,InTB!$C:$C,BS!R$1)+SUMIFS(InTB!$K:$K,InTB!$N:$N,$B37,InTB!$C:$C,BS!R$1) -> 0 | S37: =IF(S$1=0,0,ROUND($T37*S$108,2))+SUMIFS(InTB!$K:$K,InTB!$M:$M,$E37,InTB!$C:$C,BS!S$1)+SUMIFS(InTB!$K:$K,InTB!$N:$N,$C37,InTB!$C:$C,BS!S$1)+SUMIFS(InTB!$K:$K,InTB!$N:$N,$B37,InTB!$C:$C,BS!S$1) -> 0 | T37: =SUMIF(InTBBase!$M:$M,$E37,InTBBase!$K:$K)+SUMIF(InTBBase!$N:$N,$C37,InTBBase!$K:$K)+SUMIF(InTBBase!$N:$N,$B37,InTBBase!$K:$K) -> 0 | U37: 0
C38: BIURGL_DEV | D38: QS7 | E38: BIAUDR | F38: =OFFSET( Label!$E$1,MATCH(BS!D38, Label!$E:$E,0)-1, Main!$G$14+1) -> Unrealised Gains/(Loss) on Quoted Derivatives | I38: =SUMIF(InTB!$M:$M,$E38,InTB!$K:$K)+SUMIF(InTB!$N:$N,$C38,InTB!$K:$K)+SUMIF(InTB!$N:$N,$B38,InTB!$K:$K) -> 0 | J38: =IF(J$1=0,0,ROUND($T38*J$108,2))+SUMIFS(InTB!$K:$K,InTB!$M:$M,$E38,InTB!$C:$C,BS!J$1)+SUMIFS(InTB!$K:$K,InTB!$N:$N,$C38,InTB!$C:$C,BS!J$1)+SUMIFS(InTB!$K:$K,InTB!$N:$N,$B38,InTB!$C:$C,BS!J$1) -> 0 | K38: =IF(K$1=0,0,ROUND($T38*K$108,2))+SUMIFS(InTB!$K:$K,InTB!$M:$M,$E38,InTB!$C:$C,BS!K$1)+SUMIFS(InTB!$K:$K,InTB!$N:$N,$C38,InTB!$C:$C,BS!K$1)+SUMIFS(InTB!$K:$K,InTB!$N:$N,$B38,InTB!$C:$C,BS!K$1) -> 0 | L38: =IF(L$1=0,0,ROUND($T38*L$108,2))+SUMIFS(InTB!$K:$K,InTB!$M:$M,$E38,InTB!$C:$C,BS!L$1)+SUMIFS(InTB!$K:$K,InTB!$N:$N,$C38,InTB!$C:$C,BS!L$1)+SUMIFS(InTB!$K:$K,InTB!$N:$N,$B38,InTB!$C:$C,BS!L$1) -> 0 | M38: =IF(M$1=0,0,ROUND($T38*M$108,2))+SUMIFS(InTB!$K:$K,InTB!$M:$M,$E38,InTB!$C:$C,BS!M$1)+SUMIFS(InTB!$K:$K,InTB!$N:$N,$C38,InTB!$C:$C,BS!M$1)+SUMIFS(InTB!$K:$K,InTB!$N:$N,$B38,InTB!$C:$C,BS!M$1) -> 0 | N38: =IF(N$1=0,0,ROUND($T38*N$108,2))+SUMIFS(InTB!$K:$K,InTB!$M:$M,$E38,InTB!$C:$C,BS!N$1)+SUMIFS(InTB!$K:$K,InTB!$N:$N,$C38,InTB!$C:$C,BS!N$1)+SUMIFS(InTB!$K:$K,InTB!$N:$N,$B38,InTB!$C:$C,BS!N$1) -> 0 | O38: =IF(O$1=0,0,ROUND($T38*O$108,2))+SUMIFS(InTB!$K:$K,InTB!$M:$M,$E38,InTB!$C:$C,BS!O$1)+SUMIFS(InTB!$K:$K,InTB!$N:$N,$C38,InTB!$C:$C,BS!O$1)+SUMIFS(InTB!$K:$K,InTB!$N:$N,$B38,InTB!$C:$C,BS!O$1) -> 0 | P38: =IF(P$1=0,0,ROUND($T38*P$108,2))+SUMIFS(InTB!$K:$K,InTB!$M:$M,$E38,InTB!$C:$C,BS!P$1)+SUMIFS(InTB!$K:$K,InTB!$N:$N,$C38,InTB!$C:$C,BS!P$1)+SUMIFS(InTB!$K:$K,InTB!$N:$N,$B38,InTB!$C:$C,BS!P$1) -> 0 | Q38: =IF(Q$1=0,0,ROUND($T38*Q$108,2))+SUMIFS(InTB!$K:$K,InTB!$M:$M,$E38,InTB!$C:$C,BS!Q$1)+SUMIFS(InTB!$K:$K,InTB!$N:$N,$C38,InTB!$C:$C,BS!Q$1)+SUMIFS(InTB!$K:$K,InTB!$N:$N,$B38,InTB!$C:$C,BS!Q$1) -> 0 | R38: =IF(R$1=0,0,ROUND($T38*R$108,2))+SUMIFS(InTB!$K:$K,InTB!$M:$M,$E38,InTB!$C:$C,BS!R$1)+SUMIFS(InTB!$K:$K,InTB!$N:$N,$C38,InTB!$C:$C,BS!R$1)+SUMIFS(InTB!$K:$K,InTB!$N:$N,$B38,InTB!$C:$C,BS!R$1) -> 0 | S38: =IF(S$1=0,0,ROUND($T38*S$108,2))+SUMIFS(InTB!$K:$K,InTB!$M:$M,$E38,InTB!$C:$C,BS!S$1)+SUMIFS(InTB!$K:$K,InTB!$N:$N,$C38,InTB!$C:$C,BS!S$1)+SUMIFS(InTB!$K:$K,InTB!$N:$N,$B38,InTB!$C:$C,BS!S$1) -> 0 | T38: =SUMIF(InTBBase!$M:$M,$E38,InTBBase!$K:$K)+SUMIF(InTBBase!$N:$N,$C38,InTBBase!$K:$K)+SUMIF(InTBBase!$N:$N,$B38,InTBBase!$K:$K) -> 0 | U38: 0
U39: 0
D40: CIS | F40: =OFFSET( Label!$E$1,MATCH(BS!D40, Label!$E:$E,0)-1, Main!$G$14+1) -> Collective Investment Scheme | I40: =SUM(I41:I45) -> 0 | J40: 0 | K40: 0 | L40: 0 | M40: 0 | N40: 0 | O40: =SUM(O41:O45) -> 0 | P40: 0 | Q40: 0 | R40: =SUM(R41:R45) -> 0 | S40: 0 | T40: =SUM(T41:T45) -> 0 | U40: 0
B41: BICOST_REIT | C41: BICOST_UT | D41: CIS1 | E41: BIACUT | F41: =UPPER(OFFSET( Label!$E$1,MATCH(BS!D41, Label!$E:$E,0)-1, Main!$G$14+1)) -> LOCAL COLLECTIVE INVESTMENT SCHEME | I41: =SUMIF(InTB!$M:$M,$E41,InTB!$K:$K)+SUMIF(InTB!$N:$N,$C41,InTB!$K:$K)+SUMIF(InTB!$N:$N,$B41,InTB!$K:$K) -> 0 | J41: =IF(J$1=0,0,ROUND($T41*J$108,2))+SUMIFS(InTB!$K:$K,InTB!$M:$M,$E41,InTB!$C:$C,BS!J$1)+SUMIFS(InTB!$K:$K,InTB!$N:$N,$C41,InTB!$C:$C,BS!J$1)+SUMIFS(InTB!$K:$K,InTB!$N:$N,$B41,InTB!$C:$C,BS!J$1) -> 0 | K41: =IF(K$1=0,0,ROUND($T41*K$108,2))+SUMIFS(InTB!$K:$K,InTB!$M:$M,$E41,InTB!$C:$C,BS!K$1)+SUMIFS(InTB!$K:$K,InTB!$N:$N,$C41,InTB!$C:$C,BS!K$1)+SUMIFS(InTB!$K:$K,InTB!$N:$N,$B41,InTB!$C:$C,BS!K$1) -> 0 | L41: =IF(L$1=0,0,ROUND($T41*L$108,2))+SUMIFS(InTB!$K:$K,InTB!$M:$M,$E41,InTB!$C:$C,BS!L$1)+SUMIFS(InTB!$K:$K,InTB!$N:$N,$C41,InTB!$C:$C,BS!L$1)+SUMIFS(InTB!$K:$K,InTB!$N:$N,$B41,InTB!$C:$C,BS!L$1) -> 0 | M41: =IF(M$1=0,0,ROUND($T41*M$108,2))+SUMIFS(InTB!$K:$K,InTB!$M:$M,$E41,InTB!$C:$C,BS!M$1)+SUMIFS(InTB!$K:$K,InTB!$N:$N,$C41,InTB!$C:$C,BS!M$1)+SUMIFS(InTB!$K:$K,InTB!$N:$N,$B41,InTB!$C:$C,BS!M$1) -> 0 | N41: =IF(N$1=0,0,ROUND($T41*N$108,2))+SUMIFS(InTB!$K:$K,InTB!$M:$M,$E41,InTB!$C:$C,BS!N$1)+SUMIFS(InTB!$K:$K,InTB!$N:$N,$C41,InTB!$C:$C,BS!N$1)+SUMIFS(InTB!$K:$K,InTB!$N:$N,$B41,InTB!$C:$C,BS!N$1) -> 0 | O41: =IF(O$1=0,0,ROUND($T41*O$108,2))+SUMIFS(InTB!$K:$K,InTB!$M:$M,$E41,InTB!$C:$C,BS!O$1)+SUMIFS(InTB!$K:$K,InTB!$N:$N,$C41,InTB!$C:$C,BS!O$1)+SUMIFS(InTB!$K:$K,InTB!$N:$N,$B41,InTB!$C:$C,BS!O$1) -> 0 | P41: =IF(P$1=0,0,ROUND($T41*P$108,2))+SUMIFS(InTB!$K:$K,InTB!$M:$M,$E41,InTB!$C:$C,BS!P$1)+SUMIFS(InTB!$K:$K,InTB!$N:$N,$C41,InTB!$C:$C,BS!P$1)+SUMIFS(InTB!$K:$K,InTB!$N:$N,$B41,InTB!$C:$C,BS!P$1) -> 0 | Q41: =IF(Q$1=0,0,ROUND($T41*Q$108,2))+SUMIFS(InTB!$K:$K,InTB!$M:$M,$E41,InTB!$C:$C,BS!Q$1)+SUMIFS(InTB!$K:$K,InTB!$N:$N,$C41,InTB!$C:$C,BS!Q$1)+SUMIFS(InTB!$K:$K,InTB!$N:$N,$B41,InTB!$C:$C,BS!Q$1) -> 0 | R41: =IF(R$1=0,0,ROUND($T41*R$108,2))+SUMIFS(InTB!$K:$K,InTB!$M:$M,$E41,InTB!$C:$C,BS!R$1)+SUMIFS(InTB!$K:$K,InTB!$N:$N,$C41,InTB!$C:$C,BS!R$1)+SUMIFS(InTB!$K:$K,InTB!$N:$N,$B41,InTB!$C:$C,BS!R$1) -> 0 | S41: =IF(S$1=0,0,ROUND($T41*S$108,2))+SUMIFS(InTB!$K:$K,InTB!$M:$M,$E41,InTB!$C:$C,BS!S$1)+SUMIFS(InTB!$K:$K,InTB!$N:$N,$C41,InTB!$C:$C,BS!S$1)+SUMIFS(InTB!$K:$K,InTB!$N:$N,$B41,InTB!$C:$C,BS!S$1) -> 0 | T41: =SUMIF(InTBBase!$M:$M,$E41,InTBBase!$K:$K)+SUMIF(InTBBase!$N:$N,$C41,InTBBase!$K:$K)+SUMIF(InTBBase!$N:$N,$B41,InTBBase!$K:$K) -> 0 | U41: 0
B42: BIURGL_REIT | C42: BIURGL_UT | D42: CIS2 | E42: BIAUUT | F42: =OFFSET( Label!$E$1,MATCH(BS!D42, Label!$E:$E,0)-1, Main!$G$14+1) -> Unrealised Gains/(Loss) on Local Collective Investment Scheme | I42: =SUMIF(InTB!$M:$M,$E42,InTB!$K:$K)+SUMIF(InTB!$N:$N,$C42,InTB!$K:$K)+SUMIF(InTB!$N:$N,$B42,InTB!$K:$K) -> 0 | J42: =IF(J$1=0,0,ROUND($T42*J$108,2))+SUMIFS(InTB!$K:$K,InTB!$M:$M,$E42,InTB!$C:$C,BS!J$1)+SUMIFS(InTB!$K:$K,InTB!$N:$N,$C42,InTB!$C:$C,BS!J$1)+SUMIFS(InTB!$K:$K,InTB!$N:$N,$B42,InTB!$C:$C,BS!J$1) -> 0 | K42: =IF(K$1=0,0,ROUND($T42*K$108,2))+SUMIFS(InTB!$K:$K,InTB!$M:$M,$E42,InTB!$C:$C,BS!K$1)+SUMIFS(InTB!$K:$K,InTB!$N:$N,$C42,InTB!$C:$C,BS!K$1)+SUMIFS(InTB!$K:$K,InTB!$N:$N,$B42,InTB!$C:$C,BS!K$1) -> 0 | L42: =IF(L$1=0,0,ROUND($T42*L$108,2))+SUMIFS(InTB!$K:$K,InTB!$M:$M,$E42,InTB!$C:$C,BS!L$1)+SUMIFS(InTB!$K:$K,InTB!$N:$N,$C42,InTB!$C:$C,BS!L$1)+SUMIFS(InTB!$K:$K,InTB!$N:$N,$B42,InTB!$C:$C,BS!L$1) -> 0 | M42: =IF(M$1=0,0,ROUND($T42*M$108,2))+SUMIFS(InTB!$K:$K,InTB!$M:$M,$E42,InTB!$C:$C,BS!M$1)+SUMIFS(InTB!$K:$K,InTB!$N:$N,$C42,InTB!$C:$C,BS!M$1)+SUMIFS(InTB!$K:$K,InTB!$N:$N,$B42,InTB!$C:$C,BS!M$1) -> 0 | N42: =IF(N$1=0,0,ROUND($T42*N$108,2))+SUMIFS(InTB!$K:$K,InTB!$M:$M,$E42,InTB!$C:$C,BS!N$1)+SUMIFS(InTB!$K:$K,InTB!$N:$N,$C42,InTB!$C:$C,BS!N$1)+SUMIFS(InTB!$K:$K,InTB!$N:$N,$B42,InTB!$C:$C,BS!N$1) -> 0 | O42: =IF(O$1=0,0,ROUND($T42*O$108,2))+SUMIFS(InTB!$K:$K,InTB!$M:$M,$E42,InTB!$C:$C,BS!O$1)+SUMIFS(InTB!$K:$K,InTB!$N:$N,$C42,InTB!$C:$C,BS!O$1)+SUMIFS(InTB!$K:$K,InTB!$N:$N,$B42,InTB!$C:$C,BS!O$1) -> 0 | P42: =IF(P$1=0,0,ROUND($T42*P$108,2))+SUMIFS(InTB!$K:$K,InTB!$M:$M,$E42,InTB!$C:$C,BS!P$1)+SUMIFS(InTB!$K:$K,InTB!$N:$N,$C42,InTB!$C:$C,BS!P$1)+SUMIFS(InTB!$K:$K,InTB!$N:$N,$B42,InTB!$C:$C,BS!P$1) -> 0 | Q42: =IF(Q$1=0,0,ROUND($T42*Q$108,2))+SUMIFS(InTB!$K:$K,InTB!$M:$M,$E42,InTB!$C:$C,BS!Q$1)+SUMIFS(InTB!$K:$K,InTB!$N:$N,$C42,InTB!$C:$C,BS!Q$1)+SUMIFS(InTB!$K:$K,InTB!$N:$N,$B42,InTB!$C:$C,BS!Q$1) -> 0 | R42: =IF(R$1=0,0,ROUND($T42*R$108,2))+SUMIFS(InTB!$K:$K,InTB!$M:$M,$E42,InTB!$C:$C,BS!R$1)+SUMIFS(InTB!$K:$K,InTB!$N:$N,$C42,InTB!$C:$C,BS!R$1)+SUMIFS(InTB!$K:$K,InTB!$N:$N,$B42,InTB!$C:$C,BS!R$1) -> 0 | S42: =IF(S$1=0,0,ROUND($T42*S$108,2))+SUMIFS(InTB!$K:$K,InTB!$M:$M,$E42,InTB!$C:$C,BS!S$1)+SUMIFS(InTB!$K:$K,InTB!$N:$N,$C42,InTB!$C:$C,BS!S$1)+SUMIFS(InTB!$K:$K,InTB!$N:$N,$B42,InTB!$C:$C,BS!S$1) -> 0 | T42: =SUMIF(InTBBase!$M:$M,$E42,InTBBase!$K:$K)+SUMIF(InTBBase!$N:$N,$C42,InTBBase!$K:$K)+SUMIF(InTBBase!$N:$N,$B42,InTBBase!$K:$K) -> 0 | U42: 0
B43: BICOST_O-REIT | C43: BICOST_O-UT | D43: CIS3 | E43: BIACUF | F43: =UPPER(OFFSET( Label!$E$1,MATCH(BS!D43, Label!$E:$E,0)-1, Main!$G$14+1)) -> FOREIGN COLLECTIVE INVESTMENT SCHEME | I43: =SUMIF(InTB!$M:$M,$E43,InTB!$K:$K)+SUMIF(InTB!$N:$N,$C43,InTB!$K:$K)+SUMIF(InTB!$N:$N,$B43,InTB!$K:$K) -> 0 | J43: =IF(J$1=0,0,ROUND($T43*J$108,2))+SUMIFS(InTB!$K:$K,InTB!$M:$M,$E43,InTB!$C:$C,BS!J$1)+SUMIFS(InTB!$K:$K,InTB!$N:$N,$C43,InTB!$C:$C,BS!J$1)+SUMIFS(InTB!$K:$K,InTB!$N:$N,$B43,InTB!$C:$C,BS!J$1) -> 0 | K43: =IF(K$1=0,0,ROUND($T43*K$108,2))+SUMIFS(InTB!$K:$K,InTB!$M:$M,$E43,InTB!$C:$C,BS!K$1)+SUMIFS(InTB!$K:$K,InTB!$N:$N,$C43,InTB!$C:$C,BS!K$1)+SUMIFS(InTB!$K:$K,InTB!$N:$N,$B43,InTB!$C:$C,BS!K$1) -> 0 | L43: =IF(L$1=0,0,ROUND($T43*L$108,2))+SUMIFS(InTB!$K:$K,InTB!$M:$M,$E43,InTB!$C:$C,BS!L$1)+SUMIFS(InTB!$K:$K,InTB!$N:$N,$C43,InTB!$C:$C,BS!L$1)+SUMIFS(InTB!$K:$K,InTB!$N:$N,$B43,InTB!$C:$C,BS!L$1) -> 0 | M43: =IF(M$1=0,0,ROUND($T43*M$108,2))+SUMIFS(InTB!$K:$K,InTB!$M:$M,$E43,InTB!$C:$C,BS!M$1)+SUMIFS(InTB!$K:$K,InTB!$N:$N,$C43,InTB!$C:$C,BS!M$1)+SUMIFS(InTB!$K:$K,InTB!$N:$N,$B43,InTB!$C:$C,BS!M$1) -> 0 | N43: =IF(N$1=0,0,ROUND($T43*N$108,2))+SUMIFS(InTB!$K:$K,InTB!$M:$M,$E43,InTB!$C:$C,BS!N$1)+SUMIFS(InTB!$K:$K,InTB!$N:$N,$C43,InTB!$C:$C,BS!N$1)+SUMIFS(InTB!$K:$K,InTB!$N:$N,$B43,InTB!$C:$C,BS!N$1) -> 0 | O43: =IF(O$1=0,0,ROUND($T43*O$108,2))+SUMIFS(InTB!$K:$K,InTB!$M:$M,$E43,InTB!$C:$C,BS!O$1)+SUMIFS(InTB!$K:$K,InTB!$N:$N,$C43,InTB!$C:$C,BS!O$1)+SUMIFS(InTB!$K:$K,InTB!$N:$N,$B43,InTB!$C:$C,BS!O$1) -> 0 | P43: =IF(P$1=0,0,ROUND($T43*P$108,2))+SUMIFS(InTB!$K:$K,InTB!$M:$M,$E43,InTB!$C:$C,BS!P$1)+SUMIFS(InTB!$K:$K,InTB!$N:$N,$C43,InTB!$C:$C,BS!P$1)+SUMIFS(InTB!$K:$K,InTB!$N:$N,$B43,InTB!$C:$C,BS!P$1) -> 0 | Q43: =IF(Q$1=0,0,ROUND($T43*Q$108,2))+SUMIFS(InTB!$K:$K,InTB!$M:$M,$E43,InTB!$C:$C,BS!Q$1)+SUMIFS(InTB!$K:$K,InTB!$N:$N,$C43,InTB!$C:$C,BS!Q$1)+SUMIFS(InTB!$K:$K,InTB!$N:$N,$B43,InTB!$C:$C,BS!Q$1) -> 0 | R43: =IF(R$1=0,0,ROUND($T43*R$108,2))+SUMIFS(InTB!$K:$K,InTB!$M:$M,$E43,InTB!$C:$C,BS!R$1)+SUMIFS(InTB!$K:$K,InTB!$N:$N,$C43,InTB!$C:$C,BS!R$1)+SUMIFS(InTB!$K:$K,InTB!$N:$N,$B43,InTB!$C:$C,BS!R$1) -> 0 | S43: =IF(S$1=0,0,ROUND($T43*S$108,2))+SUMIFS(InTB!$K:$K,InTB!$M:$M,$E43,InTB!$C:$C,BS!S$1)+SUMIFS(InTB!$K:$K,InTB!$N:$N,$C43,InTB!$C:$C,BS!S$1)+SUMIFS(InTB!$K:$K,InTB!$N:$N,$B43,InTB!$C:$C,BS!S$1) -> 0 | T43: =SUMIF(InTBBase!$M:$M,$E43,InTBBase!$K:$K)+SUMIF(InTBBase!$N:$N,$C43,InTBBase!$K:$K)+SUMIF(InTBBase!$N:$N,$B43,InTBBase!$K:$K) -> 0 | U43: 0
B44: BIURGL_O-REIT | C44: BIURGL_O-UT | D44: CIS4 | E44: BIAUUF | F44: =OFFSET( Label!$E$1,MATCH(BS!D44, Label!$E:$E,0)-1, Main!$G$14+1) -> Unrealised Gains/(Loss) on Foreign Collective Investment Scheme | I44: =SUMIF(InTB!$M:$M,$E44,InTB!$K:$K)+SUMIF(InTB!$N:$N,$C44,InTB!$K:$K)+SUMIF(InTB!$N:$N,$B44,InTB!$K:$K) -> 0 | J44: =IF(J$1=0,0,ROUND($T44*J$108,2))+SUMIFS(InTB!$K:$K,InTB!$M:$M,$E44,InTB!$C:$C,BS!J$1)+SUMIFS(InTB!$K:$K,InTB!$N:$N,$C44,InTB!$C:$C,BS!J$1)+SUMIFS(InTB!$K:$K,InTB!$N:$N,$B44,InTB!$C:$C,BS!J$1) -> 0 | K44: =IF(K$1=0,0,ROUND($T44*K$108,2))+SUMIFS(InTB!$K:$K,InTB!$M:$M,$E44,InTB!$C:$C,BS!K$1)+SUMIFS(InTB!$K:$K,InTB!$N:$N,$C44,InTB!$C:$C,BS!K$1)+SUMIFS(InTB!$K:$K,InTB!$N:$N,$B44,InTB!$C:$C,BS!K$1) -> 0 | L44: =IF(L$1=0,0,ROUND($T44*L$108,2))+SUMIFS(InTB!$K:$K,InTB!$M:$M,$E44,InTB!$C:$C,BS!L$1)+SUMIFS(InTB!$K:$K,InTB!$N:$N,$C44,InTB!$C:$C,BS!L$1)+SUMIFS(InTB!$K:$K,InTB!$N:$N,$B44,InTB!$C:$C,BS!L$1) -> 0 | M44: =IF(M$1=0,0,ROUND($T44*M$108,2))+SUMIFS(InTB!$K:$K,InTB!$M:$M,$E44,InTB!$C:$C,BS!M$1)+SUMIFS(InTB!$K:$K,InTB!$N:$N,$C44,InTB!$C:$C,BS!M$1)+SUMIFS(InTB!$K:$K,InTB!$N:$N,$B44,InTB!$C:$C,BS!M$1) -> 0 | N44: =IF(N$1=0,0,ROUND($T44*N$108,2))+SUMIFS(InTB!$K:$K,InTB!$M:$M,$E44,InTB!$C:$C,BS!N$1)+SUMIFS(InTB!$K:$K,InTB!$N:$N,$C44,InTB!$C:$C,BS!N$1)+SUMIFS(InTB!$K:$K,InTB!$N:$N,$B44,InTB!$C:$C,BS!N$1) -> 0 | O44: =IF(O$1=0,0,ROUND($T44*O$108,2))+SUMIFS(InTB!$K:$K,InTB!$M:$M,$E44,InTB!$C:$C,BS!O$1)+SUMIFS(InTB!$K:$K,InTB!$N:$N,$C44,InTB!$C:$C,BS!O$1)+SUMIFS(InTB!$K:$K,InTB!$N:$N,$B44,InTB!$C:$C,BS!O$1) -> 0 | P44: =IF(P$1=0,0,ROUND($T44*P$108,2))+SUMIFS(InTB!$K:$K,InTB!$M:$M,$E44,InTB!$C:$C,BS!P$1)+SUMIFS(InTB!$K:$K,InTB!$N:$N,$C44,InTB!$C:$C,BS!P$1)+SUMIFS(InTB!$K:$K,InTB!$N:$N,$B44,InTB!$C:$C,BS!P$1) -> 0 | Q44: =IF(Q$1=0,0,ROUND($T44*Q$108,2))+SUMIFS(InTB!$K:$K,InTB!$M:$M,$E44,InTB!$C:$C,BS!Q$1)+SUMIFS(InTB!$K:$K,InTB!$N:$N,$C44,InTB!$C:$C,BS!Q$1)+SUMIFS(InTB!$K:$K,InTB!$N:$N,$B44,InTB!$C:$C,BS!Q$1) -> 0 | R44: =IF(R$1=0,0,ROUND($T44*R$108,2))+SUMIFS(InTB!$K:$K,InTB!$M:$M,$E44,InTB!$C:$C,BS!R$1)+SUMIFS(InTB!$K:$K,InTB!$N:$N,$C44,InTB!$C:$C,BS!R$1)+SUMIFS(InTB!$K:$K,InTB!$N:$N,$B44,InTB!$C:$C,BS!R$1) -> 0 | S44: =IF(S$1=0,0,ROUND($T44*S$108,2))+SUMIFS(InTB!$K:$K,InTB!$M:$M,$E44,InTB!$C:$C,BS!S$1)+SUMIFS(InTB!$K:$K,InTB!$N:$N,$C44,InTB!$C:$C,BS!S$1)+SUMIFS(InTB!$K:$K,InTB!$N:$N,$B44,InTB!$C:$C,BS!S$1) -> 0 | T44: =SUMIF(InTBBase!$M:$M,$E44,InTBBase!$K:$K)+SUMIF(InTBBase!$N:$N,$C44,InTBBase!$K:$K)+SUMIF(InTBBase!$N:$N,$B44,InTBBase!$K:$K) -> 0 | U44: 0
B45: BIURFX_O-REIT | C45: BIURFX_O-UT | D45: CIS5 | E45: BIAFFU | F45: =OFFSET( Label!$E$1,MATCH(BS!D45, Label!$E:$E,0)-1, Main!$G$14+1) -> Unrealised FOREX Gains/(Loss) on Foreign Collective Investment Scheme | I45: =SUMIF(InTB!$M:$M,$E45,InTB!$K:$K)+SUMIF(InTB!$N:$N,$C45,InTB!$K:$K)+SUMIF(InTB!$N:$N,$B45,InTB!$K:$K) -> 0 | J45: =IF(J$1=0,0,ROUND($T45*J$108,2))+SUMIFS(InTB!$K:$K,InTB!$M:$M,$E45,InTB!$C:$C,BS!J$1)+SUMIFS(InTB!$K:$K,InTB!$N:$N,$C45,InTB!$C:$C,BS!J$1)+SUMIFS(InTB!$K:$K,InTB!$N:$N,$B45,InTB!$C:$C,BS!J$1) -> 0 | K45: =IF(K$1=0,0,ROUND($T45*K$108,2))+SUMIFS(InTB!$K:$K,InTB!$M:$M,$E45,InTB!$C:$C,BS!K$1)+SUMIFS(InTB!$K:$K,InTB!$N:$N,$C45,InTB!$C:$C,BS!K$1)+SUMIFS(InTB!$K:$K,InTB!$N:$N,$B45,InTB!$C:$C,BS!K$1) -> 0 | L45: =IF(L$1=0,0,ROUND($T45*L$108,2))+SUMIFS(InTB!$K:$K,InTB!$M:$M,$E45,InTB!$C:$C,BS!L$1)+SUMIFS(InTB!$K:$K,InTB!$N:$N,$C45,InTB!$C:$C,BS!L$1)+SUMIFS(InTB!$K:$K,InTB!$N:$N,$B45,InTB!$C:$C,BS!L$1) -> 0 | M45: =IF(M$1=0,0,ROUND($T45*M$108,2))+SUMIFS(InTB!$K:$K,InTB!$M:$M,$E45,InTB!$C:$C,BS!M$1)+SUMIFS(InTB!$K:$K,InTB!$N:$N,$C45,InTB!$C:$C,BS!M$1)+SUMIFS(InTB!$K:$K,InTB!$N:$N,$B45,InTB!$C:$C,BS!M$1) -> 0 | N45: =IF(N$1=0,0,ROUND($T45*N$108,2))+SUMIFS(InTB!$K:$K,InTB!$M:$M,$E45,InTB!$C:$C,BS!N$1)+SUMIFS(InTB!$K:$K,InTB!$N:$N,$C45,InTB!$C:$C,BS!N$1)+SUMIFS(InTB!$K:$K,InTB!$N:$N,$B45,InTB!$C:$C,BS!N$1) -> 0 | O45: =IF(O$1=0,0,ROUND($T45*O$108,2))+SUMIFS(InTB!$K:$K,InTB!$M:$M,$E45,InTB!$C:$C,BS!O$1)+SUMIFS(InTB!$K:$K,InTB!$N:$N,$C45,InTB!$C:$C,BS!O$1)+SUMIFS(InTB!$K:$K,InTB!$N:$N,$B45,InTB!$C:$C,BS!O$1) -> 0 | P45: =IF(P$1=0,0,ROUND($T45*P$108,2))+SUMIFS(InTB!$K:$K,InTB!$M:$M,$E45,InTB!$C:$C,BS!P$1)+SUMIFS(InTB!$K:$K,InTB!$N:$N,$C45,InTB!$C:$C,BS!P$1)+SUMIFS(InTB!$K:$K,InTB!$N:$N,$B45,InTB!$C:$C,BS!P$1) -> 0 | Q45: =IF(Q$1=0,0,ROUND($T45*Q$108,2))+SUMIFS(InTB!$K:$K,InTB!$M:$M,$E45,InTB!$C:$C,BS!Q$1)+SUMIFS(InTB!$K:$K,InTB!$N:$N,$C45,InTB!$C:$C,BS!Q$1)+SUMIFS(InTB!$K:$K,InTB!$N:$N,$B45,InTB!$C:$C,BS!Q$1) -> 0 | R45: =IF(R$1=0,0,ROUND($T45*R$108,2))+SUMIFS(InTB!$K:$K,InTB!$M:$M,$E45,InTB!$C:$C,BS!R$1)+SUMIFS(InTB!$K:$K,InTB!$N:$N,$C45,InTB!$C:$C,BS!R$1)+SUMIFS(InTB!$K:$K,InTB!$N:$N,$B45,InTB!$C:$C,BS!R$1) -> 0 | S45: =IF(S$1=0,0,ROUND($T45*S$108,2))+SUMIFS(InTB!$K:$K,InTB!$M:$M,$E45,InTB!$C:$C,BS!S$1)+SUMIFS(InTB!$K:$K,InTB!$N:$N,$C45,InTB!$C:$C,BS!S$1)+SUMIFS(InTB!$K:$K,InTB!$N:$N,$B45,InTB!$C:$C,BS!S$1) -> 0 | T45: =SUMIF(InTBBase!$M:$M,$E45,InTBBase!$K:$K)+SUMIF(InTBBase!$N:$N,$C45,InTBBase!$K:$K)+SUMIF(InTBBase!$N:$N,$B45,InTBBase!$K:$K) -> 0 | U45: 0
U46: 0
D47: OPT | F47: =OFFSET( Label!$E$1,MATCH(BS!D47, Label!$E:$E,0)-1, Main!$G$14+1) -> Options | I47: =SUM(I48:I52) -> 0 | J47: 0 | K47: 0 | L47: 0 | M47: 0 | N47: 0 | O47: =SUM(O48:O52) -> 0 | P47: 0 | Q47: 0 | R47: =SUM(R48:R52) -> 0 | S47: 0 | T47: =SUM(T48:T52) -> 0 | U47: 0
C48: BICOST_O-OPT | D48: OPT1 | E48: BIACOF | F48: =UPPER(OFFSET( Label!$E$1,MATCH(BS!D48, Label!$E:$E,0)-1, Main!$G$14+1)) -> FOREIGN OPTIONS | I48: =SUMIF(InTB!$M:$M,$E48,InTB!$K:$K)+SUMIF(InTB!$N:$N,$C48,InTB!$K:$K)+SUMIF(InTB!$N:$N,$B48,InTB!$K:$K) -> 0 | J48: =IF(J$1=0,0,ROUND($T48*J$108,2))+SUMIFS(InTB!$K:$K,InTB!$M:$M,$E48,InTB!$C:$C,BS!J$1)+SUMIFS(InTB!$K:$K,InTB!$N:$N,$C48,InTB!$C:$C,BS!J$1)+SUMIFS(InTB!$K:$K,InTB!$N:$N,$B48,InTB!$C:$C,BS!J$1) -> 0 | K48: =IF(K$1=0,0,ROUND($T48*K$108,2))+SUMIFS(InTB!$K:$K,InTB!$M:$M,$E48,InTB!$C:$C,BS!K$1)+SUMIFS(InTB!$K:$K,InTB!$N:$N,$C48,InTB!$C:$C,BS!K$1)+SUMIFS(InTB!$K:$K,InTB!$N:$N,$B48,InTB!$C:$C,BS!K$1) -> 0 | L48: =IF(L$1=0,0,ROUND($T48*L$108,2))+SUMIFS(InTB!$K:$K,InTB!$M:$M,$E48,InTB!$C:$C,BS!L$1)+SUMIFS(InTB!$K:$K,InTB!$N:$N,$C48,InTB!$C:$C,BS!L$1)+SUMIFS(InTB!$K:$K,InTB!$N:$N,$B48,InTB!$C:$C,BS!L$1) -> 0 | M48: =IF(M$1=0,0,ROUND($T48*M$108,2))+SUMIFS(InTB!$K:$K,InTB!$M:$M,$E48,InTB!$C:$C,BS!M$1)+SUMIFS(InTB!$K:$K,InTB!$N:$N,$C48,InTB!$C:$C,BS!M$1)+SUMIFS(InTB!$K:$K,InTB!$N:$N,$B48,InTB!$C:$C,BS!M$1) -> 0 | N48: =IF(N$1=0,0,ROUND($T48*N$108,2))+SUMIFS(InTB!$K:$K,InTB!$M:$M,$E48,InTB!$C:$C,BS!N$1)+SUMIFS(InTB!$K:$K,InTB!$N:$N,$C48,InTB!$C:$C,BS!N$1)+SUMIFS(InTB!$K:$K,InTB!$N:$N,$B48,InTB!$C:$C,BS!N$1) -> 0 | O48: =IF(O$1=0,0,ROUND($T48*O$108,2))+SUMIFS(InTB!$K:$K,InTB!$M:$M,$E48,InTB!$C:$C,BS!O$1)+SUMIFS(InTB!$K:$K,InTB!$N:$N,$C48,InTB!$C:$C,BS!O$1)+SUMIFS(InTB!$K:$K,InTB!$N:$N,$B48,InTB!$C:$C,BS!O$1) -> 0 | P48: =IF(P$1=0,0,ROUND($T48*P$108,2))+SUMIFS(InTB!$K:$K,InTB!$M:$M,$E48,InTB!$C:$C,BS!P$1)+SUMIFS(InTB!$K:$K,InTB!$N:$N,$C48,InTB!$C:$C,BS!P$1)+SUMIFS(InTB!$K:$K,InTB!$N:$N,$B48,InTB!$C:$C,BS!P$1) -> 0 | Q48: =IF(Q$1=0,0,ROUND($T48*Q$108,2))+SUMIFS(InTB!$K:$K,InTB!$M:$M,$E48,InTB!$C:$C,BS!Q$1)+SUMIFS(InTB!$K:$K,InTB!$N:$N,$C48,InTB!$C:$C,BS!Q$1)+SUMIFS(InTB!$K:$K,InTB!$N:$N,$B48,InTB!$C:$C,BS!Q$1) -> 0 | R48: =IF(R$1=0,0,ROUND($T48*R$108,2))+SUMIFS(InTB!$K:$K,InTB!$M:$M,$E48,InTB!$C:$C,BS!R$1)+SUMIFS(InTB!$K:$K,InTB!$N:$N,$C48,InTB!$C:$C,BS!R$1)+SUMIFS(InTB!$K:$K,InTB!$N:$N,$B48,InTB!$C:$C,BS!R$1) -> 0 | S48: =IF(S$1=0,0,ROUND($T48*S$108,2))+SUMIFS(InTB!$K:$K,InTB!$M:$M,$E48,InTB!$C:$C,BS!S$1)+SUMIFS(InTB!$K:$K,InTB!$N:$N,$C48,InTB!$C:$C,BS!S$1)+SUMIFS(InTB!$K:$K,InTB!$N:$N,$B48,InTB!$C:$C,BS!S$1) -> 0 | T48: =SUMIF(InTBBase!$M:$M,$E48,InTBBase!$K:$K)+SUMIF(InTBBase!$N:$N,$C48,InTBBase!$K:$K)+SUMIF(InTBBase!$N:$N,$B48,InTBBase!$K:$K) -> 0 | U48: 0
C49: BIURGL_O-OPT | D49: OPT2 | E49: BIAUOF | F49: =OFFSET( Label!$E$1,MATCH(BS!D49, Label!$E:$E,0)-1, Main!$G$14+1) -> Unrealised Gains/(Loss) on Foreign Options | I49: =SUMIF(InTB!$M:$M,$E49,InTB!$K:$K)+SUMIF(InTB!$N:$N,$C49,InTB!$K:$K)+SUMIF(InTB!$N:$N,$B49,InTB!$K:$K) -> 0 | J49: =IF(J$1=0,0,ROUND($T49*J$108,2))+SUMIFS(InTB!$K:$K,InTB!$M:$M,$E49,InTB!$C:$C,BS!J$1)+SUMIFS(InTB!$K:$K,InTB!$N:$N,$C49,InTB!$C:$C,BS!J$1)+SUMIFS(InTB!$K:$K,InTB!$N:$N,$B49,InTB!$C:$C,BS!J$1) -> 0 | K49: =IF(K$1=0,0,ROUND($T49*K$108,2))+SUMIFS(InTB!$K:$K,InTB!$M:$M,$E49,InTB!$C:$C,BS!K$1)+SUMIFS(InTB!$K:$K,InTB!$N:$N,$C49,InTB!$C:$C,BS!K$1)+SUMIFS(InTB!$K:$K,InTB!$N:$N,$B49,InTB!$C:$C,BS!K$1) -> 0 | L49: =IF(L$1=0,0,ROUND($T49*L$108,2))+SUMIFS(InTB!$K:$K,InTB!$M:$M,$E49,InTB!$C:$C,BS!L$1)+SUMIFS(InTB!$K:$K,InTB!$N:$N,$C49,InTB!$C:$C,BS!L$1)+SUMIFS(InTB!$K:$K,InTB!$N:$N,$B49,InTB!$C:$C,BS!L$1) -> 0 | M49: =IF(M$1=0,0,ROUND($T49*M$108,2))+SUMIFS(InTB!$K:$K,InTB!$M:$M,$E49,InTB!$C:$C,BS!M$1)+SUMIFS(InTB!$K:$K,InTB!$N:$N,$C49,InTB!$C:$C,BS!M$1)+SUMIFS(InTB!$K:$K,InTB!$N:$N,$B49,InTB!$C:$C,BS!M$1) -> 0 | N49: =IF(N$1=0,0,ROUND($T49*N$108,2))+SUMIFS(InTB!$K:$K,InTB!$M:$M,$E49,InTB!$C:$C,BS!N$1)+SUMIFS(InTB!$K:$K,InTB!$N:$N,$C49,InTB!$C:$C,BS!N$1)+SUMIFS(InTB!$K:$K,InTB!$N:$N,$B49,InTB!$C:$C,BS!N$1) -> 0 | O49: =IF(O$1=0,0,ROUND($T49*O$108,2))+SUMIFS(InTB!$K:$K,InTB!$M:$M,$E49,InTB!$C:$C,BS!O$1)+SUMIFS(InTB!$K:$K,InTB!$N:$N,$C49,InTB!$C:$C,BS!O$1)+SUMIFS(InTB!$K:$K,InTB!$N:$N,$B49,InTB!$C:$C,BS!O$1) -> 0 | P49: =IF(P$1=0,0,ROUND($T49*P$108,2))+SUMIFS(InTB!$K:$K,InTB!$M:$M,$E49,InTB!$C:$C,BS!P$1)+SUMIFS(InTB!$K:$K,InTB!$N:$N,$C49,InTB!$C:$C,BS!P$1)+SUMIFS(InTB!$K:$K,InTB!$N:$N,$B49,InTB!$C:$C,BS!P$1) -> 0 | Q49: =IF(Q$1=0,0,ROUND($T49*Q$108,2))+SUMIFS(InTB!$K:$K,InTB!$M:$M,$E49,InTB!$C:$C,BS!Q$1)+SUMIFS(InTB!$K:$K,InTB!$N:$N,$C49,InTB!$C:$C,BS!Q$1)+SUMIFS(InTB!$K:$K,InTB!$N:$N,$B49,InTB!$C:$C,BS!Q$1) -> 0 | R49: =IF(R$1=0,0,ROUND($T49*R$108,2))+SUMIFS(InTB!$K:$K,InTB!$M:$M,$E49,InTB!$C:$C,BS!R$1)+SUMIFS(InTB!$K:$K,InTB!$N:$N,$C49,InTB!$C:$C,BS!R$1)+SUMIFS(InTB!$K:$K,InTB!$N:$N,$B49,InTB!$C:$C,BS!R$1) -> 0 | S49: =IF(S$1=0,0,ROUND($T49*S$108,2))+SUMIFS(InTB!$K:$K,InTB!$M:$M,$E49,InTB!$C:$C,BS!S$1)+SUMIFS(InTB!$K:$K,InTB!$N:$N,$C49,InTB!$C:$C,BS!S$1)+SUMIFS(InTB!$K:$K,InTB!$N:$N,$B49,InTB!$C:$C,BS!S$1) -> 0 | T49: =SUMIF(InTBBase!$M:$M,$E49,InTBBase!$K:$K)+SUMIF(InTBBase!$N:$N,$C49,InTBBase!$K:$K)+SUMIF(InTBBase!$N:$N,$B49,InTBBase!$K:$K) -> 0 | U49: 0
C50: BIURFX_O-OPT | D50: OPT3 | E50: BIAFFO | F50: =OFFSET( Label!$E$1,MATCH(BS!D50, Label!$E:$E,0)-1, Main!$G$14+1) -> Unrealised FOREX Gains/(Loss) on Foreign Options | I50: =SUMIF(InTB!$M:$M,$E50,InTB!$K:$K)+SUMIF(InTB!$N:$N,$C50,InTB!$K:$K)+SUMIF(InTB!$N:$N,$B50,InTB!$K:$K) -> 0 | J50: =IF(J$1=0,0,ROUND($T50*J$108,2))+SUMIFS(InTB!$K:$K,InTB!$M:$M,$E50,InTB!$C:$C,BS!J$1)+SUMIFS(InTB!$K:$K,InTB!$N:$N,$C50,InTB!$C:$C,BS!J$1)+SUMIFS(InTB!$K:$K,InTB!$N:$N,$B50,InTB!$C:$C,BS!J$1) -> 0 | K50: =IF(K$1=0,0,ROUND($T50*K$108,2))+SUMIFS(InTB!$K:$K,InTB!$M:$M,$E50,InTB!$C:$C,BS!K$1)+SUMIFS(InTB!$K:$K,InTB!$N:$N,$C50,InTB!$C:$C,BS!K$1)+SUMIFS(InTB!$K:$K,InTB!$N:$N,$B50,InTB!$C:$C,BS!K$1) -> 0 | L50: =IF(L$1=0,0,ROUND($T50*L$108,2))+SUMIFS(InTB!$K:$K,InTB!$M:$M,$E50,InTB!$C:$C,BS!L$1)+SUMIFS(InTB!$K:$K,InTB!$N:$N,$C50,InTB!$C:$C,BS!L$1)+SUMIFS(InTB!$K:$K,InTB!$N:$N,$B50,InTB!$C:$C,BS!L$1) -> 0 | M50: =IF(M$1=0,0,ROUND($T50*M$108,2))+SUMIFS(InTB!$K:$K,InTB!$M:$M,$E50,InTB!$C:$C,BS!M$1)+SUMIFS(InTB!$K:$K,InTB!$N:$N,$C50,InTB!$C:$C,BS!M$1)+SUMIFS(InTB!$K:$K,InTB!$N:$N,$B50,InTB!$C:$C,BS!M$1) -> 0 | N50: =IF(N$1=0,0,ROUND($T50*N$108,2))+SUMIFS(InTB!$K:$K,InTB!$M:$M,$E50,InTB!$C:$C,BS!N$1)+SUMIFS(InTB!$K:$K,InTB!$N:$N,$C50,InTB!$C:$C,BS!N$1)+SUMIFS(InTB!$K:$K,InTB!$N:$N,$B50,InTB!$C:$C,BS!N$1) -> 0 | O50: =IF(O$1=0,0,ROUND($T50*O$108,2))+SUMIFS(InTB!$K:$K,InTB!$M:$M,$E50,InTB!$C:$C,BS!O$1)+SUMIFS(InTB!$K:$K,InTB!$N:$N,$C50,InTB!$C:$C,BS!O$1)+SUMIFS(InTB!$K:$K,InTB!$N:$N,$B50,InTB!$C:$C,BS!O$1) -> 0 | P50: =IF(P$1=0,0,ROUND($T50*P$108,2))+SUMIFS(InTB!$K:$K,InTB!$M:$M,$E50,InTB!$C:$C,BS!P$1)+SUMIFS(InTB!$K:$K,InTB!$N:$N,$C50,InTB!$C:$C,BS!P$1)+SUMIFS(InTB!$K:$K,InTB!$N:$N,$B50,InTB!$C:$C,BS!P$1) -> 0 | Q50: =IF(Q$1=0,0,ROUND($T50*Q$108,2))+SUMIFS(InTB!$K:$K,InTB!$M:$M,$E50,InTB!$C:$C,BS!Q$1)+SUMIFS(InTB!$K:$K,InTB!$N:$N,$C50,InTB!$C:$C,BS!Q$1)+SUMIFS(InTB!$K:$K,InTB!$N:$N,$B50,InTB!$C:$C,BS!Q$1) -> 0 | R50: =IF(R$1=0,0,ROUND($T50*R$108,2))+SUMIFS(InTB!$K:$K,InTB!$M:$M,$E50,InTB!$C:$C,BS!R$1)+SUMIFS(InTB!$K:$K,InTB!$N:$N,$C50,InTB!$C:$C,BS!R$1)+SUMIFS(InTB!$K:$K,InTB!$N:$N,$B50,InTB!$C:$C,BS!R$1) -> 0 | S50: =IF(S$1=0,0,ROUND($T50*S$108,2))+SUMIFS(InTB!$K:$K,InTB!$M:$M,$E50,InTB!$C:$C,BS!S$1)+SUMIFS(InTB!$K:$K,InTB!$N:$N,$C50,InTB!$C:$C,BS!S$1)+SUMIFS(InTB!$K:$K,InTB!$N:$N,$B50,InTB!$C:$C,BS!S$1) -> 0 | T50: =SUMIF(InTBBase!$M:$M,$E50,InTBBase!$K:$K)+SUMIF(InTBBase!$N:$N,$C50,InTBBase!$K:$K)+SUMIF(InTBBase!$N:$N,$B50,InTBBase!$K:$K) -> 0 | U50: 0
C51: BICOST_FWD | D51: OPT4 | E51: BIACFC | F51: =UPPER(OFFSET( Label!$E$1,MATCH(BS!D51, Label!$E:$E,0)-1, Main!$G$14+1)) -> FORWARD CONTRACT | I51: =SUMIF(InTB!$M:$M,$E51,InTB!$K:$K)+SUMIF(InTB!$N:$N,$C51,InTB!$K:$K)+SUMIF(InTB!$N:$N,$B51,InTB!$K:$K) -> 0 | J51: =IF(J$1=0,0,ROUND($T51*J$108,2))+SUMIFS(InTB!$K:$K,InTB!$M:$M,$E51,InTB!$C:$C,BS!J$1)+SUMIFS(InTB!$K:$K,InTB!$N:$N,$C51,InTB!$C:$C,BS!J$1)+SUMIFS(InTB!$K:$K,InTB!$N:$N,$B51,InTB!$C:$C,BS!J$1) -> 0 | K51: =IF(K$1=0,0,ROUND($T51*K$108,2))+SUMIFS(InTB!$K:$K,InTB!$M:$M,$E51,InTB!$C:$C,BS!K$1)+SUMIFS(InTB!$K:$K,InTB!$N:$N,$C51,InTB!$C:$C,BS!K$1)+SUMIFS(InTB!$K:$K,InTB!$N:$N,$B51,InTB!$C:$C,BS!K$1) -> 0 | L51: =IF(L$1=0,0,ROUND($T51*L$108,2))+SUMIFS(InTB!$K:$K,InTB!$M:$M,$E51,InTB!$C:$C,BS!L$1)+SUMIFS(InTB!$K:$K,InTB!$N:$N,$C51,InTB!$C:$C,BS!L$1)+SUMIFS(InTB!$K:$K,InTB!$N:$N,$B51,InTB!$C:$C,BS!L$1) -> 0 | M51: =IF(M$1=0,0,ROUND($T51*M$108,2))+SUMIFS(InTB!$K:$K,InTB!$M:$M,$E51,InTB!$C:$C,BS!M$1)+SUMIFS(InTB!$K:$K,InTB!$N:$N,$C51,InTB!$C:$C,BS!M$1)+SUMIFS(InTB!$K:$K,InTB!$N:$N,$B51,InTB!$C:$C,BS!M$1) -> 0 | N51: =IF(N$1=0,0,ROUND($T51*N$108,2))+SUMIFS(InTB!$K:$K,InTB!$M:$M,$E51,InTB!$C:$C,BS!N$1)+SUMIFS(InTB!$K:$K,InTB!$N:$N,$C51,InTB!$C:$C,BS!N$1)+SUMIFS(InTB!$K:$K,InTB!$N:$N,$B51,InTB!$C:$C,BS!N$1) -> 0 | O51: =IF(O$1=0,0,ROUND($T51*O$108,2))+SUMIFS(InTB!$K:$K,InTB!$M:$M,$E51,InTB!$C:$C,BS!O$1)+SUMIFS(InTB!$K:$K,InTB!$N:$N,$C51,InTB!$C:$C,BS!O$1)+SUMIFS(InTB!$K:$K,InTB!$N:$N,$B51,InTB!$C:$C,BS!O$1) -> 0 | P51: =IF(P$1=0,0,ROUND($T51*P$108,2))+SUMIFS(InTB!$K:$K,InTB!$M:$M,$E51,InTB!$C:$C,BS!P$1)+SUMIFS(InTB!$K:$K,InTB!$N:$N,$C51,InTB!$C:$C,BS!P$1)+SUMIFS(InTB!$K:$K,InTB!$N:$N,$B51,InTB!$C:$C,BS!P$1) -> 0 | Q51: =IF(Q$1=0,0,ROUND($T51*Q$108,2))+SUMIFS(InTB!$K:$K,InTB!$M:$M,$E51,InTB!$C:$C,BS!Q$1)+SUMIFS(InTB!$K:$K,InTB!$N:$N,$C51,InTB!$C:$C,BS!Q$1)+SUMIFS(InTB!$K:$K,InTB!$N:$N,$B51,InTB!$C:$C,BS!Q$1) -> 0 | R51: =IF(R$1=0,0,ROUND($T51*R$108,2))+SUMIFS(InTB!$K:$K,InTB!$M:$M,$E51,InTB!$C:$C,BS!R$1)+SUMIFS(InTB!$K:$K,InTB!$N:$N,$C51,InTB!$C:$C,BS!R$1)+SUMIFS(InTB!$K:$K,InTB!$N:$N,$B51,InTB!$C:$C,BS!R$1) -> 0 | S51: =IF(S$1=0,0,ROUND($T51*S$108,2))+SUMIFS(InTB!$K:$K,InTB!$M:$M,$E51,InTB!$C:$C,BS!S$1)+SUMIFS(InTB!$K:$K,InTB!$N:$N,$C51,InTB!$C:$C,BS!S$1)+SUMIFS(InTB!$K:$K,InTB!$N:$N,$B51,InTB!$C:$C,BS!S$1) -> 0 | T51: =SUMIF(InTBBase!$M:$M,$E51,InTBBase!$K:$K)+SUMIF(InTBBase!$N:$N,$C51,InTBBase!$K:$K)+SUMIF(InTBBase!$N:$N,$B51,InTBBase!$K:$K) -> 0 | U51: 0
B52: BIURFX_FWD | C52: BIURGL_FWD | D52: OPT5 | E52: BIAFFC | F52: =OFFSET( Label!$E$1,MATCH(BS!D52, Label!$E:$E,0)-1, Main!$G$14+1) -> Unrealised FOREX Gains/(Loss) on Forward Contract | I52: =SUMIF(InTB!$M:$M,$E52,InTB!$K:$K)+SUMIF(InTB!$N:$N,$C52,InTB!$K:$K)+SUMIF(InTB!$N:$N,$B52,InTB!$K:$K) -> 0 | J52: =IF(J$1=0,0,ROUND($T52*J$108,2))+SUMIFS(InTB!$K:$K,InTB!$M:$M,$E52,InTB!$C:$C,BS!J$1)+SUMIFS(InTB!$K:$K,InTB!$N:$N,$C52,InTB!$C:$C,BS!J$1)+SUMIFS(InTB!$K:$K,InTB!$N:$N,$B52,InTB!$C:$C,BS!J$1) -> 0 | K52: =IF(K$1=0,0,ROUND($T52*K$108,2))+SUMIFS(InTB!$K:$K,InTB!$M:$M,$E52,InTB!$C:$C,BS!K$1)+SUMIFS(InTB!$K:$K,InTB!$N:$N,$C52,InTB!$C:$C,BS!K$1)+SUMIFS(InTB!$K:$K,InTB!$N:$N,$B52,InTB!$C:$C,BS!K$1) -> 0 | L52: =IF(L$1=0,0,ROUND($T52*L$108,2))+SUMIFS(InTB!$K:$K,InTB!$M:$M,$E52,InTB!$C:$C,BS!L$1)+SUMIFS(InTB!$K:$K,InTB!$N:$N,$C52,InTB!$C:$C,BS!L$1)+SUMIFS(InTB!$K:$K,InTB!$N:$N,$B52,InTB!$C:$C,BS!L$1) -> 0 | M52: =IF(M$1=0,0,ROUND($T52*M$108,2))+SUMIFS(InTB!$K:$K,InTB!$M:$M,$E52,InTB!$C:$C,BS!M$1)+SUMIFS(InTB!$K:$K,InTB!$N:$N,$C52,InTB!$C:$C,BS!M$1)+SUMIFS(InTB!$K:$K,InTB!$N:$N,$B52,InTB!$C:$C,BS!M$1) -> 0 | N52: =IF(N$1=0,0,ROUND($T52*N$108,2))+SUMIFS(InTB!$K:$K,InTB!$M:$M,$E52,InTB!$C:$C,BS!N$1)+SUMIFS(InTB!$K:$K,InTB!$N:$N,$C52,InTB!$C:$C,BS!N$1)+SUMIFS(InTB!$K:$K,InTB!$N:$N,$B52,InTB!$C:$C,BS!N$1) -> 0 | O52: =IF(O$1=0,0,ROUND($T52*O$108,2))+SUMIFS(InTB!$K:$K,InTB!$M:$M,$E52,InTB!$C:$C,BS!O$1)+SUMIFS(InTB!$K:$K,InTB!$N:$N,$C52,InTB!$C:$C,BS!O$1)+SUMIFS(InTB!$K:$K,InTB!$N:$N,$B52,InTB!$C:$C,BS!O$1) -> 0 | P52: =IF(P$1=0,0,ROUND($T52*P$108,2))+SUMIFS(InTB!$K:$K,InTB!$M:$M,$E52,InTB!$C:$C,BS!P$1)+SUMIFS(InTB!$K:$K,InTB!$N:$N,$C52,InTB!$C:$C,BS!P$1)+SUMIFS(InTB!$K:$K,InTB!$N:$N,$B52,InTB!$C:$C,BS!P$1) -> 0 | Q52: =IF(Q$1=0,0,ROUND($T52*Q$108,2))+SUMIFS(InTB!$K:$K,InTB!$M:$M,$E52,InTB!$C:$C,BS!Q$1)+SUMIFS(InTB!$K:$K,InTB!$N:$N,$C52,InTB!$C:$C,BS!Q$1)+SUMIFS(InTB!$K:$K,InTB!$N:$N,$B52,InTB!$C:$C,BS!Q$1) -> 0 | R52: =IF(R$1=0,0,ROUND($T52*R$108,2))+SUMIFS(InTB!$K:$K,InTB!$M:$M,$E52,InTB!$C:$C,BS!R$1)+SUMIFS(InTB!$K:$K,InTB!$N:$N,$C52,InTB!$C:$C,BS!R$1)+SUMIFS(InTB!$K:$K,InTB!$N:$N,$B52,InTB!$C:$C,BS!R$1) -> 0 | S52: =IF(S$1=0,0,ROUND($T52*S$108,2))+SUMIFS(InTB!$K:$K,InTB!$M:$M,$E52,InTB!$C:$C,BS!S$1)+SUMIFS(InTB!$K:$K,InTB!$N:$N,$C52,InTB!$C:$C,BS!S$1)+SUMIFS(InTB!$K:$K,InTB!$N:$N,$B52,InTB!$C:$C,BS!S$1) -> 0 | T52: =SUMIF(InTBBase!$M:$M,$E52,InTBBase!$K:$K)+SUMIF(InTBBase!$N:$N,$C52,InTBBase!$K:$K)+SUMIF(InTBBase!$N:$N,$B52,InTBBase!$K:$K) -> 0 | U52: 0
U53: 0
D54: CSHINV | E54: BIACDP | F54: =OFFSET( Label!$E$1,MATCH(BS!D54, Label!$E:$E,0)-1, Main!$G$14+1) -> Shariah-based Deposits and placements with financial institutions | I54: =I55+I56 -> 0 | J54: =SUM(J55:J56) -> 0 | K54: =SUM(K55:K56) -> 0 | L54: 0 | M54: 0 | N54: 0 | O54: 0 | P54: 0 | Q54: 0 | R54: 0 | S54: 0 | T54: =T55+T56 -> 0 | U54: 0
C55: BICOST_*MM | E55: BIACDP | F55: =F54 -> Shariah-based Deposits and placements with financial institutions | I55: =SUMIF(InTB!$M:$M,$E55,InTB!$K:$K)+SUMIF(InTB!$N:$N,$C55,InTB!$K:$K)+SUMIF(InTB!$N:$N,$B55,InTB!$K:$K) -> 0 | J55: =IF(J$1=0,0,ROUND($T55*J$108,2))+SUMIFS(InTB!$K:$K,InTB!$M:$M,$E55,InTB!$C:$C,BS!J$1)+SUMIFS(InTB!$K:$K,InTB!$N:$N,$C55,InTB!$C:$C,BS!J$1)+SUMIFS(InTB!$K:$K,InTB!$N:$N,$B55,InTB!$C:$C,BS!J$1) -> 0 | K55: =IF(K$1=0,0,ROUND($T55*K$108,2))+SUMIFS(InTB!$K:$K,InTB!$M:$M,$E55,InTB!$C:$C,BS!K$1)+SUMIFS(InTB!$K:$K,InTB!$N:$N,$C55,InTB!$C:$C,BS!K$1)+SUMIFS(InTB!$K:$K,InTB!$N:$N,$B55,InTB!$C:$C,BS!K$1) -> 0 | L55: =IF(L$1=0,0,ROUND($T55*L$108,2))+SUMIFS(InTB!$K:$K,InTB!$M:$M,$E55,InTB!$C:$C,BS!L$1)+SUMIFS(InTB!$K:$K,InTB!$N:$N,$C55,InTB!$C:$C,BS!L$1)+SUMIFS(InTB!$K:$K,InTB!$N:$N,$B55,InTB!$C:$C,BS!L$1) -> 0 | M55: =IF(M$1=0,0,ROUND($T55*M$108,2))+SUMIFS(InTB!$K:$K,InTB!$M:$M,$E55,InTB!$C:$C,BS!M$1)+SUMIFS(InTB!$K:$K,InTB!$N:$N,$C55,InTB!$C:$C,BS!M$1)+SUMIFS(InTB!$K:$K,InTB!$N:$N,$B55,InTB!$C:$C,BS!M$1) -> 0 | N55: =IF(N$1=0,0,ROUND($T55*N$108,2))+SUMIFS(InTB!$K:$K,InTB!$M:$M,$E55,InTB!$C:$C,BS!N$1)+SUMIFS(InTB!$K:$K,InTB!$N:$N,$C55,InTB!$C:$C,BS!N$1)+SUMIFS(InTB!$K:$K,InTB!$N:$N,$B55,InTB!$C:$C,BS!N$1) -> 0 | O55: =IF(O$1=0,0,ROUND($T55*O$108,2))+SUMIFS(InTB!$K:$K,InTB!$M:$M,$E55,InTB!$C:$C,BS!O$1)+SUMIFS(InTB!$K:$K,InTB!$N:$N,$C55,InTB!$C:$C,BS!O$1)+SUMIFS(InTB!$K:$K,InTB!$N:$N,$B55,InTB!$C:$C,BS!O$1) -> 0 | P55: =IF(P$1=0,0,ROUND($T55*P$108,2))+SUMIFS(InTB!$K:$K,InTB!$M:$M,$E55,InTB!$C:$C,BS!P$1)+SUMIFS(InTB!$K:$K,InTB!$N:$N,$C55,InTB!$C:$C,BS!P$1)+SUMIFS(InTB!$K:$K,InTB!$N:$N,$B55,InTB!$C:$C,BS!P$1) -> 0 | Q55: =IF(Q$1=0,0,ROUND($T55*Q$108,2))+SUMIFS(InTB!$K:$K,InTB!$M:$M,$E55,InTB!$C:$C,BS!Q$1)+SUMIFS(InTB!$K:$K,InTB!$N:$N,$C55,InTB!$C:$C,BS!Q$1)+SUMIFS(InTB!$K:$K,InTB!$N:$N,$B55,InTB!$C:$C,BS!Q$1) -> 0 | R55: =IF(R$1=0,0,ROUND($T55*R$108,2))+SUMIFS(InTB!$K:$K,InTB!$M:$M,$E55,InTB!$C:$C,BS!R$1)+SUMIFS(InTB!$K:$K,InTB!$N:$N,$C55,InTB!$C:$C,BS!R$1)+SUMIFS(InTB!$K:$K,InTB!$N:$N,$B55,InTB!$C:$C,BS!R$1) -> 0 | S55: =IF(S$1=0,0,ROUND($T55*S$108,2))+SUMIFS(InTB!$K:$K,InTB!$M:$M,$E55,InTB!$C:$C,BS!S$1)+SUMIFS(InTB!$K:$K,InTB!$N:$N,$C55,InTB!$C:$C,BS!S$1)+SUMIFS(InTB!$K:$K,InTB!$N:$N,$B55,InTB!$C:$C,BS!S$1) -> 0 | T55: =SUMIF(InTBBase!$M:$M,$E55,InTBBase!$K:$K)+SUMIF(InTBBase!$N:$N,$C55,InTBBase!$K:$K)+SUMIF(InTBBase!$N:$N,$B55,InTBBase!$K:$K) -> 0 | U55: 0
C56: BIURFX_*MM | E56: BIACDF | F56: Unrealised FOREX Gains/(Loss) on Foreign Placement | I56: =SUMIF(InTB!$M:$M,$E56,InTB!$K:$K)+SUMIF(InTB!$N:$N,$C56,InTB!$K:$K)+SUMIF(InTB!$N:$N,$B56,InTB!$K:$K) -> 0 | J56: =IF(J$1=0,0,ROUND($T56*J$108,2))+SUMIFS(InTB!$K:$K,InTB!$M:$M,$E56,InTB!$C:$C,BS!J$1)+SUMIFS(InTB!$K:$K,InTB!$N:$N,$C56,InTB!$C:$C,BS!J$1)+SUMIFS(InTB!$K:$K,InTB!$N:$N,$B56,InTB!$C:$C,BS!J$1) -> 0 | K56: =IF(K$1=0,0,ROUND($T56*K$108,2))+SUMIFS(InTB!$K:$K,InTB!$M:$M,$E56,InTB!$C:$C,BS!K$1)+SUMIFS(InTB!$K:$K,InTB!$N:$N,$C56,InTB!$C:$C,BS!K$1)+SUMIFS(InTB!$K:$K,InTB!$N:$N,$B56,InTB!$C:$C,BS!K$1) -> 0 | L56: =IF(L$1=0,0,ROUND($T56*L$108,2))+SUMIFS(InTB!$K:$K,InTB!$M:$M,$E56,InTB!$C:$C,BS!L$1)+SUMIFS(InTB!$K:$K,InTB!$N:$N,$C56,InTB!$C:$C,BS!L$1)+SUMIFS(InTB!$K:$K,InTB!$N:$N,$B56,InTB!$C:$C,BS!L$1) -> 0 | M56: =IF(M$1=0,0,ROUND($T56*M$108,2))+SUMIFS(InTB!$K:$K,InTB!$M:$M,$E56,InTB!$C:$C,BS!M$1)+SUMIFS(InTB!$K:$K,InTB!$N:$N,$C56,InTB!$C:$C,BS!M$1)+SUMIFS(InTB!$K:$K,InTB!$N:$N,$B56,InTB!$C:$C,BS!M$1) -> 0 | N56: =IF(N$1=0,0,ROUND($T56*N$108,2))+SUMIFS(InTB!$K:$K,InTB!$M:$M,$E56,InTB!$C:$C,BS!N$1)+SUMIFS(InTB!$K:$K,InTB!$N:$N,$C56,InTB!$C:$C,BS!N$1)+SUMIFS(InTB!$K:$K,InTB!$N:$N,$B56,InTB!$C:$C,BS!N$1) -> 0 | O56: =IF(O$1=0,0,ROUND($T56*O$108,2))+SUMIFS(InTB!$K:$K,InTB!$M:$M,$E56,InTB!$C:$C,BS!O$1)+SUMIFS(InTB!$K:$K,InTB!$N:$N,$C56,InTB!$C:$C,BS!O$1)+SUMIFS(InTB!$K:$K,InTB!$N:$N,$B56,InTB!$C:$C,BS!O$1) -> 0 | P56: =IF(P$1=0,0,ROUND($T56*P$108,2))+SUMIFS(InTB!$K:$K,InTB!$M:$M,$E56,InTB!$C:$C,BS!P$1)+SUMIFS(InTB!$K:$K,InTB!$N:$N,$C56,InTB!$C:$C,BS!P$1)+SUMIFS(InTB!$K:$K,InTB!$N:$N,$B56,InTB!$C:$C,BS!P$1) -> 0 | Q56: =IF(Q$1=0,0,ROUND($T56*Q$108,2))+SUMIFS(InTB!$K:$K,InTB!$M:$M,$E56,InTB!$C:$C,BS!Q$1)+SUMIFS(InTB!$K:$K,InTB!$N:$N,$C56,InTB!$C:$C,BS!Q$1)+SUMIFS(InTB!$K:$K,InTB!$N:$N,$B56,InTB!$C:$C,BS!Q$1) -> 0 | R56: =IF(R$1=0,0,ROUND($T56*R$108,2))+SUMIFS(InTB!$K:$K,InTB!$M:$M,$E56,InTB!$C:$C,BS!R$1)+SUMIFS(InTB!$K:$K,InTB!$N:$N,$C56,InTB!$C:$C,BS!R$1)+SUMIFS(InTB!$K:$K,InTB!$N:$N,$B56,InTB!$C:$C,BS!R$1) -> 0 | S56: =IF(S$1=0,0,ROUND($T56*S$108,2))+SUMIFS(InTB!$K:$K,InTB!$M:$M,$E56,InTB!$C:$C,BS!S$1)+SUMIFS(InTB!$K:$K,InTB!$N:$N,$C56,InTB!$C:$C,BS!S$1)+SUMIFS(InTB!$K:$K,InTB!$N:$N,$B56,InTB!$C:$C,BS!S$1) -> 0 | T56: =SUMIF(InTBBase!$M:$M,$E56,InTBBase!$K:$K)+SUMIF(InTBBase!$N:$N,$C56,InTBBase!$K:$K)+SUMIF(InTBBase!$N:$N,$B56,InTBBase!$K:$K) -> 0 | U56: 0
D57: TOTALINV | F57: =OFFSET( Label!$E$1,MATCH(BS!D57, Label!$E:$E,0)-1, Main!$G$14+1) -> Total Investment | I57: =I29+SUM(I32:I38)+I40+I47+I54 -> 3551643 | J57: =J29+SUM(J32:J38)+J40+J47+J54 -> 3506241.83 | K57: =K29+SUM(K32:K38)+K40+K47+K54 -> 45401.17 | L57: =L29+SUM(L32:L38)+L40+L47+L54 -> 0 | M57: 0 | N57: 0 | O57: =O29+SUM(O32:O38)+O40+O47+O54 -> 0 | P57: 0 | Q57: 0 | R57: =R29+SUM(R32:R38)+R40+R47+R54 -> 0 | S57: 0 | T57: =T29+SUM(T32:T38)+T40+T47+T54 -> 3551643 | U57: 0
U58: 0
D59: OTHASSET | F59: =OFFSET( Label!$E$1,MATCH(BS!D59, Label!$E:$E,0)-1, Main!$G$14+1) -> Other assets | U59: 0
D60: AMTFMGR | E60: BOAMNG | F60: =OFFSET( Label!$E$1,MATCH(BS!D60, Label!$E:$E,0)-1, Main!$G$14+1) -> Amount due/ (to) from the Manager (net creation / (cancellation)) | I60: =SUMIF(InTB!$M:$M,$E60,InTB!$K:$K) -> 41581.76 | J60: =IF(J$1=0,0,ROUND($T60*J$108,2))+SUMIFS(InTB!$K:$K,InTB!$M:$M,$E60,InTB!$C:$C,BS!J$1) -> 41050.21 | K60: =IF(K$1=0,0,ROUND($T60*K$108,2))+SUMIFS(InTB!$K:$K,InTB!$M:$M,$E60,InTB!$C:$C,BS!K$1) -> 531.55 | L60: =IF(L$1=0,0,ROUND($T60*L$108,2))+SUMIFS(InTB!$K:$K,InTB!$M:$M,$E60,InTB!$C:$C,BS!L$1) -> 0 | M60: =IF(M$1=0,0,ROUND($T60*M$108,2))+SUMIFS(InTB!$K:$K,InTB!$M:$M,$E60,InTB!$C:$C,BS!M$1) -> 0 | N60: =IF(N$1=0,0,ROUND($T60*N$108,2))+SUMIFS(InTB!$K:$K,InTB!$M:$M,$E60,InTB!$C:$C,BS!N$1) -> 0 | O60: =IF(O$1=0,0,ROUND($T60*O$108,2))+SUMIFS(InTB!$K:$K,InTB!$M:$M,$E60,InTB!$C:$C,BS!O$1) -> 0 | P60: =IF(P$1=0,0,ROUND($T60*P$108,2))+SUMIFS(InTB!$K:$K,InTB!$M:$M,$E60,InTB!$C:$C,BS!P$1) -> 0 | Q60: =IF(Q$1=0,0,ROUND($T60*Q$108,2))+SUMIFS(InTB!$K:$K,InTB!$M:$M,$E60,InTB!$C:$C,BS!Q$1) -> 0 | R60: =IF(R$1=0,0,ROUND($T60*R$108,2))+SUMIFS(InTB!$K:$K,InTB!$M:$M,$E60,InTB!$C:$C,BS!R$1) -> 0 | S60: =IF(S$1=0,0,ROUND($T60*S$108,2))+SUMIFS(InTB!$K:$K,InTB!$M:$M,$E60,InTB!$C:$C,BS!S$1) -> 0 | T60: =SUMIF(InTBBase!$M:$M,$E60,InTBBase!$K:$K) -> 41581.76 | U60: 0
D61: AMTFBRK | F61: =OFFSET( Label!$E$1,MATCH(BS!D61, Label!$E:$E,0)-1, Main!$G$14+1) -> Amount due from stockbrokers | I61: =SUM(I62:I64) -> 0 | J61: =SUM(J62:J64) -> 0 | K61: 0 | L61: 0 | M61: 0 | N61: 0 | O61: =SUM(O62:O64) -> 0 | P61: 0 | Q61: 0 | R61: =SUM(R62:R64) -> 0 | S61: 0 | T61: 0 | U61: 0
C62: BOAINV* | D62: AMTFBRK1 | E62: BOABRL | F62: =OFFSET( Label!$E$1,MATCH(BS!D62, Label!$E:$E,0)-1, Main!$G$14+1) -> Broker - Local | I62: =SUMIF(InTB!$M:$M,$E62,InTB!$K:$K)+SUMIF(InTB!$N:$N,$C62,InTB!$K:$K)+SUMIF(InTB!$N:$N,$B62,InTB!$K:$K)-I63 -> 0 | J62: =IF(J$1=0,0,ROUND($T62*J$108,2))+SUMIFS(InTB!$K:$K,InTB!$M:$M,$E62,InTB!$C:$C,BS!J$1)+SUMIFS(InTB!$K:$K,InTB!$N:$N,$C62,InTB!$C:$C,BS!J$1)+SUMIFS(InTB!$K:$K,InTB!$N:$N,$B62,InTB!$C:$C,BS!J$1) -> 0 | K62: =IF(K$1=0,0,ROUND($T62*K$108,2))+SUMIFS(InTB!$K:$K,InTB!$M:$M,$E62,InTB!$C:$C,BS!K$1)+SUMIFS(InTB!$K:$K,InTB!$N:$N,$C62,InTB!$C:$C,BS!K$1)+SUMIFS(InTB!$K:$K,InTB!$N:$N,$B62,InTB!$C:$C,BS!K$1) -> 0 | L62: =IF(L$1=0,0,ROUND($T62*L$108,2))+SUMIFS(InTB!$K:$K,InTB!$M:$M,$E62,InTB!$C:$C,BS!L$1)+SUMIFS(InTB!$K:$K,InTB!$N:$N,$C62,InTB!$C:$C,BS!L$1)+SUMIFS(InTB!$K:$K,InTB!$N:$N,$B62,InTB!$C:$C,BS!L$1) -> 0 | M62: =IF(M$1=0,0,ROUND($T62*M$108,2))+SUMIFS(InTB!$K:$K,InTB!$M:$M,$E62,InTB!$C:$C,BS!M$1)+SUMIFS(InTB!$K:$K,InTB!$N:$N,$C62,InTB!$C:$C,BS!M$1)+SUMIFS(InTB!$K:$K,InTB!$N:$N,$B62,InTB!$C:$C,BS!M$1) -> 0 | N62: =IF(N$1=0,0,ROUND($T62*N$108,2))+SUMIFS(InTB!$K:$K,InTB!$M:$M,$E62,InTB!$C:$C,BS!N$1)+SUMIFS(InTB!$K:$K,InTB!$N:$N,$C62,InTB!$C:$C,BS!N$1)+SUMIFS(InTB!$K:$K,InTB!$N:$N,$B62,InTB!$C:$C,BS!N$1) -> 0 | O62: =IF(O$1=0,0,ROUND($T62*O$108,2))+SUMIFS(InTB!$K:$K,InTB!$M:$M,$E62,InTB!$C:$C,BS!O$1)+SUMIFS(InTB!$K:$K,InTB!$N:$N,$C62,InTB!$C:$C,BS!O$1)+SUMIFS(InTB!$K:$K,InTB!$N:$N,$B62,InTB!$C:$C,BS!O$1) -> 0 | P62: =IF(P$1=0,0,ROUND($T62*P$108,2))+SUMIFS(InTB!$K:$K,InTB!$M:$M,$E62,InTB!$C:$C,BS!P$1)+SUMIFS(InTB!$K:$K,InTB!$N:$N,$C62,InTB!$C:$C,BS!P$1)+SUMIFS(InTB!$K:$K,InTB!$N:$N,$B62,InTB!$C:$C,BS!P$1) -> 0 | Q62: =IF(Q$1=0,0,ROUND($T62*Q$108,2))+SUMIFS(InTB!$K:$K,InTB!$M:$M,$E62,InTB!$C:$C,BS!Q$1)+SUMIFS(InTB!$K:$K,InTB!$N:$N,$C62,InTB!$C:$C,BS!Q$1)+SUMIFS(InTB!$K:$K,InTB!$N:$N,$B62,InTB!$C:$C,BS!Q$1) -> 0 | R62: =IF(R$1=0,0,ROUND($T62*R$108,2))+SUMIFS(InTB!$K:$K,InTB!$M:$M,$E62,InTB!$C:$C,BS!R$1)+SUMIFS(InTB!$K:$K,InTB!$N:$N,$C62,InTB!$C:$C,BS!R$1)+SUMIFS(InTB!$K:$K,InTB!$N:$N,$B62,InTB!$C:$C,BS!R$1) -> 0 | S62: =IF(S$1=0,0,ROUND($T62*S$108,2))+SUMIFS(InTB!$K:$K,InTB!$M:$M,$E62,InTB!$C:$C,BS!S$1)+SUMIFS(InTB!$K:$K,InTB!$N:$N,$C62,InTB!$C:$C,BS!S$1)+SUMIFS(InTB!$K:$K,InTB!$N:$N,$B62,InTB!$C:$C,BS!S$1) -> 0 | T62: =SUMIF(InTBBase!$M:$M,$E62,InTBBase!$K:$K)+SUMIF(InTBBase!$N:$N,$C62,InTBBase!$K:$K)+SUMIF(InTBBase!$N:$N,$B62,InTBBase!$K:$K)-T63 -> 0 | U62: 0
C63: BOAINV_O-* | D63: AMTFBRK2 | E63: BOABRF | F63: =OFFSET( Label!$E$1,MATCH(BS!D63, Label!$E:$E,0)-1, Main!$G$14+1) -> Broker - Foreign | I63: =SUMIF(InTB!$M:$M,$E63,InTB!$K:$K)+SUMIF(InTB!$N:$N,$C63,InTB!$K:$K)+SUMIF(InTB!$N:$N,$B63,InTB!$K:$K) -> 0 | J63: =IF(J$1=0,0,ROUND($T63*J$108,2))+SUMIFS(InTB!$K:$K,InTB!$M:$M,$E63,InTB!$C:$C,BS!J$1)+SUMIFS(InTB!$K:$K,InTB!$N:$N,$C63,InTB!$C:$C,BS!J$1)+SUMIFS(InTB!$K:$K,InTB!$N:$N,$B63,InTB!$C:$C,BS!J$1) -> 0 | K63: =IF(K$1=0,0,ROUND($T63*K$108,2))+SUMIFS(InTB!$K:$K,InTB!$M:$M,$E63,InTB!$C:$C,BS!K$1)+SUMIFS(InTB!$K:$K,InTB!$N:$N,$C63,InTB!$C:$C,BS!K$1)+SUMIFS(InTB!$K:$K,InTB!$N:$N,$B63,InTB!$C:$C,BS!K$1) -> 0 | L63: =IF(L$1=0,0,ROUND($T63*L$108,2))+SUMIFS(InTB!$K:$K,InTB!$M:$M,$E63,InTB!$C:$C,BS!L$1)+SUMIFS(InTB!$K:$K,InTB!$N:$N,$C63,InTB!$C:$C,BS!L$1)+SUMIFS(InTB!$K:$K,InTB!$N:$N,$B63,InTB!$C:$C,BS!L$1) -> 0 | M63: =IF(M$1=0,0,ROUND($T63*M$108,2))+SUMIFS(InTB!$K:$K,InTB!$M:$M,$E63,InTB!$C:$C,BS!M$1)+SUMIFS(InTB!$K:$K,InTB!$N:$N,$C63,InTB!$C:$C,BS!M$1)+SUMIFS(InTB!$K:$K,InTB!$N:$N,$B63,InTB!$C:$C,BS!M$1) -> 0 | N63: =IF(N$1=0,0,ROUND($T63*N$108,2))+SUMIFS(InTB!$K:$K,InTB!$M:$M,$E63,InTB!$C:$C,BS!N$1)+SUMIFS(InTB!$K:$K,InTB!$N:$N,$C63,InTB!$C:$C,BS!N$1)+SUMIFS(InTB!$K:$K,InTB!$N:$N,$B63,InTB!$C:$C,BS!N$1) -> 0 | O63: =IF(O$1=0,0,ROUND($T63*O$108,2))+SUMIFS(InTB!$K:$K,InTB!$M:$M,$E63,InTB!$C:$C,BS!O$1)+SUMIFS(InTB!$K:$K,InTB!$N:$N,$C63,InTB!$C:$C,BS!O$1)+SUMIFS(InTB!$K:$K,InTB!$N:$N,$B63,InTB!$C:$C,BS!O$1) -> 0 | P63: =IF(P$1=0,0,ROUND($T63*P$108,2))+SUMIFS(InTB!$K:$K,InTB!$M:$M,$E63,InTB!$C:$C,BS!P$1)+SUMIFS(InTB!$K:$K,InTB!$N:$N,$C63,InTB!$C:$C,BS!P$1)+SUMIFS(InTB!$K:$K,InTB!$N:$N,$B63,InTB!$C:$C,BS!P$1) -> 0 | Q63: =IF(Q$1=0,0,ROUND($T63*Q$108,2))+SUMIFS(InTB!$K:$K,InTB!$M:$M,$E63,InTB!$C:$C,BS!Q$1)+SUMIFS(InTB!$K:$K,InTB!$N:$N,$C63,InTB!$C:$C,BS!Q$1)+SUMIFS(InTB!$K:$K,InTB!$N:$N,$B63,InTB!$C:$C,BS!Q$1) -> 0 | R63: =IF(R$1=0,0,ROUND($T63*R$108,2))+SUMIFS(InTB!$K:$K,InTB!$M:$M,$E63,InTB!$C:$C,BS!R$1)+SUMIFS(InTB!$K:$K,InTB!$N:$N,$C63,InTB!$C:$C,BS!R$1)+SUMIFS(InTB!$K:$K,InTB!$N:$N,$B63,InTB!$C:$C,BS!R$1) -> 0 | S63: =IF(S$1=0,0,ROUND($T63*S$108,2))+SUMIFS(InTB!$K:$K,InTB!$M:$M,$E63,InTB!$C:$C,BS!S$1)+SUMIFS(InTB!$K:$K,InTB!$N:$N,$C63,InTB!$C:$C,BS!S$1)+SUMIFS(InTB!$K:$K,InTB!$N:$N,$B63,InTB!$C:$C,BS!S$1) -> 0 | T63: =SUMIF(InTBBase!$M:$M,$E63,InTBBase!$K:$K)+SUMIF(InTBBase!$N:$N,$C63,InTBBase!$K:$K)+SUMIF(InTBBase!$N:$N,$B63,InTBBase!$K:$K) -> 0 | U63: 0
D64: AMTFBRK3 | E64: BOABRX | F64: =OFFSET( Label!$E$1,MATCH(BS!D64, Label!$E:$E,0)-1, Main!$G$14+1) -> Foreign Broker - Unrealised FOREX Gains/(Loss) | I64: =SUMIF(InTB!$M:$M,$E64,InTB!$K:$K)+SUMIF(InTB!$N:$N,$C64,InTB!$K:$K)+SUMIF(InTB!$N:$N,$B64,InTB!$K:$K) -> 0 | J64: =IF(J$1=0,0,ROUND($T64*J$108,2))+SUMIFS(InTB!$K:$K,InTB!$M:$M,$E64,InTB!$C:$C,BS!J$1)+SUMIFS(InTB!$K:$K,InTB!$N:$N,$C64,InTB!$C:$C,BS!J$1)+SUMIFS(InTB!$K:$K,InTB!$N:$N,$B64,InTB!$C:$C,BS!J$1) -> 0 | K64: =IF(K$1=0,0,ROUND($T64*K$108,2))+SUMIFS(InTB!$K:$K,InTB!$M:$M,$E64,InTB!$C:$C,BS!K$1)+SUMIFS(InTB!$K:$K,InTB!$N:$N,$C64,InTB!$C:$C,BS!K$1)+SUMIFS(InTB!$K:$K,InTB!$N:$N,$B64,InTB!$C:$C,BS!K$1) -> 0 | L64: =IF(L$1=0,0,ROUND($T64*L$108,2))+SUMIFS(InTB!$K:$K,InTB!$M:$M,$E64,InTB!$C:$C,BS!L$1)+SUMIFS(InTB!$K:$K,InTB!$N:$N,$C64,InTB!$C:$C,BS!L$1)+SUMIFS(InTB!$K:$K,InTB!$N:$N,$B64,InTB!$C:$C,BS!L$1) -> 0 | M64: =IF(M$1=0,0,ROUND($T64*M$108,2))+SUMIFS(InTB!$K:$K,InTB!$M:$M,$E64,InTB!$C:$C,BS!M$1)+SUMIFS(InTB!$K:$K,InTB!$N:$N,$C64,InTB!$C:$C,BS!M$1)+SUMIFS(InTB!$K:$K,InTB!$N:$N,$B64,InTB!$C:$C,BS!M$1) -> 0 | N64: =IF(N$1=0,0,ROUND($T64*N$108,2))+SUMIFS(InTB!$K:$K,InTB!$M:$M,$E64,InTB!$C:$C,BS!N$1)+SUMIFS(InTB!$K:$K,InTB!$N:$N,$C64,InTB!$C:$C,BS!N$1)+SUMIFS(InTB!$K:$K,InTB!$N:$N,$B64,InTB!$C:$C,BS!N$1) -> 0 | O64: =IF(O$1=0,0,ROUND($T64*O$108,2))+SUMIFS(InTB!$K:$K,InTB!$M:$M,$E64,InTB!$C:$C,BS!O$1)+SUMIFS(InTB!$K:$K,InTB!$N:$N,$C64,InTB!$C:$C,BS!O$1)+SUMIFS(InTB!$K:$K,InTB!$N:$N,$B64,InTB!$C:$C,BS!O$1) -> 0 | P64: =IF(P$1=0,0,ROUND($T64*P$108,2))+SUMIFS(InTB!$K:$K,InTB!$M:$M,$E64,InTB!$C:$C,BS!P$1)+SUMIFS(InTB!$K:$K,InTB!$N:$N,$C64,InTB!$C:$C,BS!P$1)+SUMIFS(InTB!$K:$K,InTB!$N:$N,$B64,InTB!$C:$C,BS!P$1) -> 0 | Q64: =IF(Q$1=0,0,ROUND($T64*Q$108,2))+SUMIFS(InTB!$K:$K,InTB!$M:$M,$E64,InTB!$C:$C,BS!Q$1)+SUMIFS(InTB!$K:$K,InTB!$N:$N,$C64,InTB!$C:$C,BS!Q$1)+SUMIFS(InTB!$K:$K,InTB!$N:$N,$B64,InTB!$C:$C,BS!Q$1) -> 0 | R64: =IF(R$1=0,0,ROUND($T64*R$108,2))+SUMIFS(InTB!$K:$K,InTB!$M:$M,$E64,InTB!$C:$C,BS!R$1)+SUMIFS(InTB!$K:$K,InTB!$N:$N,$C64,InTB!$C:$C,BS!R$1)+SUMIFS(InTB!$K:$K,InTB!$N:$N,$B64,InTB!$C:$C,BS!R$1) -> 0 | S64: =IF(S$1=0,0,ROUND($T64*S$108,2))+SUMIFS(InTB!$K:$K,InTB!$M:$M,$E64,InTB!$C:$C,BS!S$1)+SUMIFS(InTB!$K:$K,InTB!$N:$N,$C64,InTB!$C:$C,BS!S$1)+SUMIFS(InTB!$K:$K,InTB!$N:$N,$B64,InTB!$C:$C,BS!S$1) -> 0 | T64: =SUMIF(InTBBase!$M:$M,$E64,InTBBase!$K:$K)+SUMIF(InTBBase!$N:$N,$C64,InTBBase!$K:$K)+SUMIF(InTBBase!$N:$N,$B64,InTBBase!$K:$K) -> 0 | U64: 0
D65: AMTFOTH | E65: BOAOIV | F65: =OFFSET( Label!$E$1,MATCH(BS!D65, Label!$E:$E,0)-1, Main!$G$14+1) -> AMOUNT DUE FROM OTHER INVESTMENT | I65: =SUMIF(InTB!$M:$M,$E65,InTB!$K:$K) -> 0 | J65: =IF(J$1=0,0,ROUND($T65*J$108,2))+SUMIFS(InTB!$K:$K,InTB!$M:$M,$E65,InTB!$C:$C,BS!J$1) -> 0 | K65: =IF(K$1=0,0,ROUND($T65*K$108,2))+SUMIFS(InTB!$K:$K,InTB!$M:$M,$E65,InTB!$C:$C,BS!K$1) -> 0 | L65: =IF(L$1=0,0,ROUND($T65*L$108,2))+SUMIFS(InTB!$K:$K,InTB!$M:$M,$E65,InTB!$C:$C,BS!L$1) -> 0 | M65: =IF(M$1=0,0,ROUND($T65*M$108,2))+SUMIFS(InTB!$K:$K,InTB!$M:$M,$E65,InTB!$C:$C,BS!M$1) -> 0 | N65: =IF(N$1=0,0,ROUND($T65*N$108,2))+SUMIFS(InTB!$K:$K,InTB!$M:$M,$E65,InTB!$C:$C,BS!N$1) -> 0 | O65: =IF(O$1=0,0,ROUND($T65*O$108,2))+SUMIFS(InTB!$K:$K,InTB!$M:$M,$E65,InTB!$C:$C,BS!O$1) -> 0 | P65: =IF(P$1=0,0,ROUND($T65*P$108,2))+SUMIFS(InTB!$K:$K,InTB!$M:$M,$E65,InTB!$C:$C,BS!P$1) -> 0 | Q65: =IF(Q$1=0,0,ROUND($T65*Q$108,2))+SUMIFS(InTB!$K:$K,InTB!$M:$M,$E65,InTB!$C:$C,BS!Q$1) -> 0 | R65: =IF(R$1=0,0,ROUND($T65*R$108,2))+SUMIFS(InTB!$K:$K,InTB!$M:$M,$E65,InTB!$C:$C,BS!R$1) -> 0 | S65: =IF(S$1=0,0,ROUND($T65*S$108,2))+SUMIFS(InTB!$K:$K,InTB!$M:$M,$E65,InTB!$C:$C,BS!S$1) -> 0 | T65: =SUMIF(InTBBase!$M:$M,$E65,InTBBase!$K:$K) -> 0 | U65: 0
D66: REBATE | E66: BOARBT | F66: =OFFSET( Label!$E$1,MATCH(BS!D66, Label!$E:$E,0)-1, Main!$G$14+1) -> Rebates Receivable | I66: =SUMIF(InTB!$M:$M,$E66,InTB!$K:$K) -> 0 | J66: =IF(J$1=0,0,ROUND($T66*J$108,2))+SUMIFS(InTB!$K:$K,InTB!$M:$M,$E66,InTB!$C:$C,BS!J$1) -> 0 | K66: =IF(K$1=0,0,ROUND($T66*K$108,2))+SUMIFS(InTB!$K:$K,InTB!$M:$M,$E66,InTB!$C:$C,BS!K$1) -> 0 | L66: =IF(L$1=0,0,ROUND($T66*L$108,2))+SUMIFS(InTB!$K:$K,InTB!$M:$M,$E66,InTB!$C:$C,BS!L$1) -> 0 | M66: =IF(M$1=0,0,ROUND($T66*M$108,2))+SUMIFS(InTB!$K:$K,InTB!$M:$M,$E66,InTB!$C:$C,BS!M$1) -> 0 | N66: =IF(N$1=0,0,ROUND($T66*N$108,2))+SUMIFS(InTB!$K:$K,InTB!$M:$M,$E66,InTB!$C:$C,BS!N$1) -> 0 | O66: =IF(O$1=0,0,ROUND($T66*O$108,2))+SUMIFS(InTB!$K:$K,InTB!$M:$M,$E66,InTB!$C:$C,BS!O$1) -> 0 | P66: =IF(P$1=0,0,ROUND($T66*P$108,2))+SUMIFS(InTB!$K:$K,InTB!$M:$M,$E66,InTB!$C:$C,BS!P$1) -> 0 | Q66: =IF(Q$1=0,0,ROUND($T66*Q$108,2))+SUMIFS(InTB!$K:$K,InTB!$M:$M,$E66,InTB!$C:$C,BS!Q$1) -> 0 | R66: =IF(R$1=0,0,ROUND($T66*R$108,2))+SUMIFS(InTB!$K:$K,InTB!$M:$M,$E66,InTB!$C:$C,BS!R$1) -> 0 | S66: =IF(S$1=0,0,ROUND($T66*S$108,2))+SUMIFS(InTB!$K:$K,InTB!$M:$M,$E66,InTB!$C:$C,BS!S$1) -> 0 | T66: =SUMIF(InTBBase!$M:$M,$E66,InTBBase!$K:$K) -> 0 | U66: 0
C67: BIACIN_*MM | D67: INTRECCSH | E67: BOAIND | F67: =OFFSET( Label!$E$1,MATCH(BS!D67, Label!$E:$E,0)-1, Main!$G$14+1) -> Profit Receivable on Deposits and Placements | I67: =SUMIF(InTB!$M:$M,$E67,InTB!$K:$K)+SUMIF(InTB!$N:$N,$C67,InTB!$K:$K)+SUMIF(InTB!$N:$N,$B67,InTB!$K:$K) -> 0 | J67: =IF(J$1=0,0,ROUND($T67*J$108,2))+SUMIFS(InTB!$K:$K,InTB!$M:$M,$E67,InTB!$C:$C,BS!J$1)+SUMIFS(InTB!$K:$K,InTB!$N:$N,$C67,InTB!$C:$C,BS!J$1)+SUMIFS(InTB!$K:$K,InTB!$N:$N,$B67,InTB!$C:$C,BS!J$1) -> 0 | K67: =IF(K$1=0,0,ROUND($T67*K$108,2))+SUMIFS(InTB!$K:$K,InTB!$M:$M,$E67,InTB!$C:$C,BS!K$1)+SUMIFS(InTB!$K:$K,InTB!$N:$N,$C67,InTB!$C:$C,BS!K$1)+SUMIFS(InTB!$K:$K,InTB!$N:$N,$B67,InTB!$C:$C,BS!K$1) -> 0 | L67: =IF(L$1=0,0,ROUND($T67*L$108,2))+SUMIFS(InTB!$K:$K,InTB!$M:$M,$E67,InTB!$C:$C,BS!L$1)+SUMIFS(InTB!$K:$K,InTB!$N:$N,$C67,InTB!$C:$C,BS!L$1)+SUMIFS(InTB!$K:$K,InTB!$N:$N,$B67,InTB!$C:$C,BS!L$1) -> 0 | M67: =IF(M$1=0,0,ROUND($T67*M$108,2))+SUMIFS(InTB!$K:$K,InTB!$M:$M,$E67,InTB!$C:$C,BS!M$1)+SUMIFS(InTB!$K:$K,InTB!$N:$N,$C67,InTB!$C:$C,BS!M$1)+SUMIFS(InTB!$K:$K,InTB!$N:$N,$B67,InTB!$C:$C,BS!M$1) -> 0 | N67: =IF(N$1=0,0,ROUND($T67*N$108,2))+SUMIFS(InTB!$K:$K,InTB!$M:$M,$E67,InTB!$C:$C,BS!N$1)+SUMIFS(InTB!$K:$K,InTB!$N:$N,$C67,InTB!$C:$C,BS!N$1)+SUMIFS(InTB!$K:$K,InTB!$N:$N,$B67,InTB!$C:$C,BS!N$1) -> 0 | O67: =IF(O$1=0,0,ROUND($T67*O$108,2))+SUMIFS(InTB!$K:$K,InTB!$M:$M,$E67,InTB!$C:$C,BS!O$1)+SUMIFS(InTB!$K:$K,InTB!$N:$N,$C67,InTB!$C:$C,BS!O$1)+SUMIFS(InTB!$K:$K,InTB!$N:$N,$B67,InTB!$C:$C,BS!O$1) -> 0 | P67: =IF(P$1=0,0,ROUND($T67*P$108,2))+SUMIFS(InTB!$K:$K,InTB!$M:$M,$E67,InTB!$C:$C,BS!P$1)+SUMIFS(InTB!$K:$K,InTB!$N:$N,$C67,InTB!$C:$C,BS!P$1)+SUMIFS(InTB!$K:$K,InTB!$N:$N,$B67,InTB!$C:$C,BS!P$1) -> 0 | Q67: =IF(Q$1=0,0,ROUND($T67*Q$108,2))+SUMIFS(InTB!$K:$K,InTB!$M:$M,$E67,InTB!$C:$C,BS!Q$1)+SUMIFS(InTB!$K:$K,InTB!$N:$N,$C67,InTB!$C:$C,BS!Q$1)+SUMIFS(InTB!$K:$K,InTB!$N:$N,$B67,InTB!$C:$C,BS!Q$1) -> 0 | R67: =IF(R$1=0,0,ROUND($T67*R$108,2))+SUMIFS(InTB!$K:$K,InTB!$M:$M,$E67,InTB!$C:$C,BS!R$1)+SUMIFS(InTB!$K:$K,InTB!$N:$N,$C67,InTB!$C:$C,BS!R$1)+SUMIFS(InTB!$K:$K,InTB!$N:$N,$B67,InTB!$C:$C,BS!R$1) -> 0 | S67: =IF(S$1=0,0,ROUND($T67*S$108,2))+SUMIFS(InTB!$K:$K,InTB!$M:$M,$E67,InTB!$C:$C,BS!S$1)+SUMIFS(InTB!$K:$K,InTB!$N:$N,$C67,InTB!$C:$C,BS!S$1)+SUMIFS(InTB!$K:$K,InTB!$N:$N,$B67,InTB!$C:$C,BS!S$1) -> 0 | T67: =SUMIF(InTBBase!$M:$M,$E67,InTBBase!$K:$K)+SUMIF(InTBBase!$N:$N,$C67,InTBBase!$K:$K)+SUMIF(InTBBase!$N:$N,$B67,InTBBase!$K:$K) -> 0 | U67: 0
C68: BIACIN_*BND | D68: INTRECBND | E68: BOAINF | F68: =OFFSET( Label!$E$1,MATCH(BS!D68, Label!$E:$E,0)-1, Main!$G$14+1) -> Profit Receivable on Unquoted Fixed Income Securities | I68: =SUMIF(InTB!$M:$M,$E68,InTB!$K:$K)+SUMIF(InTB!$N:$N,$C68,InTB!$K:$K)+SUMIF(InTB!$N:$N,$B68,InTB!$K:$K) -> 0 | J68: =IF(J$1=0,0,ROUND($T68*J$108,2))+SUMIFS(InTB!$K:$K,InTB!$M:$M,$E68,InTB!$C:$C,BS!J$1)+SUMIFS(InTB!$K:$K,InTB!$N:$N,$C68,InTB!$C:$C,BS!J$1)+SUMIFS(InTB!$K:$K,InTB!$N:$N,$B68,InTB!$C:$C,BS!J$1) -> 0 | K68: =IF(K$1=0,0,ROUND($T68*K$108,2))+SUMIFS(InTB!$K:$K,InTB!$M:$M,$E68,InTB!$C:$C,BS!K$1)+SUMIFS(InTB!$K:$K,InTB!$N:$N,$C68,InTB!$C:$C,BS!K$1)+SUMIFS(InTB!$K:$K,InTB!$N:$N,$B68,InTB!$C:$C,BS!K$1) -> 0 | L68: =IF(L$1=0,0,ROUND($T68*L$108,2))+SUMIFS(InTB!$K:$K,InTB!$M:$M,$E68,InTB!$C:$C,BS!L$1)+SUMIFS(InTB!$K:$K,InTB!$N:$N,$C68,InTB!$C:$C,BS!L$1)+SUMIFS(InTB!$K:$K,InTB!$N:$N,$B68,InTB!$C:$C,BS!L$1) -> 0 | M68: =IF(M$1=0,0,ROUND($T68*M$108,2))+SUMIFS(InTB!$K:$K,InTB!$M:$M,$E68,InTB!$C:$C,BS!M$1)+SUMIFS(InTB!$K:$K,InTB!$N:$N,$C68,InTB!$C:$C,BS!M$1)+SUMIFS(InTB!$K:$K,InTB!$N:$N,$B68,InTB!$C:$C,BS!M$1) -> 0 | N68: =IF(N$1=0,0,ROUND($T68*N$108,2))+SUMIFS(InTB!$K:$K,InTB!$M:$M,$E68,InTB!$C:$C,BS!N$1)+SUMIFS(InTB!$K:$K,InTB!$N:$N,$C68,InTB!$C:$C,BS!N$1)+SUMIFS(InTB!$K:$K,InTB!$N:$N,$B68,InTB!$C:$C,BS!N$1) -> 0 | O68: =IF(O$1=0,0,ROUND($T68*O$108,2))+SUMIFS(InTB!$K:$K,InTB!$M:$M,$E68,InTB!$C:$C,BS!O$1)+SUMIFS(InTB!$K:$K,InTB!$N:$N,$C68,InTB!$C:$C,BS!O$1)+SUMIFS(InTB!$K:$K,InTB!$N:$N,$B68,InTB!$C:$C,BS!O$1) -> 0 | P68: =IF(P$1=0,0,ROUND($T68*P$108,2))+SUMIFS(InTB!$K:$K,InTB!$M:$M,$E68,InTB!$C:$C,BS!P$1)+SUMIFS(InTB!$K:$K,InTB!$N:$N,$C68,InTB!$C:$C,BS!P$1)+SUMIFS(InTB!$K:$K,InTB!$N:$N,$B68,InTB!$C:$C,BS!P$1) -> 0 | Q68: =IF(Q$1=0,0,ROUND($T68*Q$108,2))+SUMIFS(InTB!$K:$K,InTB!$M:$M,$E68,InTB!$C:$C,BS!Q$1)+SUMIFS(InTB!$K:$K,InTB!$N:$N,$C68,InTB!$C:$C,BS!Q$1)+SUMIFS(InTB!$K:$K,InTB!$N:$N,$B68,InTB!$C:$C,BS!Q$1) -> 0 | R68: =IF(R$1=0,0,ROUND($T68*R$108,2))+SUMIFS(InTB!$K:$K,InTB!$M:$M,$E68,InTB!$C:$C,BS!R$1)+SUMIFS(InTB!$K:$K,InTB!$N:$N,$C68,InTB!$C:$C,BS!R$1)+SUMIFS(InTB!$K:$K,InTB!$N:$N,$B68,InTB!$C:$C,BS!R$1) -> 0 | S68: =IF(S$1=0,0,ROUND($T68*S$108,2))+SUMIFS(InTB!$K:$K,InTB!$M:$M,$E68,InTB!$C:$C,BS!S$1)+SUMIFS(InTB!$K:$K,InTB!$N:$N,$C68,InTB!$C:$C,BS!S$1)+SUMIFS(InTB!$K:$K,InTB!$N:$N,$B68,InTB!$C:$C,BS!S$1) -> 0 | T68: =SUMIF(InTBBase!$M:$M,$E68,InTBBase!$K:$K)+SUMIF(InTBBase!$N:$N,$C68,InTBBase!$K:$K)+SUMIF(InTBBase!$N:$N,$B68,InTBBase!$K:$K) -> 0 | U68: 0
D69: DIVREC | F69: =OFFSET( Label!$E$1,MATCH(BS!D69, Label!$E:$E,0)-1, Main!$G$14+1) -> Dividend receivable | I69: =SUM(I70:I72) -> 7578.89 | J69: 7482.01 | K69: 96.88 | L69: 0 | M69: 0 | N69: 0 | O69: =SUM(O70:O72) -> 0 | P69: 0 | Q69: 0 | R69: =SUM(R70:R72) -> 0 | S69: 0 | T69: =SUM(T70:T72) -> 7578.89 | U69: 0
C70: BOADVL* | D70: DIVREC1 | F70: =OFFSET( Label!$E$1,MATCH(BS!D70, Label!$E:$E,0)-1, Main!$G$14+1) -> Dividend receivable - Local | I70: =SUMIF(InTB!$M:$M,$E70,InTB!$K:$K)+SUMIF(InTB!$N:$N,$C70,InTB!$K:$K)+SUMIF(InTB!$N:$N,$B70,InTB!$K:$K)-I71 -> 0 | J70: =IF(J$1=0,0,ROUND($T70*J$108,2))+SUMIFS(InTB!$K:$K,InTB!$M:$M,$E70,InTB!$C:$C,BS!J$1)+SUMIFS(InTB!$K:$K,InTB!$N:$N,$C70,InTB!$C:$C,BS!J$1)+SUMIFS(InTB!$K:$K,InTB!$N:$N,$B70,InTB!$C:$C,BS!J$1)-(+SUMIFS(InTB!$K:$K,InTB!$M:$M,$E71,InTB!$C:$C,BS!J$1)+SUMIFS(InTB!$K:$K,InTB!$N:$N,$C71,InTB!$C:$C,BS!J$1)+SUMIFS(InTB!$K:$K,InTB!$N:$N,$B71,InTB!$C:$C,BS!J$1)) -> 0 | K70: =IF(K$1=0,0,ROUND($T70*K$108,2))+SUMIFS(InTB!$K:$K,InTB!$M:$M,$E70,InTB!$C:$C,BS!K$1)+SUMIFS(InTB!$K:$K,InTB!$N:$N,$C70,InTB!$C:$C,BS!K$1)+SUMIFS(InTB!$K:$K,InTB!$N:$N,$B70,InTB!$C:$C,BS!K$1)-(+SUMIFS(InTB!$K:$K,InTB!$M:$M,$E71,InTB!$C:$C,BS!K$1)+SUMIFS(InTB!$K:$K,InTB!$N:$N,$C71,InTB!$C:$C,BS!K$1)+SUMIFS(InTB!$K:$K,InTB!$N:$N,$B71,InTB!$C:$C,BS!K$1)) -> 0 | L70: =IF(L$1=0,0,ROUND($T70*L$108,2))+SUMIFS(InTB!$K:$K,InTB!$M:$M,$E70,InTB!$C:$C,BS!L$1)+SUMIFS(InTB!$K:$K,InTB!$N:$N,$C70,InTB!$C:$C,BS!L$1)+SUMIFS(InTB!$K:$K,InTB!$N:$N,$B70,InTB!$C:$C,BS!L$1)-(+SUMIFS(InTB!$K:$K,InTB!$M:$M,$E71,InTB!$C:$C,BS!L$1)+SUMIFS(InTB!$K:$K,InTB!$N:$N,$C71,InTB!$C:$C,BS!L$1)+SUMIFS(InTB!$K:$K,InTB!$N:$N,$B71,InTB!$C:$C,BS!L$1)) -> 0 | M70: =IF(M$1=0,0,ROUND($T70*M$108,2))+SUMIFS(InTB!$K:$K,InTB!$M:$M,$E70,InTB!$C:$C,BS!M$1)+SUMIFS(InTB!$K:$K,InTB!$N:$N,$C70,InTB!$C:$C,BS!M$1)+SUMIFS(InTB!$K:$K,InTB!$N:$N,$B70,InTB!$C:$C,BS!M$1)-(+SUMIFS(InTB!$K:$K,InTB!$M:$M,$E71,InTB!$C:$C,BS!M$1)+SUMIFS(InTB!$K:$K,InTB!$N:$N,$C71,InTB!$C:$C,BS!M$1)+SUMIFS(InTB!$K:$K,InTB!$N:$N,$B71,InTB!$C:$C,BS!M$1)) -> 0 | N70: =IF(N$1=0,0,ROUND($T70*N$108,2))+SUMIFS(InTB!$K:$K,InTB!$M:$M,$E70,InTB!$C:$C,BS!N$1)+SUMIFS(InTB!$K:$K,InTB!$N:$N,$C70,InTB!$C:$C,BS!N$1)+SUMIFS(InTB!$K:$K,InTB!$N:$N,$B70,InTB!$C:$C,BS!N$1)-(+SUMIFS(InTB!$K:$K,InTB!$M:$M,$E71,InTB!$C:$C,BS!N$1)+SUMIFS(InTB!$K:$K,InTB!$N:$N,$C71,InTB!$C:$C,BS!N$1)+SUMIFS(InTB!$K:$K,InTB!$N:$N,$B71,InTB!$C:$C,BS!N$1)) -> 0 | O70: =IF(O$1=0,0,ROUND($T70*O$108,2))+SUMIFS(InTB!$K:$K,InTB!$M:$M,$E70,InTB!$C:$C,BS!O$1)+SUMIFS(InTB!$K:$K,InTB!$N:$N,$C70,InTB!$C:$C,BS!O$1)+SUMIFS(InTB!$K:$K,InTB!$N:$N,$B70,InTB!$C:$C,BS!O$1)-(+SUMIFS(InTB!$K:$K,InTB!$M:$M,$E71,InTB!$C:$C,BS!O$1)+SUMIFS(InTB!$K:$K,InTB!$N:$N,$C71,InTB!$C:$C,BS!O$1)+SUMIFS(InTB!$K:$K,InTB!$N:$N,$B71,InTB!$C:$C,BS!O$1)) -> 0 | P70: =IF(P$1=0,0,ROUND($T70*P$108,2))+SUMIFS(InTB!$K:$K,InTB!$M:$M,$E70,InTB!$C:$C,BS!P$1)+SUMIFS(InTB!$K:$K,InTB!$N:$N,$C70,InTB!$C:$C,BS!P$1)+SUMIFS(InTB!$K:$K,InTB!$N:$N,$B70,InTB!$C:$C,BS!P$1)-(+SUMIFS(InTB!$K:$K,InTB!$M:$M,$E71,InTB!$C:$C,BS!P$1)+SUMIFS(InTB!$K:$K,InTB!$N:$N,$C71,InTB!$C:$C,BS!P$1)+SUMIFS(InTB!$K:$K,InTB!$N:$N,$B71,InTB!$C:$C,BS!P$1)) -> 0 | Q70: =IF(Q$1=0,0,ROUND($T70*Q$108,2))+SUMIFS(InTB!$K:$K,InTB!$M:$M,$E70,InTB!$C:$C,BS!Q$1)+SUMIFS(InTB!$K:$K,InTB!$N:$N,$C70,InTB!$C:$C,BS!Q$1)+SUMIFS(InTB!$K:$K,InTB!$N:$N,$B70,InTB!$C:$C,BS!Q$1)-(+SUMIFS(InTB!$K:$K,InTB!$M:$M,$E71,InTB!$C:$C,BS!Q$1)+SUMIFS(InTB!$K:$K,InTB!$N:$N,$C71,InTB!$C:$C,BS!Q$1)+SUMIFS(InTB!$K:$K,InTB!$N:$N,$B71,InTB!$C:$C,BS!Q$1)) -> 0 | R70: =IF(R$1=0,0,ROUND($T70*R$108,2))+SUMIFS(InTB!$K:$K,InTB!$M:$M,$E70,InTB!$C:$C,BS!R$1)+SUMIFS(InTB!$K:$K,InTB!$N:$N,$C70,InTB!$C:$C,BS!R$1)+SUMIFS(InTB!$K:$K,InTB!$N:$N,$B70,InTB!$C:$C,BS!R$1)-(+SUMIFS(InTB!$K:$K,InTB!$M:$M,$E71,InTB!$C:$C,BS!R$1)+SUMIFS(InTB!$K:$K,InTB!$N:$N,$C71,InTB!$C:$C,BS!R$1)+SUMIFS(InTB!$K:$K,InTB!$N:$N,$B71,InTB!$C:$C,BS!R$1)) -> 0 | S70: =IF(S$1=0,0,ROUND($T70*S$108,2))+SUMIFS(InTB!$K:$K,InTB!$M:$M,$E70,InTB!$C:$C,BS!S$1)+SUMIFS(InTB!$K:$K,InTB!$N:$N,$C70,InTB!$C:$C,BS!S$1)+SUMIFS(InTB!$K:$K,InTB!$N:$N,$B70,InTB!$C:$C,BS!S$1)-(+SUMIFS(InTB!$K:$K,InTB!$M:$M,$E71,InTB!$C:$C,BS!S$1)+SUMIFS(InTB!$K:$K,InTB!$N:$N,$C71,InTB!$C:$C,BS!S$1)+SUMIFS(InTB!$K:$K,InTB!$N:$N,$B71,InTB!$C:$C,BS!S$1)) -> 0 | T70: =SUMIF(InTBBase!$M:$M,$E70,InTBBase!$K:$K)+SUMIF(InTBBase!$N:$N,$C70,InTBBase!$K:$K)+SUMIF(InTBBase!$N:$N,$B70,InTBBase!$K:$K)-T71 -> 0 | U70: 0
C71: BOADVL_O-* | D71: DIVREC2 | E71: BOADVF | F71: =OFFSET( Label!$E$1,MATCH(BS!D71, Label!$E:$E,0)-1, Main!$G$14+1) -> Dividend receivable - Foreign | I71: =SUMIF(InTB!$M:$M,$E71,InTB!$K:$K)+SUMIF(InTB!$N:$N,$C71,InTB!$K:$K)+SUMIF(InTB!$N:$N,$B71,InTB!$K:$K) -> 7578.89 | J71: =IF(J$1=0,0,ROUND($T71*J$108,2))+SUMIFS(InTB!$K:$K,InTB!$M:$M,$E71,InTB!$C:$C,BS!J$1)+SUMIFS(InTB!$K:$K,InTB!$N:$N,$C71,InTB!$C:$C,BS!J$1)+SUMIFS(InTB!$K:$K,InTB!$N:$N,$B71,InTB!$C:$C,BS!J$1) -> 7482.01 | K71: =IF(K$1=0,0,ROUND($T71*K$108,2))+SUMIFS(InTB!$K:$K,InTB!$M:$M,$E71,InTB!$C:$C,BS!K$1)+SUMIFS(InTB!$K:$K,InTB!$N:$N,$C71,InTB!$C:$C,BS!K$1)+SUMIFS(InTB!$K:$K,InTB!$N:$N,$B71,InTB!$C:$C,BS!K$1) -> 96.88 | L71: =IF(L$1=0,0,ROUND($T71*L$108,2))+SUMIFS(InTB!$K:$K,InTB!$M:$M,$E71,InTB!$C:$C,BS!L$1)+SUMIFS(InTB!$K:$K,InTB!$N:$N,$C71,InTB!$C:$C,BS!L$1)+SUMIFS(InTB!$K:$K,InTB!$N:$N,$B71,InTB!$C:$C,BS!L$1) -> 0 | M71: =IF(M$1=0,0,ROUND($T71*M$108,2))+SUMIFS(InTB!$K:$K,InTB!$M:$M,$E71,InTB!$C:$C,BS!M$1)+SUMIFS(InTB!$K:$K,InTB!$N:$N,$C71,InTB!$C:$C,BS!M$1)+SUMIFS(InTB!$K:$K,InTB!$N:$N,$B71,InTB!$C:$C,BS!M$1) -> 0 | N71: =IF(N$1=0,0,ROUND($T71*N$108,2))+SUMIFS(InTB!$K:$K,InTB!$M:$M,$E71,InTB!$C:$C,BS!N$1)+SUMIFS(InTB!$K:$K,InTB!$N:$N,$C71,InTB!$C:$C,BS!N$1)+SUMIFS(InTB!$K:$K,InTB!$N:$N,$B71,InTB!$C:$C,BS!N$1) -> 0 | O71: =IF(O$1=0,0,ROUND($T71*O$108,2))+SUMIFS(InTB!$K:$K,InTB!$M:$M,$E71,InTB!$C:$C,BS!O$1)+SUMIFS(InTB!$K:$K,InTB!$N:$N,$C71,InTB!$C:$C,BS!O$1)+SUMIFS(InTB!$K:$K,InTB!$N:$N,$B71,InTB!$C:$C,BS!O$1) -> 0 | P71: =IF(P$1=0,0,ROUND($T71*P$108,2))+SUMIFS(InTB!$K:$K,InTB!$M:$M,$E71,InTB!$C:$C,BS!P$1)+SUMIFS(InTB!$K:$K,InTB!$N:$N,$C71,InTB!$C:$C,BS!P$1)+SUMIFS(InTB!$K:$K,InTB!$N:$N,$B71,InTB!$C:$C,BS!P$1) -> 0 | Q71: =IF(Q$1=0,0,ROUND($T71*Q$108,2))+SUMIFS(InTB!$K:$K,InTB!$M:$M,$E71,InTB!$C:$C,BS!Q$1)+SUMIFS(InTB!$K:$K,InTB!$N:$N,$C71,InTB!$C:$C,BS!Q$1)+SUMIFS(InTB!$K:$K,InTB!$N:$N,$B71,InTB!$C:$C,BS!Q$1) -> 0 | R71: =IF(R$1=0,0,ROUND($T71*R$108,2))+SUMIFS(InTB!$K:$K,InTB!$M:$M,$E71,InTB!$C:$C,BS!R$1)+SUMIFS(InTB!$K:$K,InTB!$N:$N,$C71,InTB!$C:$C,BS!R$1)+SUMIFS(InTB!$K:$K,InTB!$N:$N,$B71,InTB!$C:$C,BS!R$1) -> 0 | S71: =IF(S$1=0,0,ROUND($T71*S$108,2))+SUMIFS(InTB!$K:$K,InTB!$M:$M,$E71,InTB!$C:$C,BS!S$1)+SUMIFS(InTB!$K:$K,InTB!$N:$N,$C71,InTB!$C:$C,BS!S$1)+SUMIFS(InTB!$K:$K,InTB!$N:$N,$B71,InTB!$C:$C,BS!S$1) -> 0 | T71: =SUMIF(InTBBase!$M:$M,$E71,InTBBase!$K:$K)+SUMIF(InTBBase!$N:$N,$C71,InTBBase!$K:$K)+SUMIF(InTBBase!$N:$N,$B71,InTBBase!$K:$K) -> 7578.89 | U71: 0
D72: DIVREC3 | E72: BOADVX | F72: =OFFSET( Label!$E$1,MATCH(BS!D72, Label!$E:$E,0)-1, Main!$G$14+1) -> Foreign Dividend - Unrealised FOREX Gains/(Loss) | I72: =SUMIF(InTB!$M:$M,$E72,InTB!$K:$K)+SUMIF(InTB!$N:$N,$C72,InTB!$K:$K)+SUMIF(InTB!$N:$N,$B72,InTB!$K:$K) -> 0 | J72: =IF(J$1=0,0,ROUND($T72*J$108,2))+SUMIFS(InTB!$K:$K,InTB!$M:$M,$E72,InTB!$C:$C,BS!J$1)+SUMIFS(InTB!$K:$K,InTB!$N:$N,$C72,InTB!$C:$C,BS!J$1)+SUMIFS(InTB!$K:$K,InTB!$N:$N,$B72,InTB!$C:$C,BS!J$1) -> 0 | K72: =IF(K$1=0,0,ROUND($T72*K$108,2))+SUMIFS(InTB!$K:$K,InTB!$M:$M,$E72,InTB!$C:$C,BS!K$1)+SUMIFS(InTB!$K:$K,InTB!$N:$N,$C72,InTB!$C:$C,BS!K$1)+SUMIFS(InTB!$K:$K,InTB!$N:$N,$B72,InTB!$C:$C,BS!K$1) -> 0 | L72: =IF(L$1=0,0,ROUND($T72*L$108,2))+SUMIFS(InTB!$K:$K,InTB!$M:$M,$E72,InTB!$C:$C,BS!L$1)+SUMIFS(InTB!$K:$K,InTB!$N:$N,$C72,InTB!$C:$C,BS!L$1)+SUMIFS(InTB!$K:$K,InTB!$N:$N,$B72,InTB!$C:$C,BS!L$1) -> 0 | M72: =IF(M$1=0,0,ROUND($T72*M$108,2))+SUMIFS(InTB!$K:$K,InTB!$M:$M,$E72,InTB!$C:$C,BS!M$1)+SUMIFS(InTB!$K:$K,InTB!$N:$N,$C72,InTB!$C:$C,BS!M$1)+SUMIFS(InTB!$K:$K,InTB!$N:$N,$B72,InTB!$C:$C,BS!M$1) -> 0 | N72: =IF(N$1=0,0,ROUND($T72*N$108,2))+SUMIFS(InTB!$K:$K,InTB!$M:$M,$E72,InTB!$C:$C,BS!N$1)+SUMIFS(InTB!$K:$K,InTB!$N:$N,$C72,InTB!$C:$C,BS!N$1)+SUMIFS(InTB!$K:$K,InTB!$N:$N,$B72,InTB!$C:$C,BS!N$1) -> 0 | O72: =IF(O$1=0,0,ROUND($T72*O$108,2))+SUMIFS(InTB!$K:$K,InTB!$M:$M,$E72,InTB!$C:$C,BS!O$1)+SUMIFS(InTB!$K:$K,InTB!$N:$N,$C72,InTB!$C:$C,BS!O$1)+SUMIFS(InTB!$K:$K,InTB!$N:$N,$B72,InTB!$C:$C,BS!O$1) -> 0 | P72: =IF(P$1=0,0,ROUND($T72*P$108,2))+SUMIFS(InTB!$K:$K,InTB!$M:$M,$E72,InTB!$C:$C,BS!P$1)+SUMIFS(InTB!$K:$K,InTB!$N:$N,$C72,InTB!$C:$C,BS!P$1)+SUMIFS(InTB!$K:$K,InTB!$N:$N,$B72,InTB!$C:$C,BS!P$1) -> 0 | Q72: =IF(Q$1=0,0,ROUND($T72*Q$108,2))+SUMIFS(InTB!$K:$K,InTB!$M:$M,$E72,InTB!$C:$C,BS!Q$1)+SUMIFS(InTB!$K:$K,InTB!$N:$N,$C72,InTB!$C:$C,BS!Q$1)+SUMIFS(InTB!$K:$K,InTB!$N:$N,$B72,InTB!$C:$C,BS!Q$1) -> 0 | R72: =IF(R$1=0,0,ROUND($T72*R$108,2))+SUMIFS(InTB!$K:$K,InTB!$M:$M,$E72,InTB!$C:$C,BS!R$1)+SUMIFS(InTB!$K:$K,InTB!$N:$N,$C72,InTB!$C:$C,BS!R$1)+SUMIFS(InTB!$K:$K,InTB!$N:$N,$B72,InTB!$C:$C,BS!R$1) -> 0 | S72: =IF(S$1=0,0,ROUND($T72*S$108,2))+SUMIFS(InTB!$K:$K,InTB!$M:$M,$E72,InTB!$C:$C,BS!S$1)+SUMIFS(InTB!$K:$K,InTB!$N:$N,$C72,InTB!$C:$C,BS!S$1)+SUMIFS(InTB!$K:$K,InTB!$N:$N,$B72,InTB!$C:$C,BS!S$1) -> 0 | T72: =SUMIF(InTBBase!$M:$M,$E72,InTBBase!$K:$K)+SUMIF(InTBBase!$N:$N,$C72,InTBBase!$K:$K)+SUMIF(InTBBase!$N:$N,$B72,InTBBase!$K:$K) -> 0 | U72: 0
D73: TAXREC | E73: BOATRL | F73: =OFFSET( Label!$E$1,MATCH(BS!D73, Label!$E:$E,0)-1, Main!$G$14+1) -> Tax recoverable | I73: =SUMIF(InTB!$M:$M,$E73,InTB!$K:$K) -> 0 | J73: =IF(J$1=0,0,ROUND($T73*J$108,2))+SUMIFS(InTB!$K:$K,InTB!$M:$M,$E73,InTB!$C:$C,BS!J$1) -> 0 | K73: =IF(K$1=0,0,ROUND($T73*K$108,2))+SUMIFS(InTB!$K:$K,InTB!$M:$M,$E73,InTB!$C:$C,BS!K$1) -> 0 | L73: =IF(L$1=0,0,ROUND($T73*L$108,2))+SUMIFS(InTB!$K:$K,InTB!$M:$M,$E73,InTB!$C:$C,BS!L$1) -> 0 | M73: =IF(M$1=0,0,ROUND($T73*M$108,2))+SUMIFS(InTB!$K:$K,InTB!$M:$M,$E73,InTB!$C:$C,BS!M$1) -> 0 | N73: =IF(N$1=0,0,ROUND($T73*N$108,2))+SUMIFS(InTB!$K:$K,InTB!$M:$M,$E73,InTB!$C:$C,BS!N$1) -> 0 | O73: =IF(O$1=0,0,ROUND($T73*O$108,2))+SUMIFS(InTB!$K:$K,InTB!$M:$M,$E73,InTB!$C:$C,BS!O$1) -> 0 | P73: =IF(P$1=0,0,ROUND($T73*P$108,2))+SUMIFS(InTB!$K:$K,InTB!$M:$M,$E73,InTB!$C:$C,BS!P$1) -> 0 | Q73: =IF(Q$1=0,0,ROUND($T73*Q$108,2))+SUMIFS(InTB!$K:$K,InTB!$M:$M,$E73,InTB!$C:$C,BS!Q$1) -> 0 | R73: =IF(R$1=0,0,ROUND($T73*R$108,2))+SUMIFS(InTB!$K:$K,InTB!$M:$M,$E73,InTB!$C:$C,BS!R$1) -> 0 | S73: =IF(S$1=0,0,ROUND($T73*S$108,2))+SUMIFS(InTB!$K:$K,InTB!$M:$M,$E73,InTB!$C:$C,BS!S$1) -> 0 | T73: =SUMIF(InTBBase!$M:$M,$E73,InTBBase!$K:$K) -> 0 | U73: 0
D74: SUNDEB | E74: BOASUN | F74: =OFFSET( Label!$E$1,MATCH(BS!D74, Label!$E:$E,0)-1, Main!$G$14+1) -> Sundry Debtor | I74: =SUMIF(InTB!$M:$M,$E74,InTB!$K:$K) -> 0 | J74: =IF(J$1=0,0,ROUND($T74*J$108,2))+SUMIFS(InTB!$K:$K,InTB!$M:$M,$E74,InTB!$C:$C,BS!J$1) -> 0 | K74: =IF(K$1=0,0,ROUND($T74*K$108,2))+SUMIFS(InTB!$K:$K,InTB!$M:$M,$E74,InTB!$C:$C,BS!K$1) -> 0 | L74: =IF(L$1=0,0,ROUND($T74*L$108,2))+SUMIFS(InTB!$K:$K,InTB!$M:$M,$E74,InTB!$C:$C,BS!L$1) -> 0 | M74: =IF(M$1=0,0,ROUND($T74*M$108,2))+SUMIFS(InTB!$K:$K,InTB!$M:$M,$E74,InTB!$C:$C,BS!M$1) -> 0 | N74: =IF(N$1=0,0,ROUND($T74*N$108,2))+SUMIFS(InTB!$K:$K,InTB!$M:$M,$E74,InTB!$C:$C,BS!N$1) -> 0 | O74: =IF(O$1=0,0,ROUND($T74*O$108,2))+SUMIFS(InTB!$K:$K,InTB!$M:$M,$E74,InTB!$C:$C,BS!O$1) -> 0 | P74: =IF(P$1=0,0,ROUND($T74*P$108,2))+SUMIFS(InTB!$K:$K,InTB!$M:$M,$E74,InTB!$C:$C,BS!P$1) -> 0 | Q74: =IF(Q$1=0,0,ROUND($T74*Q$108,2))+SUMIFS(InTB!$K:$K,InTB!$M:$M,$E74,InTB!$C:$C,BS!Q$1) -> 0 | R74: =IF(R$1=0,0,ROUND($T74*R$108,2))+SUMIFS(InTB!$K:$K,InTB!$M:$M,$E74,InTB!$C:$C,BS!R$1) -> 0 | S74: =IF(S$1=0,0,ROUND($T74*S$108,2))+SUMIFS(InTB!$K:$K,InTB!$M:$M,$E74,InTB!$C:$C,BS!S$1) -> 0 | T74: =SUMIF(InTBBase!$M:$M,$E74,InTBBase!$K:$K) -> 0 | U74: 0
D75: BANK | F75: =OFFSET( Label!$E$1,MATCH(BS!D75, Label!$E:$E,0)-1, Main!$G$14+1) -> Shariah -based Bank balances with Financial Institutions | I75: =I76+I77 -> 69120.05 | J75: =J76+J77 -> 68236.48 | K75: =K76+K77 -> 883.57 | L75: 0 | M75: 0 | N75: 0 | O75: =O76+O77 -> 0 | P75: 0 | Q75: 0 | R75: =R76+R77 -> 0 | S75: 0 | T75: =T76+T77 -> 69120.05 | U75: 0
D76: BANK1 | E76: BOABNK | F76: =OFFSET( Label!$E$1,MATCH(BS!D76, Label!$E:$E,0)-1, Main!$G$14+1) -> Shariah -based Bank Balances in Cost | I76: =SUMIF(InTB!$M:$M,$E76,InTB!$K:$K) -> 69120.05 | J76: =IF(J$1=0,0,ROUND($T76*J$108,2))+SUMIFS(InTB!$K:$K,InTB!$M:$M,$E76,InTB!$C:$C,BS!J$1) -> 68236.48 | K76: =IF(K$1=0,0,ROUND($T76*K$108,2))+SUMIFS(InTB!$K:$K,InTB!$M:$M,$E76,InTB!$C:$C,BS!K$1) -> 883.57 | L76: =IF(L$1=0,0,ROUND($T76*L$108,2))+SUMIFS(InTB!$K:$K,InTB!$M:$M,$E76,InTB!$C:$C,BS!L$1) -> 0 | M76: =IF(M$1=0,0,ROUND($T76*M$108,2))+SUMIFS(InTB!$K:$K,InTB!$M:$M,$E76,InTB!$C:$C,BS!M$1) -> 0 | N76: =IF(N$1=0,0,ROUND($T76*N$108,2))+SUMIFS(InTB!$K:$K,InTB!$M:$M,$E76,InTB!$C:$C,BS!N$1) -> 0 | O76: =IF(O$1=0,0,ROUND($T76*O$108,2))+SUMIFS(InTB!$K:$K,InTB!$M:$M,$E76,InTB!$C:$C,BS!O$1) -> 0 | P76: =IF(P$1=0,0,ROUND($T76*P$108,2))+SUMIFS(InTB!$K:$K,InTB!$M:$M,$E76,InTB!$C:$C,BS!P$1) -> 0 | Q76: =IF(Q$1=0,0,ROUND($T76*Q$108,2))+SUMIFS(InTB!$K:$K,InTB!$M:$M,$E76,InTB!$C:$C,BS!Q$1) -> 0 | R76: =IF(R$1=0,0,ROUND($T76*R$108,2))+SUMIFS(InTB!$K:$K,InTB!$M:$M,$E76,InTB!$C:$C,BS!R$1) -> 0 | S76: =IF(S$1=0,0,ROUND($T76*S$108,2))+SUMIFS(InTB!$K:$K,InTB!$M:$M,$E76,InTB!$C:$C,BS!S$1) -> 0 | T76: =SUMIF(InTB!$M:$M,$E76,InTB!$K:$K) -> 69120.05 | U76: 0
D77: BANK2 | E77: BOABKX | F77: =OFFSET( Label!$E$1,MATCH(BS!D77, Label!$E:$E,0)-1, Main!$G$14+1) -> Foreign Shariah -based Bank Balances - Unrealised FOREX Gains/(Loss) | I77: =SUMIF(InTB!$M:$M,$E77,InTB!$K:$K) -> 0 | J77: =IF(J$1=0,0,ROUND($T77*J$108,2))+SUMIFS(InTB!$K:$K,InTB!$M:$M,$E77,InTB!$C:$C,BS!J$1) -> 0 | K77: =IF(K$1=0,0,ROUND($T77*K$108,2))+SUMIFS(InTB!$K:$K,InTB!$M:$M,$E77,InTB!$C:$C,BS!K$1) -> 0 | L77: =IF(L$1=0,0,ROUND($T77*L$108,2))+SUMIFS(InTB!$K:$K,InTB!$M:$M,$E77,InTB!$C:$C,BS!L$1) -> 0 | M77: =IF(M$1=0,0,ROUND($T77*M$108,2))+SUMIFS(InTB!$K:$K,InTB!$M:$M,$E77,InTB!$C:$C,BS!M$1) -> 0 | N77: =IF(N$1=0,0,ROUND($T77*N$108,2))+SUMIFS(InTB!$K:$K,InTB!$M:$M,$E77,InTB!$C:$C,BS!N$1) -> 0 | O77: =IF(O$1=0,0,ROUND($T77*O$108,2))+SUMIFS(InTB!$K:$K,InTB!$M:$M,$E77,InTB!$C:$C,BS!O$1) -> 0 | P77: =IF(P$1=0,0,ROUND($T77*P$108,2))+SUMIFS(InTB!$K:$K,InTB!$M:$M,$E77,InTB!$C:$C,BS!P$1) -> 0 | Q77: =IF(Q$1=0,0,ROUND($T77*Q$108,2))+SUMIFS(InTB!$K:$K,InTB!$M:$M,$E77,InTB!$C:$C,BS!Q$1) -> 0 | R77: =IF(R$1=0,0,ROUND($T77*R$108,2))+SUMIFS(InTB!$K:$K,InTB!$M:$M,$E77,InTB!$C:$C,BS!R$1) -> 0 | S77: =IF(S$1=0,0,ROUND($T77*S$108,2))+SUMIFS(InTB!$K:$K,InTB!$M:$M,$E77,InTB!$C:$C,BS!S$1) -> 0 | T77: =SUMIF(InTB!$M:$M,$E77,InTB!$K:$K) -> 0 | U77: 0
F78: Total Other Assets | I78: =I60+I61+SUM(I65:I69)+I73+I75+I74 -> 118280.7 | J78: =J60+J61+SUM(J65:J69)+J73+J75+J74 -> 116768.7 | K78: =K60+K61+SUM(K65:K69)+K73+K75+K74 -> 1512 | L78: =L60+L61+SUM(L65:L69)+L73+L75+L74 -> 0 | M78: 0 | N78: 0 | O78: =O60+O61+SUM(O65:O69)+O73+O75+O74 -> 0 | P78: 0 | Q78: 0 | R78: =R60+R61+SUM(R65:R69)+R73+R75+R74 -> 0 | S78: 0 | T78: =T60+T61+SUM(T65:T69)+T73+T75+T74 -> 118280.7 | U78: 0
U79: 0
D80: TOTASSET | F80: =OFFSET( Label!$E$1,MATCH(BS!D80, Label!$E:$E,0)-1, Main!$G$14+1) -> Total Assets | I80: =I57+I78 -> 3669923.7 | J80: =J57+J78 -> 3623010.53 | K80: =K57+K78 -> 46913.17 | L80: =L57+L78 -> 0 | M80: 0 | N80: 0 | O80: =O57+O78 -> 0 | P80: 0 | Q80: 0 | R80: =R57+R78 -> 0 | S80: 0 | T80: =T57+T78 -> 3669923.7 | U80: 0
U81: =ROUND(I81-SUM(J81:S81),1) -> 0
D82: LIABILITY | F82: =OFFSET( Label!$E$1,MATCH(BS!D82, Label!$E:$E,0)-1, Main!$G$14+1) -> Liabilities | U82: 0
U83: 0
D84: AMTTMGR | E84: BLMNG* | F84: =OFFSET( Label!$E$1,MATCH(BS!D84, Label!$E:$E,0)-1, Main!$G$14+1) -> Amount due to the Manager (Management Fee & Expenses) | I84: =-SUMIF(InTB!$M:$M,$E84,InTB!$K:$K) -> 12981.51 | J84: =IF(J$1=0,0,ROUND($T84*J$108,2))-SUMIFS(InTB!$K:$K,InTB!$M:$M,$E84,InTB!$C:$C,BS!J$1) -> 12815.57 | K84: =IF(K$1=0,0,ROUND($T84*K$108,2))-SUMIFS(InTB!$K:$K,InTB!$M:$M,$E84,InTB!$C:$C,BS!K$1) -> 165.94 | L84: =IF(L$1=0,0,ROUND($T84*L$108,2))-SUMIFS(InTB!$K:$K,InTB!$M:$M,$E84,InTB!$C:$C,BS!L$1) -> 0 | M84: =IF(M$1=0,0,ROUND($T84*M$108,2))-SUMIFS(InTB!$K:$K,InTB!$M:$M,$E84,InTB!$C:$C,BS!M$1) -> 0 | N84: =IF(N$1=0,0,ROUND($T84*N$108,2))-SUMIFS(InTB!$K:$K,InTB!$M:$M,$E84,InTB!$C:$C,BS!N$1) -> 0 | O84: =IF(O$1=0,0,ROUND($T84*O$108,2))-SUMIFS(InTB!$K:$K,InTB!$M:$M,$E84,InTB!$C:$C,BS!O$1) -> 0 | P84: =IF(P$1=0,0,ROUND($T84*P$108,2))-SUMIFS(InTB!$K:$K,InTB!$M:$M,$E84,InTB!$C:$C,BS!P$1) -> 0 | Q84: =IF(Q$1=0,0,ROUND($T84*Q$108,2))-SUMIFS(InTB!$K:$K,InTB!$M:$M,$E84,InTB!$C:$C,BS!Q$1) -> 0 | R84: =IF(R$1=0,0,ROUND($T84*R$108,2))-SUMIFS(InTB!$K:$K,InTB!$M:$M,$E84,InTB!$C:$C,BS!R$1) -> 0 | S84: =IF(S$1=0,0,ROUND($T84*S$108,2))-SUMIFS(InTB!$K:$K,InTB!$M:$M,$E84,InTB!$C:$C,BS!S$1) -> 0 | T84: =-SUMIF(InTBBase!$M:$M,$E84,InTBBase!$K:$K) -> 12981.51 | U84: 0
D85: AMTTTRT | E85: BLTRUS | F85: =OFFSET( Label!$E$1,MATCH(BS!D85, Label!$E:$E,0)-1, Main!$G$14+1) -> Amount due to the Trustee | I85: =-SUMIF(InTB!$M:$M,$E85,InTB!$K:$K) -> 483.61 | J85: =IF(J$1=0,0,ROUND($T85*J$108,2))-SUMIFS(InTB!$K:$K,InTB!$M:$M,$E85,InTB!$C:$C,BS!J$1) -> 477.43 | K85: =IF(K$1=0,0,ROUND($T85*K$108,2))-SUMIFS(InTB!$K:$K,InTB!$M:$M,$E85,InTB!$C:$C,BS!K$1) -> 6.18 | L85: =IF(L$1=0,0,ROUND($T85*L$108,2))-SUMIFS(InTB!$K:$K,InTB!$M:$M,$E85,InTB!$C:$C,BS!L$1) -> 0 | M85: =IF(M$1=0,0,ROUND($T85*M$108,2))-SUMIFS(InTB!$K:$K,InTB!$M:$M,$E85,InTB!$C:$C,BS!M$1) -> 0 | N85: =IF(N$1=0,0,ROUND($T85*N$108,2))-SUMIFS(InTB!$K:$K,InTB!$M:$M,$E85,InTB!$C:$C,BS!N$1) -> 0 | O85: =IF(O$1=0,0,ROUND($T85*O$108,2))-SUMIFS(InTB!$K:$K,InTB!$M:$M,$E85,InTB!$C:$C,BS!O$1) -> 0 | P85: =IF(P$1=0,0,ROUND($T85*P$108,2))-SUMIFS(InTB!$K:$K,InTB!$M:$M,$E85,InTB!$C:$C,BS!P$1) -> 0 | Q85: =IF(Q$1=0,0,ROUND($T85*Q$108,2))-SUMIFS(InTB!$K:$K,InTB!$M:$M,$E85,InTB!$C:$C,BS!Q$1) -> 0 | R85: =IF(R$1=0,0,ROUND($T85*R$108,2))-SUMIFS(InTB!$K:$K,InTB!$M:$M,$E85,InTB!$C:$C,BS!R$1) -> 0 | S85: =IF(S$1=0,0,ROUND($T85*S$108,2))-SUMIFS(InTB!$K:$K,InTB!$M:$M,$E85,InTB!$C:$C,BS!S$1) -> 0 | T85: =-SUMIF(InTBBase!$M:$M,$E85,InTBBase!$K:$K) -> 483.61 | U85: 0
D86: AMTTBRK | F86: =OFFSET( Label!$E$1,MATCH(BS!D86, Label!$E:$E,0)-1, Main!$G$14+1) -> Amount due to Stockbrokers | I86: =I87+I88+I89 -> 0 | J86: 0 | K86: 0 | L86: 0 | M86: 0 | N86: 0 | O86: =O87+O88+O89 -> 0 | P86: 0 | Q86: 0 | R86: =R87+R88+R89 -> 0 | S86: 0 | T86: 0 | U86: 0
C87: BLAINV* | D87: AMTTBRK1 | E87: BLBRLO | F87: =OFFSET( Label!$E$1,MATCH(BS!D87, Label!$E:$E,0)-1, Main!$G$14+1) -> Broker - Local | I87: =-(SUMIF(InTB!$M:$M,$E87,InTB!$K:$K)+SUMIF(InTB!$N:$N,$C87,InTB!$K:$K)+SUMIF(InTB!$N:$N,$B87,InTB!$K:$K)-I88) -> 0 | J87: =IF(J$1=0,0,ROUND($T87*J$108,2))-(SUMIFS(InTB!$K:$K,InTB!$M:$M,$E87,InTB!$C:$C,BS!J$1)+SUMIFS(InTB!$K:$K,InTB!$N:$N,$C87,InTB!$C:$C,BS!J$1)+SUMIFS(InTB!$K:$K,InTB!$N:$N,$B87,InTB!$C:$C,BS!J$1)-J88) -> 0 | K87: =IF(K$1=0,0,ROUND($T87*K$108,2))-(SUMIFS(InTB!$K:$K,InTB!$M:$M,$E87,InTB!$C:$C,BS!K$1)+SUMIFS(InTB!$K:$K,InTB!$N:$N,$C87,InTB!$C:$C,BS!K$1)+SUMIFS(InTB!$K:$K,InTB!$N:$N,$B87,InTB!$C:$C,BS!K$1)-K88) -> 0 | L87: =IF(L$1=0,0,ROUND($T87*L$108,2))-(SUMIFS(InTB!$K:$K,InTB!$M:$M,$E87,InTB!$C:$C,BS!L$1)+SUMIFS(InTB!$K:$K,InTB!$N:$N,$C87,InTB!$C:$C,BS!L$1)+SUMIFS(InTB!$K:$K,InTB!$N:$N,$B87,InTB!$C:$C,BS!L$1)-L88) -> 0 | M87: =IF(M$1=0,0,ROUND($T87*M$108,2))-(SUMIFS(InTB!$K:$K,InTB!$M:$M,$E87,InTB!$C:$C,BS!M$1)+SUMIFS(InTB!$K:$K,InTB!$N:$N,$C87,InTB!$C:$C,BS!M$1)+SUMIFS(InTB!$K:$K,InTB!$N:$N,$B87,InTB!$C:$C,BS!M$1)-M88) -> 0 | N87: =IF(N$1=0,0,ROUND($T87*N$108,2))-(SUMIFS(InTB!$K:$K,InTB!$M:$M,$E87,InTB!$C:$C,BS!N$1)+SUMIFS(InTB!$K:$K,InTB!$N:$N,$C87,InTB!$C:$C,BS!N$1)+SUMIFS(InTB!$K:$K,InTB!$N:$N,$B87,InTB!$C:$C,BS!N$1)-N88) -> 0 | O87: =IF(O$1=0,0,ROUND($T87*O$108,2))-(SUMIFS(InTB!$K:$K,InTB!$M:$M,$E87,InTB!$C:$C,BS!O$1)+SUMIFS(InTB!$K:$K,InTB!$N:$N,$C87,InTB!$C:$C,BS!O$1)+SUMIFS(InTB!$K:$K,InTB!$N:$N,$B87,InTB!$C:$C,BS!O$1)-O88) -> 0 | P87: =IF(P$1=0,0,ROUND($T87*P$108,2))-(SUMIFS(InTB!$K:$K,InTB!$M:$M,$E87,InTB!$C:$C,BS!P$1)+SUMIFS(InTB!$K:$K,InTB!$N:$N,$C87,InTB!$C:$C,BS!P$1)+SUMIFS(InTB!$K:$K,InTB!$N:$N,$B87,InTB!$C:$C,BS!P$1)-P88) -> 0 | Q87: =IF(Q$1=0,0,ROUND($T87*Q$108,2))-(SUMIFS(InTB!$K:$K,InTB!$M:$M,$E87,InTB!$C:$C,BS!Q$1)+SUMIFS(InTB!$K:$K,InTB!$N:$N,$C87,InTB!$C:$C,BS!Q$1)+SUMIFS(InTB!$K:$K,InTB!$N:$N,$B87,InTB!$C:$C,BS!Q$1)-Q88) -> 0 | R87: =IF(R$1=0,0,ROUND($T87*R$108,2))-(SUMIFS(InTB!$K:$K,InTB!$M:$M,$E87,InTB!$C:$C,BS!R$1)+SUMIFS(InTB!$K:$K,InTB!$N:$N,$C87,InTB!$C:$C,BS!R$1)+SUMIFS(InTB!$K:$K,InTB!$N:$N,$B87,InTB!$C:$C,BS!R$1)-R88) -> 0 | S87: =IF(S$1=0,0,ROUND($T87*S$108,2))-(SUMIFS(InTB!$K:$K,InTB!$M:$M,$E87,InTB!$C:$C,BS!S$1)+SUMIFS(InTB!$K:$K,InTB!$N:$N,$C87,InTB!$C:$C,BS!S$1)+SUMIFS(InTB!$K:$K,InTB!$N:$N,$B87,InTB!$C:$C,BS!S$1)-S88) -> 0 | T87: =-(SUMIF(InTBBase!$M:$M,$E87,InTBBase!$K:$K)+SUMIF(InTBBase!$N:$N,$C87,InTBBase!$K:$K)+SUMIF(InTBBase!$N:$N,$B87,InTBBase!$K:$K)-T88) -> 0 | U87: 0
C88: BLAINV_O-* | D88: AMTTBRK2 | E88: BLBRFO | F88: =OFFSET( Label!$E$1,MATCH(BS!D88, Label!$E:$E,0)-1, Main!$G$14+1) -> Broker - Foreign | I88: =-(SUMIF(InTB!$M:$M,$E88,InTB!$K:$K)+SUMIF(InTB!$N:$N,$C88,InTB!$K:$K)+SUMIF(InTB!$N:$N,$B88,InTB!$K:$K)) -> 0 | J88: =IF(J$1=0,0,ROUND($T88*J$108,2))-(SUMIFS(InTB!$K:$K,InTB!$M:$M,$E88,InTB!$C:$C,BS!J$1)+SUMIFS(InTB!$K:$K,InTB!$N:$N,$C88,InTB!$C:$C,BS!J$1)+SUMIFS(InTB!$K:$K,InTB!$N:$N,$B88,InTB!$C:$C,BS!J$1)) -> 0 | K88: =IF(K$1=0,0,ROUND($T88*K$108,2))-(SUMIFS(InTB!$K:$K,InTB!$M:$M,$E88,InTB!$C:$C,BS!K$1)+SUMIFS(InTB!$K:$K,InTB!$N:$N,$C88,InTB!$C:$C,BS!K$1)+SUMIFS(InTB!$K:$K,InTB!$N:$N,$B88,InTB!$C:$C,BS!K$1)) -> 0 | L88: =IF(L$1=0,0,ROUND($T88*L$108,2))-(SUMIFS(InTB!$K:$K,InTB!$M:$M,$E88,InTB!$C:$C,BS!L$1)+SUMIFS(InTB!$K:$K,InTB!$N:$N,$C88,InTB!$C:$C,BS!L$1)+SUMIFS(InTB!$K:$K,InTB!$N:$N,$B88,InTB!$C:$C,BS!L$1)) -> 0 | M88: =IF(M$1=0,0,ROUND($T88*M$108,2))-(SUMIFS(InTB!$K:$K,InTB!$M:$M,$E88,InTB!$C:$C,BS!M$1)+SUMIFS(InTB!$K:$K,InTB!$N:$N,$C88,InTB!$C:$C,BS!M$1)+SUMIFS(InTB!$K:$K,InTB!$N:$N,$B88,InTB!$C:$C,BS!M$1)) -> 0 | N88: =IF(N$1=0,0,ROUND($T88*N$108,2))-(SUMIFS(InTB!$K:$K,InTB!$M:$M,$E88,InTB!$C:$C,BS!N$1)+SUMIFS(InTB!$K:$K,InTB!$N:$N,$C88,InTB!$C:$C,BS!N$1)+SUMIFS(InTB!$K:$K,InTB!$N:$N,$B88,InTB!$C:$C,BS!N$1)) -> 0 | O88: =IF(O$1=0,0,ROUND($T88*O$108,2))-(SUMIFS(InTB!$K:$K,InTB!$M:$M,$E88,InTB!$C:$C,BS!O$1)+SUMIFS(InTB!$K:$K,InTB!$N:$N,$C88,InTB!$C:$C,BS!O$1)+SUMIFS(InTB!$K:$K,InTB!$N:$N,$B88,InTB!$C:$C,BS!O$1)) -> 0 | P88: =IF(P$1=0,0,ROUND($T88*P$108,2))-(SUMIFS(InTB!$K:$K,InTB!$M:$M,$E88,InTB!$C:$C,BS!P$1)+SUMIFS(InTB!$K:$K,InTB!$N:$N,$C88,InTB!$C:$C,BS!P$1)+SUMIFS(InTB!$K:$K,InTB!$N:$N,$B88,InTB!$C:$C,BS!P$1)) -> 0 | Q88: =IF(Q$1=0,0,ROUND($T88*Q$108,2))-(SUMIFS(InTB!$K:$K,InTB!$M:$M,$E88,InTB!$C:$C,BS!Q$1)+SUMIFS(InTB!$K:$K,InTB!$N:$N,$C88,InTB!$C:$C,BS!Q$1)+SUMIFS(InTB!$K:$K,InTB!$N:$N,$B88,InTB!$C:$C,BS!Q$1)) -> 0 | R88: =IF(R$1=0,0,ROUND($T88*R$108,2))-(SUMIFS(InTB!$K:$K,InTB!$M:$M,$E88,InTB!$C:$C,BS!R$1)+SUMIFS(InTB!$K:$K,InTB!$N:$N,$C88,InTB!$C:$C,BS!R$1)+SUMIFS(InTB!$K:$K,InTB!$N:$N,$B88,InTB!$C:$C,BS!R$1)) -> 0 | S88: =IF(S$1=0,0,ROUND($T88*S$108,2))-(SUMIFS(InTB!$K:$K,InTB!$M:$M,$E88,InTB!$C:$C,BS!S$1)+SUMIFS(InTB!$K:$K,InTB!$N:$N,$C88,InTB!$C:$C,BS!S$1)+SUMIFS(InTB!$K:$K,InTB!$N:$N,$B88,InTB!$C:$C,BS!S$1)) -> 0 | T88: =-(SUMIF(InTBBase!$M:$M,$E88,InTBBase!$K:$K)+SUMIF(InTBBase!$N:$N,$C88,InTBBase!$K:$K)+SUMIF(InTBBase!$N:$N,$B88,InTBBase!$K:$K)) -> 0 | U88: 0
D89: AMTTBRK3 | E89: BLBRFX | F89: =OFFSET( Label!$E$1,MATCH(BS!D89, Label!$E:$E,0)-1, Main!$G$14+1) -> Foreign Broker - Unrealised FOREX Gains/(Loss) | I89: =-(SUMIF(InTB!$M:$M,$E89,InTB!$K:$K)+SUMIF(InTB!$N:$N,$C89,InTB!$K:$K)+SUMIF(InTB!$N:$N,$B89,InTB!$K:$K)) -> 0 | J89: =IF(J$1=0,0,ROUND($T89*J$108,2))-(SUMIFS(InTB!$K:$K,InTB!$M:$M,$E89,InTB!$C:$C,BS!J$1)+SUMIFS(InTB!$K:$K,InTB!$N:$N,$C89,InTB!$C:$C,BS!J$1)+SUMIFS(InTB!$K:$K,InTB!$N:$N,$B89,InTB!$C:$C,BS!J$1)) -> 0 | K89: =IF(K$1=0,0,ROUND($T89*K$108,2))-(SUMIFS(InTB!$K:$K,InTB!$M:$M,$E89,InTB!$C:$C,BS!K$1)+SUMIFS(InTB!$K:$K,InTB!$N:$N,$C89,InTB!$C:$C,BS!K$1)+SUMIFS(InTB!$K:$K,InTB!$N:$N,$B89,InTB!$C:$C,BS!K$1)) -> 0 | L89: =IF(L$1=0,0,ROUND($T89*L$108,2))-(SUMIFS(InTB!$K:$K,InTB!$M:$M,$E89,InTB!$C:$C,BS!L$1)+SUMIFS(InTB!$K:$K,InTB!$N:$N,$C89,InTB!$C:$C,BS!L$1)+SUMIFS(InTB!$K:$K,InTB!$N:$N,$B89,InTB!$C:$C,BS!L$1)) -> 0 | M89: =IF(M$1=0,0,ROUND($T89*M$108,2))-(SUMIFS(InTB!$K:$K,InTB!$M:$M,$E89,InTB!$C:$C,BS!M$1)+SUMIFS(InTB!$K:$K,InTB!$N:$N,$C89,InTB!$C:$C,BS!M$1)+SUMIFS(InTB!$K:$K,InTB!$N:$N,$B89,InTB!$C:$C,BS!M$1)) -> 0 | N89: =IF(N$1=0,0,ROUND($T89*N$108,2))-(SUMIFS(InTB!$K:$K,InTB!$M:$M,$E89,InTB!$C:$C,BS!N$1)+SUMIFS(InTB!$K:$K,InTB!$N:$N,$C89,InTB!$C:$C,BS!N$1)+SUMIFS(InTB!$K:$K,InTB!$N:$N,$B89,InTB!$C:$C,BS!N$1)) -> 0 | O89: =IF(O$1=0,0,ROUND($T89*O$108,2))-(SUMIFS(InTB!$K:$K,InTB!$M:$M,$E89,InTB!$C:$C,BS!O$1)+SUMIFS(InTB!$K:$K,InTB!$N:$N,$C89,InTB!$C:$C,BS!O$1)+SUMIFS(InTB!$K:$K,InTB!$N:$N,$B89,InTB!$C:$C,BS!O$1)) -> 0 | P89: =IF(P$1=0,0,ROUND($T89*P$108,2))-(SUMIFS(InTB!$K:$K,InTB!$M:$M,$E89,InTB!$C:$C,BS!P$1)+SUMIFS(InTB!$K:$K,InTB!$N:$N,$C89,InTB!$C:$C,BS!P$1)+SUMIFS(InTB!$K:$K,InTB!$N:$N,$B89,InTB!$C:$C,BS!P$1)) -> 0 | Q89: =IF(Q$1=0,0,ROUND($T89*Q$108,2))-(SUMIFS(InTB!$K:$K,InTB!$M:$M,$E89,InTB!$C:$C,BS!Q$1)+SUMIFS(InTB!$K:$K,InTB!$N:$N,$C89,InTB!$C:$C,BS!Q$1)+SUMIFS(InTB!$K:$K,InTB!$N:$N,$B89,InTB!$C:$C,BS!Q$1)) -> 0 | R89: =IF(R$1=0,0,ROUND($T89*R$108,2))-(SUMIFS(InTB!$K:$K,InTB!$M:$M,$E89,InTB!$C:$C,BS!R$1)+SUMIFS(InTB!$K:$K,InTB!$N:$N,$C89,InTB!$C:$C,BS!R$1)+SUMIFS(InTB!$K:$K,InTB!$N:$N,$B89,InTB!$C:$C,BS!R$1)) -> 0 | S89: =IF(S$1=0,0,ROUND($T89*S$108,2))-(SUMIFS(InTB!$K:$K,InTB!$M:$M,$E89,InTB!$C:$C,BS!S$1)+SUMIFS(InTB!$K:$K,InTB!$N:$N,$C89,InTB!$C:$C,BS!S$1)+SUMIFS(InTB!$K:$K,InTB!$N:$N,$B89,InTB!$C:$C,BS!S$1)) -> 0 | T89: =-(SUMIF(InTBBase!$M:$M,$E89,InTBBase!$K:$K)+SUMIF(InTBBase!$N:$N,$C89,InTBBase!$K:$K)+SUMIF(InTBBase!$N:$N,$B89,InTBBase!$K:$K)) -> 0 | U89: 0
D90: AMTTOTHINV | E90: BLAOIV | F90: =OFFSET( Label!$E$1,MATCH(BS!D90, Label!$E:$E,0)-1, Main!$G$14+1) -> Amount due to Other Investmnet | I90: =-SUMIF(InTB!$M:$M,$E90,InTB!$K:$K) -> 0 | J90: =IF(J$1=0,0,ROUND($T90*J$108,2))+SUMIFS(InTB!$K:$K,InTB!$M:$M,$E90,InTB!$C:$C,BS!J$1) -> 0 | K90: =IF(K$1=0,0,ROUND($T90*K$108,2))+SUMIFS(InTB!$K:$K,InTB!$M:$M,$E90,InTB!$C:$C,BS!K$1) -> 0 | L90: =IF(L$1=0,0,ROUND($T90*L$108,2))+SUMIFS(InTB!$K:$K,InTB!$M:$M,$E90,InTB!$C:$C,BS!L$1) -> 0 | M90: =IF(M$1=0,0,ROUND($T90*M$108,2))+SUMIFS(InTB!$K:$K,InTB!$M:$M,$E90,InTB!$C:$C,BS!M$1) -> 0 | N90: =IF(N$1=0,0,ROUND($T90*N$108,2))+SUMIFS(InTB!$K:$K,InTB!$M:$M,$E90,InTB!$C:$C,BS!N$1) -> 0 | O90: =IF(O$1=0,0,ROUND($T90*O$108,2))+SUMIFS(InTB!$K:$K,InTB!$M:$M,$E90,InTB!$C:$C,BS!O$1) -> 0 | P90: =IF(P$1=0,0,ROUND($T90*P$108,2))+SUMIFS(InTB!$K:$K,InTB!$M:$M,$E90,InTB!$C:$C,BS!P$1) -> 0 | Q90: =IF(Q$1=0,0,ROUND($T90*Q$108,2))+SUMIFS(InTB!$K:$K,InTB!$M:$M,$E90,InTB!$C:$C,BS!Q$1) -> 0 | R90: =IF(R$1=0,0,ROUND($T90*R$108,2))+SUMIFS(InTB!$K:$K,InTB!$M:$M,$E90,InTB!$C:$C,BS!R$1) -> 0 | S90: =IF(S$1=0,0,ROUND($T90*S$108,2))+SUMIFS(InTB!$K:$K,InTB!$M:$M,$E90,InTB!$C:$C,BS!S$1) -> 0 | T90: =-SUMIF(InTBBase!$M:$M,$E90,InTBBase!$K:$K) -> 0 | U90: 0
D91: TAXP | E91: BLTAXP | F91: =OFFSET( Label!$E$1,MATCH(BS!D91, Label!$E:$E,0)-1, Main!$G$14+1) -> Tax payable | I91: =-SUMIF(InTB!$M:$M,$E91,InTB!$K:$K) -> 0 | J91: =IF(J$1=0,0,ROUND($T91*J$108,2))+SUMIFS(InTB!$K:$K,InTB!$M:$M,$E91,InTB!$C:$C,BS!J$1) -> 0 | K91: =IF(K$1=0,0,ROUND($T91*K$108,2))+SUMIFS(InTB!$K:$K,InTB!$M:$M,$E91,InTB!$C:$C,BS!K$1) -> 0 | L91: =IF(L$1=0,0,ROUND($T91*L$108,2))+SUMIFS(InTB!$K:$K,InTB!$M:$M,$E91,InTB!$C:$C,BS!L$1) -> 0 | M91: =IF(M$1=0,0,ROUND($T91*M$108,2))+SUMIFS(InTB!$K:$K,InTB!$M:$M,$E91,InTB!$C:$C,BS!M$1) -> 0 | N91: =IF(N$1=0,0,ROUND($T91*N$108,2))+SUMIFS(InTB!$K:$K,InTB!$M:$M,$E91,InTB!$C:$C,BS!N$1) -> 0 | O91: =IF(O$1=0,0,ROUND($T91*O$108,2))+SUMIFS(InTB!$K:$K,InTB!$M:$M,$E91,InTB!$C:$C,BS!O$1) -> 0 | P91: =IF(P$1=0,0,ROUND($T91*P$108,2))+SUMIFS(InTB!$K:$K,InTB!$M:$M,$E91,InTB!$C:$C,BS!P$1) -> 0 | Q91: =IF(Q$1=0,0,ROUND($T91*Q$108,2))+SUMIFS(InTB!$K:$K,InTB!$M:$M,$E91,InTB!$C:$C,BS!Q$1) -> 0 | R91: =IF(R$1=0,0,ROUND($T91*R$108,2))+SUMIFS(InTB!$K:$K,InTB!$M:$M,$E91,InTB!$C:$C,BS!R$1) -> 0 | S91: =IF(S$1=0,0,ROUND($T91*S$108,2))+SUMIFS(InTB!$K:$K,InTB!$M:$M,$E91,InTB!$C:$C,BS!S$1) -> 0 | T91: =-SUMIF(InTBBase!$M:$M,$E91,InTBBase!$K:$K) -> 0 | U91: 0
D92: TAXFP | E92: BLTXFP | F92: =OFFSET( Label!$E$1,MATCH(BS!D92, Label!$E:$E,0)-1, Main!$G$14+1) -> Tax fee payable | I92: =-SUMIF(InTB!$M:$M,$E92,InTB!$K:$K) -> 2375.69 | J92: =IF(J$1=0,0,ROUND($T92*J$108,2))-SUMIFS(InTB!$K:$K,InTB!$M:$M,$E92,InTB!$C:$C,BS!J$1) -> 2345.32 | K92: =IF(K$1=0,0,ROUND($T92*K$108,2))-SUMIFS(InTB!$K:$K,InTB!$M:$M,$E92,InTB!$C:$C,BS!K$1) -> 30.37 | L92: =IF(L$1=0,0,ROUND($T92*L$108,2))-SUMIFS(InTB!$K:$K,InTB!$M:$M,$E92,InTB!$C:$C,BS!L$1) -> 0 | M92: =IF(M$1=0,0,ROUND($T92*M$108,2))-SUMIFS(InTB!$K:$K,InTB!$M:$M,$E92,InTB!$C:$C,BS!M$1) -> 0 | N92: =IF(N$1=0,0,ROUND($T92*N$108,2))-SUMIFS(InTB!$K:$K,InTB!$M:$M,$E92,InTB!$C:$C,BS!N$1) -> 0 | O92: =IF(O$1=0,0,ROUND($T92*O$108,2))-SUMIFS(InTB!$K:$K,InTB!$M:$M,$E92,InTB!$C:$C,BS!O$1) -> 0 | P92: =IF(P$1=0,0,ROUND($T92*P$108,2))-SUMIFS(InTB!$K:$K,InTB!$M:$M,$E92,InTB!$C:$C,BS!P$1) -> 0 | Q92: =IF(Q$1=0,0,ROUND($T92*Q$108,2))-SUMIFS(InTB!$K:$K,InTB!$M:$M,$E92,InTB!$C:$C,BS!Q$1) -> 0 | R92: =IF(R$1=0,0,ROUND($T92*R$108,2))-SUMIFS(InTB!$K:$K,InTB!$M:$M,$E92,InTB!$C:$C,BS!R$1) -> 0 | S92: =IF(S$1=0,0,ROUND($T92*S$108,2))-SUMIFS(InTB!$K:$K,InTB!$M:$M,$E92,InTB!$C:$C,BS!S$1) -> 0 | T92: =-SUMIF(InTBBase!$M:$M,$E92,InTBBase!$K:$K) -> 2375.69 | U92: 0
D93: DIVP | E93: BLDIVP | F93: =OFFSET( Label!$E$1,MATCH(BS!D93, Label!$E:$E,0)-1, Main!$G$14+1) -> Dividend payable | I93: =-SUMIF(InTB!$M:$M,$E93,InTB!$K:$K) -> 0 | J93: =IF(J$1=0,0,ROUND($T93*J$108,2))-SUMIFS(InTB!$K:$K,InTB!$M:$M,$E93,InTB!$C:$C,BS!J$1) -> 0 | K93: =IF(K$1=0,0,ROUND($T93*K$108,2))-SUMIFS(InTB!$K:$K,InTB!$M:$M,$E93,InTB!$C:$C,BS!K$1) -> 0 | L93: =IF(L$1=0,0,ROUND($T93*L$108,2))-SUMIFS(InTB!$K:$K,InTB!$M:$M,$E93,InTB!$C:$C,BS!L$1) -> 0 | M93: =IF(M$1=0,0,ROUND($T93*M$108,2))-SUMIFS(InTB!$K:$K,InTB!$M:$M,$E93,InTB!$C:$C,BS!M$1) -> 0 | N93: =IF(N$1=0,0,ROUND($T93*N$108,2))-SUMIFS(InTB!$K:$K,InTB!$M:$M,$E93,InTB!$C:$C,BS!N$1) -> 0 | O93: =IF(O$1=0,0,ROUND($T93*O$108,2))-SUMIFS(InTB!$K:$K,InTB!$M:$M,$E93,InTB!$C:$C,BS!O$1) -> 0 | P93: =IF(P$1=0,0,ROUND($T93*P$108,2))-SUMIFS(InTB!$K:$K,InTB!$M:$M,$E93,InTB!$C:$C,BS!P$1) -> 0 | Q93: =IF(Q$1=0,0,ROUND($T93*Q$108,2))-SUMIFS(InTB!$K:$K,InTB!$M:$M,$E93,InTB!$C:$C,BS!Q$1) -> 0 | R93: =IF(R$1=0,0,ROUND($T93*R$108,2))-SUMIFS(InTB!$K:$K,InTB!$M:$M,$E93,InTB!$C:$C,BS!R$1) -> 0 | S93: =IF(S$1=0,0,ROUND($T93*S$108,2))-SUMIFS(InTB!$K:$K,InTB!$M:$M,$E93,InTB!$C:$C,BS!S$1) -> 0 | T93: =-SUMIF(InTBBase!$M:$M,$E93,InTBBase!$K:$K) -> 0 | U93: 0
D94: PROVAUDIT | E94: BLAUDP | F94: =OFFSET( Label!$E$1,MATCH(BS!D94, Label!$E:$E,0)-1, Main!$G$14+1) -> Provision for audit fee | I94: =-SUMIF(InTB!$M:$M,$E94,InTB!$K:$K) -> 4391.4 | J94: =IF(J$1=0,0,ROUND($T94*J$108,2))-SUMIFS(InTB!$K:$K,InTB!$M:$M,$E94,InTB!$C:$C,BS!J$1) -> 4335.26 | K94: =IF(K$1=0,0,ROUND($T94*K$108,2))-SUMIFS(InTB!$K:$K,InTB!$M:$M,$E94,InTB!$C:$C,BS!K$1) -> 56.14 | L94: =IF(L$1=0,0,ROUND($T94*L$108,2))-SUMIFS(InTB!$K:$K,InTB!$M:$M,$E94,InTB!$C:$C,BS!L$1) -> 0 | M94: =IF(M$1=0,0,ROUND($T94*M$108,2))-SUMIFS(InTB!$K:$K,InTB!$M:$M,$E94,InTB!$C:$C,BS!M$1) -> 0 | N94: =IF(N$1=0,0,ROUND($T94*N$108,2))-SUMIFS(InTB!$K:$K,InTB!$M:$M,$E94,InTB!$C:$C,BS!N$1) -> 0 | O94: =IF(O$1=0,0,ROUND($T94*O$108,2))-SUMIFS(InTB!$K:$K,InTB!$M:$M,$E94,InTB!$C:$C,BS!O$1) -> 0 | P94: =IF(P$1=0,0,ROUND($T94*P$108,2))-SUMIFS(InTB!$K:$K,InTB!$M:$M,$E94,InTB!$C:$C,BS!P$1) -> 0 | Q94: =IF(Q$1=0,0,ROUND($T94*Q$108,2))-SUMIFS(InTB!$K:$K,InTB!$M:$M,$E94,InTB!$C:$C,BS!Q$1) -> 0 | R94: =IF(R$1=0,0,ROUND($T94*R$108,2))-SUMIFS(InTB!$K:$K,InTB!$M:$M,$E94,InTB!$C:$C,BS!R$1) -> 0 | S94: =IF(S$1=0,0,ROUND($T94*S$108,2))-SUMIFS(InTB!$K:$K,InTB!$M:$M,$E94,InTB!$C:$C,BS!S$1) -> 0 | T94: =-SUMIF(InTBBase!$M:$M,$E94,InTBBase!$K:$K) -> 4391.4 | U94: 0
D95: AMT | E95: BLTRBK | F95: =OFFSET( Label!$E$1,MATCH(BS!D95, Label!$E:$E,0)-1, Main!$G$14+1) -> Amount Due to Trustee (Initial Bank Amount) | I95: =-SUMIF(InTB!$M:$M,$E95,InTB!$K:$K) -> 0 | J95: =IF(J$1=0,0,ROUND($T95*J$108,2))-SUMIFS(InTB!$K:$K,InTB!$M:$M,$E95,InTB!$C:$C,BS!J$1) -> 0 | K95: =IF(K$1=0,0,ROUND($T95*K$108,2))-SUMIFS(InTB!$K:$K,InTB!$M:$M,$E95,InTB!$C:$C,BS!K$1) -> 0 | L95: =IF(L$1=0,0,ROUND($T95*L$108,2))-SUMIFS(InTB!$K:$K,InTB!$M:$M,$E95,InTB!$C:$C,BS!L$1) -> 0 | M95: =IF(M$1=0,0,ROUND($T95*M$108,2))-SUMIFS(InTB!$K:$K,InTB!$M:$M,$E95,InTB!$C:$C,BS!M$1) -> 0 | N95: =IF(N$1=0,0,ROUND($T95*N$108,2))-SUMIFS(InTB!$K:$K,InTB!$M:$M,$E95,InTB!$C:$C,BS!N$1) -> 0 | O95: =IF(O$1=0,0,ROUND($T95*O$108,2))-SUMIFS(InTB!$K:$K,InTB!$M:$M,$E95,InTB!$C:$C,BS!O$1) -> 0 | P95: =IF(P$1=0,0,ROUND($T95*P$108,2))-SUMIFS(InTB!$K:$K,InTB!$M:$M,$E95,InTB!$C:$C,BS!P$1) -> 0 | Q95: =IF(Q$1=0,0,ROUND($T95*Q$108,2))-SUMIFS(InTB!$K:$K,InTB!$M:$M,$E95,InTB!$C:$C,BS!Q$1) -> 0 | R95: =IF(R$1=0,0,ROUND($T95*R$108,2))-SUMIFS(InTB!$K:$K,InTB!$M:$M,$E95,InTB!$C:$C,BS!R$1) -> 0 | S95: =IF(S$1=0,0,ROUND($T95*S$108,2))-SUMIFS(InTB!$K:$K,InTB!$M:$M,$E95,InTB!$C:$C,BS!S$1) -> 0 | T95: =-SUMIF(InTBBase!$M:$M,$E95,InTBBase!$K:$K) -> 0 | U95: 0
D96: SUNACC | E96: BLSUNA | F96: =OFFSET( Label!$E$1,MATCH(BS!D96, Label!$E:$E,0)-1, Main!$G$14+1) -> Sundry Accruals | I96: =-SUMIF(InTB!$M:$M,$E96,InTB!$K:$K) -> 17296.79 | J96: =IF(J$1=0,0,ROUND($T96*J$108,2))-SUMIFS(InTB!$K:$K,InTB!$M:$M,$E96,InTB!$C:$C,BS!J$1) -> 17075.68 | K96: =IF(K$1=0,0,ROUND($T96*K$108,2))-SUMIFS(InTB!$K:$K,InTB!$M:$M,$E96,InTB!$C:$C,BS!K$1) -> 221.11 | L96: =IF(L$1=0,0,ROUND($T96*L$108,2))-SUMIFS(InTB!$K:$K,InTB!$M:$M,$E96,InTB!$C:$C,BS!L$1) -> 0 | M96: =IF(M$1=0,0,ROUND($T96*M$108,2))-SUMIFS(InTB!$K:$K,InTB!$M:$M,$E96,InTB!$C:$C,BS!M$1) -> 0 | N96: =IF(N$1=0,0,ROUND($T96*N$108,2))-SUMIFS(InTB!$K:$K,InTB!$M:$M,$E96,InTB!$C:$C,BS!N$1) -> 0 | O96: =IF(O$1=0,0,ROUND($T96*O$108,2))-SUMIFS(InTB!$K:$K,InTB!$M:$M,$E96,InTB!$C:$C,BS!O$1) -> 0 | P96: =IF(P$1=0,0,ROUND($T96*P$108,2))-SUMIFS(InTB!$K:$K,InTB!$M:$M,$E96,InTB!$C:$C,BS!P$1) -> 0 | Q96: =IF(Q$1=0,0,ROUND($T96*Q$108,2))-SUMIFS(InTB!$K:$K,InTB!$M:$M,$E96,InTB!$C:$C,BS!Q$1) -> 0 | R96: =IF(R$1=0,0,ROUND($T96*R$108,2))-SUMIFS(InTB!$K:$K,InTB!$M:$M,$E96,InTB!$C:$C,BS!R$1) -> 0 | S96: =IF(S$1=0,0,ROUND($T96*S$108,2))-SUMIFS(InTB!$K:$K,InTB!$M:$M,$E96,InTB!$C:$C,BS!S$1) -> 0 | T96: =-SUMIF(InTBBase!$M:$M,$E96,InTBBase!$K:$K) -> 17296.79 | U96: 0
D97: CUSTFFTP | E97: BLCUST | F97: =OFFSET( Label!$E$1,MATCH(BS!D97, Label!$E:$E,0)-1, Main!$G$14+1) -> Custodian Fees per Foreign Transaction Payable | I97: =-SUMIF(InTB!$M:$M,$E97,InTB!$K:$K) -> 0 | J97: =IF(J$1=0,0,ROUND($T97*J$108,2))-SUMIFS(InTB!$K:$K,InTB!$M:$M,$E97,InTB!$C:$C,BS!J$1) -> 0 | K97: =IF(K$1=0,0,ROUND($T97*K$108,2))-SUMIFS(InTB!$K:$K,InTB!$M:$M,$E97,InTB!$C:$C,BS!K$1) -> 0 | L97: =IF(L$1=0,0,ROUND($T97*L$108,2))-SUMIFS(InTB!$K:$K,InTB!$M:$M,$E97,InTB!$C:$C,BS!L$1) -> 0 | M97: =IF(M$1=0,0,ROUND($T97*M$108,2))-SUMIFS(InTB!$K:$K,InTB!$M:$M,$E97,InTB!$C:$C,BS!M$1) -> 0 | N97: =IF(N$1=0,0,ROUND($T97*N$108,2))-SUMIFS(InTB!$K:$K,InTB!$M:$M,$E97,InTB!$C:$C,BS!N$1) -> 0 | O97: =IF(O$1=0,0,ROUND($T97*O$108,2))-SUMIFS(InTB!$K:$K,InTB!$M:$M,$E97,InTB!$C:$C,BS!O$1) -> 0 | P97: =IF(P$1=0,0,ROUND($T97*P$108,2))-SUMIFS(InTB!$K:$K,InTB!$M:$M,$E97,InTB!$C:$C,BS!P$1) -> 0 | Q97: =IF(Q$1=0,0,ROUND($T97*Q$108,2))-SUMIFS(InTB!$K:$K,InTB!$M:$M,$E97,InTB!$C:$C,BS!Q$1) -> 0 | R97: =IF(R$1=0,0,ROUND($T97*R$108,2))-SUMIFS(InTB!$K:$K,InTB!$M:$M,$E97,InTB!$C:$C,BS!R$1) -> 0 | S97: =IF(S$1=0,0,ROUND($T97*S$108,2))-SUMIFS(InTB!$K:$K,InTB!$M:$M,$E97,InTB!$C:$C,BS!S$1) -> 0 | T97: =-SUMIF(InTBBase!$M:$M,$E97,InTBBase!$K:$K) -> 0 | U97: 0
D98: FBRKFP | E98: BLFBRF | F98: =OFFSET( Label!$E$1,MATCH(BS!D98, Label!$E:$E,0)-1, Main!$G$14+1) -> Foreign Brokerage Fee Payable | I98: =-SUMIF(InTB!$M:$M,$E98,InTB!$K:$K) -> 0 | J98: =IF(J$1=0,0,ROUND($T98*J$108,2))-SUMIFS(InTB!$K:$K,InTB!$M:$M,$E98,InTB!$C:$C,BS!J$1) -> 0 | K98: =IF(K$1=0,0,ROUND($T98*K$108,2))-SUMIFS(InTB!$K:$K,InTB!$M:$M,$E98,InTB!$C:$C,BS!K$1) -> 0 | L98: =IF(L$1=0,0,ROUND($T98*L$108,2))-SUMIFS(InTB!$K:$K,InTB!$M:$M,$E98,InTB!$C:$C,BS!L$1) -> 0 | M98: =IF(M$1=0,0,ROUND($T98*M$108,2))-SUMIFS(InTB!$K:$K,InTB!$M:$M,$E98,InTB!$C:$C,BS!M$1) -> 0 | N98: =IF(N$1=0,0,ROUND($T98*N$108,2))-SUMIFS(InTB!$K:$K,InTB!$M:$M,$E98,InTB!$C:$C,BS!N$1) -> 0 | O98: =IF(O$1=0,0,ROUND($T98*O$108,2))-SUMIFS(InTB!$K:$K,InTB!$M:$M,$E98,InTB!$C:$C,BS!O$1) -> 0 | P98: =IF(P$1=0,0,ROUND($T98*P$108,2))-SUMIFS(InTB!$K:$K,InTB!$M:$M,$E98,InTB!$C:$C,BS!P$1) -> 0 | Q98: =IF(Q$1=0,0,ROUND($T98*Q$108,2))-SUMIFS(InTB!$K:$K,InTB!$M:$M,$E98,InTB!$C:$C,BS!Q$1) -> 0 | R98: =IF(R$1=0,0,ROUND($T98*R$108,2))-SUMIFS(InTB!$K:$K,InTB!$M:$M,$E98,InTB!$C:$C,BS!R$1) -> 0 | S98: =IF(S$1=0,0,ROUND($T98*S$108,2))-SUMIFS(InTB!$K:$K,InTB!$M:$M,$E98,InTB!$C:$C,BS!S$1) -> 0 | T98: =-SUMIF(InTBBase!$M:$M,$E98,InTBBase!$K:$K) -> 0 | U98: 0
D99: TOTLEXNAV | F99: =OFFSET( Label!$E$1,MATCH(BS!D99, Label!$E:$E,0)-1, Main!$G$14+1) -> Total Liabilities Excluding Net Asset Value ("NAV") Attributable to Unit Holders | I99: =I84+I85+I86+I90+I91+I92+I93+I94+I95+I96+I97+I98 -> 37529 | J99: 37049.26 | K99: 479.74 | L99: 0 | M99: 0 | N99: 0 | O99: =O84+O85+O86+O90+O91+O92+O93+O94+O95+O96+O97+O98 -> 0 | P99: 0 | Q99: 0 | R99: =R84+R85+R86+R90+R91+R92+R93+R94+R95+R96+R97+R98 -> 0 | S99: 0 | T99: 37529 | U99: 0
U100: 0
D101: NAVUNIT | F101: =OFFSET( Label!$E$1,MATCH(BS!D101, Label!$E:$E,0)-1, Main!$G$14+1) -> NAV Attributable to Unit Holders | I101: =I80-I99 -> 3632394.7 | J101: 3585961.27 | K101: =K80-K99 -> 46433.43 | L101: 0 | M101: 0 | N101: 0 | O101: =O80-O99 -> 0 | P101: 0 | Q101: 0 | R101: =R80-R99 -> 0 | S101: 0 | T101: =T80-T99 -> 3632394.7 | U101: =ROUND(I101-SUM(J101:S101),1) -> 0
U102: 0
D103: TOTLINAV | F103: =OFFSET( Label!$E$1,MATCH(BS!D103, Label!$E:$E,0)-1, Main!$G$14+1) -> Total Liabilities Including NAV | I103: =I99+I101 -> 3669923.7 | J103: =J99+J101 -> 3623010.53 | K103: 46913.17 | L103: 0 | M103: 0 | N103: 0 | O103: =O99+O101 -> 0 | P103: 0 | Q103: 0 | R103: =R99+R101 -> 0 | S103: 0 | T103: =T99+T101 -> 3669923.7 | U103: 0
U104: 0
U105: 0
C106: TotalUnits | D106: UCIR | E106: UNITCU | F106: =OFFSET( Label!$E$1,MATCH(BS!D106, Label!$E:$E,0)-1, Main!$G$14+1) -> Units in Circulation | J106: =IF(OR(J$1=0,ISNA(VLOOKUP(J$1,InUP!$A:$AB,MATCH($C106,InUP!$2:$2,0),0))),0,VLOOKUP(J$1,InUP!$A:$AB,MATCH($C106,InUP!$2:$2,0),0)) -> 67240720.66 | K106: =IF(OR(K$1=0,ISNA(VLOOKUP(K$1,InUP!$A:$AB,MATCH($C106,InUP!$2:$2,0),0))),0,VLOOKUP(K$1,InUP!$A:$AB,MATCH($C106,InUP!$2:$2,0),0)) -> 221034.24 | L106: =IF(OR(L$1=0,ISNA(VLOOKUP(L$1,InUP!$A:$AB,MATCH($C106,InUP!$2:$2,0),0))),0,VLOOKUP(L$1,InUP!$A:$AB,MATCH($C106,InUP!$2:$2,0),0)) -> 0 | M106: =IF(OR(M$1=0,ISNA(VLOOKUP(M$1,InUP!$A:$AB,MATCH($C106,InUP!$2:$2,0),0))),0,VLOOKUP(M$1,InUP!$A:$AB,MATCH($C106,InUP!$2:$2,0),0)) -> 0 | N106: =IF(OR(N$1=0,ISNA(VLOOKUP(N$1,InUP!$A:$AB,MATCH($C106,InUP!$2:$2,0),0))),0,VLOOKUP(N$1,InUP!$A:$AB,MATCH($C106,InUP!$2:$2,0),0)) -> 0 | O106: =IF(OR(O$1=0,ISNA(VLOOKUP(O$1,InUP!$A:$AB,MATCH($C106,InUP!$2:$2,0),0))),0,VLOOKUP(O$1,InUP!$A:$AB,MATCH($C106,InUP!$2:$2,0),0)) -> 0 | P106: =IF(OR(P$1=0,ISNA(VLOOKUP(P$1,InUP!$A:$AB,MATCH($C106,InUP!$2:$2,0),0))),0,VLOOKUP(P$1,InUP!$A:$AB,MATCH($C106,InUP!$2:$2,0),0)) -> 0 | Q106: =IF(OR(Q$1=0,ISNA(VLOOKUP(Q$1,InUP!$A:$AB,MATCH($C106,InUP!$2:$2,0),0))),0,VLOOKUP(Q$1,InUP!$A:$AB,MATCH($C106,InUP!$2:$2,0),0)) -> 0 | R106: =IF(OR(R$1=0,ISNA(VLOOKUP(R$1,InUP!$A:$AB,MATCH($C106,InUP!$2:$2,0),0))),0,VLOOKUP(R$1,InUP!$A:$AB,MATCH($C106,InUP!$2:$2,0),0)) -> 0 | S106: =IF(OR(S$1=0,ISNA(VLOOKUP(S$1,InUP!$A:$AB,MATCH($C106,InUP!$2:$2,0),0))),0,VLOOKUP(S$1,InUP!$A:$AB,MATCH($C106,InUP!$2:$2,0),0)) -> 0
C108: MCRCalcHAdj | D108: MCR | F108: =OFFSET( Label!$E$1,MATCH(BS!D108, Label!$E:$E,0)-1, Main!$G$14+1) -> Multi Class Ratio (MCR) % | J108: =IF(OR(J$1=0,ISNA(VLOOKUP(J$1,InUP!$A:$AB,MATCH($C108,InUP!$2:$2,0),0))),0,VLOOKUP(J$1,InUP!$A:$AB,MATCH($C108,InUP!$2:$2,0),0)) -> 0.9872168542 | K108: =IF(OR(K$1=0,ISNA(VLOOKUP(K$1,InUP!$A:$AB,MATCH($C108,InUP!$2:$2,0),0))),0,VLOOKUP(K$1,InUP!$A:$AB,MATCH($C108,InUP!$2:$2,0),0)) -> 0.01278314576 | L108: =IF(OR(L$1=0,ISNA(VLOOKUP(L$1,InUP!$A:$AB,MATCH($C108,InUP!$2:$2,0),0))),0,VLOOKUP(L$1,InUP!$A:$AB,MATCH($C108,InUP!$2:$2,0),0)) -> 0 | M108: =IF(OR(M$1=0,ISNA(VLOOKUP(M$1,InUP!$A:$AB,MATCH($C108,InUP!$2:$2,0),0))),0,VLOOKUP(M$1,InUP!$A:$AB,MATCH($C108,InUP!$2:$2,0),0)) -> 0 | N108: =IF(OR(N$1=0,ISNA(VLOOKUP(N$1,InUP!$A:$AB,MATCH($C108,InUP!$2:$2,0),0))),0,VLOOKUP(N$1,InUP!$A:$AB,MATCH($C108,InUP!$2:$2,0),0)) -> 0 | O108: =IF(OR(O$1=0,ISNA(VLOOKUP(O$1,InUP!$A:$AB,MATCH($C108,InUP!$2:$2,0),0))),0,VLOOKUP(O$1,InUP!$A:$AB,MATCH($C108,InUP!$2:$2,0),0)) -> 0 | P108: =IF(OR(P$1=0,ISNA(VLOOKUP(P$1,InUP!$A:$AB,MATCH($C108,InUP!$2:$2,0),0))),0,VLOOKUP(P$1,InUP!$A:$AB,MATCH($C108,InUP!$2:$2,0),0)) -> 0 | Q108: =IF(OR(Q$1=0,ISNA(VLOOKUP(Q$1,InUP!$A:$AB,MATCH($C108,InUP!$2:$2,0),0))),0,VLOOKUP(Q$1,InUP!$A:$AB,MATCH($C108,InUP!$2:$2,0),0)) -> 0 | R108: =IF(OR(R$1=0,ISNA(VLOOKUP(R$1,InUP!$A:$AB,MATCH($C108,InUP!$2:$2,0),0))),0,VLOOKUP(R$1,InUP!$A:$AB,MATCH($C108,InUP!$2:$2,0),0)) -> 0 | S108: =IF(OR(S$1=0,ISNA(VLOOKUP(S$1,InUP!$A:$AB,MATCH($C108,InUP!$2:$2,0),0))),0,VLOOKUP(S$1,InUP!$A:$AB,MATCH($C108,InUP!$2:$2,0),0)) -> 0
C109: MCRRpt | D109: MCR | F109: =OFFSET( Label!$E$1,MATCH(BS!D109, Label!$E:$E,0)-1, Main!$G$14+1) -> Multi Class Ratio (MCR) % | J109: =IF(OR(J$1=0,ISNA(VLOOKUP(J$1,InUP!$A:$AB,MATCH($C109,InUP!$2:$2,0),0))),0,VLOOKUP(J$1,InUP!$A:$AB,MATCH($C109,InUP!$2:$2,0),0)) -> 0.9872168542 | K109: =IF(OR(K$1=0,ISNA(VLOOKUP(K$1,InUP!$A:$AB,MATCH($C109,InUP!$2:$2,0),0))),0,VLOOKUP(K$1,InUP!$A:$AB,MATCH($C109,InUP!$2:$2,0),0)) -> 0.01278314576 | L109: =IF(OR(L$1=0,ISNA(VLOOKUP(L$1,InUP!$A:$AB,MATCH($C109,InUP!$2:$2,0),0))),0,VLOOKUP(L$1,InUP!$A:$AB,MATCH($C109,InUP!$2:$2,0),0)) -> 0 | M109: =IF(OR(M$1=0,ISNA(VLOOKUP(M$1,InUP!$A:$AB,MATCH($C109,InUP!$2:$2,0),0))),0,VLOOKUP(M$1,InUP!$A:$AB,MATCH($C109,InUP!$2:$2,0),0)) -> 0 | N109: =IF(OR(N$1=0,ISNA(VLOOKUP(N$1,InUP!$A:$AB,MATCH($C109,InUP!$2:$2,0),0))),0,VLOOKUP(N$1,InUP!$A:$AB,MATCH($C109,InUP!$2:$2,0),0)) -> 0 | O109: =IF(OR(O$1=0,ISNA(VLOOKUP(O$1,InUP!$A:$AB,MATCH($C109,InUP!$2:$2,0),0))),0,VLOOKUP(O$1,InUP!$A:$AB,MATCH($C109,InUP!$2:$2,0),0)) -> 0 | P109: =IF(OR(P$1=0,ISNA(VLOOKUP(P$1,InUP!$A:$AB,MATCH($C109,InUP!$2:$2,0),0))),0,VLOOKUP(P$1,InUP!$A:$AB,MATCH($C109,InUP!$2:$2,0),0)) -> 0 | Q109: =IF(OR(Q$1=0,ISNA(VLOOKUP(Q$1,InUP!$A:$AB,MATCH($C109,InUP!$2:$2,0),0))),0,VLOOKUP(Q$1,InUP!$A:$AB,MATCH($C109,InUP!$2:$2,0),0)) -> 0 | R109: =IF(OR(R$1=0,ISNA(VLOOKUP(R$1,InUP!$A:$AB,MATCH($C109,InUP!$2:$2,0),0))),0,VLOOKUP(R$1,InUP!$A:$AB,MATCH($C109,InUP!$2:$2,0),0)) -> 0 | S109: =IF(OR(S$1=0,ISNA(VLOOKUP(S$1,InUP!$A:$AB,MATCH($C109,InUP!$2:$2,0),0))),0,VLOOKUP(S$1,InUP!$A:$AB,MATCH($C109,InUP!$2:$2,0),0)) -> 0
C110: ExchgRate | D110: EXCHGRATE | F110: =OFFSET( Label!$E$1,MATCH(BS!D110, Label!$E:$E,0)-1, Main!$G$14+1) -> Exchange Rate | J110: =IF(OR(J$1=0,ISNA(VLOOKUP(J$1,InUP!$A:$AB,MATCH($C110,InUP!$2:$2,0),0))),0,VLOOKUP(J$1,InUP!$A:$AB,MATCH($C110,InUP!$2:$2,0),0)) -> 4.153 | K110: =IF(OR(K$1=0,ISNA(VLOOKUP(K$1,InUP!$A:$AB,MATCH($C110,InUP!$2:$2,0),0))),0,VLOOKUP(K$1,InUP!$A:$AB,MATCH($C110,InUP!$2:$2,0),0)) -> 1 | L110: =IF(OR(L$1=0,ISNA(VLOOKUP(L$1,InUP!$A:$AB,MATCH($C110,InUP!$2:$2,0),0))),0,VLOOKUP(L$1,InUP!$A:$AB,MATCH($C110,InUP!$2:$2,0),0)) -> 0 | M110: =IF(OR(M$1=0,ISNA(VLOOKUP(M$1,InUP!$A:$AB,MATCH($C110,InUP!$2:$2,0),0))),0,VLOOKUP(M$1,InUP!$A:$AB,MATCH($C110,InUP!$2:$2,0),0)) -> 0 | N110: =IF(OR(N$1=0,ISNA(VLOOKUP(N$1,InUP!$A:$AB,MATCH($C110,InUP!$2:$2,0),0))),0,VLOOKUP(N$1,InUP!$A:$AB,MATCH($C110,InUP!$2:$2,0),0)) -> 0 | O110: =IF(OR(O$1=0,ISNA(VLOOKUP(O$1,InUP!$A:$AB,MATCH($C110,InUP!$2:$2,0),0))),0,VLOOKUP(O$1,InUP!$A:$AB,MATCH($C110,InUP!$2:$2,0),0)) -> 0 | P110: =IF(OR(P$1=0,ISNA(VLOOKUP(P$1,InUP!$A:$AB,MATCH($C110,InUP!$2:$2,0),0))),0,VLOOKUP(P$1,InUP!$A:$AB,MATCH($C110,InUP!$2:$2,0),0)) -> 0 | Q110: =IF(OR(Q$1=0,ISNA(VLOOKUP(Q$1,InUP!$A:$AB,MATCH($C110,InUP!$2:$2,0),0))),0,VLOOKUP(Q$1,InUP!$A:$AB,MATCH($C110,InUP!$2:$2,0),0)) -> 0 | R110: =IF(OR(R$1=0,ISNA(VLOOKUP(R$1,InUP!$A:$AB,MATCH($C110,InUP!$2:$2,0),0))),0,VLOOKUP(R$1,InUP!$A:$AB,MATCH($C110,InUP!$2:$2,0),0)) -> 0 | S110: =IF(OR(S$1=0,ISNA(VLOOKUP(S$1,InUP!$A:$AB,MATCH($C110,InUP!$2:$2,0),0))),0,VLOOKUP(S$1,InUP!$A:$AB,MATCH($C110,InUP!$2:$2,0),0)) -> 0
D112: NAV | F112: =OFFSET( Label!$E$1,MATCH(BS!D112, Label!$E:$E,0)-1, Main!$G$14+1) -> Net Asset Value Per Unit in Fund Currency | J112: =IF(J106=0,0,J101/J106) -> 0.05333020281 | K112: =IF(K106=0,0,K101/K106) -> 0.210073471 | L112: =IF(L106=0,0,L101/L106) -> 0 | M112: 0 | N112: 0 | O112: =IF(O106=0,0,O101/O106) -> 0 | P112: 0 | Q112: 0 | R112: =IF(R106=0,0,R101/R106) -> 0 | S112: 0
D113: NAVCLASS | F113: =OFFSET( Label!$E$1,MATCH(BS!D113, Label!$E:$E,0)-1, Main!$G$14+1) -> Net Asset Value Per Unit in Class Currency | J113: =J112*J110 -> 0.2214803323 | K113: 0.210073471 | L113: 0 | M113: 0 | N113: 0 | O113: 0 | P113: 0 | Q113: 0 | R113: 0 | S113: 0
D115: NOTE: | F115: =OFFSET( Label!$E$1,MATCH(BS!D115, Label!$E:$E,0)-1, Main!$G$14+1) -> Note:
D116: NAVAT | F116: =OFFSET( Label!$E$1,MATCH(BS!D116, Label!$E:$E,0)-1, Main!$G$14+1) -> NAV Attributable to Unit Holders
D117: CAP | E117: BCUCAP | F117: =OFFSET( Label!$E$1,MATCH(BS!D117, Label!$E:$E,0)-1, Main!$G$14+1) -> Unitholders' capital | I117: =-SUMIF(InTB!$M:$M,$E117,InTB!$K:$K) -> 4880199.18 | J117: =IF(J$1=0,0,ROUND($T117*J$108,2))-SUMIFS(InTB!$K:$K,InTB!$M:$M,$E117,InTB!$C:$C,BS!J$1) -> 4817814.88 | K117: =IF(K$1=0,0,ROUND($T117*K$108,2))-SUMIFS(InTB!$K:$K,InTB!$M:$M,$E117,InTB!$C:$C,BS!K$1) -> 62384.3 | L117: =IF(L$1=0,0,ROUND($T117*L$108,2))-SUMIFS(InTB!$K:$K,InTB!$M:$M,$E117,InTB!$C:$C,BS!L$1) -> 0 | M117: =IF(M$1=0,0,ROUND($T117*M$108,2))-SUMIFS(InTB!$K:$K,InTB!$M:$M,$E117,InTB!$C:$C,BS!M$1) -> 0 | N117: =IF(N$1=0,0,ROUND($T117*N$108,2))-SUMIFS(InTB!$K:$K,InTB!$M:$M,$E117,InTB!$C:$C,BS!N$1) -> 0 | O117: =IF(O$1=0,0,ROUND($T117*O$108,2))-SUMIFS(InTB!$K:$K,InTB!$M:$M,$E117,InTB!$C:$C,BS!O$1) -> 0 | P117: =IF(P$1=0,0,ROUND($T117*P$108,2))-SUMIFS(InTB!$K:$K,InTB!$M:$M,$E117,InTB!$C:$C,BS!P$1) -> 0 | Q117: =IF(Q$1=0,0,ROUND($T117*Q$108,2))-SUMIFS(InTB!$K:$K,InTB!$M:$M,$E117,InTB!$C:$C,BS!Q$1) -> 0 | R117: =IF(R$1=0,0,ROUND($T117*R$108,2))-SUMIFS(InTB!$K:$K,InTB!$M:$M,$E117,InTB!$C:$C,BS!R$1) -> 0 | S117: =IF(S$1=0,0,ROUND($T117*S$108,2))-SUMIFS(InTB!$K:$K,InTB!$M:$M,$E117,InTB!$C:$C,BS!S$1) -> 0 | T117: =-SUMIF(InTBBase!$M:$M,$E117,InTBBase!$K:$K) -> 4880199.18 | U117: =ROUND(I117-SUM(J117:S117),1) -> 0
C118: =-SUMIFS(InTB!$K:$K,InTB!$M:$M,"BSURPF") -> -236972.4 | D118: URR | E118: PUGINV | F118: =OFFSET( Label!$E$1,MATCH(BS!D118, Label!$E:$E,0)-1, Main!$G$14+1) -> Unrealised Reserves/ (deficit) on Investments | I118: =-SUMIF(InTB!$M:$M,$E118,InTB!$K:$K)+$C118+PL!I$97 -> -460624.79 | J118: =IF(J$1=0,0,ROUND($T118*J$108,2))-SUMIFS(InTB!$K:$K,InTB!$M:$M,$E118,InTB!$C:$C,BS!J$1)-SUMIFS(InTB!$K:$K,InTB!$M:$M,"BSURPF",InTB!$C:$C,J$1) -> -454736.56 | K118: =IF(K$1=0,0,ROUND($T118*K$108,2))-SUMIFS(InTB!$K:$K,InTB!$M:$M,$E118,InTB!$C:$C,BS!K$1)-SUMIFS(InTB!$K:$K,InTB!$M:$M,"BSURPF",InTB!$C:$C,K$1) -> -5888.23 | L118: =IF(L$1=0,0,ROUND($T118*L$108,2))-SUMIFS(InTB!$K:$K,InTB!$M:$M,$E118,InTB!$C:$C,BS!L$1)-SUMIFS(InTB!$K:$K,InTB!$M:$M,"BSURPF",InTB!$C:$C,L$1) -> 0 | M118: =IF(M$1=0,0,ROUND($T118*M$108,2))-SUMIFS(InTB!$K:$K,InTB!$M:$M,$E118,InTB!$C:$C,BS!M$1)-SUMIFS(InTB!$K:$K,InTB!$M:$M,"BSURPF",InTB!$C:$C,M$1) -> 0 | N118: =IF(N$1=0,0,ROUND($T118*N$108,2))-SUMIFS(InTB!$K:$K,InTB!$M:$M,$E118,InTB!$C:$C,BS!N$1)-SUMIFS(InTB!$K:$K,InTB!$M:$M,"BSURPF",InTB!$C:$C,N$1) -> 0 | O118: =IF(O$1=0,0,ROUND($T118*O$108,2))-SUMIFS(InTB!$K:$K,InTB!$M:$M,$E118,InTB!$C:$C,BS!O$1)-SUMIFS(InTB!$K:$K,InTB!$M:$M,"BSURPF",InTB!$C:$C,O$1) -> 0 | P118: =IF(P$1=0,0,ROUND($T118*P$108,2))-SUMIFS(InTB!$K:$K,InTB!$M:$M,$E118,InTB!$C:$C,BS!P$1)-SUMIFS(InTB!$K:$K,InTB!$M:$M,"BSURPF",InTB!$C:$C,P$1) -> 0 | Q118: =IF(Q$1=0,0,ROUND($T118*Q$108,2))-SUMIFS(InTB!$K:$K,InTB!$M:$M,$E118,InTB!$C:$C,BS!Q$1)-SUMIFS(InTB!$K:$K,InTB!$M:$M,"BSURPF",InTB!$C:$C,Q$1) -> 0 | R118: =IF(R$1=0,0,ROUND($T118*R$108,2))-SUMIFS(InTB!$K:$K,InTB!$M:$M,$E118,InTB!$C:$C,BS!R$1)-SUMIFS(InTB!$K:$K,InTB!$M:$M,"BSURPF",InTB!$C:$C,R$1) -> 0 | S118: =IF(S$1=0,0,ROUND($T118*S$108,2))-SUMIFS(InTB!$K:$K,InTB!$M:$M,$E118,InTB!$C:$C,BS!S$1)-SUMIFS(InTB!$K:$K,InTB!$M:$M,"BSURPF",InTB!$C:$C,S$1) -> 0 | T118: =-SUMIF(InTBBase!$M:$M,$E118,InTBBase!$K:$K)-SUMIFS(InTBBase!$K:$K,InTBBase!$M:$M,"BSURPF")+PL!$T$97 -> -460624.79 | U118: 0
D119: RETAIN | E119: BSRRPF | F119: =OFFSET( Label!$E$1,MATCH(BS!D119, Label!$E:$E,0)-1, Main!$G$14+1) -> Retain Earnings | I119: =-SUMIF(InTB!$M:$M,$E119,InTB!$K:$K) -> -934787.81 | J119: =IF(J$1=0,0,ROUND($T119*J$108,2))-SUMIFS(InTB!$K:$K,InTB!$M:$M,$E119,InTB!$C:$C,BS!J$1) -> -922838.28 | K119: =IF(K$1=0,0,ROUND($T119*K$108,2))-SUMIFS(InTB!$K:$K,InTB!$M:$M,$E119,InTB!$C:$C,BS!K$1) -> -11949.53 | L119: =IF(L$1=0,0,ROUND($T119*L$108,2))-SUMIFS(InTB!$K:$K,InTB!$M:$M,$E119,InTB!$C:$C,BS!L$1) -> 0 | M119: =IF(M$1=0,0,ROUND($T119*M$108,2))-SUMIFS(InTB!$K:$K,InTB!$M:$M,$E119,InTB!$C:$C,BS!M$1) -> 0 | N119: =IF(N$1=0,0,ROUND($T119*N$108,2))-SUMIFS(InTB!$K:$K,InTB!$M:$M,$E119,InTB!$C:$C,BS!N$1) -> 0 | O119: =IF(O$1=0,0,ROUND($T119*O$108,2))-SUMIFS(InTB!$K:$K,InTB!$M:$M,$E119,InTB!$C:$C,BS!O$1) -> 0 | P119: =IF(P$1=0,0,ROUND($T119*P$108,2))-SUMIFS(InTB!$K:$K,InTB!$M:$M,$E119,InTB!$C:$C,BS!P$1) -> 0 | Q119: =IF(Q$1=0,0,ROUND($T119*Q$108,2))-SUMIFS(InTB!$K:$K,InTB!$M:$M,$E119,InTB!$C:$C,BS!Q$1) -> 0 | R119: =IF(R$1=0,0,ROUND($T119*R$108,2))-SUMIFS(InTB!$K:$K,InTB!$M:$M,$E119,InTB!$C:$C,BS!R$1) -> 0 | S119: =IF(S$1=0,0,ROUND($T119*S$108,2))-SUMIFS(InTB!$K:$K,InTB!$M:$M,$E119,InTB!$C:$C,BS!S$1) -> 0 | T119: =-SUMIF(InTBBase!$M:$M,$E119,InTBBase!$K:$K) -> -934787.81 | U119: 0
E120: BSPYDE | F120: Previous Year Distribution Equalisation | I120: =-SUMIF(InTB!$M:$M,$E120,InTB!$K:$K) -> 0 | J120: =IF(J$1=0,0,ROUND($T120*J$108,2))-SUMIFS(InTB!$K:$K,InTB!$M:$M,$E120,InTB!$C:$C,BS!J$1) -> 0 | K120: =IF(K$1=0,0,ROUND($T120*K$108,2))-SUMIFS(InTB!$K:$K,InTB!$M:$M,$E120,InTB!$C:$C,BS!K$1) -> 0 | L120: =IF(L$1=0,0,ROUND($T120*L$108,2))-SUMIFS(InTB!$K:$K,InTB!$M:$M,$E120,InTB!$C:$C,BS!L$1) -> 0 | M120: =IF(M$1=0,0,ROUND($T120*M$108,2))-SUMIFS(InTB!$K:$K,InTB!$M:$M,$E120,InTB!$C:$C,BS!M$1) -> 0 | N120: =IF(N$1=0,0,ROUND($T120*N$108,2))-SUMIFS(InTB!$K:$K,InTB!$M:$M,$E120,InTB!$C:$C,BS!N$1) -> 0 | O120: =IF(O$1=0,0,ROUND($T120*O$108,2))-SUMIFS(InTB!$K:$K,InTB!$M:$M,$E120,InTB!$C:$C,BS!O$1) -> 0 | P120: =IF(P$1=0,0,ROUND($T120*P$108,2))-SUMIFS(InTB!$K:$K,InTB!$M:$M,$E120,InTB!$C:$C,BS!P$1) -> 0 | Q120: =IF(Q$1=0,0,ROUND($T120*Q$108,2))-SUMIFS(InTB!$K:$K,InTB!$M:$M,$E120,InTB!$C:$C,BS!Q$1) -> 0 | R120: =IF(R$1=0,0,ROUND($T120*R$108,2))-SUMIFS(InTB!$K:$K,InTB!$M:$M,$E120,InTB!$C:$C,BS!R$1) -> 0 | S120: =IF(S$1=0,0,ROUND($T120*S$108,2))-SUMIFS(InTB!$K:$K,InTB!$M:$M,$E120,InTB!$C:$C,BS!S$1) -> 0 | T120: =-SUMIF(InTBBase!$M:$M,$E120,InTBBase!$K:$K) -> 0 | U120: 0
D121: PROFIT | F121: =OFFSET( Label!$E$1,MATCH(BS!D121, Label!$E:$E,0)-1, Main!$G$14+1) -> Current Year Profit / (Loss) | I121: =PL!I$87+PL!I$90+PL!I$91 -> 147608.12 | J121: =PL!J$87+PL!J$90+PL!J$91 -> 145721.22 | K121: =PL!K$87+PL!K$90+PL!K$91 -> 1886.9 | L121: =PL!L$87+PL!L$90+PL!L$91 -> 0 | M121: =PL!M$87+PL!M$90+PL!M$91 -> 0 | N121: =PL!N$87+PL!N$90+PL!N$91 -> 0 | O121: =PL!O$87+PL!O$90+PL!O$91 -> 0 | P121: =PL!P$87+PL!P$90+PL!P$91 -> 0 | Q121: =PL!Q$87+PL!Q$90+PL!Q$91 -> 0 | R121: =PL!R$87+PL!R$90+PL!R$91 -> 0 | S121: =PL!S$87+PL!S$90+PL!S$91 -> 0 | T121: =PL!$I$87+PL!$I$90+PL!$I$91 -> 147608.12 | U121: 0
I122: =SUM(I117:I121) -> 3632394.7 | J122: =SUM(J117:J121) -> 3585961.26 | K122: =SUM(K117:K121) -> 46433.44 | L122: =SUM(L117:L121) -> 0 | M122: 0 | N122: 0 | O122: =SUM(O117:O121) -> 0 | P122: 0 | Q122: 0 | R122: =SUM(R117:R121) -> 0 | S122: 0 | T122: =SUM(T117:T121) -> 3632394.7 | U122: 0

Sheet PL
I1: GD1 | J1: =Class1 -> BAPACMYR | K1: =Class2 -> BAPACUSD | L1: =Class3 -> 0 | M1: =Class4 -> 0 | N1: =Class5 -> 0 | O1: =Class6 -> 0 | P1: =Class7 -> 0 | Q1: =Class8 -> 0 | R1: =Class9 -> 0 | S1: =Class10 -> 0
J2: =BS!J108 -> 0.9872168542 | K2: =BS!K108 -> 0.01278314576 | L2: =BS!L108 -> 0 | M2: =BS!M108 -> 0 | N2: =BS!N108 -> 0 | O2: =BS!O108 -> 0 | P2: =BS!P108 -> 0 | Q2: =BS!Q108 -> 0 | R2: =BS!R108 -> 0 | S2: =BS!S108 -> 0
C4: Balance Check | D4: =I83-I98 -> 0
F5: =CompanyName -> BIMB Investment Management Berhad
F6: =Main!$G$12 -> BIMB-ARABESQUE ASIA PACIFIC SHARIAH-ESG EQUITY
F7: Income Statement
F8: ="For The Financial Period Ended " & TEXT(Main!$G$17,"dd mmmm yyyy") -> For The Financial Period Ended 30 October 2020
I10: =ValueDate -> 2020-10-30 | J10: 2020-10-30 | K10: 2020-10-30 | L10: 2020-10-30 | M10: 2020-10-30 | N10: 2020-10-30 | O10: 2020-10-30 | P10: 2020-10-30 | Q10: 2020-10-30 | R10: 2020-10-30 | S10: 2020-10-30 | T10: 2020-10-30
I11: Year To Date | J11: Year To Date | K11: Year To Date | L11: Year To Date | M11: Year To Date | N11: Year To Date | O11: Year To Date | P11: Year To Date | Q11: Year To Date | R11: Year To Date | S11: Year To Date | T11: Year To Date
J12: =BS!J11 -> Class MYR | K12: =BS!K11 -> Class USD | L12: =BS!L11 -> Class | M12: =BS!M11 -> Class | N12: =BS!N11 -> Class | O12: =BS!O11 -> Class | P12: =BS!P11 -> Class | Q12: =BS!Q11 -> Class | R12: =BS!R11 -> Class | S12: =BS!S11 -> Class
I13: =FundCurrency -> USD | J13: =BS!J12 -> USD | K13: =BS!K12 -> USD | L13: =BS!L12 -> USD | M13: =BS!M12 -> USD | N13: =BS!N12 -> USD | O13: =BS!O12 -> USD | P13: =BS!P12 -> USD | Q13: =BS!Q12 -> USD | R13: =BS!R12 -> USD | S13: =BS!S12 -> USD | T13: =FundCurrency -> USD
D14: INVINC | F14: =OFFSET(Label!$A$1,MATCH(D14,Label!$A$1:$A$65537,0)-1,Main!$G$14+1) -> INCOME
D15: INTINCOME | F15: =OFFSET(Label!$A$1,MATCH(D15,Label!$A$1:$A$65537,0)-1,Main!$G$14+1) -> PROFIT SHARING | I15: =SUM(I16:I19) -> 193.74 | J15: 191.26 | K15: 2.48 | L15: 0 | M15: 0 | N15: 0 | O15: =SUM(O16:O19) -> 0 | P15: 0 | Q15: 0 | R15: =SUM(R16:R19) -> 0 | S15: =SUM(S16:S19) -> 0 | T15: 193.74 | V15: =ROUND(I15-SUM(J15:S15),1) -> 0
C16: PRINCO_MM | D16: INTINCOME1 | E16: PRINMM | F16: =OFFSET(Label!$A$1,MATCH(D16,Label!$A$1:$A$65537,0)-1,Main!$G$14+1) -> Profit Sharing - Shariah-based deposits and placements | I16: =-SUMIF(InTB!$M:$M,$E16,InTB!$K:$K)-SUMIF(InTB!$N:$N,$C16,InTB!$K:$K)-SUMIF(InTB!$N:$N,$B16,InTB!$K:$K) -> 193.62 | J16: =ROUND($T16*J$2,2)-SUMIFS(InTB!$K:$K,InTB!$M:$M,$E16,InTB!$C:$C,J$1)-SUMIFS(InTB!$K:$K,InTB!$N:$N,$C16,InTB!$C:$C,J$1)-SUMIFS(InTB!$K:$K,InTB!$N:$N,$B16,InTB!$C:$C,J$1) -> 191.14 | K16: =ROUND($T16*K$2,2)-SUMIFS(InTB!$K:$K,InTB!$M:$M,$E16,InTB!$C:$C,K$1)-SUMIFS(InTB!$K:$K,InTB!$N:$N,$C16,InTB!$C:$C,K$1)-SUMIFS(InTB!$K:$K,InTB!$N:$N,$B16,InTB!$C:$C,K$1) -> 2.48 | L16: =ROUND($T16*L$2,2)-SUMIFS(InTB!$K:$K,InTB!$M:$M,$E16,InTB!$C:$C,L$1)-SUMIFS(InTB!$K:$K,InTB!$N:$N,$C16,InTB!$C:$C,L$1)-SUMIFS(InTB!$K:$K,InTB!$N:$N,$B16,InTB!$C:$C,L$1) -> 0 | M16: =ROUND($T16*M$2,2)-SUMIFS(InTB!$K:$K,InTB!$M:$M,$E16,InTB!$C:$C,M$1)-SUMIFS(InTB!$K:$K,InTB!$N:$N,$C16,InTB!$C:$C,M$1)-SUMIFS(InTB!$K:$K,InTB!$N:$N,$B16,InTB!$C:$C,M$1) -> 0 | N16: =ROUND($T16*N$2,2)-SUMIFS(InTB!$K:$K,InTB!$M:$M,$E16,InTB!$C:$C,N$1)-SUMIFS(InTB!$K:$K,InTB!$N:$N,$C16,InTB!$C:$C,N$1)-SUMIFS(InTB!$K:$K,InTB!$N:$N,$B16,InTB!$C:$C,N$1) -> 0 | O16: =ROUND($T16*O$2,2)-SUMIFS(InTB!$K:$K,InTB!$M:$M,$E16,InTB!$C:$C,O$1)-SUMIFS(InTB!$K:$K,InTB!$N:$N,$C16,InTB!$C:$C,O$1)-SUMIFS(InTB!$K:$K,InTB!$N:$N,$B16,InTB!$C:$C,O$1) -> 0 | P16: =ROUND($T16*P$2,2)-SUMIFS(InTB!$K:$K,InTB!$M:$M,$E16,InTB!$C:$C,P$1)-SUMIFS(InTB!$K:$K,InTB!$N:$N,$C16,InTB!$C:$C,P$1)-SUMIFS(InTB!$K:$K,InTB!$N:$N,$B16,InTB!$C:$C,P$1) -> 0 | Q16: =ROUND($T16*Q$2,2)-SUMIFS(InTB!$K:$K,InTB!$M:$M,$E16,InTB!$C:$C,Q$1)-SUMIFS(InTB!$K:$K,InTB!$N:$N,$C16,InTB!$C:$C,Q$1)-SUMIFS(InTB!$K:$K,InTB!$N:$N,$B16,InTB!$C:$C,Q$1) -> 0 | R16: =ROUND($T16*R$2,2)-SUMIFS(InTB!$K:$K,InTB!$M:$M,$E16,InTB!$C:$C,R$1)-SUMIFS(InTB!$K:$K,InTB!$N:$N,$C16,InTB!$C:$C,R$1)-SUMIFS(InTB!$K:$K,InTB!$N:$N,$B16,InTB!$C:$C,R$1) -> 0 | S16: =ROUND($T16*S$2,2)-SUMIFS(InTB!$K:$K,InTB!$M:$M,$E16,InTB!$C:$C,S$1)-SUMIFS(InTB!$K:$K,InTB!$N:$N,$C16,InTB!$C:$C,S$1)-SUMIFS(InTB!$K:$K,InTB!$N:$N,$B16,InTB!$C:$C,S$1) -> 0 | T16: =-SUMIF(InTBBase!$M:$M,$E16,InTBBase!$K:$K)-SUMIF(InTBBase!$N:$N,$C16,InTBBase!$K:$K)-SUMIF(InTBBase!$N:$N,$B16,InTBBase!$K:$K) -> 193.62 | V16: =ROUND(I16-SUM(J16:S16),1) -> 0
B17: PRINCO_O-BND | C17: PRINCO_BND | D17: INTINCOME2 | E17: PRINCB | F17: =OFFSET(Label!$A$1,MATCH(D17,Label!$A$1:$A$65537,0)-1,Main!$G$14+1) -> Profit Sharing - Commercial Bond | I17: =-SUMIF(InTB!$M:$M,$E17,InTB!$K:$K)-SUMIF(InTB!$N:$N,$C17,InTB!$K:$K)-SUMIF(InTB!$N:$N,$B17,InTB!$K:$K) -> 0 | J17: =ROUND($T17*J$2,2)-SUMIFS(InTB!$K:$K,InTB!$M:$M,$E17,InTB!$C:$C,J$1)-SUMIFS(InTB!$K:$K,InTB!$N:$N,$C17,InTB!$C:$C,J$1)-SUMIFS(InTB!$K:$K,InTB!$N:$N,$B17,InTB!$C:$C,J$1) -> 0 | K17: =ROUND($T17*K$2,2)-SUMIFS(InTB!$K:$K,InTB!$M:$M,$E17,InTB!$C:$C,K$1)-SUMIFS(InTB!$K:$K,InTB!$N:$N,$C17,InTB!$C:$C,K$1)-SUMIFS(InTB!$K:$K,InTB!$N:$N,$B17,InTB!$C:$C,K$1) -> 0 | L17: =ROUND($T17*L$2,2)-SUMIFS(InTB!$K:$K,InTB!$M:$M,$E17,InTB!$C:$C,L$1)-SUMIFS(InTB!$K:$K,InTB!$N:$N,$C17,InTB!$C:$C,L$1)-SUMIFS(InTB!$K:$K,InTB!$N:$N,$B17,InTB!$C:$C,L$1) -> 0 | M17: =ROUND($T17*M$2,2)-SUMIFS(InTB!$K:$K,InTB!$M:$M,$E17,InTB!$C:$C,M$1)-SUMIFS(InTB!$K:$K,InTB!$N:$N,$C17,InTB!$C:$C,M$1)-SUMIFS(InTB!$K:$K,InTB!$N:$N,$B17,InTB!$C:$C,M$1) -> 0 | N17: =ROUND($T17*N$2,2)-SUMIFS(InTB!$K:$K,InTB!$M:$M,$E17,InTB!$C:$C,N$1)-SUMIFS(InTB!$K:$K,InTB!$N:$N,$C17,InTB!$C:$C,N$1)-SUMIFS(InTB!$K:$K,InTB!$N:$N,$B17,InTB!$C:$C,N$1) -> 0 | O17: =ROUND($T17*O$2,2)-SUMIFS(InTB!$K:$K,InTB!$M:$M,$E17,InTB!$C:$C,O$1)-SUMIFS(InTB!$K:$K,InTB!$N:$N,$C17,InTB!$C:$C,O$1)-SUMIFS(InTB!$K:$K,InTB!$N:$N,$B17,InTB!$C:$C,O$1) -> 0 | P17: =ROUND($T17*P$2,2)-SUMIFS(InTB!$K:$K,InTB!$M:$M,$E17,InTB!$C:$C,P$1)-SUMIFS(InTB!$K:$K,InTB!$N:$N,$C17,InTB!$C:$C,P$1)-SUMIFS(InTB!$K:$K,InTB!$N:$N,$B17,InTB!$C:$C,P$1) -> 0 | Q17: =ROUND($T17*Q$2,2)-SUMIFS(InTB!$K:$K,InTB!$M:$M,$E17,InTB!$C:$C,Q$1)-SUMIFS(InTB!$K:$K,InTB!$N:$N,$C17,InTB!$C:$C,Q$1)-SUMIFS(InTB!$K:$K,InTB!$N:$N,$B17,InTB!$C:$C,Q$1) -> 0 | R17: =ROUND($T17*R$2,2)-SUMIFS(InTB!$K:$K,InTB!$M:$M,$E17,InTB!$C:$C,R$1)-SUMIFS(InTB!$K:$K,InTB!$N:$N,$C17,InTB!$C:$C,R$1)-SUMIFS(InTB!$K:$K,InTB!$N:$N,$B17,InTB!$C:$C,R$1) -> 0 | S17: =ROUND($T17*S$2,2)-SUMIFS(InTB!$K:$K,InTB!$M:$M,$E17,InTB!$C:$C,S$1)-SUMIFS(InTB!$K:$K,InTB!$N:$N,$C17,InTB!$C:$C,S$1)-SUMIFS(InTB!$K:$K,InTB!$N:$N,$B17,InTB!$C:$C,S$1) -> 0 | T17: =-SUMIF(InTBBase!$M:$M,$E17,InTBBase!$K:$K)-SUMIF(InTBBase!$N:$N,$C17,InTBBase!$K:$K)-SUMIF(InTBBase!$N:$N,$B17,InTBBase!$K:$K) -> 0 | V17: 0
D18: INTINCOME3 | E18: PRINBK | F18: =OFFSET(Label!$A$1,MATCH(D18,Label!$A$1:$A$65537,0)-1,Main!$G$14+1) -> Profit Sharing - Bank | I18: =-SUMIF(InTB!$M:$M,$E18,InTB!$K:$K)-SUMIF(InTB!$N:$N,$C18,InTB!$K:$K)-SUMIF(InTB!$N:$N,$B18,InTB!$K:$K) -> 0.12 | J18: =ROUND($T18*J$2,2)-SUMIFS(InTB!$K:$K,InTB!$M:$M,$E18,InTB!$C:$C,J$1)-SUMIFS(InTB!$K:$K,InTB!$N:$N,$C18,InTB!$C:$C,J$1)-SUMIFS(InTB!$K:$K,InTB!$N:$N,$B18,InTB!$C:$C,J$1) -> 0.12 | K18: =ROUND($T18*K$2,2)-SUMIFS(InTB!$K:$K,InTB!$M:$M,$E18,InTB!$C:$C,K$1)-SUMIFS(InTB!$K:$K,InTB!$N:$N,$C18,InTB!$C:$C,K$1)-SUMIFS(InTB!$K:$K,InTB!$N:$N,$B18,InTB!$C:$C,K$1) -> 0 | L18: =ROUND($T18*L$2,2)-SUMIFS(InTB!$K:$K,InTB!$M:$M,$E18,InTB!$C:$C,L$1)-SUMIFS(InTB!$K:$K,InTB!$N:$N,$C18,InTB!$C:$C,L$1)-SUMIFS(InTB!$K:$K,InTB!$N:$N,$B18,InTB!$C:$C,L$1) -> 0 | M18: =ROUND($T18*M$2,2)-SUMIFS(InTB!$K:$K,InTB!$M:$M,$E18,InTB!$C:$C,M$1)-SUMIFS(InTB!$K:$K,InTB!$N:$N,$C18,InTB!$C:$C,M$1)-SUMIFS(InTB!$K:$K,InTB!$N:$N,$B18,InTB!$C:$C,M$1) -> 0 | N18: =ROUND($T18*N$2,2)-SUMIFS(InTB!$K:$K,InTB!$M:$M,$E18,InTB!$C:$C,N$1)-SUMIFS(InTB!$K:$K,InTB!$N:$N,$C18,InTB!$C:$C,N$1)-SUMIFS(InTB!$K:$K,InTB!$N:$N,$B18,InTB!$C:$C,N$1) -> 0 | O18: =ROUND($T18*O$2,2)-SUMIFS(InTB!$K:$K,InTB!$M:$M,$E18,InTB!$C:$C,O$1)-SUMIFS(InTB!$K:$K,InTB!$N:$N,$C18,InTB!$C:$C,O$1)-SUMIFS(InTB!$K:$K,InTB!$N:$N,$B18,InTB!$C:$C,O$1) -> 0 | P18: =ROUND($T18*P$2,2)-SUMIFS(InTB!$K:$K,InTB!$M:$M,$E18,InTB!$C:$C,P$1)-SUMIFS(InTB!$K:$K,InTB!$N:$N,$C18,InTB!$C:$C,P$1)-SUMIFS(InTB!$K:$K,InTB!$N:$N,$B18,InTB!$C:$C,P$1) -> 0 | Q18: =ROUND($T18*Q$2,2)-SUMIFS(InTB!$K:$K,InTB!$M:$M,$E18,InTB!$C:$C,Q$1)-SUMIFS(InTB!$K:$K,InTB!$N:$N,$C18,InTB!$C:$C,Q$1)-SUMIFS(InTB!$K:$K,InTB!$N:$N,$B18,InTB!$C:$C,Q$1) -> 0 | R18: =ROUND($T18*R$2,2)-SUMIFS(InTB!$K:$K,InTB!$M:$M,$E18,InTB!$C:$C,R$1)-SUMIFS(InTB!$K:$K,InTB!$N:$N,$C18,InTB!$C:$C,R$1)-SUMIFS(InTB!$K:$K,InTB!$N:$N,$B18,InTB!$C:$C,R$1) -> 0 | S18: =ROUND($T18*S$2,2)-SUMIFS(InTB!$K:$K,InTB!$M:$M,$E18,InTB!$C:$C,S$1)-SUMIFS(InTB!$K:$K,InTB!$N:$N,$C18,InTB!$C:$C,S$1)-SUMIFS(InTB!$K:$K,InTB!$N:$N,$B18,InTB!$C:$C,S$1) -> 0 | T18: =-SUMIF(InTBBase!$M:$M,$E18,InTBBase!$K:$K)-SUMIF(InTBBase!$N:$N,$C18,InTBBase!$K:$K)-SUMIF(InTBBase!$N:$N,$B18,InTBBase!$K:$K) -> 0.12 | V18: 0
C19: PRINCO_LNS | D19: INTINCOME4 | E19: PRINLS | F19: =OFFSET(Label!$A$1,MATCH(D19,Label!$A$1:$A$65537,0)-1,Main!$G$14+1) -> Profit Sharing - loan stock | I19: =-SUMIF(InTB!$M:$M,$E19,InTB!$K:$K)-SUMIF(InTB!$N:$N,$C19,InTB!$K:$K)-SUMIF(InTB!$N:$N,$B19,InTB!$K:$K) -> 0 | J19: =ROUND($T19*J$2,2)-SUMIFS(InTB!$K:$K,InTB!$M:$M,$E19,InTB!$C:$C,J$1)-SUMIFS(InTB!$K:$K,InTB!$N:$N,$C19,InTB!$C:$C,J$1)-SUMIFS(InTB!$K:$K,InTB!$N:$N,$B19,InTB!$C:$C,J$1) -> 0 | K19: =ROUND($T19*K$2,2)-SUMIFS(InTB!$K:$K,InTB!$M:$M,$E19,InTB!$C:$C,K$1)-SUMIFS(InTB!$K:$K,InTB!$N:$N,$C19,InTB!$C:$C,K$1)-SUMIFS(InTB!$K:$K,InTB!$N:$N,$B19,InTB!$C:$C,K$1) -> 0 | L19: =ROUND($T19*L$2,2)-SUMIFS(InTB!$K:$K,InTB!$M:$M,$E19,InTB!$C:$C,L$1)-SUMIFS(InTB!$K:$K,InTB!$N:$N,$C19,InTB!$C:$C,L$1)-SUMIFS(InTB!$K:$K,InTB!$N:$N,$B19,InTB!$C:$C,L$1) -> 0 | M19: =ROUND($T19*M$2,2)-SUMIFS(InTB!$K:$K,InTB!$M:$M,$E19,InTB!$C:$C,M$1)-SUMIFS(InTB!$K:$K,InTB!$N:$N,$C19,InTB!$C:$C,M$1)-SUMIFS(InTB!$K:$K,InTB!$N:$N,$B19,InTB!$C:$C,M$1) -> 0 | N19: =ROUND($T19*N$2,2)-SUMIFS(InTB!$K:$K,InTB!$M:$M,$E19,InTB!$C:$C,N$1)-SUMIFS(InTB!$K:$K,InTB!$N:$N,$C19,InTB!$C:$C,N$1)-SUMIFS(InTB!$K:$K,InTB!$N:$N,$B19,InTB!$C:$C,N$1) -> 0 | O19: =ROUND($T19*O$2,2)-SUMIFS(InTB!$K:$K,InTB!$M:$M,$E19,InTB!$C:$C,O$1)-SUMIFS(InTB!$K:$K,InTB!$N:$N,$C19,InTB!$C:$C,O$1)-SUMIFS(InTB!$K:$K,InTB!$N:$N,$B19,InTB!$C:$C,O$1) -> 0 | P19: =ROUND($T19*P$2,2)-SUMIFS(InTB!$K:$K,InTB!$M:$M,$E19,InTB!$C:$C,P$1)-SUMIFS(InTB!$K:$K,InTB!$N:$N,$C19,InTB!$C:$C,P$1)-SUMIFS(InTB!$K:$K,InTB!$N:$N,$B19,InTB!$C:$C,P$1) -> 0 | Q19: =ROUND($T19*Q$2,2)-SUMIFS(InTB!$K:$K,InTB!$M:$M,$E19,InTB!$C:$C,Q$1)-SUMIFS(InTB!$K:$K,InTB!$N:$N,$C19,InTB!$C:$C,Q$1)-SUMIFS(InTB!$K:$K,InTB!$N:$N,$B19,InTB!$C:$C,Q$1) -> 0 | R19: =ROUND($T19*R$2,2)-SUMIFS(InTB!$K:$K,InTB!$M:$M,$E19,InTB!$C:$C,R$1)-SUMIFS(InTB!$K:$K,InTB!$N:$N,$C19,InTB!$C:$C,R$1)-SUMIFS(InTB!$K:$K,InTB!$N:$N,$B19,InTB!$C:$C,R$1) -> 0 | S19: =ROUND($T19*S$2,2)-SUMIFS(InTB!$K:$K,InTB!$M:$M,$E19,InTB!$C:$C,S$1)-SUMIFS(InTB!$K:$K,InTB!$N:$N,$C19,InTB!$C:$C,S$1)-SUMIFS(InTB!$K:$K,InTB!$N:$N,$B19,InTB!$C:$C,S$1) -> 0 | T19: =-SUMIF(InTBBase!$M:$M,$E19,InTBBase!$K:$K)-SUMIF(InTBBase!$N:$N,$C19,InTBBase!$K:$K)-SUMIF(InTBBase!$N:$N,$B19,InTBBase!$K:$K) -> 0 | V19: 0
D20: AMORT | F20: =OFFSET(Label!$A$1,MATCH(D20,Label!$A$1:$A$65537,0)-1,Main!$G$14+1) -> (AMORTISATION OF PREMIUM, NET ACCREATION OF DISCOUNT)/ | V20: 0
D21: ACCRE | F21: =OFFSET(Label!$A$1,MATCH(D21,Label!$A$1:$A$65537,0)-1,Main!$G$14+1) -> ACCREATION OF DISCOUNT, NET AMORTISATION OF PREMIUM | I21: =SUM(I22:I24) -> 0 | J21: 0 | K21: =SUM(K22:K24) -> 0 | L21: 0 | M21: 0 | N21: 0 | O21: =SUM(O22:O24) -> 0 | P21: 0 | Q21: 0 | R21: =SUM(R22:R24) -> 0 | S21: 0 | T21: =SUM(T22:T24) -> 0 | V21: 0
C22: PRACCE_CP | D22: ACCRE1 | E22: PRDSCP | F22: =OFFSET(Label!$A$1,MATCH(D22,Label!$A$1:$A$65537,0)-1,Main!$G$14+1) -> Discount - Commercial Paper | I22: =-SUMIF(InTB!$M:$M,$E22,InTB!$K:$K)-SUMIF(InTB!$N:$N,$C22,InTB!$K:$K)-SUMIF(InTB!$N:$N,$B22,InTB!$K:$K) -> 0 | J22: =ROUND($T22*J$2,2)-SUMIFS(InTB!$K:$K,InTB!$M:$M,$E22,InTB!$C:$C,J$1)-SUMIFS(InTB!$K:$K,InTB!$N:$N,$C22,InTB!$C:$C,J$1)-SUMIFS(InTB!$K:$K,InTB!$N:$N,$B22,InTB!$C:$C,J$1) -> 0 | K22: =ROUND($T22*K$2,2)-SUMIFS(InTB!$K:$K,InTB!$M:$M,$E22,InTB!$C:$C,K$1)-SUMIFS(InTB!$K:$K,InTB!$N:$N,$C22,InTB!$C:$C,K$1)-SUMIFS(InTB!$K:$K,InTB!$N:$N,$B22,InTB!$C:$C,K$1) -> 0 | L22: =ROUND($T22*L$2,2)-SUMIFS(InTB!$K:$K,InTB!$M:$M,$E22,InTB!$C:$C,L$1)-SUMIFS(InTB!$K:$K,InTB!$N:$N,$C22,InTB!$C:$C,L$1)-SUMIFS(InTB!$K:$K,InTB!$N:$N,$B22,InTB!$C:$C,L$1) -> 0 | M22: =ROUND($T22*M$2,2)-SUMIFS(InTB!$K:$K,InTB!$M:$M,$E22,InTB!$C:$C,M$1)-SUMIFS(InTB!$K:$K,InTB!$N:$N,$C22,InTB!$C:$C,M$1)-SUMIFS(InTB!$K:$K,InTB!$N:$N,$B22,InTB!$C:$C,M$1) -> 0 | N22: =ROUND($T22*N$2,2)-SUMIFS(InTB!$K:$K,InTB!$M:$M,$E22,InTB!$C:$C,N$1)-SUMIFS(InTB!$K:$K,InTB!$N:$N,$C22,InTB!$C:$C,N$1)-SUMIFS(InTB!$K:$K,InTB!$N:$N,$B22,InTB!$C:$C,N$1) -> 0 | O22: =ROUND($T22*O$2,2)-SUMIFS(InTB!$K:$K,InTB!$M:$M,$E22,InTB!$C:$C,O$1)-SUMIFS(InTB!$K:$K,InTB!$N:$N,$C22,InTB!$C:$C,O$1)-SUMIFS(InTB!$K:$K,InTB!$N:$N,$B22,InTB!$C:$C,O$1) -> 0 | P22: =ROUND($T22*P$2,2)-SUMIFS(InTB!$K:$K,InTB!$M:$M,$E22,InTB!$C:$C,P$1)-SUMIFS(InTB!$K:$K,InTB!$N:$N,$C22,InTB!$C:$C,P$1)-SUMIFS(InTB!$K:$K,InTB!$N:$N,$B22,InTB!$C:$C,P$1) -> 0 | Q22: =ROUND($T22*Q$2,2)-SUMIFS(InTB!$K:$K,InTB!$M:$M,$E22,InTB!$C:$C,Q$1)-SUMIFS(InTB!$K:$K,InTB!$N:$N,$C22,InTB!$C:$C,Q$1)-SUMIFS(InTB!$K:$K,InTB!$N:$N,$B22,InTB!$C:$C,Q$1) -> 0 | R22: =ROUND($T22*R$2,2)-SUMIFS(InTB!$K:$K,InTB!$M:$M,$E22,InTB!$C:$C,R$1)-SUMIFS(InTB!$K:$K,InTB!$N:$N,$C22,InTB!$C:$C,R$1)-SUMIFS(InTB!$K:$K,InTB!$N:$N,$B22,InTB!$C:$C,R$1) -> 0 | S22: =ROUND($T22*S$2,2)-SUMIFS(InTB!$K:$K,InTB!$M:$M,$E22,InTB!$C:$C,S$1)-SUMIFS(InTB!$K:$K,InTB!$N:$N,$C22,InTB!$C:$C,S$1)-SUMIFS(InTB!$K:$K,InTB!$N:$N,$B22,InTB!$C:$C,S$1) -> 0 | T22: =-SUMIF(InTBBase!$M:$M,$E22,InTBBase!$K:$K)-SUMIF(InTBBase!$N:$N,$C22,InTBBase!$K:$K)-SUMIF(InTBBase!$N:$N,$B22,InTBBase!$K:$K) -> 0 | V22: 0
B23: PRACCE_O-BND | C23: PRACCE_BND | D23: ACCRE2 | E23: PRDSCB | F23: =OFFSET(Label!$A$1,MATCH(D23,Label!$A$1:$A$65537,0)-1,Main!$G$14+1) -> Discount - Commercial Bond | I23: =-SUMIF(InTB!$M:$M,$E23,InTB!$K:$K)-SUMIF(InTB!$N:$N,$C23,InTB!$K:$K)-SUMIF(InTB!$N:$N,$B23,InTB!$K:$K) -> 0 | J23: =ROUND($T23*J$2,2)-SUMIFS(InTB!$K:$K,InTB!$M:$M,$E23,InTB!$C:$C,J$1)-SUMIFS(InTB!$K:$K,InTB!$N:$N,$C23,InTB!$C:$C,J$1)-SUMIFS(InTB!$K:$K,InTB!$N:$N,$B23,InTB!$C:$C,J$1) -> 0 | K23: =ROUND($T23*K$2,2)-SUMIFS(InTB!$K:$K,InTB!$M:$M,$E23,InTB!$C:$C,K$1)-SUMIFS(InTB!$K:$K,InTB!$N:$N,$C23,InTB!$C:$C,K$1)-SUMIFS(InTB!$K:$K,InTB!$N:$N,$B23,InTB!$C:$C,K$1) -> 0 | L23: =ROUND($T23*L$2,2)-SUMIFS(InTB!$K:$K,InTB!$M:$M,$E23,InTB!$C:$C,L$1)-SUMIFS(InTB!$K:$K,InTB!$N:$N,$C23,InTB!$C:$C,L$1)-SUMIFS(InTB!$K:$K,InTB!$N:$N,$B23,InTB!$C:$C,L$1) -> 0 | M23: =ROUND($T23*M$2,2)-SUMIFS(InTB!$K:$K,InTB!$M:$M,$E23,InTB!$C:$C,M$1)-SUMIFS(InTB!$K:$K,InTB!$N:$N,$C23,InTB!$C:$C,M$1)-SUMIFS(InTB!$K:$K,InTB!$N:$N,$B23,InTB!$C:$C,M$1) -> 0 | N23: =ROUND($T23*N$2,2)-SUMIFS(InTB!$K:$K,InTB!$M:$M,$E23,InTB!$C:$C,N$1)-SUMIFS(InTB!$K:$K,InTB!$N:$N,$C23,InTB!$C:$C,N$1)-SUMIFS(InTB!$K:$K,InTB!$N:$N,$B23,InTB!$C:$C,N$1) -> 0 | O23: =ROUND($T23*O$2,2)-SUMIFS(InTB!$K:$K,InTB!$M:$M,$E23,InTB!$C:$C,O$1)-SUMIFS(InTB!$K:$K,InTB!$N:$N,$C23,InTB!$C:$C,O$1)-SUMIFS(InTB!$K:$K,InTB!$N:$N,$B23,InTB!$C:$C,O$1) -> 0 | P23: =ROUND($T23*P$2,2)-SUMIFS(InTB!$K:$K,InTB!$M:$M,$E23,InTB!$C:$C,P$1)-SUMIFS(InTB!$K:$K,InTB!$N:$N,$C23,InTB!$C:$C,P$1)-SUMIFS(InTB!$K:$K,InTB!$N:$N,$B23,InTB!$C:$C,P$1) -> 0 | Q23: =ROUND($T23*Q$2,2)-SUMIFS(InTB!$K:$K,InTB!$M:$M,$E23,InTB!$C:$C,Q$1)-SUMIFS(InTB!$K:$K,InTB!$N:$N,$C23,InTB!$C:$C,Q$1)-SUMIFS(InTB!$K:$K,InTB!$N:$N,$B23,InTB!$C:$C,Q$1) -> 0 | R23: =ROUND($T23*R$2,2)-SUMIFS(InTB!$K:$K,InTB!$M:$M,$E23,InTB!$C:$C,R$1)-SUMIFS(InTB!$K:$K,InTB!$N:$N,$C23,InTB!$C:$C,R$1)-SUMIFS(InTB!$K:$K,InTB!$N:$N,$B23,InTB!$C:$C,R$1) -> 0 | S23: =ROUND($T23*S$2,2)-SUMIFS(InTB!$K:$K,InTB!$M:$M,$E23,InTB!$C:$C,S$1)-SUMIFS(InTB!$K:$K,InTB!$N:$N,$C23,InTB!$C:$C,S$1)-SUMIFS(InTB!$K:$K,InTB!$N:$N,$B23,InTB!$C:$C,S$1) -> 0 | T23: =-SUMIF(InTBBase!$M:$M,$E23,InTBBase!$K:$K)-SUMIF(InTBBase!$N:$N,$C23,InTBBase!$K:$K)-SUMIF(InTBBase!$N:$N,$B23,InTBBase!$K:$K) -> 0 | V23: 0
B24: PRAMRT_O-BND | C24: PRAMRT_BND | D24: ACCRE3 | E24: PRAMCB | F24: =OFFSET(Label!$A$1,MATCH(D24,Label!$A$1:$A$65537,0)-1,Main!$G$14+1) -> Amortisation of premium-Commercial Bond | I24: =-SUMIF(InTB!$M:$M,$E24,InTB!$K:$K)-SUMIF(InTB!$N:$N,$C24,InTB!$K:$K)-SUMIF(InTB!$N:$N,$B24,InTB!$K:$K) -> 0 | J24: =ROUND($T24*J$2,2)-SUMIFS(InTB!$K:$K,InTB!$M:$M,$E24,InTB!$C:$C,J$1)-SUMIFS(InTB!$K:$K,InTB!$N:$N,$C24,InTB!$C:$C,J$1)-SUMIFS(InTB!$K:$K,InTB!$N:$N,$B24,InTB!$C:$C,J$1) -> 0 | K24: =ROUND($T24*K$2,2)-SUMIFS(InTB!$K:$K,InTB!$M:$M,$E24,InTB!$C:$C,K$1)-SUMIFS(InTB!$K:$K,InTB!$N:$N,$C24,InTB!$C:$C,K$1)-SUMIFS(InTB!$K:$K,InTB!$N:$N,$B24,InTB!$C:$C,K$1) -> 0 | L24: =ROUND($T24*L$2,2)-SUMIFS(InTB!$K:$K,InTB!$M:$M,$E24,InTB!$C:$C,L$1)-SUMIFS(InTB!$K:$K,InTB!$N:$N,$C24,InTB!$C:$C,L$1)-SUMIFS(InTB!$K:$K,InTB!$N:$N,$B24,InTB!$C:$C,L$1) -> 0 | M24: =ROUND($T24*M$2,2)-SUMIFS(InTB!$K:$K,InTB!$M:$M,$E24,InTB!$C:$C,M$1)-SUMIFS(InTB!$K:$K,InTB!$N:$N,$C24,InTB!$C:$C,M$1)-SUMIFS(InTB!$K:$K,InTB!$N:$N,$B24,InTB!$C:$C,M$1) -> 0 | N24: =ROUND($T24*N$2,2)-SUMIFS(InTB!$K:$K,InTB!$M:$M,$E24,InTB!$C:$C,N$1)-SUMIFS(InTB!$K:$K,InTB!$N:$N,$C24,InTB!$C:$C,N$1)-SUMIFS(InTB!$K:$K,InTB!$N:$N,$B24,InTB!$C:$C,N$1) -> 0 | O24: =ROUND($T24*O$2,2)-SUMIFS(InTB!$K:$K,InTB!$M:$M,$E24,InTB!$C:$C,O$1)-SUMIFS(InTB!$K:$K,InTB!$N:$N,$C24,InTB!$C:$C,O$1)-SUMIFS(InTB!$K:$K,InTB!$N:$N,$B24,InTB!$C:$C,O$1) -> 0 | P24: =ROUND($T24*P$2,2)-SUMIFS(InTB!$K:$K,InTB!$M:$M,$E24,InTB!$C:$C,P$1)-SUMIFS(InTB!$K:$K,InTB!$N:$N,$C24,InTB!$C:$C,P$1)-SUMIFS(InTB!$K:$K,InTB!$N:$N,$B24,InTB!$C:$C,P$1) -> 0 | Q24: =ROUND($T24*Q$2,2)-SUMIFS(InTB!$K:$K,InTB!$M:$M,$E24,InTB!$C:$C,Q$1)-SUMIFS(InTB!$K:$K,InTB!$N:$N,$C24,InTB!$C:$C,Q$1)-SUMIFS(InTB!$K:$K,InTB!$N:$N,$B24,InTB!$C:$C,Q$1) -> 0 | R24: =ROUND($T24*R$2,2)-SUMIFS(InTB!$K:$K,InTB!$M:$M,$E24,InTB!$C:$C,R$1)-SUMIFS(InTB!$K:$K,InTB!$N:$N,$C24,InTB!$C:$C,R$1)-SUMIFS(InTB!$K:$K,InTB!$N:$N,$B24,InTB!$C:$C,R$1) -> 0 | S24: =ROUND($T24*S$2,2)-SUMIFS(InTB!$K:$K,InTB!$M:$M,$E24,InTB!$C:$C,S$1)-SUMIFS(InTB!$K:$K,InTB!$N:$N,$C24,InTB!$C:$C,S$1)-SUMIFS(InTB!$K:$K,InTB!$N:$N,$B24,InTB!$C:$C,S$1) -> 0 | T24: =-SUMIF(InTBBase!$M:$M,$E24,InTBBase!$K:$K)-SUMIF(InTBBase!$N:$N,$C24,InTBBase!$K:$K)-SUMIF(InTBBase!$N:$N,$B24,InTBBase!$K:$K) -> 0 | V24: 0
D25: GDIV | F25: =OFFSET(Label!$A$1,MATCH(D25,Label!$A$1:$A$65537,0)-1,Main!$G$14+1) -> GROSS DIVIDEND | I25: =SUM(I26:I29) -> 100623.05 | J25: =SUM(J26:J29) -> 99336.77 | K25: =SUM(K26:K29) -> 1286.28 | L25: 0 | M25: 0 | N25: 0 | O25: =SUM(O26:O29) -> 0 | P25: 0 | Q25: 0 | R25: =SUM(R26:R29) -> 0 | S25: 0 | T25: =SUM(T26:T29) -> 100623.05 | V25: 0
C26: PRDVTA* | D26: GDIV1 | F26: =OFFSET(Label!$A$1,MATCH(D26,Label!$A$1:$A$65537,0)-1,Main!$G$14+1) -> Dividend Income - Local (TA) | I26: =-SUMIF(InTB!$N:$N,$C26,InTB!$K:$K)-SUMIF(InTB!$N:$N,$B26,InTB!$K:$K)-I28 -> 0 | J26: =ROUND($T26*J$2,2)-SUMIFS(InTB!$K:$K,InTB!$N:$N,$C26,InTB!$C:$C,J$1)-SUMIFS(InTB!$K:$K,InTB!$N:$N,$B26,InTB!$C:$C,J$1)-SUMIFS(InTB!$K:$K,InTB!$N:$N,$C28,InTB!$C:$C,J$1)-SUMIFS(InTB!$K:$K,InTB!$N:$N,$B28,InTB!$C:$C,J$1) -> 0 | K26: =ROUND($T26*K$2,2)-SUMIFS(InTB!$K:$K,InTB!$N:$N,$C26,InTB!$C:$C,K$1)-SUMIFS(InTB!$K:$K,InTB!$N:$N,$B26,InTB!$C:$C,K$1)-SUMIFS(InTB!$K:$K,InTB!$N:$N,$C28,InTB!$C:$C,K$1)-SUMIFS(InTB!$K:$K,InTB!$N:$N,$B28,InTB!$C:$C,K$1) -> 0 | L26: =ROUND($T26*L$2,2)-SUMIFS(InTB!$K:$K,InTB!$N:$N,$C26,InTB!$C:$C,L$1)-SUMIFS(InTB!$K:$K,InTB!$N:$N,$B26,InTB!$C:$C,L$1)-SUMIFS(InTB!$K:$K,InTB!$N:$N,$C28,InTB!$C:$C,L$1)-SUMIFS(InTB!$K:$K,InTB!$N:$N,$B28,InTB!$C:$C,L$1) -> 0 | M26: =ROUND($T26*M$2,2)-SUMIFS(InTB!$K:$K,InTB!$N:$N,$C26,InTB!$C:$C,M$1)-SUMIFS(InTB!$K:$K,InTB!$N:$N,$B26,InTB!$C:$C,M$1)-SUMIFS(InTB!$K:$K,InTB!$N:$N,$C28,InTB!$C:$C,M$1)-SUMIFS(InTB!$K:$K,InTB!$N:$N,$B28,InTB!$C:$C,M$1) -> 0 | N26: =ROUND($T26*N$2,2)-SUMIFS(InTB!$K:$K,InTB!$N:$N,$C26,InTB!$C:$C,N$1)-SUMIFS(InTB!$K:$K,InTB!$N:$N,$B26,InTB!$C:$C,N$1)-SUMIFS(InTB!$K:$K,InTB!$N:$N,$C28,InTB!$C:$C,N$1)-SUMIFS(InTB!$K:$K,InTB!$N:$N,$B28,InTB!$C:$C,N$1) -> 0 | O26: =ROUND($T26*O$2,2)-SUMIFS(InTB!$K:$K,InTB!$N:$N,$C26,InTB!$C:$C,O$1)-SUMIFS(InTB!$K:$K,InTB!$N:$N,$B26,InTB!$C:$C,O$1)-SUMIFS(InTB!$K:$K,InTB!$N:$N,$C28,InTB!$C:$C,O$1)-SUMIFS(InTB!$K:$K,InTB!$N:$N,$B28,InTB!$C:$C,O$1) -> 0 | P26: =ROUND($T26*P$2,2)-SUMIFS(InTB!$K:$K,InTB!$N:$N,$C26,InTB!$C:$C,P$1)-SUMIFS(InTB!$K:$K,InTB!$N:$N,$B26,InTB!$C:$C,P$1)-SUMIFS(InTB!$K:$K,InTB!$N:$N,$C28,InTB!$C:$C,P$1)-SUMIFS(InTB!$K:$K,InTB!$N:$N,$B28,InTB!$C:$C,P$1) -> 0 | Q26: =ROUND($T26*Q$2,2)-SUMIFS(InTB!$K:$K,InTB!$N:$N,$C26,InTB!$C:$C,Q$1)-SUMIFS(InTB!$K:$K,InTB!$N:$N,$B26,InTB!$C:$C,Q$1)-SUMIFS(InTB!$K:$K,InTB!$N:$N,$C28,InTB!$C:$C,Q$1)-SUMIFS(InTB!$K:$K,InTB!$N:$N,$B28,InTB!$C:$C,Q$1) -> 0 | R26: =ROUND($T26*R$2,2)-SUMIFS(InTB!$K:$K,InTB!$N:$N,$C26,InTB!$C:$C,R$1)-SUMIFS(InTB!$K:$K,InTB!$N:$N,$B26,InTB!$C:$C,R$1)-SUMIFS(InTB!$K:$K,InTB!$N:$N,$C28,InTB!$C:$C,R$1)-SUMIFS(InTB!$K:$K,InTB!$N:$N,$B28,InTB!$C:$C,R$1) -> 0 | S26: =ROUND($T26*S$2,2)-SUMIFS(InTB!$K:$K,InTB!$N:$N,$C26,InTB!$C:$C,S$1)-SUMIFS(InTB!$K:$K,InTB!$N:$N,$B26,InTB!$C:$C,S$1)-SUMIFS(InTB!$K:$K,InTB!$N:$N,$C28,InTB!$C:$C,S$1)-SUMIFS(InTB!$K:$K,InTB!$N:$N,$B28,InTB!$C:$C,S$1) -> 0 | T26: =-SUMIF(InTBBase!$N:$N,$C26,InTBBase!$K:$K)-SUMIF(InTBBase!$N:$N,$B26,InTBBase!$K:$K)-T28 -> 0 | V26: 0
C27: PRDVTE* | D27: GDIV2 | F27: =OFFSET(Label!$A$1,MATCH(D27,Label!$A$1:$A$65537,0)-1,Main!$G$14+1) -> Dividend Income - Local (TE) | I27: =-SUMIF(InTB!$N:$N,$C27,InTB!$K:$K)-SUMIF(InTB!$N:$N,$B27,InTB!$K:$K)-I29 -> 0 | J27: =ROUND($T27*J$2,2)-SUMIFS(InTB!$K:$K,InTB!$N:$N,$C27,InTB!$C:$C,J$1)-SUMIFS(InTB!$K:$K,InTB!$N:$N,$B27,InTB!$C:$C,J$1)-SUMIFS(InTB!$K:$K,InTB!$N:$N,$C29,InTB!$C:$C,J$1)-SUMIFS(InTB!$K:$K,InTB!$N:$N,$B29,InTB!$C:$C,J$1) -> 0 | K27: =ROUND($T27*K$2,2)-SUMIFS(InTB!$K:$K,InTB!$N:$N,$C27,InTB!$C:$C,K$1)-SUMIFS(InTB!$K:$K,InTB!$N:$N,$B27,InTB!$C:$C,K$1)-SUMIFS(InTB!$K:$K,InTB!$N:$N,$C29,InTB!$C:$C,K$1)-SUMIFS(InTB!$K:$K,InTB!$N:$N,$B29,InTB!$C:$C,K$1) -> 0 | L27: =ROUND($T27*L$2,2)-SUMIFS(InTB!$K:$K,InTB!$N:$N,$C27,InTB!$C:$C,L$1)-SUMIFS(InTB!$K:$K,InTB!$N:$N,$B27,InTB!$C:$C,L$1)-SUMIFS(InTB!$K:$K,InTB!$N:$N,$C29,InTB!$C:$C,L$1)-SUMIFS(InTB!$K:$K,InTB!$N:$N,$B29,InTB!$C:$C,L$1) -> 0 | M27: =ROUND($T27*M$2,2)-SUMIFS(InTB!$K:$K,InTB!$N:$N,$C27,InTB!$C:$C,M$1)-SUMIFS(InTB!$K:$K,InTB!$N:$N,$B27,InTB!$C:$C,M$1)-SUMIFS(InTB!$K:$K,InTB!$N:$N,$C29,InTB!$C:$C,M$1)-SUMIFS(InTB!$K:$K,InTB!$N:$N,$B29,InTB!$C:$C,M$1) -> 0 | N27: =ROUND($T27*N$2,2)-SUMIFS(InTB!$K:$K,InTB!$N:$N,$C27,InTB!$C:$C,N$1)-SUMIFS(InTB!$K:$K,InTB!$N:$N,$B27,InTB!$C:$C,N$1)-SUMIFS(InTB!$K:$K,InTB!$N:$N,$C29,InTB!$C:$C,N$1)-SUMIFS(InTB!$K:$K,InTB!$N:$N,$B29,InTB!$C:$C,N$1) -> 0 | O27: =ROUND($T27*O$2,2)-SUMIFS(InTB!$K:$K,InTB!$N:$N,$C27,InTB!$C:$C,O$1)-SUMIFS(InTB!$K:$K,InTB!$N:$N,$B27,InTB!$C:$C,O$1)-SUMIFS(InTB!$K:$K,InTB!$N:$N,$C29,InTB!$C:$C,O$1)-SUMIFS(InTB!$K:$K,InTB!$N:$N,$B29,InTB!$C:$C,O$1) -> 0 | P27: =ROUND($T27*P$2,2)-SUMIFS(InTB!$K:$K,InTB!$N:$N,$C27,InTB!$C:$C,P$1)-SUMIFS(InTB!$K:$K,InTB!$N:$N,$B27,InTB!$C:$C,P$1)-SUMIFS(InTB!$K:$K,InTB!$N:$N,$C29,InTB!$C:$C,P$1)-SUMIFS(InTB!$K:$K,InTB!$N:$N,$B29,InTB!$C:$C,P$1) -> 0 | Q27: =ROUND($T27*Q$2,2)-SUMIFS(InTB!$K:$K,InTB!$N:$N,$C27,InTB!$C:$C,Q$1)-SUMIFS(InTB!$K:$K,InTB!$N:$N,$B27,InTB!$C:$C,Q$1)-SUMIFS(InTB!$K:$K,InTB!$N:$N,$C29,InTB!$C:$C,Q$1)-SUMIFS(InTB!$K:$K,InTB!$N:$N,$B29,InTB!$C:$C,Q$1) -> 0 | R27: =ROUND($T27*R$2,2)-SUMIFS(InTB!$K:$K,InTB!$N:$N,$C27,InTB!$C:$C,R$1)-SUMIFS(InTB!$K:$K,InTB!$N:$N,$B27,InTB!$C:$C,R$1)-SUMIFS(InTB!$K:$K,InTB!$N:$N,$C29,InTB!$C:$C,R$1)-SUMIFS(InTB!$K:$K,InTB!$N:$N,$B29,InTB!$C:$C,R$1) -> 0 | S27: =ROUND($T27*S$2,2)-SUMIFS(InTB!$K:$K,InTB!$N:$N,$C27,InTB!$C:$C,S$1)-SUMIFS(InTB!$K:$K,InTB!$N:$N,$B27,InTB!$C:$C,S$1)-SUMIFS(InTB!$K:$K,InTB!$N:$N,$C29,InTB!$C:$C,S$1)-SUMIFS(InTB!$K:$K,InTB!$N:$N,$B29,InTB!$C:$C,S$1) -> 0 | T27: =-SUMIF(InTBBase!$N:$N,$C27,InTBBase!$K:$K)-SUMIF(InTBBase!$N:$N,$B27,InTBBase!$K:$K)-T29 -> 0 | V27: 0
C28: PRDVTA_O-* | D28: GDIV3 | F28: =OFFSET(Label!$A$1,MATCH(D28,Label!$A$1:$A$65537,0)-1,Main!$G$14+1) -> Dividend Income - Foreign (TA) | I28: =-SUMIF(InTB!$N:$N,$C28,InTB!$K:$K)-SUMIF(InTB!$N:$N,$B28,InTB!$K:$K) -> 71398.44 | J28: =ROUND($T28*J$2,2)-SUMIFS(InTB!$K:$K,InTB!$N:$N,$C28,InTB!$C:$C,J$1)-SUMIFS(InTB!$K:$K,InTB!$N:$N,$B28,InTB!$C:$C,J$1) -> 70485.74 | K28: =ROUND($T28*K$2,2)-SUMIFS(InTB!$K:$K,InTB!$N:$N,$C28,InTB!$C:$C,K$1)-SUMIFS(InTB!$K:$K,InTB!$N:$N,$B28,InTB!$C:$C,K$1) -> 912.7 | L28: =ROUND($T28*L$2,2)-SUMIFS(InTB!$K:$K,InTB!$N:$N,$C28,InTB!$C:$C,L$1)-SUMIFS(InTB!$K:$K,InTB!$N:$N,$B28,InTB!$C:$C,L$1) -> 0 | M28: =ROUND($T28*M$2,2)-SUMIFS(InTB!$K:$K,InTB!$N:$N,$C28,InTB!$C:$C,M$1)-SUMIFS(InTB!$K:$K,InTB!$N:$N,$B28,InTB!$C:$C,M$1) -> 0 | N28: =ROUND($T28*N$2,2)-SUMIFS(InTB!$K:$K,InTB!$N:$N,$C28,InTB!$C:$C,N$1)-SUMIFS(InTB!$K:$K,InTB!$N:$N,$B28,InTB!$C:$C,N$1) -> 0 | O28: =ROUND($T28*O$2,2)-SUMIFS(InTB!$K:$K,InTB!$N:$N,$C28,InTB!$C:$C,O$1)-SUMIFS(InTB!$K:$K,InTB!$N:$N,$B28,InTB!$C:$C,O$1) -> 0 | P28: =ROUND($T28*P$2,2)-SUMIFS(InTB!$K:$K,InTB!$N:$N,$C28,InTB!$C:$C,P$1)-SUMIFS(InTB!$K:$K,InTB!$N:$N,$B28,InTB!$C:$C,P$1) -> 0 | Q28: =ROUND($T28*Q$2,2)-SUMIFS(InTB!$K:$K,InTB!$N:$N,$C28,InTB!$C:$C,Q$1)-SUMIFS(InTB!$K:$K,InTB!$N:$N,$B28,InTB!$C:$C,Q$1) -> 0 | R28: =ROUND($T28*R$2,2)-SUMIFS(InTB!$K:$K,InTB!$N:$N,$C28,InTB!$C:$C,R$1)-SUMIFS(InTB!$K:$K,InTB!$N:$N,$B28,InTB!$C:$C,R$1) -> 0 | S28: =ROUND($T28*S$2,2)-SUMIFS(InTB!$K:$K,InTB!$N:$N,$C28,InTB!$C:$C,S$1)-SUMIFS(InTB!$K:$K,InTB!$N:$N,$B28,InTB!$C:$C,S$1) -> 0 | T28: =-SUMIF(InTBBase!$N:$N,$C28,InTBBase!$K:$K)-SUMIF(InTBBase!$N:$N,$B28,InTBBase!$K:$K) -> 71398.44 | V28: 0
C29: PRDVTE_O-* | D29: GDIV4 | F29: =OFFSET(Label!$A$1,MATCH(D29,Label!$A$1:$A$65537,0)-1,Main!$G$14+1) -> Dividend Income - Foreign (TE) | I29: =-SUMIF(InTB!$N:$N,$C29,InTB!$K:$K)-SUMIF(InTB!$N:$N,$B29,InTB!$K:$K) -> 29224.61 | J29: =ROUND($T29*J$2,2)-SUMIFS(InTB!$K:$K,InTB!$N:$N,$C29,InTB!$C:$C,J$1)-SUMIFS(InTB!$K:$K,InTB!$N:$N,$B29,InTB!$C:$C,J$1) -> 28851.03 | K29: =ROUND($T29*K$2,2)-SUMIFS(InTB!$K:$K,InTB!$N:$N,$C29,InTB!$C:$C,K$1)-SUMIFS(InTB!$K:$K,InTB!$N:$N,$B29,InTB!$C:$C,K$1) -> 373.58 | L29: =ROUND($T29*L$2,2)-SUMIFS(InTB!$K:$K,InTB!$N:$N,$C29,InTB!$C:$C,L$1)-SUMIFS(InTB!$K:$K,InTB!$N:$N,$B29,InTB!$C:$C,L$1) -> 0 | M29: =ROUND($T29*M$2,2)-SUMIFS(InTB!$K:$K,InTB!$N:$N,$C29,InTB!$C:$C,M$1)-SUMIFS(InTB!$K:$K,InTB!$N:$N,$B29,InTB!$C:$C,M$1) -> 0 | N29: =ROUND($T29*N$2,2)-SUMIFS(InTB!$K:$K,InTB!$N:$N,$C29,InTB!$C:$C,N$1)-SUMIFS(InTB!$K:$K,InTB!$N:$N,$B29,InTB!$C:$C,N$1) -> 0 | O29: =ROUND($T29*O$2,2)-SUMIFS(InTB!$K:$K,InTB!$N:$N,$C29,InTB!$C:$C,O$1)-SUMIFS(InTB!$K:$K,InTB!$N:$N,$B29,InTB!$C:$C,O$1) -> 0 | P29: =ROUND($T29*P$2,2)-SUMIFS(InTB!$K:$K,InTB!$N:$N,$C29,InTB!$C:$C,P$1)-SUMIFS(InTB!$K:$K,InTB!$N:$N,$B29,InTB!$C:$C,P$1) -> 0 | Q29: =ROUND($T29*Q$2,2)-SUMIFS(InTB!$K:$K,InTB!$N:$N,$C29,InTB!$C:$C,Q$1)-SUMIFS(InTB!$K:$K,InTB!$N:$N,$B29,InTB!$C:$C,Q$1) -> 0 | R29: =ROUND($T29*R$2,2)-SUMIFS(InTB!$K:$K,InTB!$N:$N,$C29,InTB!$C:$C,R$1)-SUMIFS(InTB!$K:$K,InTB!$N:$N,$B29,InTB!$C:$C,R$1) -> 0 | S29: =ROUND($T29*S$2,2)-SUMIFS(InTB!$K:$K,InTB!$N:$N,$C29,InTB!$C:$C,S$1)-SUMIFS(InTB!$K:$K,InTB!$N:$N,$B29,InTB!$C:$C,S$1) -> 0 | T29: =-SUMIF(InTBBase!$N:$N,$C29,InTBBase!$K:$K)-SUMIF(InTBBase!$N:$N,$B29,InTBBase!$K:$K) -> 29224.61 | V29: 0
F30: NET REALISED GAIN/(LOSS) ON SALE OF INVESTMENTS | I30: =I31+I32 -> 73783.38 | J30: =J31+J32 -> 72840.2 | K30: =K31+K32 -> 943.18 | L30: 0 | M30: 0 | N30: 0 | O30: =O31+O32 -> 0 | P30: 0 | Q30: 0 | R30: =R31+R32 -> 0 | S30: =S31+S32 -> 0 | T30: 73783.38 | V30: 0
C31: PRRGNL* | E31: PRGNLO | F31: Local | I31: =-SUMIF(InTB!$N:$N,$C31,InTB!$K:$K)-SUMIF(InTB!$N:$N,$B31,InTB!$K:$K)-I32 -> 0 | J31: =ROUND($T31*J$2,2)-SUMIFS(InTB!$K:$K,InTB!$N:$N,$C31,InTB!$C:$C,J$1)-SUMIFS(InTB!$K:$K,InTB!$N:$N,$B31,InTB!$C:$C,J$1)-SUMIFS(InTB!$K:$K,InTB!$N:$N,$C32,InTB!$C:$C,J$1)-SUMIFS(InTB!$K:$K,InTB!$N:$N,$B32,InTB!$C:$C,J$1) -> 0 | K31: =ROUND($T31*K$2,2)-SUMIFS(InTB!$K:$K,InTB!$N:$N,$C31,InTB!$C:$C,K$1)-SUMIFS(InTB!$K:$K,InTB!$N:$N,$B31,InTB!$C:$C,K$1)-SUMIFS(InTB!$K:$K,InTB!$N:$N,$C32,InTB!$C:$C,K$1)-SUMIFS(InTB!$K:$K,InTB!$N:$N,$B32,InTB!$C:$C,K$1) -> 0 | L31: =ROUND($T31*L$2,2)-SUMIFS(InTB!$K:$K,InTB!$N:$N,$C31,InTB!$C:$C,L$1)-SUMIFS(InTB!$K:$K,InTB!$N:$N,$B31,InTB!$C:$C,L$1)-SUMIFS(InTB!$K:$K,InTB!$N:$N,$C32,InTB!$C:$C,L$1)-SUMIFS(InTB!$K:$K,InTB!$N:$N,$B32,InTB!$C:$C,L$1) -> 0 | M31: =ROUND($T31*M$2,2)-SUMIFS(InTB!$K:$K,InTB!$N:$N,$C31,InTB!$C:$C,M$1)-SUMIFS(InTB!$K:$K,InTB!$N:$N,$B31,InTB!$C:$C,M$1)-SUMIFS(InTB!$K:$K,InTB!$N:$N,$C32,InTB!$C:$C,M$1)-SUMIFS(InTB!$K:$K,InTB!$N:$N,$B32,InTB!$C:$C,M$1) -> 0 | N31: =ROUND($T31*N$2,2)-SUMIFS(InTB!$K:$K,InTB!$N:$N,$C31,InTB!$C:$C,N$1)-SUMIFS(InTB!$K:$K,InTB!$N:$N,$B31,InTB!$C:$C,N$1)-SUMIFS(InTB!$K:$K,InTB!$N:$N,$C32,InTB!$C:$C,N$1)-SUMIFS(InTB!$K:$K,InTB!$N:$N,$B32,InTB!$C:$C,N$1) -> 0 | O31: =ROUND($T31*O$2,2)-SUMIFS(InTB!$K:$K,InTB!$N:$N,$C31,InTB!$C:$C,O$1)-SUMIFS(InTB!$K:$K,InTB!$N:$N,$B31,InTB!$C:$C,O$1)-SUMIFS(InTB!$K:$K,InTB!$N:$N,$C32,InTB!$C:$C,O$1)-SUMIFS(InTB!$K:$K,InTB!$N:$N,$B32,InTB!$C:$C,O$1) -> 0 | P31: =ROUND($T31*P$2,2)-SUMIFS(InTB!$K:$K,InTB!$N:$N,$C31,InTB!$C:$C,P$1)-SUMIFS(InTB!$K:$K,InTB!$N:$N,$B31,InTB!$C:$C,P$1)-SUMIFS(InTB!$K:$K,InTB!$N:$N,$C32,InTB!$C:$C,P$1)-SUMIFS(InTB!$K:$K,InTB!$N:$N,$B32,InTB!$C:$C,P$1) -> 0 | Q31: =ROUND($T31*Q$2,2)-SUMIFS(InTB!$K:$K,InTB!$N:$N,$C31,InTB!$C:$C,Q$1)-SUMIFS(InTB!$K:$K,InTB!$N:$N,$B31,InTB!$C:$C,Q$1)-SUMIFS(InTB!$K:$K,InTB!$N:$N,$C32,InTB!$C:$C,Q$1)-SUMIFS(InTB!$K:$K,InTB!$N:$N,$B32,InTB!$C:$C,Q$1) -> 0 | R31: =ROUND($T31*R$2,2)-SUMIFS(InTB!$K:$K,InTB!$N:$N,$C31,InTB!$C:$C,R$1)-SUMIFS(InTB!$K:$K,InTB!$N:$N,$B31,InTB!$C:$C,R$1)-SUMIFS(InTB!$K:$K,InTB!$N:$N,$C32,InTB!$C:$C,R$1)-SUMIFS(InTB!$K:$K,InTB!$N:$N,$B32,InTB!$C:$C,R$1) -> 0 | S31: =ROUND($T31*S$2,2)-SUMIFS(InTB!$K:$K,InTB!$N:$N,$C31,InTB!$C:$C,S$1)-SUMIFS(InTB!$K:$K,InTB!$N:$N,$B31,InTB!$C:$C,S$1)-SUMIFS(InTB!$K:$K,InTB!$N:$N,$C32,InTB!$C:$C,S$1)-SUMIFS(InTB!$K:$K,InTB!$N:$N,$B32,InTB!$C:$C,S$1) -> 0 | T31: =-SUMIF(InTBBase!$N:$N,$C31,InTBBase!$K:$K)-SUMIF(InTBBase!$N:$N,$B31,InTBBase!$K:$K)-T32 -> 0 | V31: 0
C32: PRRGNL_O-* | E32: PRGNFO | F32: Foreign | I32: =-SUMIF(InTB!$N:$N,$C32,InTB!$K:$K)-SUMIF(InTB!$N:$N,$B32,InTB!$K:$K) -> 73783.38 | J32: =ROUND($T32*J$2,2)-SUMIFS(InTB!$K:$K,InTB!$N:$N,$C32,InTB!$C:$C,J$1)-SUMIFS(InTB!$K:$K,InTB!$N:$N,$B32,InTB!$C:$C,J$1) -> 72840.2 | K32: =ROUND($T32*K$2,2)-SUMIFS(InTB!$K:$K,InTB!$N:$N,$C32,InTB!$C:$C,K$1)-SUMIFS(InTB!$K:$K,InTB!$N:$N,$B32,InTB!$C:$C,K$1) -> 943.18 | L32: =ROUND($T32*L$2,2)-SUMIFS(InTB!$K:$K,InTB!$N:$N,$C32,InTB!$C:$C,L$1)-SUMIFS(InTB!$K:$K,InTB!$N:$N,$B32,InTB!$C:$C,L$1) -> 0 | M32: =ROUND($T32*M$2,2)-SUMIFS(InTB!$K:$K,InTB!$N:$N,$C32,InTB!$C:$C,M$1)-SUMIFS(InTB!$K:$K,InTB!$N:$N,$B32,InTB!$C:$C,M$1) -> 0 | N32: =ROUND($T32*N$2,2)-SUMIFS(InTB!$K:$K,InTB!$N:$N,$C32,InTB!$C:$C,N$1)-SUMIFS(InTB!$K:$K,InTB!$N:$N,$B32,InTB!$C:$C,N$1) -> 0 | O32: =ROUND($T32*O$2,2)-SUMIFS(InTB!$K:$K,InTB!$N:$N,$C32,InTB!$C:$C,O$1)-SUMIFS(InTB!$K:$K,InTB!$N:$N,$B32,InTB!$C:$C,O$1) -> 0 | P32: =ROUND($T32*P$2,2)-SUMIFS(InTB!$K:$K,InTB!$N:$N,$C32,InTB!$C:$C,P$1)-SUMIFS(InTB!$K:$K,InTB!$N:$N,$B32,InTB!$C:$C,P$1) -> 0 | Q32: =ROUND($T32*Q$2,2)-SUMIFS(InTB!$K:$K,InTB!$N:$N,$C32,InTB!$C:$C,Q$1)-SUMIFS(InTB!$K:$K,InTB!$N:$N,$B32,InTB!$C:$C,Q$1) -> 0 | R32: =ROUND($T32*R$2,2)-SUMIFS(InTB!$K:$K,InTB!$N:$N,$C32,InTB!$C:$C,R$1)-SUMIFS(InTB!$K:$K,InTB!$N:$N,$B32,InTB!$C:$C,R$1) -> 0 | S32: =ROUND($T32*S$2,2)-SUMIFS(InTB!$K:$K,InTB!$N:$N,$C32,InTB!$C:$C,S$1)-SUMIFS(InTB!$K:$K,InTB!$N:$N,$B32,InTB!$C:$C,S$1) -> 0 | T32: =-SUMIF(InTBBase!$N:$N,$C32,InTBBase!$K:$K)-SUMIF(InTBBase!$N:$N,$B32,InTBBase!$K:$K) -> 73783.38 | V32: 0
E33: PRGNFC | F33: NET GAIN/ (LOSS) ON FORWARD CONTRACT | I33: =-SUMIF(InTB!$M:$M,$E33,InTB!$K:$K) -> 0 | J33: =ROUND($T33*J$2,2)-SUMIFS(InTB!$K:$K,InTB!$M:$M,$E33,InTB!$C:$C,J$1) -> 0 | K33: =ROUND($T33*K$2,2)-SUMIFS(InTB!$K:$K,InTB!$M:$M,$E33,InTB!$C:$C,K$1) -> 0 | L33: =ROUND($T33*L$2,2)-SUMIFS(InTB!$K:$K,InTB!$M:$M,$E33,InTB!$C:$C,L$1) -> 0 | M33: =ROUND($T33*M$2,2)-SUMIFS(InTB!$K:$K,InTB!$M:$M,$E33,InTB!$C:$C,M$1) -> 0 | N33: =ROUND($T33*N$2,2)-SUMIFS(InTB!$K:$K,InTB!$M:$M,$E33,InTB!$C:$C,N$1) -> 0 | O33: =ROUND($T33*O$2,2)-SUMIFS(InTB!$K:$K,InTB!$M:$M,$E33,InTB!$C:$C,O$1) -> 0 | P33: =ROUND($T33*P$2,2)-SUMIFS(InTB!$K:$K,InTB!$M:$M,$E33,InTB!$C:$C,P$1) -> 0 | Q33: =ROUND($T33*Q$2,2)-SUMIFS(InTB!$K:$K,InTB!$M:$M,$E33,InTB!$C:$C,Q$1) -> 0 | R33: =ROUND($T33*R$2,2)-SUMIFS(InTB!$K:$K,InTB!$M:$M,$E33,InTB!$C:$C,R$1) -> 0 | S33: =ROUND($T33*S$2,2)-SUMIFS(InTB!$K:$K,InTB!$M:$M,$E33,InTB!$C:$C,S$1) -> 0 | T33: =-SUMIF(InTBBase!$M:$M,$E33,InTBBase!$K:$K) -> 0 | V33: 0
E34: PRGNFX | F34: NET GAIN/ (LOSS) ON FOREIGN EXCHANGE - REALISED | I34: =-SUMIF(InTB!$M:$M,$E34,InTB!$K:$K) -> 97386.16 | J34: =ROUND($T34*J$2,2)-SUMIFS(InTB!$K:$K,InTB!$M:$M,$E34,InTB!$C:$C,J$1)+(ROUND(J$2*$T$37,2)-J$37)+(ROUND(J2*$T$41,2)-J$41)+(ROUND(J$2*$T$42,2)-J$42)+(ROUND(J$2*$T$73,2)-J$73) -> 96141.26 | K34: =ROUND($T34*K$2,2)-SUMIFS(InTB!$K:$K,InTB!$M:$M,$E34,InTB!$C:$C,K$1)+(ROUND(K$2*$T$37,2)-K$37)+(ROUND(K2*$T$41,2)-K$41)+(ROUND(K$2*$T$42,2)-K$42)+(ROUND(K$2*$T$73,2)-K$73) -> 1244.9 | L34: =ROUND($T34*L$2,2)-SUMIFS(InTB!$K:$K,InTB!$M:$M,$E34,InTB!$C:$C,L$1)+(ROUND(L$2*$T$37,2)-L$37)+(ROUND(L2*$T$41,2)-L$41)+(ROUND(L$2*$T$42,2)-L$42)+(ROUND(L$2*$T$73,2)-L$73) -> 0 | M34: =ROUND($T34*M$2,2)-SUMIFS(InTB!$K:$K,InTB!$M:$M,$E34,InTB!$C:$C,M$1)+(ROUND(M$2*$T$37,2)-M$37)+(ROUND(M2*$T$41,2)-M$41)+(ROUND(M$2*$T$42,2)-M$42)+(ROUND(M$2*$T$73,2)-M$73) -> 0 | N34: =ROUND($T34*N$2,2)-SUMIFS(InTB!$K:$K,InTB!$M:$M,$E34,InTB!$C:$C,N$1)+(ROUND(N$2*$T$37,2)-N$37)+(ROUND(N2*$T$41,2)-N$41)+(ROUND(N$2*$T$42,2)-N$42)+(ROUND(N$2*$T$73,2)-N$73) -> 0 | O34: =ROUND($T34*O$2,2)-SUMIFS(InTB!$K:$K,InTB!$M:$M,$E34,InTB!$C:$C,O$1)+(ROUND(O$2*$T$37,2)-O$37)+(ROUND(O2*$T$41,2)-O$41)+(ROUND(O$2*$T$42,2)-O$42)+(ROUND(O$2*$T$73,2)-O$73) -> 0 | P34: =ROUND($T34*P$2,2)-SUMIFS(InTB!$K:$K,InTB!$M:$M,$E34,InTB!$C:$C,P$1)+(ROUND(P$2*$T$37,2)-P$37)+(ROUND(P2*$T$41,2)-P$41)+(ROUND(P$2*$T$42,2)-P$42)+(ROUND(P$2*$T$73,2)-P$73) -> 0 | Q34: =ROUND($T34*Q$2,2)-SUMIFS(InTB!$K:$K,InTB!$M:$M,$E34,InTB!$C:$C,Q$1)+(ROUND(Q$2*$T$37,2)-Q$37)+(ROUND(Q2*$T$41,2)-Q$41)+(ROUND(Q$2*$T$42,2)-Q$42)+(ROUND(Q$2*$T$73,2)-Q$73) -> 0 | R34: =ROUND($T34*R$2,2)-SUMIFS(InTB!$K:$K,InTB!$M:$M,$E34,InTB!$C:$C,R$1)+(ROUND(R$2*$T$37,2)-R$37)+(ROUND(R2*$T$41,2)-R$41)+(ROUND(R$2*$T$42,2)-R$42)+(ROUND(R$2*$T$73,2)-R$73) -> 0 | S34: =ROUND($T34*S$2,2)-SUMIFS(InTB!$K:$K,InTB!$M:$M,$E34,InTB!$C:$C,S$1)+(ROUND(S$2*$T$37,2)-S$37)+(ROUND(S2*$T$41,2)-S$41)+(ROUND(S$2*$T$42,2)-S$42)+(ROUND(S$2*$T$73,2)-S$73) -> 0 | T34: =-SUMIF(InTBBase!$M:$M,$E34,InTBBase!$K:$K) -> 97386.16 | V34: =ROUND(I34-SUM(J34:S34),1) -> 0
E35: PUGNFX | F35: NET GAIN/ (LOSS) ON FOREIGN EXCHANGE - UNREALISED | I35: =-SUMIF(InTB!$M:$M,$E35,InTB!$K:$K) -> -161169.75 | J35: =ROUND($T35*J$2,2)-SUMIFS(InTB!$K:$K,InTB!$M:$M,$E35,InTB!$C:$C,J$1) -> -159109.49 | K35: =ROUND($T35*K$2,2)-SUMIFS(InTB!$K:$K,InTB!$M:$M,$E35,InTB!$C:$C,K$1) -> -2060.26 | L35: =ROUND($T35*L$2,2)-SUMIFS(InTB!$K:$K,InTB!$M:$M,$E35,InTB!$C:$C,L$1) -> 0 | M35: =ROUND($T35*M$2,2)-SUMIFS(InTB!$K:$K,InTB!$M:$M,$E35,InTB!$C:$C,M$1) -> 0 | N35: =ROUND($T35*N$2,2)-SUMIFS(InTB!$K:$K,InTB!$M:$M,$E35,InTB!$C:$C,N$1) -> 0 | O35: =ROUND($T35*O$2,2)-SUMIFS(InTB!$K:$K,InTB!$M:$M,$E35,InTB!$C:$C,O$1) -> 0 | P35: =ROUND($T35*P$2,2)-SUMIFS(InTB!$K:$K,InTB!$M:$M,$E35,InTB!$C:$C,P$1) -> 0 | Q35: =ROUND($T35*Q$2,2)-SUMIFS(InTB!$K:$K,InTB!$M:$M,$E35,InTB!$C:$C,Q$1) -> 0 | R35: =ROUND($T35*R$2,2)-SUMIFS(InTB!$K:$K,InTB!$M:$M,$E35,InTB!$C:$C,R$1) -> 0 | S35: =ROUND($T35*S$2,2)-SUMIFS(InTB!$K:$K,InTB!$M:$M,$E35,InTB!$C:$C,S$1) -> 0 | T35: =-SUMIF(InTBBase!$M:$M,$E35,InTBBase!$K:$K) -> -161169.75 | V35: 0
D36: OTHINC | E36: PRINOT | F36: =OFFSET(Label!$A$1,MATCH(D36,Label!$A$1:$A$65537,0)-1,Main!$G$14+1) -> OTHER INCOME | I36: =-SUMIF(InTB!$M:$M,$E36,InTB!$K:$K) -> 0 | J36: =ROUND($T36*J$2,2)-SUMIFS(InTB!$K:$K,InTB!$M:$M,$E36,InTB!$C:$C,J$1) -> 0 | K36: =ROUND($T36*K$2,2)-SUMIFS(InTB!$K:$K,InTB!$M:$M,$E36,InTB!$C:$C,K$1) -> 0 | L36: =ROUND($T36*L$2,2)-SUMIFS(InTB!$K:$K,InTB!$M:$M,$E36,InTB!$C:$C,L$1) -> 0 | M36: =ROUND($T36*M$2,2)-SUMIFS(InTB!$K:$K,InTB!$M:$M,$E36,InTB!$C:$C,M$1) -> 0 | N36: =ROUND($T36*N$2,2)-SUMIFS(InTB!$K:$K,InTB!$M:$M,$E36,InTB!$C:$C,N$1) -> 0 | O36: =ROUND($T36*O$2,2)-SUMIFS(InTB!$K:$K,InTB!$M:$M,$E36,InTB!$C:$C,O$1) -> 0 | P36: =ROUND($T36*P$2,2)-SUMIFS(InTB!$K:$K,InTB!$M:$M,$E36,InTB!$C:$C,P$1) -> 0 | Q36: =ROUND($T36*Q$2,2)-SUMIFS(InTB!$K:$K,InTB!$M:$M,$E36,InTB!$C:$C,Q$1) -> 0 | R36: =ROUND($T36*R$2,2)-SUMIFS(InTB!$K:$K,InTB!$M:$M,$E36,InTB!$C:$C,R$1) -> 0 | S36: =ROUND($T36*S$2,2)-SUMIFS(InTB!$K:$K,InTB!$M:$M,$E36,InTB!$C:$C,S$1) -> 0 | T36: =-SUMIF(InTBBase!$M:$M,$E36,InTBBase!$K:$K) -> 0 | V36: 0
C37: MngRebateBC | D37: REBATE | E37: PRINRB | F37: =OFFSET(Label!$A$1,MATCH(D37,Label!$A$1:$A$65537,0)-1,Main!$G$14+1) -> REBATES FROM MANAGEMENT FEE | I37: =-SUMIF(InTB!$M:$M,$E37,InTB!$K:$K) -> 0 | J37: =ROUND(($T37-$U37)*J$2,2)-SUMIFS(InTB!$K:$K,InTB!$M:$M,$E37,InTB!$C:$C,J$1)+ROUND(SUMIFS(INDIRECT(ADDRESS(3,MATCH($C37,InUPFee!$2:$2,0),,,"InUPFee") & ":" & ADDRESS(30000,MATCH($C37,InUPFee!$2:$2,0)),TRUE),InUPFee!$A$3:$A$30000,J$1),2) -> 0 | K37: =ROUND(($T37-$U37)*K$2,2)-SUMIFS(InTB!$K:$K,InTB!$M:$M,$E37,InTB!$C:$C,K$1)+ROUND(SUMIFS(INDIRECT(ADDRESS(3,MATCH($C37,InUPFee!$2:$2,0),,,"InUPFee") & ":" & ADDRESS(30000,MATCH($C37,InUPFee!$2:$2,0)),TRUE),InUPFee!$A$3:$A$30000,K$1),2) -> 0 | L37: =ROUND(($T37-$U37)*L$2,2)-SUMIFS(InTB!$K:$K,InTB!$M:$M,$E37,InTB!$C:$C,L$1)+ROUND(SUMIFS(INDIRECT(ADDRESS(3,MATCH($C37,InUPFee!$2:$2,0),,,"InUPFee") & ":" & ADDRESS(30000,MATCH($C37,InUPFee!$2:$2,0)),TRUE),InUPFee!$A$3:$A$30000,L$1),2) -> 0 | M37: =ROUND(($T37-$U37)*M$2,2)-SUMIFS(InTB!$K:$K,InTB!$M:$M,$E37,InTB!$C:$C,M$1)+ROUND(SUMIFS(INDIRECT(ADDRESS(3,MATCH($C37,InUPFee!$2:$2,0),,,"InUPFee") & ":" & ADDRESS(30000,MATCH($C37,InUPFee!$2:$2,0)),TRUE),InUPFee!$A$3:$A$30000,M$1),2) -> 0 | N37: =ROUND(($T37-$U37)*N$2,2)-SUMIFS(InTB!$K:$K,InTB!$M:$M,$E37,InTB!$C:$C,N$1)+ROUND(SUMIFS(INDIRECT(ADDRESS(3,MATCH($C37,InUPFee!$2:$2,0),,,"InUPFee") & ":" & ADDRESS(30000,MATCH($C37,InUPFee!$2:$2,0)),TRUE),InUPFee!$A$3:$A$30000,N$1),2) -> 0 | O37: =ROUND(($T37-$U37)*O$2,2)-SUMIFS(InTB!$K:$K,InTB!$M:$M,$E37,InTB!$C:$C,O$1)+ROUND(SUMIFS(INDIRECT(ADDRESS(3,MATCH($C37,InUPFee!$2:$2,0),,,"InUPFee") & ":" & ADDRESS(30000,MATCH($C37,InUPFee!$2:$2,0)),TRUE),InUPFee!$A$3:$A$30000,O$1),2) -> 0 | P37: =ROUND(($T37-$U37)*P$2,2)-SUMIFS(InTB!$K:$K,InTB!$M:$M,$E37,InTB!$C:$C,P$1)+ROUND(SUMIFS(INDIRECT(ADDRESS(3,MATCH($C37,InUPFee!$2:$2,0),,,"InUPFee") & ":" & ADDRESS(30000,MATCH($C37,InUPFee!$2:$2,0)),TRUE),InUPFee!$A$3:$A$30000,P$1),2) -> 0 | Q37: =ROUND(($T37-$U37)*Q$2,2)-SUMIFS(InTB!$K:$K,InTB!$M:$M,$E37,InTB!$C:$C,Q$1)+ROUND(SUMIFS(INDIRECT(ADDRESS(3,MATCH($C37,InUPFee!$2:$2,0),,,"InUPFee") & ":" & ADDRESS(30000,MATCH($C37,InUPFee!$2:$2,0)),TRUE),InUPFee!$A$3:$A$30000,Q$1),2) -> 0 | R37: =ROUND(($T37-$U37)*R$2,2)-SUMIFS(InTB!$K:$K,InTB!$M:$M,$E37,InTB!$C:$C,R$1)+ROUND(SUMIFS(INDIRECT(ADDRESS(3,MATCH($C37,InUPFee!$2:$2,0),,,"InUPFee") & ":" & ADDRESS(30000,MATCH($C37,InUPFee!$2:$2,0)),TRUE),InUPFee!$A$3:$A$30000,R$1),2) -> 0 | S37: =ROUND(($T37-$U37)*S$2,2)-SUMIFS(InTB!$K:$K,InTB!$M:$M,$E37,InTB!$C:$C,S$1)+ROUND(SUMIFS(INDIRECT(ADDRESS(3,MATCH($C37,InUPFee!$2:$2,0),,,"InUPFee") & ":" & ADDRESS(30000,MATCH($C37,InUPFee!$2:$2,0)),TRUE),InUPFee!$A$3:$A$30000,S$1),2) -> 0 | T37: =-SUMIF(InTBBase!$M:$M,$E37,InTBBase!$K:$K) -> 0 | U37: =SUMIFS(INDIRECT(ADDRESS(3,MATCH($C37,InUPFee!$2:$2,0),,,"InUPFee") & ":" & ADDRESS(30000,MATCH($C37,InUPFee!$2:$2,0)),TRUE),InUPFee!$A$3:$A$30000,FundCode) -> 0 | V37: =ROUND(I37-SUM(J37:S37),1) -> 0
F38: TOTAL INCOME | I38: =I15+I21+I25+I30+SUM(I33:I37) -> 110816.58 | J38: 109400 | K38: =K15+K21+K25+K30+SUM(K33:K37) -> 1416.58 | L38: =L15+L21+L25+L30+SUM(L33:L37) -> 0 | M38: 0 | N38: 0 | O38: =O15+O21+O25+O30+SUM(O33:O37) -> 0 | P38: 0 | Q38: 0 | R38: =R15+R21+R25+R30+SUM(R33:R37) -> 0 | S38: 0 | T38: =T15+T21+T25+T30+SUM(T33:T37) -> 110816.58 | V38: 0
V39: 0
D40: EXP | F40: =OFFSET(Label!$A$1,MATCH(D40,Label!$A$1:$A$65537,0)-1,Main!$G$14+1) -> EXPENDITURE | V40: 0
C41: MngFeeBC | D41: MGTFEE | E41: PREMNG | F41: =OFFSET(Label!$A$1,MATCH(D41,Label!$A$1:$A$65537,0)-1,Main!$G$14+1) -> MANAGEMENT FEE | I41: =-SUMIF(InTB!$M:$M,$E41,InTB!$K:$K) -> -72109.33 | J41: =ROUND(($T41-$U41)*J$2,2)-SUMIFS(InTB!$K:$K,InTB!$M:$M,$E41,InTB!$C:$C,J$1)+ROUND(SUMIFS(INDIRECT(ADDRESS(3,MATCH($C41,InUPFee!$2:$2,0),,,"InUPFee") & ":" & ADDRESS(30000,MATCH($C41,InUPFee!$2:$2,0)),TRUE),InUPFee!$A$3:$A$30000,J$1),2) -> -71187.55 | K41: =ROUND(($T41-$U41)*K$2,2)-SUMIFS(InTB!$K:$K,InTB!$M:$M,$E41,InTB!$C:$C,K$1)+ROUND(SUMIFS(INDIRECT(ADDRESS(3,MATCH($C41,InUPFee!$2:$2,0),,,"InUPFee") & ":" & ADDRESS(30000,MATCH($C41,InUPFee!$2:$2,0)),TRUE),InUPFee!$A$3:$A$30000,K$1),2) -> -921.78 | L41: =ROUND(($T41-$U41)*L$2,2)-SUMIFS(InTB!$K:$K,InTB!$M:$M,$E41,InTB!$C:$C,L$1)+ROUND(SUMIFS(INDIRECT(ADDRESS(3,MATCH($C41,InUPFee!$2:$2,0),,,"InUPFee") & ":" & ADDRESS(30000,MATCH($C41,InUPFee!$2:$2,0)),TRUE),InUPFee!$A$3:$A$30000,L$1),2) -> 0 | M41: =ROUND(($T41-$U41)*M$2,2)-SUMIFS(InTB!$K:$K,InTB!$M:$M,$E41,InTB!$C:$C,M$1)+ROUND(SUMIFS(INDIRECT(ADDRESS(3,MATCH($C41,InUPFee!$2:$2,0),,,"InUPFee") & ":" & ADDRESS(30000,MATCH($C41,InUPFee!$2:$2,0)),TRUE),InUPFee!$A$3:$A$30000,M$1),2) -> 0 | N41: =ROUND(($T41-$U41)*N$2,2)-SUMIFS(InTB!$K:$K,InTB!$M:$M,$E41,InTB!$C:$C,N$1)+ROUND(SUMIFS(INDIRECT(ADDRESS(3,MATCH($C41,InUPFee!$2:$2,0),,,"InUPFee") & ":" & ADDRESS(30000,MATCH($C41,InUPFee!$2:$2,0)),TRUE),InUPFee!$A$3:$A$30000,N$1),2) -> 0 | O41: =ROUND(($T41-$U41)*O$2,2)-SUMIFS(InTB!$K:$K,InTB!$M:$M,$E41,InTB!$C:$C,O$1)+ROUND(SUMIFS(INDIRECT(ADDRESS(3,MATCH($C41,InUPFee!$2:$2,0),,,"InUPFee") & ":" & ADDRESS(30000,MATCH($C41,InUPFee!$2:$2,0)),TRUE),InUPFee!$A$3:$A$30000,O$1),2) -> 0 | P41: =ROUND(($T41-$U41)*P$2,2)-SUMIFS(InTB!$K:$K,InTB!$M:$M,$E41,InTB!$C:$C,P$1)+ROUND(SUMIFS(INDIRECT(ADDRESS(3,MATCH($C41,InUPFee!$2:$2,0),,,"InUPFee") & ":" & ADDRESS(30000,MATCH($C41,InUPFee!$2:$2,0)),TRUE),InUPFee!$A$3:$A$30000,P$1),2) -> 0 | Q41: =ROUND(($T41-$U41)*Q$2,2)-SUMIFS(InTB!$K:$K,InTB!$M:$M,$E41,InTB!$C:$C,Q$1)+ROUND(SUMIFS(INDIRECT(ADDRESS(3,MATCH($C41,InUPFee!$2:$2,0),,,"InUPFee") & ":" & ADDRESS(30000,MATCH($C41,InUPFee!$2:$2,0)),TRUE),InUPFee!$A$3:$A$30000,Q$1),2) -> 0 | R41: =ROUND(($T41-$U41)*R$2,2)-SUMIFS(InTB!$K:$K,InTB!$M:$M,$E41,InTB!$C:$C,R$1)+ROUND(SUMIFS(INDIRECT(ADDRESS(3,MATCH($C41,InUPFee!$2:$2,0),,,"InUPFee") & ":" & ADDRESS(30000,MATCH($C41,InUPFee!$2:$2,0)),TRUE),InUPFee!$A$3:$A$30000,R$1),2) -> 0 | S41: =ROUND(($T41-$U41)*S$2,2)-SUMIFS(InTB!$K:$K,InTB!$M:$M,$E41,InTB!$C:$C,S$1)+ROUND(SUMIFS(INDIRECT(ADDRESS(3,MATCH($C41,InUPFee!$2:$2,0),,,"InUPFee") & ":" & ADDRESS(30000,MATCH($C41,InUPFee!$2:$2,0)),TRUE),InUPFee!$A$3:$A$30000,S$1),2) -> 0 | T41: =-SUMIF(InTBBase!$M:$M,$E41,InTBBase!$K:$K) -> -72109.33 | U41: =SUMIFS(INDIRECT(ADDRESS(3,MATCH($C41,InUPFee!$2:$2,0),,,"InUPFee") & ":" & ADDRESS(30000,MATCH($C41,InUPFee!$2:$2,0)),TRUE),InUPFee!$A$3:$A$30000,FundCode) -> 0 | V41: 0
C42: TrusteeFeeBC | D42: TRTFEE | E42: PRETRS | F42: =OFFSET(Label!$A$1,MATCH(D42,Label!$A$1:$A$65537,0)-1,Main!$G$14+1) -> TRUSTEE'S FEE | I42: =-SUMIF(InTB!$M:$M,$E42,InTB!$K:$K) -> -5765.57 | J42: =ROUND(($T42-$U42)*J$2,2)-SUMIFS(InTB!$K:$K,InTB!$M:$M,$E42,InTB!$C:$C,J$1)+ROUND(SUMIFS(INDIRECT(ADDRESS(3,MATCH($C42,InUPFee!$2:$2,0),,,"InUPFee") & ":" & ADDRESS(30000,MATCH($C42,InUPFee!$2:$2,0)),TRUE),InUPFee!$A$3:$A$30000,J$1),2) -> -5691.87 | K42: =ROUND(($T42-$U42)*K$2,2)-SUMIFS(InTB!$K:$K,InTB!$M:$M,$E42,InTB!$C:$C,K$1)+ROUND(SUMIFS(INDIRECT(ADDRESS(3,MATCH($C42,InUPFee!$2:$2,0),,,"InUPFee") & ":" & ADDRESS(30000,MATCH($C42,InUPFee!$2:$2,0)),TRUE),InUPFee!$A$3:$A$30000,K$1),2) -> -73.7 | L42: =ROUND(($T42-$U42)*L$2,2)-SUMIFS(InTB!$K:$K,InTB!$M:$M,$E42,InTB!$C:$C,L$1)+ROUND(SUMIFS(INDIRECT(ADDRESS(3,MATCH($C42,InUPFee!$2:$2,0),,,"InUPFee") & ":" & ADDRESS(30000,MATCH($C42,InUPFee!$2:$2,0)),TRUE),InUPFee!$A$3:$A$30000,L$1),2) -> 0 | M42: =ROUND(($T42-$U42)*M$2,2)-SUMIFS(InTB!$K:$K,InTB!$M:$M,$E42,InTB!$C:$C,M$1)+ROUND(SUMIFS(INDIRECT(ADDRESS(3,MATCH($C42,InUPFee!$2:$2,0),,,"InUPFee") & ":" & ADDRESS(30000,MATCH($C42,InUPFee!$2:$2,0)),TRUE),InUPFee!$A$3:$A$30000,M$1),2) -> 0 | N42: =ROUND(($T42-$U42)*N$2,2)-SUMIFS(InTB!$K:$K,InTB!$M:$M,$E42,InTB!$C:$C,N$1)+ROUND(SUMIFS(INDIRECT(ADDRESS(3,MATCH($C42,InUPFee!$2:$2,0),,,"InUPFee") & ":" & ADDRESS(30000,MATCH($C42,InUPFee!$2:$2,0)),TRUE),InUPFee!$A$3:$A$30000,N$1),2) -> 0 | O42: =ROUND(($T42-$U42)*O$2,2)-SUMIFS(InTB!$K:$K,InTB!$M:$M,$E42,InTB!$C:$C,O$1)+ROUND(SUMIFS(INDIRECT(ADDRESS(3,MATCH($C42,InUPFee!$2:$2,0),,,"InUPFee") & ":" & ADDRESS(30000,MATCH($C42,InUPFee!$2:$2,0)),TRUE),InUPFee!$A$3:$A$30000,O$1),2) -> 0 | P42: =ROUND(($T42-$U42)*P$2,2)-SUMIFS(InTB!$K:$K,InTB!$M:$M,$E42,InTB!$C:$C,P$1)+ROUND(SUMIFS(INDIRECT(ADDRESS(3,MATCH($C42,InUPFee!$2:$2,0),,,"InUPFee") & ":" & ADDRESS(30000,MATCH($C42,InUPFee!$2:$2,0)),TRUE),InUPFee!$A$3:$A$30000,P$1),2) -> 0 | Q42: =ROUND(($T42-$U42)*Q$2,2)-SUMIFS(InTB!$K:$K,InTB!$M:$M,$E42,InTB!$C:$C,Q$1)+ROUND(SUMIFS(INDIRECT(ADDRESS(3,MATCH($C42,InUPFee!$2:$2,0),,,"InUPFee") & ":" & ADDRESS(30000,MATCH($C42,InUPFee!$2:$2,0)),TRUE),InUPFee!$A$3:$A$30000,Q$1),2) -> 0 | R42: =ROUND(($T42-$U42)*R$2,2)-SUMIFS(InTB!$K:$K,InTB!$M:$M,$E42,InTB!$C:$C,R$1)+ROUND(SUMIFS(INDIRECT(ADDRESS(3,MATCH($C42,InUPFee!$2:$2,0),,,"InUPFee") & ":" & ADDRESS(30000,MATCH($C42,InUPFee!$2:$2,0)),TRUE),InUPFee!$A$3:$A$30000,R$1),2) -> 0 | S42: =ROUND(($T42-$U42)*S$2,2)-SUMIFS(InTB!$K:$K,InTB!$M:$M,$E42,InTB!$C:$C,S$1)+ROUND(SUMIFS(INDIRECT(ADDRESS(3,MATCH($C42,InUPFee!$2:$2,0),,,"InUPFee") & ":" & ADDRESS(30000,MATCH($C42,InUPFee!$2:$2,0)),TRUE),InUPFee!$A$3:$A$30000,S$1),2) -> 0 | T42: =-SUMIF(InTBBase!$M:$M,$E42,InTBBase!$K:$K) -> -5765.57 | U42: =SUMIFS(INDIRECT(ADDRESS(3,MATCH($C42,InUPFee!$2:$2,0),,,"InUPFee") & ":" & ADDRESS(30000,MATCH($C42,InUPFee!$2:$2,0)),TRUE),InUPFee!$A$3:$A$30000,FundCode) -> 0 | V42: 0
D43: AUDITOR | E43: PREAUD | F43: =OFFSET(Label!$A$1,MATCH(D43,Label!$A$1:$A$65537,0)-1,Main!$G$14+1) -> AUDITOR'S REMUNERATION | I43: =-SUMIF(InTB!$M:$M,$E43,InTB!$K:$K) -> -3102.5 | J43: =ROUND($T43*J$2,2)-SUMIFS(InTB!$K:$K,InTB!$M:$M,$E43,InTB!$C:$C,J$1) -> -3062.84 | K43: =ROUND($T43*K$2,2)-SUMIFS(InTB!$K:$K,InTB!$M:$M,$E43,InTB!$C:$C,K$1) -> -39.66 | L43: =ROUND($T43*L$2,2)-SUMIFS(InTB!$K:$K,InTB!$M:$M,$E43,InTB!$C:$C,L$1) -> 0 | M43: =ROUND($T43*M$2,2)-SUMIFS(InTB!$K:$K,InTB!$M:$M,$E43,InTB!$C:$C,M$1) -> 0 | N43: =ROUND($T43*N$2,2)-SUMIFS(InTB!$K:$K,InTB!$M:$M,$E43,InTB!$C:$C,N$1) -> 0 | O43: =ROUND($T43*O$2,2)-SUMIFS(InTB!$K:$K,InTB!$M:$M,$E43,InTB!$C:$C,O$1) -> 0 | P43: =ROUND($T43*P$2,2)-SUMIFS(InTB!$K:$K,InTB!$M:$M,$E43,InTB!$C:$C,P$1) -> 0 | Q43: =ROUND($T43*Q$2,2)-SUMIFS(InTB!$K:$K,InTB!$M:$M,$E43,InTB!$C:$C,Q$1) -> 0 | R43: =ROUND($T43*R$2,2)-SUMIFS(InTB!$K:$K,InTB!$M:$M,$E43,InTB!$C:$C,R$1) -> 0 | S43: =ROUND($T43*S$2,2)-SUMIFS(InTB!$K:$K,InTB!$M:$M,$E43,InTB!$C:$C,S$1) -> 0 | T43: =-SUMIF(InTBBase!$M:$M,$E43,InTBBase!$K:$K) -> -3102.5 | V43: 0
D44: TAXAF | E44: PRETXA | F44: =OFFSET(Label!$A$1,MATCH(D44,Label!$A$1:$A$65537,0)-1,Main!$G$14+1) -> TAX AGENT'S FEE | I44: =-SUMIF(InTB!$M:$M,$E44,InTB!$K:$K) -> -959.95 | J44: =ROUND($T44*J$2,2)-SUMIFS(InTB!$K:$K,InTB!$M:$M,$E44,InTB!$C:$C,J$1) -> -947.68 | K44: =ROUND($T44*K$2,2)-SUMIFS(InTB!$K:$K,InTB!$M:$M,$E44,InTB!$C:$C,K$1) -> -12.27 | L44: =ROUND($T44*L$2,2)-SUMIFS(InTB!$K:$K,InTB!$M:$M,$E44,InTB!$C:$C,L$1) -> 0 | M44: =ROUND($T44*M$2,2)-SUMIFS(InTB!$K:$K,InTB!$M:$M,$E44,InTB!$C:$C,M$1) -> 0 | N44: =ROUND($T44*N$2,2)-SUMIFS(InTB!$K:$K,InTB!$M:$M,$E44,InTB!$C:$C,N$1) -> 0 | O44: =ROUND($T44*O$2,2)-SUMIFS(InTB!$K:$K,InTB!$M:$M,$E44,InTB!$C:$C,O$1) -> 0 | P44: =ROUND($T44*P$2,2)-SUMIFS(InTB!$K:$K,InTB!$M:$M,$E44,InTB!$C:$C,P$1) -> 0 | Q44: =ROUND($T44*Q$2,2)-SUMIFS(InTB!$K:$K,InTB!$M:$M,$E44,InTB!$C:$C,Q$1) -> 0 | R44: =ROUND($T44*R$2,2)-SUMIFS(InTB!$K:$K,InTB!$M:$M,$E44,InTB!$C:$C,R$1) -> 0 | S44: =ROUND($T44*S$2,2)-SUMIFS(InTB!$K:$K,InTB!$M:$M,$E44,InTB!$C:$C,S$1) -> 0 | T44: =-SUMIF(InTBBase!$M:$M,$E44,InTBBase!$K:$K) -> -959.95 | V44: 0
D45: ADEXP | F45: =OFFSET(Label!$A$1,MATCH(D45,Label!$A$1:$A$65537,0)-1,Main!$G$14+1) -> ADMINISTRATION EXPENSES | I45: =SUM(I46:I67) -> -30493.69 | J45: -30103.88 | K45: =SUM(K46:K67) -> -389.81 | L45: 0 | M45: 0 | N45: 0 | O45: =SUM(O46:O67) -> 0 | P45: 0 | Q45: 0 | R45: =SUM(R46:R67) -> 0 | S45: =SUM(S46:S67) -> 0 | T45: -30493.69 | V45: 0
D46: ADEXP1 | E46: PREPRT | F46: =OFFSET(Label!$A$1,MATCH(D46,Label!$A$1:$A$65537,0)-1,Main!$G$14+1) -> Printing | I46: =-SUMIF(InTB!$M:$M,$E46,InTB!$K:$K) -> 0 | J46: =ROUND($T46*J$2,2)-SUMIFS(InTB!$K:$K,InTB!$M:$M,$E46,InTB!$C:$C,J$1) -> 0 | K46: =ROUND($T46*K$2,2)-SUMIFS(InTB!$K:$K,InTB!$M:$M,$E46,InTB!$C:$C,K$1) -> 0 | L46: =ROUND($T46*L$2,2)-SUMIFS(InTB!$K:$K,InTB!$M:$M,$E46,InTB!$C:$C,L$1) -> 0 | M46: =ROUND($T46*M$2,2)-SUMIFS(InTB!$K:$K,InTB!$M:$M,$E46,InTB!$C:$C,M$1) -> 0 | N46: =ROUND($T46*N$2,2)-SUMIFS(InTB!$K:$K,InTB!$M:$M,$E46,InTB!$C:$C,N$1) -> 0 | O46: =ROUND($T46*O$2,2)-SUMIFS(InTB!$K:$K,InTB!$M:$M,$E46,InTB!$C:$C,O$1) -> 0 | P46: =ROUND($T46*P$2,2)-SUMIFS(InTB!$K:$K,InTB!$M:$M,$E46,InTB!$C:$C,P$1) -> 0 | Q46: =ROUND($T46*Q$2,2)-SUMIFS(InTB!$K:$K,InTB!$M:$M,$E46,InTB!$C:$C,Q$1) -> 0 | R46: =ROUND($T46*R$2,2)-SUMIFS(InTB!$K:$K,InTB!$M:$M,$E46,InTB!$C:$C,R$1) -> 0 | S46: =ROUND($T46*S$2,2)-SUMIFS(InTB!$K:$K,InTB!$M:$M,$E46,InTB!$C:$C,S$1) -> 0 | T46: =-SUMIF(InTBBase!$M:$M,$E46,InTBBase!$K:$K) -> 0 | V46: 0
D47: ADEXP2 | E47: PREPOS | F47: =OFFSET(Label!$A$1,MATCH(D47,Label!$A$1:$A$65537,0)-1,Main!$G$14+1) -> Postage | I47: =-SUMIF(InTB!$M:$M,$E47,InTB!$K:$K) -> 0 | J47: =ROUND($T47*J$2,2)-SUMIFS(InTB!$K:$K,InTB!$M:$M,$E47,InTB!$C:$C,J$1) -> 0 | K47: =ROUND($T47*K$2,2)-SUMIFS(InTB!$K:$K,InTB!$M:$M,$E47,InTB!$C:$C,K$1) -> 0 | L47: =ROUND($T47*L$2,2)-SUMIFS(InTB!$K:$K,InTB!$M:$M,$E47,InTB!$C:$C,L$1) -> 0 | M47: =ROUND($T47*M$2,2)-SUMIFS(InTB!$K:$K,InTB!$M:$M,$E47,InTB!$C:$C,M$1) -> 0 | N47: =ROUND($T47*N$2,2)-SUMIFS(InTB!$K:$K,InTB!$M:$M,$E47,InTB!$C:$C,N$1) -> 0 | O47: =ROUND($T47*O$2,2)-SUMIFS(InTB!$K:$K,InTB!$M:$M,$E47,InTB!$C:$C,O$1) -> 0 | P47: =ROUND($T47*P$2,2)-SUMIFS(InTB!$K:$K,InTB!$M:$M,$E47,InTB!$C:$C,P$1) -> 0 | Q47: =ROUND($T47*Q$2,2)-SUMIFS(InTB!$K:$K,InTB!$M:$M,$E47,InTB!$C:$C,Q$1) -> 0 | R47: =ROUND($T47*R$2,2)-SUMIFS(InTB!$K:$K,InTB!$M:$M,$E47,InTB!$C:$C,R$1) -> 0 | S47: =ROUND($T47*S$2,2)-SUMIFS(InTB!$K:$K,InTB!$M:$M,$E47,InTB!$C:$C,S$1) -> 0 | T47: =-SUMIF(InTBBase!$M:$M,$E47,InTBBase!$K:$K) -> 0 | V47: 0
D48: ADEXP3 | E48: PREBKC | F48: =OFFSET(Label!$A$1,MATCH(D48,Label!$A$1:$A$65537,0)-1,Main!$G$14+1) -> Bank charges | I48: =-SUMIF(InTB!$M:$M,$E48,InTB!$K:$K) -> -162.39 | J48: =ROUND($T48*J$2,2)-SUMIFS(InTB!$K:$K,InTB!$M:$M,$E48,InTB!$C:$C,J$1) -> -160.31 | K48: =ROUND($T48*K$2,2)-SUMIFS(InTB!$K:$K,InTB!$M:$M,$E48,InTB!$C:$C,K$1) -> -2.08 | L48: =ROUND($T48*L$2,2)-SUMIFS(InTB!$K:$K,InTB!$M:$M,$E48,InTB!$C:$C,L$1) -> 0 | M48: =ROUND($T48*M$2,2)-SUMIFS(InTB!$K:$K,InTB!$M:$M,$E48,InTB!$C:$C,M$1) -> 0 | N48: =ROUND($T48*N$2,2)-SUMIFS(InTB!$K:$K,InTB!$M:$M,$E48,InTB!$C:$C,N$1) -> 0 | O48: =ROUND($T48*O$2,2)-SUMIFS(InTB!$K:$K,InTB!$M:$M,$E48,InTB!$C:$C,O$1) -> 0 | P48: =ROUND($T48*P$2,2)-SUMIFS(InTB!$K:$K,InTB!$M:$M,$E48,InTB!$C:$C,P$1) -> 0 | Q48: =ROUND($T48*Q$2,2)-SUMIFS(InTB!$K:$K,InTB!$M:$M,$E48,InTB!$C:$C,Q$1) -> 0 | R48: =ROUND($T48*R$2,2)-SUMIFS(InTB!$K:$K,InTB!$M:$M,$E48,InTB!$C:$C,R$1) -> 0 | S48: =ROUND($T48*S$2,2)-SUMIFS(InTB!$K:$K,InTB!$M:$M,$E48,InTB!$C:$C,S$1) -> 0 | T48: =-SUMIF(InTBBase!$M:$M,$E48,InTBBase!$K:$K) -> -162.39 | V48: 0
D49: ADEXP4 | E49: PRECDF | F49: =OFFSET(Label!$A$1,MATCH(D49,Label!$A$1:$A$65537,0)-1,Main!$G$14+1) -> CDS deposit fee | I49: =-SUMIF(InTB!$M:$M,$E49,InTB!$K:$K) -> 0 | J49: =ROUND($T49*J$2,2)-SUMIFS(InTB!$K:$K,InTB!$M:$M,$E49,InTB!$C:$C,J$1) -> 0 | K49: =ROUND($T49*K$2,2)-SUMIFS(InTB!$K:$K,InTB!$M:$M,$E49,InTB!$C:$C,K$1) -> 0 | L49: =ROUND($T49*L$2,2)-SUMIFS(InTB!$K:$K,InTB!$M:$M,$E49,InTB!$C:$C,L$1) -> 0 | M49: =ROUND($T49*M$2,2)-SUMIFS(InTB!$K:$K,InTB!$M:$M,$E49,InTB!$C:$C,M$1) -> 0 | N49: =ROUND($T49*N$2,2)-SUMIFS(InTB!$K:$K,InTB!$M:$M,$E49,InTB!$C:$C,N$1) -> 0 | O49: =ROUND($T49*O$2,2)-SUMIFS(InTB!$K:$K,InTB!$M:$M,$E49,InTB!$C:$C,O$1) -> 0 | P49: =ROUND($T49*P$2,2)-SUMIFS(InTB!$K:$K,InTB!$M:$M,$E49,InTB!$C:$C,P$1) -> 0 | Q49: =ROUND($T49*Q$2,2)-SUMIFS(InTB!$K:$K,InTB!$M:$M,$E49,InTB!$C:$C,Q$1) -> 0 | R49: =ROUND($T49*R$2,2)-SUMIFS(InTB!$K:$K,InTB!$M:$M,$E49,InTB!$C:$C,R$1) -> 0 | S49: =ROUND($T49*S$2,2)-SUMIFS(InTB!$K:$K,InTB!$M:$M,$E49,InTB!$C:$C,S$1) -> 0 | T49: =-SUMIF(InTBBase!$M:$M,$E49,InTBBase!$K:$K) -> 0 | V49: 0
D50: ADEXP5 | E50: PREDIS | F50: =OFFSET(Label!$A$1,MATCH(D50,Label!$A$1:$A$65537,0)-1,Main!$G$14+1) -> Cash distribution expenses | I50: =-SUMIF(InTB!$M:$M,$E50,InTB!$K:$K) -> 0 | J50: =ROUND($T50*J$2,2)-SUMIFS(InTB!$K:$K,InTB!$M:$M,$E50,InTB!$C:$C,J$1) -> 0 | K50: =ROUND($T50*K$2,2)-SUMIFS(InTB!$K:$K,InTB!$M:$M,$E50,InTB!$C:$C,K$1) -> 0 | L50: =ROUND($T50*L$2,2)-SUMIFS(InTB!$K:$K,InTB!$M:$M,$E50,InTB!$C:$C,L$1) -> 0 | M50: =ROUND($T50*M$2,2)-SUMIFS(InTB!$K:$K,InTB!$M:$M,$E50,InTB!$C:$C,M$1) -> 0 | N50: =ROUND($T50*N$2,2)-SUMIFS(InTB!$K:$K,InTB!$M:$M,$E50,InTB!$C:$C,N$1) -> 0 | O50: =ROUND($T50*O$2,2)-SUMIFS(InTB!$K:$K,InTB!$M:$M,$E50,InTB!$C:$C,O$1) -> 0 | P50: =ROUND($T50*P$2,2)-SUMIFS(InTB!$K:$K,InTB!$M:$M,$E50,InTB!$C:$C,P$1) -> 0 | Q50: =ROUND($T50*Q$2,2)-SUMIFS(InTB!$K:$K,InTB!$M:$M,$E50,InTB!$C:$C,Q$1) -> 0 | R50: =ROUND($T50*R$2,2)-SUMIFS(InTB!$K:$K,InTB!$M:$M,$E50,InTB!$C:$C,R$1) -> 0 | S50: =ROUND($T50*S$2,2)-SUMIFS(InTB!$K:$K,InTB!$M:$M,$E50,InTB!$C:$C,S$1) -> 0 | T50: =-SUMIF(InTBBase!$M:$M,$E50,InTBBase!$K:$K) -> 0 | V50: 0
D51: ADEXP6 | E51: PRECTF | F51: =OFFSET(Label!$A$1,MATCH(D51,Label!$A$1:$A$65537,0)-1,Main!$G$14+1) -> CDS transfer fee | I51: =-SUMIF(InTB!$M:$M,$E51,InTB!$K:$K) -> -2187 | J51: =ROUND($T51*J$2,2)-SUMIFS(InTB!$K:$K,InTB!$M:$M,$E51,InTB!$C:$C,J$1) -> -2159.04 | K51: =ROUND($T51*K$2,2)-SUMIFS(InTB!$K:$K,InTB!$M:$M,$E51,InTB!$C:$C,K$1) -> -27.96 | L51: =ROUND($T51*L$2,2)-SUMIFS(InTB!$K:$K,InTB!$M:$M,$E51,InTB!$C:$C,L$1) -> 0 | M51: =ROUND($T51*M$2,2)-SUMIFS(InTB!$K:$K,InTB!$M:$M,$E51,InTB!$C:$C,M$1) -> 0 | N51: =ROUND($T51*N$2,2)-SUMIFS(InTB!$K:$K,InTB!$M:$M,$E51,InTB!$C:$C,N$1) -> 0 | O51: =ROUND($T51*O$2,2)-SUMIFS(InTB!$K:$K,InTB!$M:$M,$E51,InTB!$C:$C,O$1) -> 0 | P51: =ROUND($T51*P$2,2)-SUMIFS(InTB!$K:$K,InTB!$M:$M,$E51,InTB!$C:$C,P$1) -> 0 | Q51: =ROUND($T51*Q$2,2)-SUMIFS(InTB!$K:$K,InTB!$M:$M,$E51,InTB!$C:$C,Q$1) -> 0 | R51: =ROUND($T51*R$2,2)-SUMIFS(InTB!$K:$K,InTB!$M:$M,$E51,InTB!$C:$C,R$1) -> 0 | S51: =ROUND($T51*S$2,2)-SUMIFS(InTB!$K:$K,InTB!$M:$M,$E51,InTB!$C:$C,S$1) -> 0 | T51: =-SUMIF(InTBBase!$M:$M,$E51,InTBBase!$K:$K) -> -2187 | V51: 0
D52: ADEXP7 | E52: PREOSC | F52: =OFFSET(Label!$A$1,MATCH(D52,Label!$A$1:$A$65537,0)-1,Main!$G$14+1) -> Online service charges | I52: =-SUMIF(InTB!$M:$M,$E52,InTB!$K:$K) -> 0 | J52: =ROUND($T52*J$2,2)-SUMIFS(InTB!$K:$K,InTB!$M:$M,$E52,InTB!$C:$C,J$1) -> 0 | K52: =ROUND($T52*K$2,2)-SUMIFS(InTB!$K:$K,InTB!$M:$M,$E52,InTB!$C:$C,K$1) -> 0 | L52: =ROUND($T52*L$2,2)-SUMIFS(InTB!$K:$K,InTB!$M:$M,$E52,InTB!$C:$C,L$1) -> 0 | M52: =ROUND($T52*M$2,2)-SUMIFS(InTB!$K:$K,InTB!$M:$M,$E52,InTB!$C:$C,M$1) -> 0 | N52: =ROUND($T52*N$2,2)-SUMIFS(InTB!$K:$K,InTB!$M:$M,$E52,InTB!$C:$C,N$1) -> 0 | O52: =ROUND($T52*O$2,2)-SUMIFS(InTB!$K:$K,InTB!$M:$M,$E52,InTB!$C:$C,O$1) -> 0 | P52: =ROUND($T52*P$2,2)-SUMIFS(InTB!$K:$K,InTB!$M:$M,$E52,InTB!$C:$C,P$1) -> 0 | Q52: =ROUND($T52*Q$2,2)-SUMIFS(InTB!$K:$K,InTB!$M:$M,$E52,InTB!$C:$C,Q$1) -> 0 | R52: =ROUND($T52*R$2,2)-SUMIFS(InTB!$K:$K,InTB!$M:$M,$E52,InTB!$C:$C,R$1) -> 0 | S52: =ROUND($T52*S$2,2)-SUMIFS(InTB!$K:$K,InTB!$M:$M,$E52,InTB!$C:$C,S$1) -> 0 | T52: =-SUMIF(InTBBase!$M:$M,$E52,InTBBase!$K:$K) -> 0 | V52: 0
D53: ADEXP8 | E53: PRESCC | F53: =OFFSET(Label!$A$1,MATCH(D53,Label!$A$1:$A$65537,0)-1,Main!$G$14+1) -> SSTS cusoidian charges | I53: =-SUMIF(InTB!$M:$M,$E53,InTB!$K:$K) -> 0 | J53: =ROUND($T53*J$2,2)-SUMIFS(InTB!$K:$K,InTB!$M:$M,$E53,InTB!$C:$C,J$1) -> 0 | K53: =ROUND($T53*K$2,2)-SUMIFS(InTB!$K:$K,InTB!$M:$M,$E53,InTB!$C:$C,K$1) -> 0 | L53: =ROUND($T53*L$2,2)-SUMIFS(InTB!$K:$K,InTB!$M:$M,$E53,InTB!$C:$C,L$1) -> 0 | M53: =ROUND($T53*M$2,2)-SUMIFS(InTB!$K:$K,InTB!$M:$M,$E53,InTB!$C:$C,M$1) -> 0 | N53: =ROUND($T53*N$2,2)-SUMIFS(InTB!$K:$K,InTB!$M:$M,$E53,InTB!$C:$C,N$1) -> 0 | O53: =ROUND($T53*O$2,2)-SUMIFS(InTB!$K:$K,InTB!$M:$M,$E53,InTB!$C:$C,O$1) -> 0 | P53: =ROUND($T53*P$2,2)-SUMIFS(InTB!$K:$K,InTB!$M:$M,$E53,InTB!$C:$C,P$1) -> 0 | Q53: =ROUND($T53*Q$2,2)-SUMIFS(InTB!$K:$K,InTB!$M:$M,$E53,InTB!$C:$C,Q$1) -> 0 | R53: =ROUND($T53*R$2,2)-SUMIFS(InTB!$K:$K,InTB!$M:$M,$E53,InTB!$C:$C,R$1) -> 0 | S53: =ROUND($T53*S$2,2)-SUMIFS(InTB!$K:$K,InTB!$M:$M,$E53,InTB!$C:$C,S$1) -> 0 | T53: =-SUMIF(InTBBase!$M:$M,$E53,InTBBase!$K:$K) -> 0 | V53: 0
D54: ADEXP9 | E54: PRETSR | F54: =OFFSET(Label!$A$1,MATCH(D54,Label!$A$1:$A$65537,0)-1,Main!$G$14+1) -> Trustee's fee (Registration Services) | I54: =-SUMIF(InTB!$M:$M,$E54,InTB!$K:$K) -> 0 | J54: =ROUND($T54*J$2,2)-SUMIFS(InTB!$K:$K,InTB!$M:$M,$E54,InTB!$C:$C,J$1) -> 0 | K54: =ROUND($T54*K$2,2)-SUMIFS(InTB!$K:$K,InTB!$M:$M,$E54,InTB!$C:$C,K$1) -> 0 | L54: =ROUND($T54*L$2,2)-SUMIFS(InTB!$K:$K,InTB!$M:$M,$E54,InTB!$C:$C,L$1) -> 0 | M54: =ROUND($T54*M$2,2)-SUMIFS(InTB!$K:$K,InTB!$M:$M,$E54,InTB!$C:$C,M$1) -> 0 | N54: =ROUND($T54*N$2,2)-SUMIFS(InTB!$K:$K,InTB!$M:$M,$E54,InTB!$C:$C,N$1) -> 0 | O54: =ROUND($T54*O$2,2)-SUMIFS(InTB!$K:$K,InTB!$M:$M,$E54,InTB!$C:$C,O$1) -> 0 | P54: =ROUND($T54*P$2,2)-SUMIFS(InTB!$K:$K,InTB!$M:$M,$E54,InTB!$C:$C,P$1) -> 0 | Q54: =ROUND($T54*Q$2,2)-SUMIFS(InTB!$K:$K,InTB!$M:$M,$E54,InTB!$C:$C,Q$1) -> 0 | R54: =ROUND($T54*R$2,2)-SUMIFS(InTB!$K:$K,InTB!$M:$M,$E54,InTB!$C:$C,R$1) -> 0 | S54: =ROUND($T54*S$2,2)-SUMIFS(InTB!$K:$K,InTB!$M:$M,$E54,InTB!$C:$C,S$1) -> 0 | T54: =-SUMIF(InTBBase!$M:$M,$E54,InTBBase!$K:$K) -> 0 | V54: 0
D55: ADEXP10 | E55: PRESVC | F55: =OFFSET(Label!$A$1,MATCH(D55,Label!$A$1:$A$65537,0)-1,Main!$G$14+1) -> Services charges | I55: =-SUMIF(InTB!$M:$M,$E55,InTB!$K:$K) -> 0 | J55: =ROUND($T55*J$2,2)-SUMIFS(InTB!$K:$K,InTB!$M:$M,$E55,InTB!$C:$C,J$1) -> 0 | K55: =ROUND($T55*K$2,2)-SUMIFS(InTB!$K:$K,InTB!$M:$M,$E55,InTB!$C:$C,K$1) -> 0 | L55: =ROUND($T55*L$2,2)-SUMIFS(InTB!$K:$K,InTB!$M:$M,$E55,InTB!$C:$C,L$1) -> 0 | M55: =ROUND($T55*M$2,2)-SUMIFS(InTB!$K:$K,InTB!$M:$M,$E55,InTB!$C:$C,M$1) -> 0 | N55: =ROUND($T55*N$2,2)-SUMIFS(InTB!$K:$K,InTB!$M:$M,$E55,InTB!$C:$C,N$1) -> 0 | O55: =ROUND($T55*O$2,2)-SUMIFS(InTB!$K:$K,InTB!$M:$M,$E55,InTB!$C:$C,O$1) -> 0 | P55: =ROUND($T55*P$2,2)-SUMIFS(InTB!$K:$K,InTB!$M:$M,$E55,InTB!$C:$C,P$1) -> 0 | Q55: =ROUND($T55*Q$2,2)-SUMIFS(InTB!$K:$K,InTB!$M:$M,$E55,InTB!$C:$C,Q$1) -> 0 | R55: =ROUND($T55*R$2,2)-SUMIFS(InTB!$K:$K,InTB!$M:$M,$E55,InTB!$C:$C,R$1) -> 0 | S55: =ROUND($T55*S$2,2)-SUMIFS(InTB!$K:$K,InTB!$M:$M,$E55,InTB!$C:$C,S$1) -> 0 | T55: =-SUMIF(InTBBase!$M:$M,$E55,InTBBase!$K:$K) -> 0 | V55: 0
D56: ADEXP11 | E56: PREPRO | F56: =OFFSET(Label!$A$1,MATCH(D56,Label!$A$1:$A$65537,0)-1,Main!$G$14+1) -> Professional fees | I56: =-SUMIF(InTB!$M:$M,$E56,InTB!$K:$K) -> 0 | J56: =ROUND($T56*J$2,2)-SUMIFS(InTB!$K:$K,InTB!$M:$M,$E56,InTB!$C:$C,J$1) -> 0 | K56: =ROUND($T56*K$2,2)-SUMIFS(InTB!$K:$K,InTB!$M:$M,$E56,InTB!$C:$C,K$1) -> 0 | L56: =ROUND($T56*L$2,2)-SUMIFS(InTB!$K:$K,InTB!$M:$M,$E56,InTB!$C:$C,L$1) -> 0 | M56: =ROUND($T56*M$2,2)-SUMIFS(InTB!$K:$K,InTB!$M:$M,$E56,InTB!$C:$C,M$1) -> 0 | N56: =ROUND($T56*N$2,2)-SUMIFS(InTB!$K:$K,InTB!$M:$M,$E56,InTB!$C:$C,N$1) -> 0 | O56: =ROUND($T56*O$2,2)-SUMIFS(InTB!$K:$K,InTB!$M:$M,$E56,InTB!$C:$C,O$1) -> 0 | P56: =ROUND($T56*P$2,2)-SUMIFS(InTB!$K:$K,InTB!$M:$M,$E56,InTB!$C:$C,P$1) -> 0 | Q56: =ROUND($T56*Q$2,2)-SUMIFS(InTB!$K:$K,InTB!$M:$M,$E56,InTB!$C:$C,Q$1) -> 0 | R56: =ROUND($T56*R$2,2)-SUMIFS(InTB!$K:$K,InTB!$M:$M,$E56,InTB!$C:$C,R$1) -> 0 | S56: =ROUND($T56*S$2,2)-SUMIFS(InTB!$K:$K,InTB!$M:$M,$E56,InTB!$C:$C,S$1) -> 0 | T56: =-SUMIF(InTBBase!$M:$M,$E56,InTBBase!$K:$K) -> 0 | V56: 0
D57: ADEXP12 | E57: PREGEN | F57: =OFFSET(Label!$A$1,MATCH(D57,Label!$A$1:$A$65537,0)-1,Main!$G$14+1) -> General Expenses | I57: =-SUMIF(InTB!$M:$M,$E57,InTB!$K:$K) -> -3388.85 | J57: =ROUND($T57*J$2,2)-SUMIFS(InTB!$K:$K,InTB!$M:$M,$E57,InTB!$C:$C,J$1) -> -3345.53 | K57: =ROUND($T57*K$2,2)-SUMIFS(InTB!$K:$K,InTB!$M:$M,$E57,InTB!$C:$C,K$1) -> -43.32 | L57: =ROUND($T57*L$2,2)-SUMIFS(InTB!$K:$K,InTB!$M:$M,$E57,InTB!$C:$C,L$1) -> 0 | M57: =ROUND($T57*M$2,2)-SUMIFS(InTB!$K:$K,InTB!$M:$M,$E57,InTB!$C:$C,M$1) -> 0 | N57: =ROUND($T57*N$2,2)-SUMIFS(InTB!$K:$K,InTB!$M:$M,$E57,InTB!$C:$C,N$1) -> 0 | O57: =ROUND($T57*O$2,2)-SUMIFS(InTB!$K:$K,InTB!$M:$M,$E57,InTB!$C:$C,O$1) -> 0 | P57: =ROUND($T57*P$2,2)-SUMIFS(InTB!$K:$K,InTB!$M:$M,$E57,InTB!$C:$C,P$1) -> 0 | Q57: =ROUND($T57*Q$2,2)-SUMIFS(InTB!$K:$K,InTB!$M:$M,$E57,InTB!$C:$C,Q$1) -> 0 | R57: =ROUND($T57*R$2,2)-SUMIFS(InTB!$K:$K,InTB!$M:$M,$E57,InTB!$C:$C,R$1) -> 0 | S57: =ROUND($T57*S$2,2)-SUMIFS(InTB!$K:$K,InTB!$M:$M,$E57,InTB!$C:$C,S$1) -> 0 | T57: =-SUMIF(InTBBase!$M:$M,$E57,InTBBase!$K:$K) -> -3388.85 | V57: 0
D58: ADEXP13 | E58: PRETXD | F58: =OFFSET(Label!$A$1,MATCH(D58,Label!$A$1:$A$65537,0)-1,Main!$G$14+1) -> Tax Disbursement | I58: =-SUMIF(InTB!$M:$M,$E58,InTB!$K:$K) -> 0 | J58: =ROUND($T58*J$2,2)-SUMIFS(InTB!$K:$K,InTB!$M:$M,$E58,InTB!$C:$C,J$1) -> 0 | K58: =ROUND($T58*K$2,2)-SUMIFS(InTB!$K:$K,InTB!$M:$M,$E58,InTB!$C:$C,K$1) -> 0 | L58: =ROUND($T58*L$2,2)-SUMIFS(InTB!$K:$K,InTB!$M:$M,$E58,InTB!$C:$C,L$1) -> 0 | M58: =ROUND($T58*M$2,2)-SUMIFS(InTB!$K:$K,InTB!$M:$M,$E58,InTB!$C:$C,M$1) -> 0 | N58: =ROUND($T58*N$2,2)-SUMIFS(InTB!$K:$K,InTB!$M:$M,$E58,InTB!$C:$C,N$1) -> 0 | O58: =ROUND($T58*O$2,2)-SUMIFS(InTB!$K:$K,InTB!$M:$M,$E58,InTB!$C:$C,O$1) -> 0 | P58: =ROUND($T58*P$2,2)-SUMIFS(InTB!$K:$K,InTB!$M:$M,$E58,InTB!$C:$C,P$1) -> 0 | Q58: =ROUND($T58*Q$2,2)-SUMIFS(InTB!$K:$K,InTB!$M:$M,$E58,InTB!$C:$C,Q$1) -> 0 | R58: =ROUND($T58*R$2,2)-SUMIFS(InTB!$K:$K,InTB!$M:$M,$E58,InTB!$C:$C,R$1) -> 0 | S58: =ROUND($T58*S$2,2)-SUMIFS(InTB!$K:$K,InTB!$M:$M,$E58,InTB!$C:$C,S$1) -> 0 | T58: =-SUMIF(InTBBase!$M:$M,$E58,InTBBase!$K:$K) -> 0 | V58: 0
D59: ADEXP14 | E59: PRERST | F59: =OFFSET(Label!$A$1,MATCH(D59,Label!$A$1:$A$65537,0)-1,Main!$G$14+1) -> Registration, stamping and transfer fees | I59: =-SUMIF(InTB!$M:$M,$E59,InTB!$K:$K) -> -24161.1 | J59: =ROUND($T59*J$2,2)-SUMIFS(InTB!$K:$K,InTB!$M:$M,$E59,InTB!$C:$C,J$1) -> -23852.25 | K59: =ROUND($T59*K$2,2)-SUMIFS(InTB!$K:$K,InTB!$M:$M,$E59,InTB!$C:$C,K$1) -> -308.85 | L59: =ROUND($T59*L$2,2)-SUMIFS(InTB!$K:$K,InTB!$M:$M,$E59,InTB!$C:$C,L$1) -> 0 | M59: =ROUND($T59*M$2,2)-SUMIFS(InTB!$K:$K,InTB!$M:$M,$E59,InTB!$C:$C,M$1) -> 0 | N59: =ROUND($T59*N$2,2)-SUMIFS(InTB!$K:$K,InTB!$M:$M,$E59,InTB!$C:$C,N$1) -> 0 | O59: =ROUND($T59*O$2,2)-SUMIFS(InTB!$K:$K,InTB!$M:$M,$E59,InTB!$C:$C,O$1) -> 0 | P59: =ROUND($T59*P$2,2)-SUMIFS(InTB!$K:$K,InTB!$M:$M,$E59,InTB!$C:$C,P$1) -> 0 | Q59: =ROUND($T59*Q$2,2)-SUMIFS(InTB!$K:$K,InTB!$M:$M,$E59,InTB!$C:$C,Q$1) -> 0 | R59: =ROUND($T59*R$2,2)-SUMIFS(InTB!$K:$K,InTB!$M:$M,$E59,InTB!$C:$C,R$1) -> 0 | S59: =ROUND($T59*S$2,2)-SUMIFS(InTB!$K:$K,InTB!$M:$M,$E59,InTB!$C:$C,S$1) -> 0 | T59: =-SUMIF(InTBBase!$M:$M,$E59,InTBBase!$K:$K) -> -24161.1 | V59: 0
D60: ADEXP15 | E60: PRENOM | F60: =OFFSET(Label!$A$1,MATCH(D60,Label!$A$1:$A$65537,0)-1,Main!$G$14+1) -> Nominee's charges | I60: =-SUMIF(InTB!$M:$M,$E60,InTB!$K:$K) -> 0 | J60: =ROUND($T60*J$2,2)-SUMIFS(InTB!$K:$K,InTB!$M:$M,$E60,InTB!$C:$C,J$1) -> 0 | K60: =ROUND($T60*K$2,2)-SUMIFS(InTB!$K:$K,InTB!$M:$M,$E60,InTB!$C:$C,K$1) -> 0 | L60: =ROUND($T60*L$2,2)-SUMIFS(InTB!$K:$K,InTB!$M:$M,$E60,InTB!$C:$C,L$1) -> 0 | M60: =ROUND($T60*M$2,2)-SUMIFS(InTB!$K:$K,InTB!$M:$M,$E60,InTB!$C:$C,M$1) -> 0 | N60: =ROUND($T60*N$2,2)-SUMIFS(InTB!$K:$K,InTB!$M:$M,$E60,InTB!$C:$C,N$1) -> 0 | O60: =ROUND($T60*O$2,2)-SUMIFS(InTB!$K:$K,InTB!$M:$M,$E60,InTB!$C:$C,O$1) -> 0 | P60: =ROUND($T60*P$2,2)-SUMIFS(InTB!$K:$K,InTB!$M:$M,$E60,InTB!$C:$C,P$1) -> 0 | Q60: =ROUND($T60*Q$2,2)-SUMIFS(InTB!$K:$K,InTB!$M:$M,$E60,InTB!$C:$C,Q$1) -> 0 | R60: =ROUND($T60*R$2,2)-SUMIFS(InTB!$K:$K,InTB!$M:$M,$E60,InTB!$C:$C,R$1) -> 0 | S60: =ROUND($T60*S$2,2)-SUMIFS(InTB!$K:$K,InTB!$M:$M,$E60,InTB!$C:$C,S$1) -> 0 | T60: =-SUMIF(InTBBase!$M:$M,$E60,InTBBase!$K:$K) -> 0 | V60: 0
D61: ADEXP16 | E61: PREDIV | F61: =OFFSET(Label!$A$1,MATCH(D61,Label!$A$1:$A$65537,0)-1,Main!$G$14+1) -> Dividend postage and handling fees | I61: =-SUMIF(InTB!$M:$M,$E61,InTB!$K:$K) -> -2.89 | J61: =ROUND($T61*J$2,2)-SUMIFS(InTB!$K:$K,InTB!$M:$M,$E61,InTB!$C:$C,J$1) -> -2.85 | K61: =ROUND($T61*K$2,2)-SUMIFS(InTB!$K:$K,InTB!$M:$M,$E61,InTB!$C:$C,K$1) -> -0.04 | L61: =ROUND($T61*L$2,2)-SUMIFS(InTB!$K:$K,InTB!$M:$M,$E61,InTB!$C:$C,L$1) -> 0 | M61: =ROUND($T61*M$2,2)-SUMIFS(InTB!$K:$K,InTB!$M:$M,$E61,InTB!$C:$C,M$1) -> 0 | N61: =ROUND($T61*N$2,2)-SUMIFS(InTB!$K:$K,InTB!$M:$M,$E61,InTB!$C:$C,N$1) -> 0 | O61: =ROUND($T61*O$2,2)-SUMIFS(InTB!$K:$K,InTB!$M:$M,$E61,InTB!$C:$C,O$1) -> 0 | P61: =ROUND($T61*P$2,2)-SUMIFS(InTB!$K:$K,InTB!$M:$M,$E61,InTB!$C:$C,P$1) -> 0 | Q61: =ROUND($T61*Q$2,2)-SUMIFS(InTB!$K:$K,InTB!$M:$M,$E61,InTB!$C:$C,Q$1) -> 0 | R61: =ROUND($T61*R$2,2)-SUMIFS(InTB!$K:$K,InTB!$M:$M,$E61,InTB!$C:$C,R$1) -> 0 | S61: =ROUND($T61*S$2,2)-SUMIFS(InTB!$K:$K,InTB!$M:$M,$E61,InTB!$C:$C,S$1) -> 0 | T61: =-SUMIF(InTBBase!$M:$M,$E61,InTBBase!$K:$K) -> -2.89 | V61: 0
D62: ADEXP17 | E62: PREATD | F62: =OFFSET(Label!$A$1,MATCH(D62,Label!$A$1:$A$65537,0)-1,Main!$G$14+1) -> Audit Disbursement | I62: =-SUMIF(InTB!$M:$M,$E62,InTB!$K:$K) -> 0 | J62: =ROUND($T62*J$2,2)-SUMIFS(InTB!$K:$K,InTB!$M:$M,$E62,InTB!$C:$C,J$1) -> 0 | K62: =ROUND($T62*K$2,2)-SUMIFS(InTB!$K:$K,InTB!$M:$M,$E62,InTB!$C:$C,K$1) -> 0 | L62: =ROUND($T62*L$2,2)-SUMIFS(InTB!$K:$K,InTB!$M:$M,$E62,InTB!$C:$C,L$1) -> 0 | M62: =ROUND($T62*M$2,2)-SUMIFS(InTB!$K:$K,InTB!$M:$M,$E62,InTB!$C:$C,M$1) -> 0 | N62: =ROUND($T62*N$2,2)-SUMIFS(InTB!$K:$K,InTB!$M:$M,$E62,InTB!$C:$C,N$1) -> 0 | O62: =ROUND($T62*O$2,2)-SUMIFS(InTB!$K:$K,InTB!$M:$M,$E62,InTB!$C:$C,O$1) -> 0 | P62: =ROUND($T62*P$2,2)-SUMIFS(InTB!$K:$K,InTB!$M:$M,$E62,InTB!$C:$C,P$1) -> 0 | Q62: =ROUND($T62*Q$2,2)-SUMIFS(InTB!$K:$K,InTB!$M:$M,$E62,InTB!$C:$C,Q$1) -> 0 | R62: =ROUND($T62*R$2,2)-SUMIFS(InTB!$K:$K,InTB!$M:$M,$E62,InTB!$C:$C,R$1) -> 0 | S62: =ROUND($T62*S$2,2)-SUMIFS(InTB!$K:$K,InTB!$M:$M,$E62,InTB!$C:$C,S$1) -> 0 | T62: =-SUMIF(InTBBase!$M:$M,$E62,InTBBase!$K:$K) -> 0 | V62: 0
D63: ADEXP18 | E63: PRECDS | F63: =OFFSET(Label!$A$1,MATCH(D63,Label!$A$1:$A$65537,0)-1,Main!$G$14+1) -> CDS Fees | I63: =-SUMIF(InTB!$M:$M,$E63,InTB!$K:$K) -> 0 | J63: =ROUND($T63*J$2,2)-SUMIFS(InTB!$K:$K,InTB!$M:$M,$E63,InTB!$C:$C,J$1) -> 0 | K63: =ROUND($T63*K$2,2)-SUMIFS(InTB!$K:$K,InTB!$M:$M,$E63,InTB!$C:$C,K$1) -> 0 | L63: =ROUND($T63*L$2,2)-SUMIFS(InTB!$K:$K,InTB!$M:$M,$E63,InTB!$C:$C,L$1) -> 0 | M63: =ROUND($T63*M$2,2)-SUMIFS(InTB!$K:$K,InTB!$M:$M,$E63,InTB!$C:$C,M$1) -> 0 | N63: =ROUND($T63*N$2,2)-SUMIFS(InTB!$K:$K,InTB!$M:$M,$E63,InTB!$C:$C,N$1) -> 0 | O63: =ROUND($T63*O$2,2)-SUMIFS(InTB!$K:$K,InTB!$M:$M,$E63,InTB!$C:$C,O$1) -> 0 | P63: =ROUND($T63*P$2,2)-SUMIFS(InTB!$K:$K,InTB!$M:$M,$E63,InTB!$C:$C,P$1) -> 0 | Q63: =ROUND($T63*Q$2,2)-SUMIFS(InTB!$K:$K,InTB!$M:$M,$E63,InTB!$C:$C,Q$1) -> 0 | R63: =ROUND($T63*R$2,2)-SUMIFS(InTB!$K:$K,InTB!$M:$M,$E63,InTB!$C:$C,R$1) -> 0 | S63: =ROUND($T63*S$2,2)-SUMIFS(InTB!$K:$K,InTB!$M:$M,$E63,InTB!$C:$C,S$1) -> 0 | T63: =-SUMIF(InTBBase!$M:$M,$E63,InTBBase!$K:$K) -> 0 | V63: 0
D64: ADEXP19 | E64: PRECUL | F64: =OFFSET(Label!$A$1,MATCH(D64,Label!$A$1:$A$65537,0)-1,Main!$G$14+1) -> Local custodian fees | I64: =-SUMIF(InTB!$M:$M,$E64,InTB!$K:$K) -> 0 | J64: =ROUND($T64*J$2,2)-SUMIFS(InTB!$K:$K,InTB!$M:$M,$E64,InTB!$C:$C,J$1) -> 0 | K64: =ROUND($T64*K$2,2)-SUMIFS(InTB!$K:$K,InTB!$M:$M,$E64,InTB!$C:$C,K$1) -> 0 | L64: =ROUND($T64*L$2,2)-SUMIFS(InTB!$K:$K,InTB!$M:$M,$E64,InTB!$C:$C,L$1) -> 0 | M64: =ROUND($T64*M$2,2)-SUMIFS(InTB!$K:$K,InTB!$M:$M,$E64,InTB!$C:$C,M$1) -> 0 | N64: =ROUND($T64*N$2,2)-SUMIFS(InTB!$K:$K,InTB!$M:$M,$E64,InTB!$C:$C,N$1) -> 0 | O64: =ROUND($T64*O$2,2)-SUMIFS(InTB!$K:$K,InTB!$M:$M,$E64,InTB!$C:$C,O$1) -> 0 | P64: =ROUND($T64*P$2,2)-SUMIFS(InTB!$K:$K,InTB!$M:$M,$E64,InTB!$C:$C,P$1) -> 0 | Q64: =ROUND($T64*Q$2,2)-SUMIFS(InTB!$K:$K,InTB!$M:$M,$E64,InTB!$C:$C,Q$1) -> 0 | R64: =ROUND($T64*R$2,2)-SUMIFS(InTB!$K:$K,InTB!$M:$M,$E64,InTB!$C:$C,R$1) -> 0 | S64: =ROUND($T64*S$2,2)-SUMIFS(InTB!$K:$K,InTB!$M:$M,$E64,InTB!$C:$C,S$1) -> 0 | T64: =-SUMIF(InTBBase!$M:$M,$E64,InTBBase!$K:$K) -> 0 | V64: 0
D65: ADEXP20 | E65: PREMNE | F65: =OFFSET(Label!$A$1,MATCH(D65,Label!$A$1:$A$65537,0)-1,Main!$G$14+1) -> Management Expenses | I65: =-SUMIF(InTB!$M:$M,$E65,InTB!$K:$K) -> 0 | J65: =ROUND($T65*J$2,2)-SUMIFS(InTB!$K:$K,InTB!$M:$M,$E65,InTB!$C:$C,J$1) -> 0 | K65: =ROUND($T65*K$2,2)-SUMIFS(InTB!$K:$K,InTB!$M:$M,$E65,InTB!$C:$C,K$1) -> 0 | L65: =ROUND($T65*L$2,2)-SUMIFS(InTB!$K:$K,InTB!$M:$M,$E65,InTB!$C:$C,L$1) -> 0 | M65: =ROUND($T65*M$2,2)-SUMIFS(InTB!$K:$K,InTB!$M:$M,$E65,InTB!$C:$C,M$1) -> 0 | N65: =ROUND($T65*N$2,2)-SUMIFS(InTB!$K:$K,InTB!$M:$M,$E65,InTB!$C:$C,N$1) -> 0 | O65: =ROUND($T65*O$2,2)-SUMIFS(InTB!$K:$K,InTB!$M:$M,$E65,InTB!$C:$C,O$1) -> 0 | P65: =ROUND($T65*P$2,2)-SUMIFS(InTB!$K:$K,InTB!$M:$M,$E65,InTB!$C:$C,P$1) -> 0 | Q65: =ROUND($T65*Q$2,2)-SUMIFS(InTB!$K:$K,InTB!$M:$M,$E65,InTB!$C:$C,Q$1) -> 0 | R65: =ROUND($T65*R$2,2)-SUMIFS(InTB!$K:$K,InTB!$M:$M,$E65,InTB!$C:$C,R$1) -> 0 | S65: =ROUND($T65*S$2,2)-SUMIFS(InTB!$K:$K,InTB!$M:$M,$E65,InTB!$C:$C,S$1) -> 0 | T65: =-SUMIF(InTBBase!$M:$M,$E65,InTBBase!$K:$K) -> 0 | V65: 0
D66: ADEXP21 | E66: PREIVT | F66: =OFFSET(Label!$A$1,MATCH(D66,Label!$A$1:$A$65537,0)-1,Main!$G$14+1) -> Listed Securities Investment Cost | I66: =-SUMIF(InTB!$M:$M,$E66,InTB!$K:$K) -> -591.46 | J66: =ROUND($T66*J$2,2)-SUMIFS(InTB!$K:$K,InTB!$M:$M,$E66,InTB!$C:$C,J$1) -> -583.9 | K66: =ROUND($T66*K$2,2)-SUMIFS(InTB!$K:$K,InTB!$M:$M,$E66,InTB!$C:$C,K$1) -> -7.56 | L66: =ROUND($T66*L$2,2)-SUMIFS(InTB!$K:$K,InTB!$M:$M,$E66,InTB!$C:$C,L$1) -> 0 | M66: =ROUND($T66*M$2,2)-SUMIFS(InTB!$K:$K,InTB!$M:$M,$E66,InTB!$C:$C,M$1) -> 0 | N66: =ROUND($T66*N$2,2)-SUMIFS(InTB!$K:$K,InTB!$M:$M,$E66,InTB!$C:$C,N$1) -> 0 | O66: =ROUND($T66*O$2,2)-SUMIFS(InTB!$K:$K,InTB!$M:$M,$E66,InTB!$C:$C,O$1) -> 0 | P66: =ROUND($T66*P$2,2)-SUMIFS(InTB!$K:$K,InTB!$M:$M,$E66,InTB!$C:$C,P$1) -> 0 | Q66: =ROUND($T66*Q$2,2)-SUMIFS(InTB!$K:$K,InTB!$M:$M,$E66,InTB!$C:$C,Q$1) -> 0 | R66: =ROUND($T66*R$2,2)-SUMIFS(InTB!$K:$K,InTB!$M:$M,$E66,InTB!$C:$C,R$1) -> 0 | S66: =ROUND($T66*S$2,2)-SUMIFS(InTB!$K:$K,InTB!$M:$M,$E66,InTB!$C:$C,S$1) -> 0 | T66: =-SUMIF(InTBBase!$M:$M,$E66,InTBBase!$K:$K) -> -591.46 | V66: 0
E67: 710660 | F67: GST Reverse Charge | I67: =-SUMIF(InTB!$M:$M,$E67,InTB!$K:$K) -> 0 | J67: =ROUND($T67*J$2,2)-SUMIFS(InTB!$K:$K,InTB!$M:$M,$E67,InTB!$C:$C,J$1) -> 0 | K67: =ROUND($T67*K$2,2)-SUMIFS(InTB!$K:$K,InTB!$M:$M,$E67,InTB!$C:$C,K$1) -> 0 | L67: =ROUND($T67*L$2,2)-SUMIFS(InTB!$K:$K,InTB!$M:$M,$E67,InTB!$C:$C,L$1) -> 0 | M67: =ROUND($T67*M$2,2)-SUMIFS(InTB!$K:$K,InTB!$M:$M,$E67,InTB!$C:$C,M$1) -> 0 | N67: =ROUND($T67*N$2,2)-SUMIFS(InTB!$K:$K,InTB!$M:$M,$E67,InTB!$C:$C,N$1) -> 0 | O67: =ROUND($T67*O$2,2)-SUMIFS(InTB!$K:$K,InTB!$M:$M,$E67,InTB!$C:$C,O$1) -> 0 | P67: =ROUND($T67*P$2,2)-SUMIFS(InTB!$K:$K,InTB!$M:$M,$E67,InTB!$C:$C,P$1) -> 0 | Q67: =ROUND($T67*Q$2,2)-SUMIFS(InTB!$K:$K,InTB!$M:$M,$E67,InTB!$C:$C,Q$1) -> 0 | R67: =ROUND($T67*R$2,2)-SUMIFS(InTB!$K:$K,InTB!$M:$M,$E67,InTB!$C:$C,R$1) -> 0 | S67: =ROUND($T67*S$2,2)-SUMIFS(InTB!$K:$K,InTB!$M:$M,$E67,InTB!$C:$C,S$1) -> 0 | T67: =-SUMIF(InTBBase!$M:$M,$E67,InTBBase!$K:$K) -> 0 | V67: 0
D68: TRNCOST | E68: PRETRN | F68: =OFFSET(Label!$A$1,MATCH(D68,Label!$A$1:$A$65537,0)-1,Main!$G$14+1) -> TRANSACTION COST | I68: =-SUMIF(InTB!$M:$M,$E68,InTB!$K:$K) -> 0 | J68: =ROUND($T68*J$2,2)-SUMIFS(InTB!$K:$K,InTB!$M:$M,$E68,InTB!$C:$C,J$1) -> 0 | K68: =ROUND($T68*K$2,2)-SUMIFS(InTB!$K:$K,InTB!$M:$M,$E68,InTB!$C:$C,K$1) -> 0 | L68: =ROUND($T68*L$2,2)-SUMIFS(InTB!$K:$K,InTB!$M:$M,$E68,InTB!$C:$C,L$1) -> 0 | M68: =ROUND($T68*M$2,2)-SUMIFS(InTB!$K:$K,InTB!$M:$M,$E68,InTB!$C:$C,M$1) -> 0 | N68: =ROUND($T68*N$2,2)-SUMIFS(InTB!$K:$K,InTB!$M:$M,$E68,InTB!$C:$C,N$1) -> 0 | O68: =ROUND($T68*O$2,2)-SUMIFS(InTB!$K:$K,InTB!$M:$M,$E68,InTB!$C:$C,O$1) -> 0 | P68: =ROUND($T68*P$2,2)-SUMIFS(InTB!$K:$K,InTB!$M:$M,$E68,InTB!$C:$C,P$1) -> 0 | Q68: =ROUND($T68*Q$2,2)-SUMIFS(InTB!$K:$K,InTB!$M:$M,$E68,InTB!$C:$C,Q$1) -> 0 | R68: =ROUND($T68*R$2,2)-SUMIFS(InTB!$K:$K,InTB!$M:$M,$E68,InTB!$C:$C,R$1) -> 0 | S68: =ROUND($T68*S$2,2)-SUMIFS(InTB!$K:$K,InTB!$M:$M,$E68,InTB!$C:$C,S$1) -> 0 | T68: =-SUMIF(InTBBase!$M:$M,$E68,InTBBase!$K:$K) -> 0 | V68: 0
D69: FCUST | F69: =OFFSET(Label!$A$1,MATCH(D69,Label!$A$1:$A$65537,0)-1,Main!$G$14+1) -> FOREIGN CUSTODIAN CHARGES | I69: =SUM(I70:I71) -> 0 | J69: 0 | K69: =SUM(K70:K71) -> 0 | L69: 0 | M69: 0 | N69: 0 | O69: =SUM(O70:O71) -> 0 | P69: 0 | Q69: 0 | R69: =SUM(R70:R71) -> 0 | S69: =SUM(S70:S71) -> 0 | T69: 0 | V69: 0
D70: FCUST1 | E70: PREACF | F70: =OFFSET(Label!$A$1,MATCH(D70,Label!$A$1:$A$65537,0)-1,Main!$G$14+1) -> Annual custodian fees | I70: =-SUMIF(InTB!$M:$M,$E70,InTB!$K:$K) -> 0 | J70: =ROUND($T70*J$2,2)-SUMIFS(InTB!$K:$K,InTB!$M:$M,$E70,InTB!$C:$C,J$1) -> 0 | K70: =ROUND($T70*K$2,2)-SUMIFS(InTB!$K:$K,InTB!$M:$M,$E70,InTB!$C:$C,K$1) -> 0 | L70: =ROUND($T70*L$2,2)-SUMIFS(InTB!$K:$K,InTB!$M:$M,$E70,InTB!$C:$C,L$1) -> 0 | M70: =ROUND($T70*M$2,2)-SUMIFS(InTB!$K:$K,InTB!$M:$M,$E70,InTB!$C:$C,M$1) -> 0 | N70: =ROUND($T70*N$2,2)-SUMIFS(InTB!$K:$K,InTB!$M:$M,$E70,InTB!$C:$C,N$1) -> 0 | O70: =ROUND($T70*O$2,2)-SUMIFS(InTB!$K:$K,InTB!$M:$M,$E70,InTB!$C:$C,O$1) -> 0 | P70: =ROUND($T70*P$2,2)-SUMIFS(InTB!$K:$K,InTB!$M:$M,$E70,InTB!$C:$C,P$1) -> 0 | Q70: =ROUND($T70*Q$2,2)-SUMIFS(InTB!$K:$K,InTB!$M:$M,$E70,InTB!$C:$C,Q$1) -> 0 | R70: =ROUND($T70*R$2,2)-SUMIFS(InTB!$K:$K,InTB!$M:$M,$E70,InTB!$C:$C,R$1) -> 0 | S70: =ROUND($T70*S$2,2)-SUMIFS(InTB!$K:$K,InTB!$M:$M,$E70,InTB!$C:$C,S$1) -> 0 | T70: =-SUMIF(InTBBase!$M:$M,$E70,InTBBase!$K:$K) -> 0 | V70: 0
D71: FCUST2 | E71: PRETCF | F71: =OFFSET(Label!$A$1,MATCH(D71,Label!$A$1:$A$65537,0)-1,Main!$G$14+1) -> Custodian fee per foreign transaction | I71: =-SUMIF(InTB!$M:$M,$E71,InTB!$K:$K) -> 0 | J71: =ROUND($T71*J$2,2)-SUMIFS(InTB!$K:$K,InTB!$M:$M,$E71,InTB!$C:$C,J$1) -> 0 | K71: =ROUND($T71*K$2,2)-SUMIFS(InTB!$K:$K,InTB!$M:$M,$E71,InTB!$C:$C,K$1) -> 0 | L71: =ROUND($T71*L$2,2)-SUMIFS(InTB!$K:$K,InTB!$M:$M,$E71,InTB!$C:$C,L$1) -> 0 | M71: =ROUND($T71*M$2,2)-SUMIFS(InTB!$K:$K,InTB!$M:$M,$E71,InTB!$C:$C,M$1) -> 0 | N71: =ROUND($T71*N$2,2)-SUMIFS(InTB!$K:$K,InTB!$M:$M,$E71,InTB!$C:$C,N$1) -> 0 | O71: =ROUND($T71*O$2,2)-SUMIFS(InTB!$K:$K,InTB!$M:$M,$E71,InTB!$C:$C,O$1) -> 0 | P71: =ROUND($T71*P$2,2)-SUMIFS(InTB!$K:$K,InTB!$M:$M,$E71,InTB!$C:$C,P$1) -> 0 | Q71: =ROUND($T71*Q$2,2)-SUMIFS(InTB!$K:$K,InTB!$M:$M,$E71,InTB!$C:$C,Q$1) -> 0 | R71: =ROUND($T71*R$2,2)-SUMIFS(InTB!$K:$K,InTB!$M:$M,$E71,InTB!$C:$C,R$1) -> 0 | S71: =ROUND($T71*S$2,2)-SUMIFS(InTB!$K:$K,InTB!$M:$M,$E71,InTB!$C:$C,S$1) -> 0 | T71: =-SUMIF(InTBBase!$M:$M,$E71,InTBBase!$K:$K) -> 0 | V71: 0
D72: FBKRF | E72: PREFBF | F72: =OFFSET(Label!$A$1,MATCH(D72,Label!$A$1:$A$65537,0)-1,Main!$G$14+1) -> FOREIGN BROKERAGE FEE | I72: =-SUMIF(InTB!$M:$M,$E72,InTB!$K:$K) -> 0 | J72: =ROUND($T72*J$2,2)-SUMIFS(InTB!$K:$K,InTB!$M:$M,$E72,InTB!$C:$C,J$1) -> 0 | K72: =ROUND($T72*K$2,2)-SUMIFS(InTB!$K:$K,InTB!$M:$M,$E72,InTB!$C:$C,K$1) -> 0 | L72: =ROUND($T72*L$2,2)-SUMIFS(InTB!$K:$K,InTB!$M:$M,$E72,InTB!$C:$C,L$1) -> 0 | M72: =ROUND($T72*M$2,2)-SUMIFS(InTB!$K:$K,InTB!$M:$M,$E72,InTB!$C:$C,M$1) -> 0 | N72: =ROUND($T72*N$2,2)-SUMIFS(InTB!$K:$K,InTB!$M:$M,$E72,InTB!$C:$C,N$1) -> 0 | O72: =ROUND($T72*O$2,2)-SUMIFS(InTB!$K:$K,InTB!$M:$M,$E72,InTB!$C:$C,O$1) -> 0 | P72: =ROUND($T72*P$2,2)-SUMIFS(InTB!$K:$K,InTB!$M:$M,$E72,InTB!$C:$C,P$1) -> 0 | Q72: =ROUND($T72*Q$2,2)-SUMIFS(InTB!$K:$K,InTB!$M:$M,$E72,InTB!$C:$C,Q$1) -> 0 | R72: =ROUND($T72*R$2,2)-SUMIFS(InTB!$K:$K,InTB!$M:$M,$E72,InTB!$C:$C,R$1) -> 0 | S72: =ROUND($T72*S$2,2)-SUMIFS(InTB!$K:$K,InTB!$M:$M,$E72,InTB!$C:$C,S$1) -> 0 | T72: =-SUMIF(InTBBase!$M:$M,$E72,InTBBase!$K:$K) -> 0 | V72: 0
C73: PerfFeeBC | D73: PERF | E73: PREPMF | F73: =OFFSET(Label!$A$1,MATCH(D73,Label!$A$1:$A$65537,0)-1,Main!$G$14+1) -> PERFORMANCE FEE | I73: =-SUMIF(InTB!$M:$M,$E73,InTB!$K:$K) -> 0 | J73: =ROUND(($T73-$U73)*J$2,2)-SUMIFS(InTB!$K:$K,InTB!$M:$M,$E73,InTB!$C:$C,J$1)+ROUND(SUMIFS(INDIRECT(ADDRESS(3,MATCH($C73,InUPFee!$2:$2,0),,,"InUPFee") & ":" & ADDRESS(30000,MATCH($C73,InUPFee!$2:$2,0)),TRUE),InUPFee!$A$3:$A$30000,J$1),2) -> 0 | K73: =ROUND(($T73-$U73)*K$2,2)-SUMIFS(InTB!$K:$K,InTB!$M:$M,$E73,InTB!$C:$C,K$1)+ROUND(SUMIFS(INDIRECT(ADDRESS(3,MATCH($C73,InUPFee!$2:$2,0),,,"InUPFee") & ":" & ADDRESS(30000,MATCH($C73,InUPFee!$2:$2,0)),TRUE),InUPFee!$A$3:$A$30000,K$1),2) -> 0 | L73: =ROUND(($T73-$U73)*L$2,2)-SUMIFS(InTB!$K:$K,InTB!$M:$M,$E73,InTB!$C:$C,L$1)+ROUND(SUMIFS(INDIRECT(ADDRESS(3,MATCH($C73,InUPFee!$2:$2,0),,,"InUPFee") & ":" & ADDRESS(30000,MATCH($C73,InUPFee!$2:$2,0)),TRUE),InUPFee!$A$3:$A$30000,L$1),2) -> 0 | M73: =ROUND(($T73-$U73)*M$2,2)-SUMIFS(InTB!$K:$K,InTB!$M:$M,$E73,InTB!$C:$C,M$1)+ROUND(SUMIFS(INDIRECT(ADDRESS(3,MATCH($C73,InUPFee!$2:$2,0),,,"InUPFee") & ":" & ADDRESS(30000,MATCH($C73,InUPFee!$2:$2,0)),TRUE),InUPFee!$A$3:$A$30000,M$1),2) -> 0 | N73: =ROUND(($T73-$U73)*N$2,2)-SUMIFS(InTB!$K:$K,InTB!$M:$M,$E73,InTB!$C:$C,N$1)+ROUND(SUMIFS(INDIRECT(ADDRESS(3,MATCH($C73,InUPFee!$2:$2,0),,,"InUPFee") & ":" & ADDRESS(30000,MATCH($C73,InUPFee!$2:$2,0)),TRUE),InUPFee!$A$3:$A$30000,N$1),2) -> 0 | O73: =ROUND(($T73-$U73)*O$2,2)-SUMIFS(InTB!$K:$K,InTB!$M:$M,$E73,InTB!$C:$C,O$1)+ROUND(SUMIFS(INDIRECT(ADDRESS(3,MATCH($C73,InUPFee!$2:$2,0),,,"InUPFee") & ":" & ADDRESS(30000,MATCH($C73,InUPFee!$2:$2,0)),TRUE),InUPFee!$A$3:$A$30000,O$1),2) -> 0 | P73: =ROUND(($T73-$U73)*P$2,2)-SUMIFS(InTB!$K:$K,InTB!$M:$M,$E73,InTB!$C:$C,P$1)+ROUND(SUMIFS(INDIRECT(ADDRESS(3,MATCH($C73,InUPFee!$2:$2,0),,,"InUPFee") & ":" & ADDRESS(30000,MATCH($C73,InUPFee!$2:$2,0)),TRUE),InUPFee!$A$3:$A$30000,P$1),2) -> 0 | Q73: =ROUND(($T73-$U73)*Q$2,2)-SUMIFS(InTB!$K:$K,InTB!$M:$M,$E73,InTB!$C:$C,Q$1)+ROUND(SUMIFS(INDIRECT(ADDRESS(3,MATCH($C73,InUPFee!$2:$2,0),,,"InUPFee") & ":" & ADDRESS(30000,MATCH($C73,InUPFee!$2:$2,0)),TRUE),InUPFee!$A$3:$A$30000,Q$1),2) -> 0 | R73: =ROUND(($T73-$U73)*R$2,2)-SUMIFS(InTB!$K:$K,InTB!$M:$M,$E73,InTB!$C:$C,R$1)+ROUND(SUMIFS(INDIRECT(ADDRESS(3,MATCH($C73,InUPFee!$2:$2,0),,,"InUPFee") & ":" & ADDRESS(30000,MATCH($C73,InUPFee!$2:$2,0)),TRUE),InUPFee!$A$3:$A$30000,R$1),2) -> 0 | S73: =ROUND(($T73-$U73)*S$2,2)-SUMIFS(InTB!$K:$K,InTB!$M:$M,$E73,InTB!$C:$C,S$1)+ROUND(SUMIFS(INDIRECT(ADDRESS(3,MATCH($C73,InUPFee!$2:$2,0),,,"InUPFee") & ":" & ADDRESS(30000,MATCH($C73,InUPFee!$2:$2,0)),TRUE),InUPFee!$A$3:$A$30000,S$1),2) -> 0 | T73: =-SUMIF(InTBBase!$M:$M,$E73,InTBBase!$K:$K) -> 0 | U73: =SUMIFS(INDIRECT(ADDRESS(3,MATCH($C73,InUPFee!$2:$2,0),,,"InUPFee") & ":" & ADDRESS(30000,MATCH($C73,InUPFee!$2:$2,0)),TRUE),InUPFee!$A$3:$A$30000,FundCode) -> 0 | V73: 0
F74: TOTAL EXPENDITURE | I74: =I43+I44+I69+I72+I68+I41+I42+I45+I73 -> -112431.04 | J74: =J43+J44+J69+J72+J68+J41+J42+J45+J73 -> -110993.82 | K74: -1437.22 | L74: 0 | M74: 0 | N74: 0 | O74: 0 | P74: 0 | Q74: 0 | R74: 0 | S74: =S43+S44+S69+S72+S68+S41+S42+S45+S73 -> 0 | T74: =T43+T44+T69+T72+T68+T41+T42+T45+T73 -> -112431.04 | V74: 0
V75: 0
D76: NICNBTAX | F76: =OFFSET(Label!$A$1,MATCH(D76,Label!$A$1:$A$65537,0)-1,Main!$G$14+1) -> NET INCOME/( LOSS) BEFORE FINANCE COST AND TAXATION | I76: =I38+I74 -> -1614.46 | J76: -1593.82 | K76: -20.64 | L76: 0 | M76: 0 | N76: 0 | O76: 0 | P76: 0 | Q76: 0 | R76: 0 | S76: =S38+S74 -> 0 | T76: =T38+T74 -> -1614.46 | V76: 0
V77: 0
D78: TAX | E78: PRETAX | F78: =OFFSET(Label!$A$1,MATCH(D78,Label!$A$1:$A$65537,0)-1,Main!$G$14+1) -> Taxation | I78: =-SUMIF(InTB!$M:$M,$E78,InTB!$K:$K) -> 0 | J78: =ROUND($T78*J$2,2)-SUMIFS(InTB!$K:$K,InTB!$M:$M,$E78,InTB!$C:$C,J$1) -> 0 | K78: =ROUND($T78*K$2,2)-SUMIFS(InTB!$K:$K,InTB!$M:$M,$E78,InTB!$C:$C,K$1) -> 0 | L78: =ROUND($T78*L$2,2)-SUMIFS(InTB!$K:$K,InTB!$M:$M,$E78,InTB!$C:$C,L$1) -> 0 | M78: =ROUND($T78*M$2,2)-SUMIFS(InTB!$K:$K,InTB!$M:$M,$E78,InTB!$C:$C,M$1) -> 0 | N78: =ROUND($T78*N$2,2)-SUMIFS(InTB!$K:$K,InTB!$M:$M,$E78,InTB!$C:$C,N$1) -> 0 | O78: =ROUND($T78*O$2,2)-SUMIFS(InTB!$K:$K,InTB!$M:$M,$E78,InTB!$C:$C,O$1) -> 0 | P78: =ROUND($T78*P$2,2)-SUMIFS(InTB!$K:$K,InTB!$M:$M,$E78,InTB!$C:$C,P$1) -> 0 | Q78: =ROUND($T78*Q$2,2)-SUMIFS(InTB!$K:$K,InTB!$M:$M,$E78,InTB!$C:$C,Q$1) -> 0 | R78: =ROUND($T78*R$2,2)-SUMIFS(InTB!$K:$K,InTB!$M:$M,$E78,InTB!$C:$C,R$1) -> 0 | S78: =ROUND($T78*S$2,2)-SUMIFS(InTB!$K:$K,InTB!$M:$M,$E78,InTB!$C:$C,S$1) -> 0 | T78: =-SUMIF(InTBBase!$M:$M,$E78,InTBBase!$K:$K) -> 0 | V78: 0
D79: TAX1 | E79: PRELYX | F79: =OFFSET(Label!$A$1,MATCH(D79,Label!$A$1:$A$65537,0)-1,Main!$G$14+1) -> Local Prior Year under/(over) Provision of Tax | I79: =-SUMIF(InTB!$M:$M,$E79,InTB!$K:$K) -> 0 | J79: =ROUND($T79*J$2,2)-SUMIFS(InTB!$K:$K,InTB!$M:$M,$E79,InTB!$C:$C,J$1) -> 0 | K79: =ROUND($T79*K$2,2)-SUMIFS(InTB!$K:$K,InTB!$M:$M,$E79,InTB!$C:$C,K$1) -> 0 | L79: =ROUND($T79*L$2,2)-SUMIFS(InTB!$K:$K,InTB!$M:$M,$E79,InTB!$C:$C,L$1) -> 0 | M79: =ROUND($T79*M$2,2)-SUMIFS(InTB!$K:$K,InTB!$M:$M,$E79,InTB!$C:$C,M$1) -> 0 | N79: =ROUND($T79*N$2,2)-SUMIFS(InTB!$K:$K,InTB!$M:$M,$E79,InTB!$C:$C,N$1) -> 0 | O79: =ROUND($T79*O$2,2)-SUMIFS(InTB!$K:$K,InTB!$M:$M,$E79,InTB!$C:$C,O$1) -> 0 | P79: =ROUND($T79*P$2,2)-SUMIFS(InTB!$K:$K,InTB!$M:$M,$E79,InTB!$C:$C,P$1) -> 0 | Q79: =ROUND($T79*Q$2,2)-SUMIFS(InTB!$K:$K,InTB!$M:$M,$E79,InTB!$C:$C,Q$1) -> 0 | R79: =ROUND($T79*R$2,2)-SUMIFS(InTB!$K:$K,InTB!$M:$M,$E79,InTB!$C:$C,R$1) -> 0 | S79: =ROUND($T79*S$2,2)-SUMIFS(InTB!$K:$K,InTB!$M:$M,$E79,InTB!$C:$C,S$1) -> 0 | T79: =-SUMIF(InTBBase!$M:$M,$E79,InTBBase!$K:$K) -> 0 | V79: 0
D80: TAX2 | E80: PREWHT | F80: =OFFSET(Label!$A$1,MATCH(D80,Label!$A$1:$A$65537,0)-1,Main!$G$14+1) -> Local Witholding Tax | I80: =-SUMIF(InTB!$M:$M,$E80,InTB!$K:$K) -> 0 | J80: =ROUND($T80*J$2,2)-SUMIFS(InTB!$K:$K,InTB!$M:$M,$E80,InTB!$C:$C,J$1) -> 0 | K80: =ROUND($T80*K$2,2)-SUMIFS(InTB!$K:$K,InTB!$M:$M,$E80,InTB!$C:$C,K$1) -> 0 | L80: =ROUND($T80*L$2,2)-SUMIFS(InTB!$K:$K,InTB!$M:$M,$E80,InTB!$C:$C,L$1) -> 0 | M80: =ROUND($T80*M$2,2)-SUMIFS(InTB!$K:$K,InTB!$M:$M,$E80,InTB!$C:$C,M$1) -> 0 | N80: =ROUND($T80*N$2,2)-SUMIFS(InTB!$K:$K,InTB!$M:$M,$E80,InTB!$C:$C,N$1) -> 0 | O80: =ROUND($T80*O$2,2)-SUMIFS(InTB!$K:$K,InTB!$M:$M,$E80,InTB!$C:$C,O$1) -> 0 | P80: =ROUND($T80*P$2,2)-SUMIFS(InTB!$K:$K,InTB!$M:$M,$E80,InTB!$C:$C,P$1) -> 0 | Q80: =ROUND($T80*Q$2,2)-SUMIFS(InTB!$K:$K,InTB!$M:$M,$E80,InTB!$C:$C,Q$1) -> 0 | R80: =ROUND($T80*R$2,2)-SUMIFS(InTB!$K:$K,InTB!$M:$M,$E80,InTB!$C:$C,R$1) -> 0 | S80: =ROUND($T80*S$2,2)-SUMIFS(InTB!$K:$K,InTB!$M:$M,$E80,InTB!$C:$C,S$1) -> 0 | T80: =-SUMIF(InTBBase!$M:$M,$E80,InTBBase!$K:$K) -> 0 | V80: =ROUND(I80-SUM(J80:S80),1) -> 0
D81: TAX3 | E81: PRETXF | F81: =OFFSET(Label!$A$1,MATCH(D81,Label!$A$1:$A$65537,0)-1,Main!$G$14+1) -> Foreign Taxation | I81: =-SUMIF(InTB!$M:$M,$E81,InTB!$K:$K) -> -11947.17 | J81: =ROUND($T81*J$2,2)-SUMIFS(InTB!$K:$K,InTB!$M:$M,$E81,InTB!$C:$C,J$1) -> -11794.45 | K81: =ROUND($T81*K$2,2)-SUMIFS(InTB!$K:$K,InTB!$M:$M,$E81,InTB!$C:$C,K$1) -> -152.72 | L81: =ROUND($T81*L$2,2)-SUMIFS(InTB!$K:$K,InTB!$M:$M,$E81,InTB!$C:$C,L$1) -> 0 | M81: =ROUND($T81*M$2,2)-SUMIFS(InTB!$K:$K,InTB!$M:$M,$E81,InTB!$C:$C,M$1) -> 0 | N81: =ROUND($T81*N$2,2)-SUMIFS(InTB!$K:$K,InTB!$M:$M,$E81,InTB!$C:$C,N$1) -> 0 | O81: =ROUND($T81*O$2,2)-SUMIFS(InTB!$K:$K,InTB!$M:$M,$E81,InTB!$C:$C,O$1) -> 0 | P81: =ROUND($T81*P$2,2)-SUMIFS(InTB!$K:$K,InTB!$M:$M,$E81,InTB!$C:$C,P$1) -> 0 | Q81: =ROUND($T81*Q$2,2)-SUMIFS(InTB!$K:$K,InTB!$M:$M,$E81,InTB!$C:$C,Q$1) -> 0 | R81: =ROUND($T81*R$2,2)-SUMIFS(InTB!$K:$K,InTB!$M:$M,$E81,InTB!$C:$C,R$1) -> 0 | S81: =ROUND($T81*S$2,2)-SUMIFS(InTB!$K:$K,InTB!$M:$M,$E81,InTB!$C:$C,S$1) -> 0 | T81: =-SUMIF(InTBBase!$M:$M,$E81,InTBBase!$K:$K) -> -11947.17 | V81: 0
V82: 0
D83: NETINCTAX | F83: =OFFSET(Label!$A$1,MATCH(D83,Label!$A$1:$A$65537,0)-1,Main!$G$14+1) -> NET INCOME/ (LOSS) AFTER TAXATION | I83: =SUM(I76:I82) -> -13561.63 | J83: -13388.27 | K83: =SUM(K76:K82) -> -173.36 | L83: 0 | M83: 0 | N83: 0 | O83: =SUM(O76:O82) -> 0 | P83: 0 | Q83: 0 | R83: =SUM(R76:R82) -> 0 | S83: =SUM(S76:S82) -> 0 | T83: -13561.63 | V83: 0
V84: 0
D85: NETGAINFEX | E85: PUGNFX | F85: Less: Net gain/ or loss on investment - unrealised reclassified | I85: =-SUMIF(InTB!$M:$M,$E85,InTB!$K:$K) -> -161169.75 | J85: =ROUND($T85*J$2,2)-SUMIFS(InTB!$K:$K,InTB!$M:$M,$E85,InTB!$C:$C,J$1) -> -159109.49 | K85: =ROUND($T85*K$2,2)-SUMIFS(InTB!$K:$K,InTB!$M:$M,$E85,InTB!$C:$C,K$1) -> -2060.26 | L85: =ROUND($T85*L$2,2)-SUMIFS(InTB!$K:$K,InTB!$M:$M,$E85,InTB!$C:$C,L$1) -> 0 | M85: =ROUND($T85*M$2,2)-SUMIFS(InTB!$K:$K,InTB!$M:$M,$E85,InTB!$C:$C,M$1) -> 0 | N85: =ROUND($T85*N$2,2)-SUMIFS(InTB!$K:$K,InTB!$M:$M,$E85,InTB!$C:$C,N$1) -> 0 | O85: =ROUND($T85*O$2,2)-SUMIFS(InTB!$K:$K,InTB!$M:$M,$E85,InTB!$C:$C,O$1) -> 0 | P85: =ROUND($T85*P$2,2)-SUMIFS(InTB!$K:$K,InTB!$M:$M,$E85,InTB!$C:$C,P$1) -> 0 | Q85: =ROUND($T85*Q$2,2)-SUMIFS(InTB!$K:$K,InTB!$M:$M,$E85,InTB!$C:$C,Q$1) -> 0 | R85: =ROUND($T85*R$2,2)-SUMIFS(InTB!$K:$K,InTB!$M:$M,$E85,InTB!$C:$C,R$1) -> 0 | S85: =ROUND($T85*S$2,2)-SUMIFS(InTB!$K:$K,InTB!$M:$M,$E85,InTB!$C:$C,S$1) -> 0 | T85: =-SUMIF(InTBBase!$M:$M,$E85,InTBBase!$K:$K) -> -161169.75 | V85: 0
D86: NETGAINFVTPL | F86: to unrealised income on investment | V86: 0
I87: =I83-I85 -> 147608.12 | J87: 145721.22 | K87: =K83-K85 -> 1886.9 | L87: =L83-L85 -> 0 | M87: 0 | N87: 0 | O87: =O83-O85 -> 0 | P87: 0 | Q87: 0 | R87: =R83-R85 -> 0 | S87: =S83-S85 -> 0 | T87: 147608.12 | V87: 0
V88: 0
D89: UNDINCBF | E89: BSRRPF | F89: =OFFSET(Label!$A$1,MATCH(D89,Label!$A$1:$A$65537,0)-1,Main!$G$14+1) -> CURRENT YEAR UNDISTRIBUTED INCOME/ (LOSS) B/F | I89: =-SUMIF(InTB!$M:$M,$E89,InTB!$K:$K) -> -934787.81 | J89: =ROUND($T89*J$2,2)-SUMIFS(InTB!$K:$K,InTB!$M:$M,$E89,InTB!$C:$C,J$1) -> -922838.28 | K89: =ROUND($T89*K$2,2)-SUMIFS(InTB!$K:$K,InTB!$M:$M,$E89,InTB!$C:$C,K$1) -> -11949.53 | L89: =ROUND($T89*L$2,2)-SUMIFS(InTB!$K:$K,InTB!$M:$M,$E89,InTB!$C:$C,L$1) -> 0 | M89: =ROUND($T89*M$2,2)-SUMIFS(InTB!$K:$K,InTB!$M:$M,$E89,InTB!$C:$C,M$1) -> 0 | N89: =ROUND($T89*N$2,2)-SUMIFS(InTB!$K:$K,InTB!$M:$M,$E89,InTB!$C:$C,N$1) -> 0 | O89: =ROUND($T89*O$2,2)-SUMIFS(InTB!$K:$K,InTB!$M:$M,$E89,InTB!$C:$C,O$1) -> 0 | P89: =ROUND($T89*P$2,2)-SUMIFS(InTB!$K:$K,InTB!$M:$M,$E89,InTB!$C:$C,P$1) -> 0 | Q89: =ROUND($T89*Q$2,2)-SUMIFS(InTB!$K:$K,InTB!$M:$M,$E89,InTB!$C:$C,Q$1) -> 0 | R89: =ROUND($T89*R$2,2)-SUMIFS(InTB!$K:$K,InTB!$M:$M,$E89,InTB!$C:$C,R$1) -> 0 | S89: =ROUND($T89*S$2,2)-SUMIFS(InTB!$K:$K,InTB!$M:$M,$E89,InTB!$C:$C,S$1) -> 0 | T89: =-SUMIF(InTBBase!$M:$M,$E89,InTBBase!$K:$K) -> -934787.81 | V89: 0
D90: DIS1 | E90: PRDSEQ | F90: =OFFSET(Label!$A$1,MATCH(D90,Label!$A$1:$A$65537,0)-1,Main!$G$14+1) -> Distribution equalisation | I90: =-SUMIF(InTB!$M:$M,$E90,InTB!$K:$K) -> 0 | J90: =ROUND($T90*J$2,2)-SUMIFS(InTB!$K:$K,InTB!$M:$M,$E90,InTB!$C:$C,J$1) -> 0 | K90: =ROUND($T90*K$2,2)-SUMIFS(InTB!$K:$K,InTB!$M:$M,$E90,InTB!$C:$C,K$1) -> 0 | L90: =ROUND($T90*L$2,2)-SUMIFS(InTB!$K:$K,InTB!$M:$M,$E90,InTB!$C:$C,L$1) -> 0 | M90: =ROUND($T90*M$2,2)-SUMIFS(InTB!$K:$K,InTB!$M:$M,$E90,InTB!$C:$C,M$1) -> 0 | N90: =ROUND($T90*N$2,2)-SUMIFS(InTB!$K:$K,InTB!$M:$M,$E90,InTB!$C:$C,N$1) -> 0 | O90: =ROUND($T90*O$2,2)-SUMIFS(InTB!$K:$K,InTB!$M:$M,$E90,InTB!$C:$C,O$1) -> 0 | P90: =ROUND($T90*P$2,2)-SUMIFS(InTB!$K:$K,InTB!$M:$M,$E90,InTB!$C:$C,P$1) -> 0 | Q90: =ROUND($T90*Q$2,2)-SUMIFS(InTB!$K:$K,InTB!$M:$M,$E90,InTB!$C:$C,Q$1) -> 0 | R90: =ROUND($T90*R$2,2)-SUMIFS(InTB!$K:$K,InTB!$M:$M,$E90,InTB!$C:$C,R$1) -> 0 | S90: =ROUND($T90*S$2,2)-SUMIFS(InTB!$K:$K,InTB!$M:$M,$E90,InTB!$C:$C,S$1) -> 0 | T90: =-SUMIF(InTBBase!$M:$M,$E90,InTBBase!$K:$K) -> 0 | V90: 0
D91: DIS2 | E91: PRDIST | F91: =OFFSET(Label!$A$1,MATCH(D91,Label!$A$1:$A$65537,0)-1,Main!$G$14+1) -> Distributions | I91: =-SUMIF(InTB!$M:$M,$E91,InTB!$K:$K) -> 0 | J91: =ROUND($T91*J$2,2)-SUMIFS(InTB!$K:$K,InTB!$M:$M,$E91,InTB!$C:$C,J$1) -> 0 | K91: =ROUND($T91*K$2,2)-SUMIFS(InTB!$K:$K,InTB!$M:$M,$E91,InTB!$C:$C,K$1) -> 0 | L91: =ROUND($T91*L$2,2)-SUMIFS(InTB!$K:$K,InTB!$M:$M,$E91,InTB!$C:$C,L$1) -> 0 | M91: =ROUND($T91*M$2,2)-SUMIFS(InTB!$K:$K,InTB!$M:$M,$E91,InTB!$C:$C,M$1) -> 0 | N91: =ROUND($T91*N$2,2)-SUMIFS(InTB!$K:$K,InTB!$M:$M,$E91,InTB!$C:$C,N$1) -> 0 | O91: =ROUND($T91*O$2,2)-SUMIFS(InTB!$K:$K,InTB!$M:$M,$E91,InTB!$C:$C,O$1) -> 0 | P91: =ROUND($T91*P$2,2)-SUMIFS(InTB!$K:$K,InTB!$M:$M,$E91,InTB!$C:$C,P$1) -> 0 | Q91: =ROUND($T91*Q$2,2)-SUMIFS(InTB!$K:$K,InTB!$M:$M,$E91,InTB!$C:$C,Q$1) -> 0 | R91: =ROUND($T91*R$2,2)-SUMIFS(InTB!$K:$K,InTB!$M:$M,$E91,InTB!$C:$C,R$1) -> 0 | S91: =ROUND($T91*S$2,2)-SUMIFS(InTB!$K:$K,InTB!$M:$M,$E91,InTB!$C:$C,S$1) -> 0 | T91: =-SUMIF(InTBBase!$M:$M,$E91,InTBBase!$K:$K) -> 0 | V91: 0
D92: UNDINCCF | F92: =OFFSET(Label!$A$1,MATCH(D92,Label!$A$1:$A$65537,0)-1,Main!$G$14+1) -> CURRENT YEAR UNDISTRIBUTED INCOME/(LOSS) C/F | I92: =SUM(I87:I91) -> -787179.69 | J92: -777117.06 | K92: =SUM(K87:K91) -> -10062.63 | L92: 0 | M92: 0 | N92: 0 | O92: =SUM(O87:O91) -> 0 | P92: 0 | Q92: 0 | R92: =SUM(R87:R91) -> 0 | S92: =SUM(S87:S91) -> 0 | T92: -787179.69 | V92: 0
V93: 0
V94: 0
D95: NETAFTERTAX | F95: =OFFSET(Label!$A$1,MATCH(D95,Label!$A$1:$A$65537,0)-1,Main!$G$14+1) -> NET INCOME AFTER TAXATION IS MADE UP OF: | V95: 0
D96: RINC | F96: =OFFSET(Label!$A$1,MATCH(D96,Label!$A$1:$A$65537,0)-1,Main!$G$14+1) -> Realised income/ (loss) | I96: =I87 -> 147608.12 | J96: 145721.22 | K96: =K87 -> 1886.9 | L96: 0 | M96: 0 | N96: 0 | O96: =O87 -> 0 | P96: 0 | Q96: 0 | R96: =R87 -> 0 | S96: =S87 -> 0 | T96: 147608.12 | V96: 0
D97: UINC2 | E97: PUGNFX | F97: =OFFSET(Label!$A$1,MATCH(D97,Label!$A$1:$A$65537,0)-1,Main!$G$14+1) -> Unrealised income/ (loss) On Foreign Exchange | I97: =-SUMIF(InTB!$M:$M,$E97,InTB!$K:$K) -> -161169.75 | J97: =ROUND($T97*J$2,2)-SUMIFS(InTB!$K:$K,InTB!$M:$M,$E97,InTB!$C:$C,J$1) -> -159109.49 | K97: =ROUND($T97*K$2,2)-SUMIFS(InTB!$K:$K,InTB!$M:$M,$E97,InTB!$C:$C,K$1) -> -2060.26 | L97: =ROUND($T97*L$2,2)-SUMIFS(InTB!$K:$K,InTB!$M:$M,$E97,InTB!$C:$C,L$1) -> 0 | M97: =ROUND($T97*M$2,2)-SUMIFS(InTB!$K:$K,InTB!$M:$M,$E97,InTB!$C:$C,M$1) -> 0 | N97: =ROUND($T97*N$2,2)-SUMIFS(InTB!$K:$K,InTB!$M:$M,$E97,InTB!$C:$C,N$1) -> 0 | O97: =ROUND($T97*O$2,2)-SUMIFS(InTB!$K:$K,InTB!$M:$M,$E97,InTB!$C:$C,O$1) -> 0 | P97: =ROUND($T97*P$2,2)-SUMIFS(InTB!$K:$K,InTB!$M:$M,$E97,InTB!$C:$C,P$1) -> 0 | Q97: =ROUND($T97*Q$2,2)-SUMIFS(InTB!$K:$K,InTB!$M:$M,$E97,InTB!$C:$C,Q$1) -> 0 | R97: =ROUND($T97*R$2,2)-SUMIFS(InTB!$K:$K,InTB!$M:$M,$E97,InTB!$C:$C,R$1) -> 0 | S97: =ROUND($T97*S$2,2)-SUMIFS(InTB!$K:$K,InTB!$M:$M,$E97,InTB!$C:$C,S$1) -> 0 | T97: =-SUMIF(InTBBase!$M:$M,$E97,InTBBase!$K:$K) -> -161169.75 | V97: 0
I98: =SUM(I96:I97) -> -13561.63 | J98: -13388.27 | K98: =SUM(K96:K97) -> -173.36 | L98: 0 | M98: 0 | N98: 0 | O98: =SUM(O96:O97) -> 0 | P98: 0 | Q98: 0 | R98: =SUM(R96:R97) -> 0 | S98: 0 | T98: =SUM(T96:T97) -> -13561.63 | V98: 0

Sheet Label (hidden)
B9: Income Statement | F9: Balance Sheet
B10: Conventional Fund | C10: Islamic Fund | F10: Conventional Fund | G10: Islamic Fund
A11: INVINC | B11: INCOME | C11: INCOME | E11: ASSET | F11: ASSETS | G11: Assets
A12: INTINCOME | B12: INTEREST INCOME | C12: PROFIT SHARING | E12: INV | F12: INVESTMENTS | G12: Investments
A13: INTINCOME1 | B13: =UPPER("Interest Income - Money Market Placement") -> INTEREST INCOME - MONEY MARKET PLACEMENT | C13: Profit Sharing - Shariah-based deposits and placements | E13: UFISCP | F13: UNQUOTED FIXED INCOME SECURITIES -COMMERCIAL PAPER | G13: Unquoted Fixed Income Securities - Islamic Commercial Paper
A14: INTINCOME2 | B14: Interest Income - Commercial Bond | C14: Profit Sharing - Commercial Bond | E14: UFISCP1 | F14: Investment Cost -CP | G14: Investment Cost -CP
A15: INTINCOME3 | B15: Interest Income - Bank | C15: Profit Sharing - Bank | E15: UFISCP2 | F15: Accretion of Discount- CP | G15: Accreation of Discount- CP
A16: INTINCOME4 | B16: Interest Income - loan stock | C16: Profit Sharing - loan stock | E16: UFISCP3 | F16: Unrealised Reserves on Investment -CP | G16: Unrealised Reserves on Investment -CP
A17: AMORT | B17: (AMORTISATION OF PREMIUM, NET ACCREATION OF DISCOUNT)/ | C17: =B17 -> (AMORTISATION OF PREMIUM, NET ACCREATION OF DISCOUNT)/
A18: ACCRE | B18: ACCREATION OF DISCOUNT, NET AMORTISATION OF PREMIUM | C18: =B18 -> ACCREATION OF DISCOUNT, NET AMORTISATION OF PREMIUM | E18: UFISCB | F18: UNQUOTED FIXED INCOME SECURITIES -COMMERCIAL BOND | G18: Unquoted Fixed Income Securities -Commercial SUKUK
A19: ACCRE1 | B19: Discount - Commercial Paper | C19: Discount - Commercial Paper | E19: UFISCOST1 | F19: Investment Cost - CB | G19: Investment Cost - CB
A20: ACCRE2 | B20: Discount - Commercial Bond | C20: Discount - Commercial Bond | E20: UFISCOST2 | F20: Pre-Acq Interest - CB | G20: Pre-Acq Interest - CB
A21: ACCRE3 | B21: Amortisation of Premium-Commercial Bond | C21: Amortisation of premium-Commercial Bond | E21: UFISCOST3 | F21: Premium on Acquisition - CB | G21: Premium on Acquisition- CB
A22: GDIV | B22: GROSS DIVIDEND | C22: GROSS DIVIDEND | E22: UFISCOST4 | F22: Accreation of Discount - CB | G22: Accretion of Discount - CB
A23: GDIV1 | B23: Dividend Income - Local (TA) | C23: Dividend Income - Local (TA) | E23: UFISCOST5 | F23: Unrealised Reserves on Investment - CB | G23: Unrealised Reserves on Investment - CB
A24: GDIV2 | B24: Dividend Income - Local (TE) | C24: Dividend Income - Local (TE) | E24: UFISCOST6 | F24: UNREALISED FOREX GAINS/(LOSS) ON FOREIGN - CB | G24: Unrealised FOREX Gains/(Loss) on Foreign - CB
A25: GDIV3 | B25: Dividend Income - Foreign (TA) | C25: Dividend Income - Foreign (TA)
A26: GDIV4 | B26: Dividend Income - Foreign (TE) | C26: Dividend Income - Foreign (TE) | E26: FVUFIS | F26: FAIR VALUE FOR UNQUOTED FIXED INCOME SECURITIES | G26: Fair Value for Unquoted fixed income securities
A27: NRGNL | B27: NET REALISED GAIN/(LOSS) ON SALE OF INVESTMENTS | C27: =B27 -> NET REALISED GAIN/(LOSS) ON SALE OF INVESTMENTS
A28: NRGNL1 | B28: Local | C28: Local | E28: QS | F28: QUOTED SECURITIES | G28: Quoted Securities
A29: NRGNL2 | B29: Foreign | C29: Foreign | E29: QS1 | F29: Local Listed Securities | G29: Local Listed Securities
A30: NGNLFWD | B30: NET GAIN/(LOSS) ON FORWARD CONTRACT - REALISED | C30: =B30 -> NET GAIN/(LOSS) ON FORWARD CONTRACT - REALISED | E30: QS2 | F30: Unrealised Gains/(Loss) on Local Listed Securities | G30: Unrealised Gains/(Loss) on Local Listed Securities
A31: NGNLFXR | B31: NET GAIN/ (LOSS) ON FOREIGN EXCHANGE - REALISED | C31: =B31 -> NET GAIN/ (LOSS) ON FOREIGN EXCHANGE - REALISED | E31: QS3 | F31: FOREIGN LISTED SECURITIES | G31: Foreign Listed Securities
A32: NGNLFXU | B32: NET GAIN/ (LOSS) ON FOREIGN EXCHANGE - UNREALISED | C32: =B32 -> NET GAIN/ (LOSS) ON FOREIGN EXCHANGE - UNREALISED | E32: QS4 | F32: UNREALISED GAINS/(LOSS) ON FOREIGN LISTED SECURITIES | G32: Unrealised Gains/(Loss) on Foreign Listed Securities
A33: NGNLFVTPL | B33: NET GAIN/ (LOSS) ON FVTPL - UNREALISED | C33: NET GAIN/ (LOSS) ON FVTPL - UNREALISED | E33: QS5 | F33: UNREALISED FOREX GAINS/(LOSS) ON FOREIGN LISTED SECURITIES | G33: Unrealised FOREX Gains/(Loss) on Foreign Listed Securities
A34: OTHINC | B34: OTHER INCOME | C34: =B34 -> OTHER INCOME | E34: QS6 | F34: QUOTED DERIVATIVES | G34: Quoted Derivatives
A35: REBATE | B35: REBATES FROM MANAGEMENT FEE | C35: =B35 -> REBATES FROM MANAGEMENT FEE | E35: QS7 | F35: UNREALISED GAINS/(LOSS) ON QUOTED DERIVATIVES | G35: Unrealised Gains/(Loss) on Quoted Derivatives
E37: CIS | F37: COLLECTIVE INVESTMENT SCHEME | G37: Collective Investment Scheme
A38: EXP | B38: EXPENDITURE | C38: =B38 -> EXPENDITURE | E38: CIS1 | F38: LOCAL COLLECTIVE INVESTMENT SCHEME | G38: Local Collective Investment Scheme
A39: MGTFEE | B39: MANAGEMENT FEE | C39: MANAGEMENT FEE | E39: CIS2 | F39: Unrealised Gains/(Loss) on Local Collective Investment Scheme | G39: Unrealised Gains/(Loss) on Local Collective Investment Scheme
A40: TRTFEE | B40: TRUSTEE'S FEE | C40: TRUSTEE'S FEE | E40: CIS3 | F40: Foreign Collective Investment Scheme | G40: Foreign Collective Investment Scheme
A41: AUDITOR | B41: AUDITOR'S REMUNERATION | C41: AUDITOR'S REMUNERATION | E41: CIS4 | F41: Unrealised Gains/(Loss) on Foreign Collective Investment Scheme | G41: Unrealised Gains/(Loss) on Foreign Collective Investment Scheme
A42: TAXAF | B42: TAX AGENT'S FEE | C42: TAX AGENT'S FEE | E42: CIS5 | F42: Unrealised FOREX Gains/(Loss) on Foreign Collective Investment Scheme | G42: Unrealised FOREX Gains/(Loss) on Foreign Collective Investment Scheme
A43: ADEXP | B43: ADMINISTRATION EXPENSES | C43: ADMINISTRATION EXPENSES
A44: ADEXP1 | B44: Printing | C44: Printing | E44: OPT | F44: OPTIONS | G44: Options
A45: ADEXP2 | B45: Postage | C45: Postage | E45: OPT1 | F45: Foreign Options | G45: Foreign Options
A46: ADEXP3 | B46: Bank charges | C46: Bank charges | E46: OPT2 | F46: Unrealised Gains/(Loss) on Foreign Options | G46: Unrealised Gains/(Loss) on Foreign Options
A47: ADEXP4 | B47: CDS deposit fee | C47: CDS deposit fee | E47: OPT3 | F47: Unrealised FOREX Gains/(Loss) on Foreign Options | G47: Unrealised FOREX Gains/(Loss) on Foreign Options
A48: ADEXP5 | B48: Cash distribution expenses | C48: Cash distribution expenses | E48: OPT4 | F48: Forward Contract | G48: Forward Contract
A49: ADEXP6 | B49: CDS transfer fee | C49: CDS transfer fee | E49: OPT5 | F49: Unrealised FOREX Gains/(Loss) on Forward Contract | G49: Unrealised FOREX Gains/(Loss) on Forward Contract
A50: ADEXP7 | B50: Online service charges | C50: Online service charges
A51: ADEXP8 | B51: SSTS custodian charges | C51: SSTS cusoidian charges | E51: CSHINV | F51: DEPOSITS AND PLACEMENTS WITH FINANCIAL INSTITUTIONS | G51: Shariah-based Deposits and placements with financial institutions
A52: ADEXP9 | B52: Trustee's fee (Registration Services) | C52: Trustee's fee (Registration Services) | E52: TOTALINV | F52: TOTAL INVESTMENT | G52: Total Investment
A53: ADEXP10 | B53: Services charges | C53: Services charges
A54: ADEXP11 | B54: Professional fees | C54: Professional fees | E54: OTHASSET | F54: OTHER ASSETS | G54: Other assets
A55: ADEXP12 | B55: General Expenses | C55: General Expenses | E55: AMTFMGR | F55: AMOUNT DUE/ (TO) FROM THE MANAGER (NET CREATION / (CANCELLATION)) | G55: Amount due/ (to) from the Manager (net creation / (cancellation))
A56: ADEXP13 | B56: Tax Disbursement | C56: Tax Disbursement | E56: AMTFBRK | F56: AMOUNT DUE FROM STOCKBROKERS | G56: Amount due from stockbrokers
A57: ADEXP14 | B57: Registration, stamping and transfer fees | C57: Registration, stamping and transfer fees | E57: AMTFBRK1 | F57: Broker - Local | G57: Broker - Local
A58: ADEXP15 | B58: Nominee's charges | C58: Nominee's charges | E58: AMTFBRK2 | F58: Broker - Foreign | G58: Broker - Foreign
A59: ADEXP16 | B59: Dividend postage and handling fees | C59: Dividend postage and handling fees | E59: AMTFBRK3 | F59: Foreign Broker - Unrealised FOREX Gains/(Loss) | G59: Foreign Broker - Unrealised FOREX Gains/(Loss)
A60: ADEXP17 | B60: Audit Disbursement | C60: Audit Disbursement | E60: AMTFOTH | F60: AMOUNT DUE FROM OTHER INVESTMENT | G60: AMOUNT DUE FROM OTHER INVESTMENT
A61: ADEXP18 | B61: CDS Fees | C61: CDS Fees | E61: REBATE | F61: REBATES RECEIVABLE | G61: Rebates Receivable
A62: ADEXP19 | B62: Local custodian fees | C62: Local custodian fees | E62: INTRECCSH | F62: INTEREST RECEIVABLE ON DEPOSITS AND PLACEMENTS | G62: Profit Receivable on Deposits and Placements
A63: ADEXP20 | B63: Management Expenses | C63: Management Expenses | E63: INTRECBND | F63: INTEREST RECEIVABLE ON UNQUOTED FIXED INCOME SECURITIES | G63: Profit Receivable on Unquoted Fixed Income Securities
A64: ADEXP21 | B64: Listed Securities Investment Cost | C64: Listed Securities Investment Cost | E64: DIVREC | F64: DIVIDEND RECEIVABLE | G64: Dividend receivable
A65: TRNCOST | B65: TRANSACTION COST | C65: TRANSACTION COST | E65: DIVREC1 | F65: Dividend receivable - Local | G65: Dividend receivable - Local
A66: FCUST | B66: FOREIGN CUSTODIAN CHARGES | C66: =B66 -> FOREIGN CUSTODIAN CHARGES | E66: DIVREC2 | F66: Dividend receivable - Foreign | G66: Dividend receivable - Foreign
A67: FCUST1 | B67: Annual custodian fees | C67: Annual custodian fees | E67: DIVREC3 | F67: Foreign Dividend - Unrealised FOREX Gains/(Loss) | G67: Foreign Dividend - Unrealised FOREX Gains/(Loss)
A68: FCUST2 | B68: Custodian fee per foreign transaction | C68: Custodian fee per foreign transaction | E68: TAXREC | F68: TAX RECOVERABLE | G68: Tax recoverable
E69: SUNDEB | F69: SUNDRY DEBTOR | G69: Sundry Debtor
A70: FBKRF | B70: FOREIGN BROKERAGE FEE | C70: =B70 -> FOREIGN BROKERAGE FEE | E70: BANK | F70: BANK BALANCES WITH FINANCIAL INSTITUTIONS | G70: Shariah -based Bank balances with Financial Institutions
A71: PERF | B71: PERFORMANCE FEE | C71: PERFORMANCE FEE | E71: BANK1 | F71: Bank Balances in Cost | G71: Shariah -based Bank Balances in Cost
A72: NICNBTAX | B72: NET INCOME/( LOSS) BEFORE TAXATION | C72: NET INCOME/( LOSS) BEFORE FINANCE COST AND TAXATION | E72: BANK2 | F72: Foreign Bank Balances - Unrealised FOREX Gains/(Loss) | G72: Foreign Shariah -based Bank Balances - Unrealised FOREX Gains/(Loss)
A74: TAX | B74: Taxation | C74: Taxation | E74: TOTASSET | F74: TOTAL ASSETS | G74: Total Assets
A75: TAX1 | B75: Local Prior Year under/(over) Provision of Tax | C75: Local Prior Year under/(over) Provision of Tax
A76: TAX2 | B76: Local Witholding Tax | C76: Local Witholding Tax | E76: LIABILITY | F76: LIABILITIES | G76: Liabilities
A77: TAX3 | B77: Foreign Taxation | C77: Foreign Taxation
E78: AMTTMGR | F78: AMOUNT DUE TO THE MANAGER (MANAGEMENT FEE & EXPENSES) | G78: Amount due to the Manager (Management Fee & Expenses)
A79: NETINCTAX | B79: NET INCOME/ (LOSS) AFTER TAXATION | C79: NET INCOME/ (LOSS) AFTER TAXATION | E79: AMTTTRT | F79: AMOUNT DUE TO THE TRUSTEE | G79: Amount due to the Trustee
E80: AMTTBRK | F80: AMOUNT DUE TO STOCKBROKERS | G80: Amount due to Stockbrokers
A81: NETGAINFEX | B81: Less: Net gain on foreign exchange - unrealised reclassified to unrealised income on investment | C81: Less: Net gain on foreign exchange - unrealised reclassified to unrealised income on investment | E81: AMTTBRK1 | F81: Broker - Local | G81: Broker - Local
A82: NETGAINFVTPL | B82: Less: Net gain on FVTPL - unrealised reclassified to unrealised income on investment | C82: Less: Net gain on FVTPL - unrealised reclassified to unrealised income on investment | E82: AMTTBRK2 | F82: Broker - Foreign | G82: Broker - Foreign
E83: AMTTBRK3 | F83: Foreign Broker - Unrealised FOREX Gains/(Loss) | G83: Foreign Broker - Unrealised FOREX Gains/(Loss)
E84: AMTTOTHINV | F84: AMOUNT DUE TO OTHER INVESTMNET | G84: Amount due to Other Investmnet
E85: TAXP | F85: TAX PAYABLE | G85: Tax payable
A86: UNDINCBF | B86: UNDISTRIBUTED INCOME/ (LOSS) BROUGHT FORWARD | C86: CURRENT YEAR UNDISTRIBUTED INCOME/ (LOSS) B/F | E86: TAXFP | F86: TAX FEE PAYABLE | G86: Tax fee payable
A87: DIS1 | B87: Distribution equalisation | C87: Distribution equalisation | E87: DIVP | F87: DIVIDEND PAYABLE | G87: Dividend payable
A88: DIS2 | B88: Distributions | C88: Distributions | E88: PROVAUDIT | F88: PROVISION FOR AUDIT FEE | G88: Provision for audit fee
A89: UNDINCCF | B89: UNDISTRIBUTED INCOME/(LOSS) CARRIED FORWARD | C89: CURRENT YEAR UNDISTRIBUTED INCOME/(LOSS) C/F | E89: AMT | F89: AMOUNT DUE TO TRUSTEE (INITIAL BANK AMOUNT) | G89: Amount Due to Trustee (Initial Bank Amount)
E90: SUNACC | F90: SUNDRY ACCRUALS | G90: Sundry Accruals
E91: CUSTFFTP | F91: CUSTODIAN FEE PAYABLE (ANNUAL + PER FOREIGN TRANSACTION) | G91: Custodian Fees per Foreign Transaction Payable
A92: NETAFTERTAX | B92: NET INCOME AFTER TAXATION IS MADE UP OF: | C92: =B92 -> NET INCOME AFTER TAXATION IS MADE UP OF: | E92: FBRKFP | F92: FOREIGN BROKERAGE FEE PAYABLE | G92: Foreign Brokerage Fee Payable
A93: RINC | B93: Realised income/ (loss) | C93: Realised income/ (loss) | E93: TOTLEXNAV | F93: TOTAL LIABILITIES EXCLUDING NET ASSET VALUE ("NAV") ATTRIBUTABLE TO UNIT HOLDERS | G93: Total Liabilities Excluding Net Asset Value ("NAV") Attributable to Unit Holders
A94: UINC | B94: Unrealised income/ (loss) | C94: Unrealised income/ (loss)
A95: UINC1 | B95: Unrealised income/ (loss) | C95: Unrealised income/ (loss) | E95: NAVUNIT | F95: NAV ATTRIBUTABLE TO UNIT HOLDERS | G95: NAV Attributable to Unit Holders
A96: UINC2 | B96: Unrealised income/ (loss) On Foreign Exchange | C96: Unrealised income/ (loss) On Foreign Exchange
E97: TOTLINAV | F97: TOTAL LIABILITIES INCLUDING NAV | G97: Total Liabilities Including NAV
E100: UCIR | F100: UNITS IN CIRCULATION | G100: Units in Circulation
E101: MCR | F101: Multi Class Ratio (MCR) % | G101: Multi Class Ratio (MCR) %
E102: EXCHGRATE | F102: Exchange Rate | G102: Exchange Rate
E103: NAV | F103: Net Asset Value Per Unit in Fund Currency | G103: Net Asset Value Per Unit in Fund Currency
E104: NAVCLASS | F104: Net Asset Value Per Unit in Class Currency | G104: Net Asset Value Per Unit in Class Currency
E106: NOTE: | F106: NOTE: | G106: Note:
E107: NAVAT | F107: NAV ATTRIBUTABLE TO UNIT HOLDERS | G107: NAV Attributable to Unit Holders
E108: CAP | F108: UNITHOLDERS' CAPITAL | G108: Unitholders' capital
E109: URR | F109: UNREALISED RESERVES/ (DEFICIT) ON INVESTMENTS | G109: Unrealised Reserves/ (deficit) on Investments
E110: RETAIN | F110: RETAIN EARNINGS | G110: Retain Earnings
E111: PROFIT | F111: CURRENT YEAR PROFIT / (LOSS) | G111: Current Year Profit / (Loss)
F121: as per unit pricing | G121: as per unit pricing

Sheet InUP (hidden)
S1: =IF(Q1=4,IF(A1=L1,0,K1/O1/R1),IF(ROW()=MATCH(MAX($H:$H),$H:$H,0),1-SUMIF(A:A,"<>"&OFFSET($A$1,MATCH(MAX($H:$H),$H:$H,0)-1,0),P:P),P1)) -> 0 | T1: =IF(ROW()=MATCH(MAX($H:$H),$H:$H,0),1-SUMIF($A:$A,"<>"&OFFSET($A$1,MATCH(MAX($H:$H),$H:$H,0)-1,0),S:S),S1) -> 0 | U1: =R1-SUM(J:J)/2 -> 0 | V1: =IF(L1=A1,0,(K1/O1-J1)/U1) -> 0 | W1: =IF(ROW()=MATCH(MAX($H:$H),$H:$H,0),1-SUMIF($A:$A,"<>"&OFFSET($A$1,MATCH(MAX($H:$H),$H:$H,0)-1,0),V:V),V1) -> 0
A2: qFundCode | B2: qValDate | C2: LastValDate | D2: NAVBC | E2: BuyPrice | F2: SellPrice | G2: ValPrice | H2: TotalUnits | I2: TotalUnitsBF | J2: ClassNAVBC | K2: NAV | L2: RefFundCode | M2: qCurrencyCode | N2: UnitRatio | O2: ExchgRate | P2: MCR | Q2: UPMethod | R2: BaseNAV | S2: MCRCalc | T2: MCRRpt | U2: BaseNAVxClsNAV | V2: MCRCalcH | W2: MCRCalcHAdj
A3: BAPAC | B3: 2020-10-30 | C3: 2020-10-28 | D3: 3632394.63 | E3: 0 | F3: 0 | G3: 0 | H3: 0 | I3: 0 | J3: 0 | K3: 3632394.63 | L3: BAPAC | M3: USD | N3: 1 | O3: 1 | P3: 0 | Q3: 4 | R3: 3632394.63 | S3: 0 | T3: 0 | U3: 3632394.63 | V3: 0 | W3: 0
A4: BAPACMYR | B4: 2020-10-30 | C4: 2020-10-28 | D4: 3585961.204 | E4: 0.2215 | F4: 0.2215 | G4: 0.05333020328 | H4: 67240720.66 | I4: 67286178.47 | J4: 0 | K4: 14892496.89 | L4: BAPAC | M4: MYR | N4: 0.9872253953 | O4: 4.153 | P4: 0 | Q4: 4 | R4: 3632394.63 | S4: 0.987216856 | T4: 0.9872168542 | U4: 3632394.63 | V4: 0.987216856 | W4: 0.9872168542
A5: BAPACUSD | B5: 2020-10-30 | C5: 2020-10-28 | D5: 46433.4262 | E5: 0.2101 | F5: 0.2101 | G5: 0.2100734538 | H5: 221034.24 | I5: 221034.24 | J5: 0 | K5: 46433.43 | L5: BAPAC | M5: USD | N5: 0.01277460466 | O5: 1 | P5: 0 | Q5: 4 | R5: 3632394.63 | S5: 0.01278314576 | T5: 0.01278314576 | U5: 3632394.63 | V5: 0.01278314576 | W5: 0.01278314576

Sheet InUPFee (hidden)
A2: qFundCode | B2: qValDate | C2: MngFee | D2: MngRebate | E2: TrusteeFee | F2: LicensesFees | G2: PerfFee | H2: ExchgRate | I2: MngFeeBC | J2: MngRebateBC | K2: TrusteeFeeBC | L2: LicenseFeeBC | M2: PerfFeeBC

Sheet InTB (hidden)
A2: TBDate | B2: GLCode | C2: qFundCode | D2: qCurrencyCode | E2: ShortGL | F2: qAssetAccType | G2: DebitAmt | H2: CreditAmt | I2: TBValue | J2: ExRate | K2: TBValueFC | L2: Description | M2: qRptGrp1ID | N2: qAssetRptGrp | O2: TBType | P2: CashFlag | Q2: ValuationGL
A3: 2020-10-30 | B3: BAPAC-USD015-100000 | C3: BAPAC | D3: USD | E3: 100000 | F3: 015 | G3: 25613045.49 | H3: -21984280.64 | I3: 3628764.85 | J3: 1 | K3: 3628764.85 | L3: Cost: Investment | M3: BICOST | N3: BICOST_O-EQT | O3: BS | P3: 0 | Q3: FALSE
A4: 2020-10-30 | B4: BAPAC-USD015-189000 | C4: BAPAC | D4: USD | E4: 189000 | F4: 015 | G4: 133831.84 | H4: -235616.17 | I4: -101784.33 | J4: 1 | K4: -101784.33 | L4: Unrealised GnL - Investment | M4: BIURGL | N4: BIURGL_O-EQT | O4: BS | P4: 0 | Q4: TRUE
A5: 2020-10-30 | B5: BAPAC-USD015-199000 | C5: BAPAC | D5: USD | E5: 199000 | F5: 015 | G5: 44699.99 | H5: -20037.51 | I5: 24662.48 | J5: 1 | K5: 24662.48 | L5: Unrealised FX GnL - Investment | M5: BIURFX | N5: BIURFX_O-EQT | O5: BS | P5: 0 | Q5: TRUE
A6: 2020-10-30 | B6: BAPAC-MYR000-200800 | C6: BAPAC | D6: MYR | E6: 200800 | F6: 000 | G6: 178639.54 | H6: -5950.51 | I6: 172689.03 | J6: 4.153 | K6: 41581.76 | L6: Debtor: Amount Due From Manager (Creation) | M6: BOAMNG | N6: BOAMNG_CSH | O6: BS | P6: 10 | Q6: FALSE
A7: 2020-10-30 | B7: BAPAC-HKD015-299000 | C7: BAPAC | D7: HKD | E7: 299000 | F7: 015 | G7: 179801.05 | H7: -178011.85 | I7: 1789.2 | J7: 7.7513 | K7: 230.83 | L7: DivDebtor: Dividend Receivable | M7: BOADVL | N7: BOADVL_O-EQT | O7: BS | P7: 3 | Q7: FALSE
A8: 2020-10-30 | B8: BAPAC-JPY015-299000 | C8: BAPAC | D8: JPY | E8: 299000 | F8: 015 | G8: 30356370.91 | H8: -29612841.91 | I8: 743529 | J8: 104.6 | K8: 7108.31 | L8: DivDebtor: Dividend Receivable | M8: BOADVL | N8: BOADVL_O-EQT | O8: BS | P8: 3 | Q8: FALSE
A9: 2020-10-30 | B9: BAPAC-KRW015-299000 | C9: BAPAC | D9: KRW | E9: 299000 | F9: 015 | G9: 271979 | H9: 0 | I9: 271979 | J9: 1134.41 | K9: 239.75 | L9: DivDebtor: Dividend Receivable | M9: BOADVL | N9: BOADVL_O-EQT | O9: BS | P9: 3 | Q9: FALSE
A10: 2020-10-30 | B10: BAPAC-MYR000-300800 | C10: BAPAC | D10: MYR | E10: 300800 | F10: 000 | G10: 0 | H10: -30542.73 | I10: -30542.73 | J10: 4.153 | K10: -7354.38 | L10: Creditor: Amount Due to Manager (Cancellation) | M10: BLMNGT | N10: BLMNGT_CSH | O10: BS | P10: 11 | Q10: FALSE
A11: 2020-10-30 | B11: BAPAC-USD000-320103 | C11: BAPAC | D11: USD | E11: 320103 | F11: 000 | G11: 350999.26 | H11: -356626.39 | I11: -5627.13 | J11: 1 | K11: -5627.13 | L11: Creditor: Amount Due to Managers(Mngt Fee) | M11: BLMNGT | N11: BLMNGT_CSH | O11: BS | P11: 15 | Q11: FALSE
A12: 2020-10-30 | B12: BAPAC-USD000-320104 | C12: BAPAC | D12: USD | E12: 320104 | F12: 000 | G12: 15305.91 | H12: -15789.52 | I12: -483.61 | J12: 1 | K12: -483.61 | L12: Creditor: Amount Due to Trustee | M12: BLTRUS | N12: BLTRUS_CSH | O12: BS | P12: 17 | Q12: FALSE
A13: 2020-10-30 | B13: BAPAC-USD000-320105 | C13: BAPAC | D13: USD | E13: 320105 | F13: 000 | G13: 8141.9 | H13: -12533.3 | I13: -4391.4 | J13: 1 | K13: -4391.4 | L13: Creditor: Audit Fees Payable | M13: BLAUDP | N13: BLAUDP_CSH | O13: BS | P13: 18 | Q13: FALSE
A14: 2020-10-30 | B14: BAPAC-USD000-320107 | C14: BAPAC | D14: USD | E14: 320107 | F14: 000 | G14: 4904.82 | H14: -7280.51 | I14: -2375.69 | J14: 1 | K14: -2375.69 | L14: Creditor: Tax Agent's fees payable | M14: BLTXFP | N14: BLTXFP_CSH | O14: BS | P14: 21 | Q14: FALSE
A15: 2020-10-30 | B15: BAPAC-USD000-320209 | C15: BAPAC | D15: USD | E15: 320209 | F15: 000 | G15: 34839.27 | H15: -52136.06 | I15: -17296.79 | J15: 1 | K15: -17296.79 | L15: Creditor: Other Charges 2 | M15: BLSUNA | N15: BLSUNA_CSH | O15: BS | P15: 22 | Q15: FALSE
A16: 2020-10-30 | B16: BAPAC-JPY000-500000 | C16: BAPAC | D16: JPY | E16: 500000 | F16: 000 | G16: 532448090 | H16: -532444932 | I16: 3158 | J16: 104.6 | K16: 30.19 | L16: Bank: Default Bank | M16: BOABNK | N16: BOABNK_CSH | O16: BS | P16: 5 | Q16: FALSE
A17: 2020-10-30 | B17: BAPAC-MYR000-500000 | C17: BAPAC | D17: MYR | E17: 500000 | F17: 000 | G17: 304187788.7 | H17: -303932424.3 | I17: 255364.4 | J17: 4.153 | K17: 61489.14 | L17: Bank: Default Bank | M17: BOABNK | N17: BOABNK_CSH | O17: BS | P17: 5 | Q17: FALSE
A18: 2020-10-30 | B18: BAPAC-SGD000-500000 | C18: BAPAC | D18: SGD | E18: 500000 | F18: 000 | G18: 131647.46 | H18: -130806.35 | I18: 841.11 | J18: 1.3659 | K18: 615.79 | L18: Bank: Default Bank | M18: BOABNK | N18: BOABNK_CSH | O18: BS | P18: 5 | Q18: FALSE
A19: 2020-10-30 | B19: BAPAC-USD000-500000 | C19: BAPAC | D19: USD | E19: 500000 | F19: 000 | G19: 328662432.4 | H19: -328655447.5 | I19: 6984.93 | J19: 1 | K19: 6984.93 | L19: Bank: Default Bank | M19: BOABNK | N19: BOABNK_CSH | O19: BS | P19: 5 | Q19: FALSE
A20: 2020-10-30 | B20: BAPAC-USD015-600000 | C20: BAPAC | D20: USD | E20: 600000 | F20: 015 | G20: 773538.56 | H20: -847321.94 | I20: -73783.38 | J20: 1 | K20: -73783.38 | L20: Gains: Realised GnL | M20: PRRGNL | N20: PRRGNL_O-EQT | O20: PLR | P20: 0 | Q20: FALSE
A21: 2020-10-30 | B21: BAPAC-USD210-630000 | C21: BAPAC | D21: USD | E21: 630000 | F21: 210 | G21: 0 | H21: -193.62 | I21: -193.62 | J21: 1 | K21: -193.62 | L21: Income PL | M21: PRINCO | N21: PRINCO_MM | O21: PLR | P21: 0 | Q21: FALSE
A22: 2020-10-30 | B22: BAPAC-USD015-635000 | C22: BAPAC | D22: USD | E22: 635000 | F22: 015 | G22: 67490.54 | H22: -138888.98 | I22: -71398.44 | J22: 1 | K22: -71398.44 | L22: Dividend: Taxable Dividend Income | M22: PRDVTA | N22: PRDVTA_O-EQT | O22: PLR | P22: 0 | Q22: FALSE
A23: 2020-10-30 | B23: BAPAC-USD015-636000 | C23: BAPAC | D23: USD | E23: 636000 | F23: 015 | G23: 25950.31 | H23: -55174.92 | I23: -29224.61 | J23: 1 | K23: -29224.61 | L23: Dividend: Tax Exempted Dividend Income | M23: PRDVTE | N23: PRDVTE_O-EQT | O23: PLR | P23: 0 | Q23: FALSE
A24: 2020-10-30 | B24: BAPAC-USD000-640002 | C24: BAPAC | D24: USD | E24: 640002 | F24: 000 | G24: 0 | H24: -0.12 | I24: -0.12 | J24: 1 | K24: -0.12 | L24: Income: Bank Profit | M24: PRINBK | N24: PRINBK_CSH | O24: PLR | P24: 0 | Q24: FALSE
A25: 2020-10-30 | B25: BAPAC-USD000-650000 | C25: BAPAC | D25: USD | E25: 650000 | F25: 000 | G25: 61337.28 | H25: -48855.36 | I25: 12481.92 | J25: 1 | K25: 12481.92 | L25: FXGnL:Foreign FX Gains and Loss | M25: PRGNFX | N25: PRGNFX_CSH | O25: PLR | P25: 0 | Q25: FALSE
A26: 2020-10-30 | B26: BAPAC-USD015-650000 | C26: BAPAC | D26: USD | E26: 650000 | F26: 015 | G26: 12681.38 | H26: -122918.04 | I26: -110236.66 | J26: 1 | K26: -110236.66 | L26: FXGnL:Foreign FX Gains and Loss | M26: PRGNFX | N26: PRGNFX_O-EQT | O26: PLR | P26: 0 | Q26: FALSE
A27: 2020-10-30 | B27: BAPAC-USD210-650000 | C27: BAPAC | D27: USD | E27: 650000 | F27: 210 | G27: 615.3 | H27: -246.72 | I27: 368.58 | J27: 1 | K27: 368.58 | L27: FXGnL:Foreign FX Gains and Loss | M27: PRGNFX | N27: PRGNFX_MM | O27: PLR | P27: 0 | Q27: FALSE
A28: 2020-10-30 | B28: BAPAC-USD015-689000 | C28: BAPAC | D28: USD | E28: 689000 | F28: 015 | G28: 235616.17 | H28: -133831.84 | I28: 101784.33 | J28: 1 | K28: 101784.33 | L28: Unrealised GnL PL - Investment | M28: PUGINV | N28: PUGINV_O-EQT | O28: PLU | P28: 0 | Q28: TRUE
A29: 2020-10-30 | B29: BAPAC-USD015-699000 | C29: BAPAC | D29: USD | E29: 699000 | F29: 015 | G29: 20037.51 | H29: -44699.99 | I29: -24662.48 | J29: 1 | K29: -24662.48 | L29: Unrealised FX GnL PL - Investment | M29: PUGNFX | N29: PUGNFX_O-EQT | O29: PLU | P29: 0 | Q29: TRUE
A30: 2020-10-30 | B30: BAPAC-USD000-710101 | C30: BAPAC | D30: USD | E30: 710101 | F30: 000 | G30: 3204.5 | H30: -102 | I30: 3102.5 | J30: 1 | K30: 3102.5 | L30: Expenses: Audit Fees | M30: PREAUD | N30: PREAUD_CSH | O30: PLR | P30: 0 | Q30: FALSE
A31: 2020-10-30 | B31: BAPAC-USD000-710102 | C31: BAPAC | D31: USD | E31: 710102 | F31: 000 | G31: 162.39 | H31: 0 | I31: 162.39 | J31: 1 | K31: 162.39 | L31: Expenses: Bank Charges | M31: PREBKC | N31: PREBKC_CSH | O31: PLR | P31: 0 | Q31: FALSE
A32: 2020-10-30 | B32: BAPAC-USD000-710104 | C32: BAPAC | D32: USD | E32: 710104 | F32: 000 | G32: 3388.85 | H32: 0 | I32: 3388.85 | J32: 1 | K32: 3388.85 | L32: Expenses: Other Expenses | M32: PREGEN | N32: PREGEN_CSH | O32: PLR | P32: 0 | Q32: FALSE
A33: 2020-10-30 | B33: BAPAC-USD000-710106 | C33: BAPAC | D33: USD | E33: 710106 | F33: 000 | G33: 74308.51 | H33: -2199.18 | I33: 72109.33 | J33: 1 | K33: 72109.33 | L33: Expenses: Management Fees | M33: PREMNG | N33: PREMNG_CSH | O33: PLR | P33: 0 | Q33: FALSE
A34: 2020-10-30 | B34: BAPAC-USD000-710113 | C34: BAPAC | D34: USD | E34: 710113 | F34: 000 | G34: 5955.46 | H34: -189.89 | I34: 5765.57 | J34: 1 | K34: 5765.57 | L34: Expenses: Trustee Fees | M34: PRETRS | N34: PRETRS_CSH | O34: PLR | P34: 0 | Q34: FALSE
A35: 2020-10-30 | B35: BAPAC-USD000-710115 | C35: BAPAC | D35: USD | E35: 710115 | F35: 000 | G35: 991.51 | H35: -31.56 | I35: 959.95 | J35: 1 | K35: 959.95 | L35: Expenses:Tax Agent Fee | M35: PRETXA | N35: PRETXA_CSH | O35: PLR | P35: 0 | Q35: FALSE
A36: 2020-10-30 | B36: BAPAC-USD000-710121 | C36: BAPAC | D36: USD | E36: 710121 | F36: 000 | G36: 2187 | H36: 0 | I36: 2187 | J36: 1 | K36: 2187 | L36: Expenses: CDS Transfer Fee | M36: PRECTF | N36: PRECTF_CSH | O36: PLR | P36: 0 | Q36: FALSE
A37: 2020-10-30 | B37: BAPAC-USD000-710209 | C37: BAPAC | D37: USD | E37: 710209 | F37: 000 | G37: 25886.89 | H37: -1725.79 | I37: 24161.1 | J37: 1 | K37: 24161.1 | L37: Expenses: Other Charges 2 | M37: PRERST | N37: PRERST_CSH | O37: PLR | P37: 0 | Q37: FALSE
A38: 2020-10-30 | B38: BAPAC-USD000-799010 | C38: BAPAC | D38: USD | E38: 799010 | F38: 000 | G38: 0.51 | H38: -0.17 | I38: 0.34 | J38: 1 | K38: 0.34 | L38: Expenses: Dividend Postage and Handling fees | M38: PREDIV | N38: PREDIV_CSH | O38: PLR | P38: 0 | Q38: FALSE
A39: 2020-10-30 | B39: BAPAC-USD015-799010 | C39: BAPAC | D39: USD | E39: 799010 | F39: 015 | G39: 2.55 | H39: 0 | I39: 2.55 | J39: 1 | K39: 2.55 | L39: Expenses: Dividend Postage and Handling fees | M39: PREDIV | N39: PREDIV_O-EQT | O39: PLR | P39: 0 | Q39: FALSE
A40: 2020-10-30 | B40: BAPAC-USD000-799020 | C40: BAPAC | D40: USD | E40: 799020 | F40: 000 | G40: 17138.39 | H40: -9485.04 | I40: 7653.35 | J40: 1 | K40: 7653.35 | L40: Expenses:Witholding Tax | M40: PRETXF | N40: PRETXF_CSH | O40: PLR | P40: 0 | Q40: FALSE
A41: 2020-10-30 | B41: BAPAC-USD015-799020 | C41: BAPAC | D41: USD | E41: 799020 | F41: 015 | G41: 7127.05 | H41: -2833.23 | I41: 4293.82 | J41: 1 | K41: 4293.82 | L41: Expenses:Witholding Tax | M41: PRETXF | N41: PRETXF_O-EQT | O41: PLR | P41: 0 | Q41: FALSE
A42: 2020-10-30 | B42: BAPAC-USD000-799100 | C42: BAPAC | D42: USD | E42: 799100 | F42: 000 | G42: 591.46 | H42: 0 | I42: 591.46 | J42: 1 | K42: 591.46 | L42: Expenses: GST on Investment Cost | M42: PREIVT | N42: PREIVT_CSH | O42: PLR | P42: 0 | Q42: FALSE
A43: 2020-10-30 | B43: BAPAC-USD000-800000 | C43: BAPAC | D43: USD | E43: 800000 | F43: 000 | G43: 7183131.51 | H43: -12063330.69 | I43: -4880199.18 | J43: 1 | K43: -4880199.18 | L43: Capital: Unitholder Capital | M43: BCUCAP | N43: BCUCAP_CSH | O43: BS | P43: 0 | Q43: FALSE
A44: 2020-10-30 | B44: BAPAC-USD000-810000 | C44: BAPAC | D44: USD | E44: 810000 | F44: 000 | G44: 339104153.2 | H44: -339442127.1 | I44: -337973.93 | J44: 1 | K44: -337973.93 | L44: Profit: Last Year Unrealised Reserved | M44: BSURPF | N44: BSURPF_CSH | O44: BS | P44: 0 | Q44: FALSE
A45: 2020-10-30 | B45: BAPAC-USD0AU-810000 | C45: BAPAC | D45: USD | E45: 810000 | F45: 0AU | G45: 813721.41 | H45: -771056.37 | I45: 42665.04 | J45: 1 | K45: 42665.04 | L45: Profit: Last Year Unrealised Reserved | M45: BSURPF | N45: BSURPF_CSH | O45: BS | P45: 0 | Q45: FALSE
A46: 2020-10-30 | B46: BAPAC-USD0HK-810000 | C46: BAPAC | D46: USD | E46: 810000 | F46: 0HK | G46: 2840004.63 | H46: -2631801.2 | I46: 208203.43 | J46: 1 | K46: 208203.43 | L46: Profit: Last Year Unrealised Reserved | M46: BSURPF | N46: BSURPF_CSH | O46: BS | P46: 0 | Q46: FALSE
A47: 2020-10-30 | B47: BAPAC-USD0ID-810000 | C47: BAPAC | D47: USD | E47: 810000 | F47: 0ID | G47: 575.24 | H47: 0 | I47: 575.24 | J47: 1 | K47: 575.24 | L47: Profit: Last Year Unrealised Reserved | M47: BSURPF | N47: BSURPF_CSH | O47: BS | P47: 0 | Q47: FALSE
A48: 2020-10-30 | B48: BAPAC-USD0JP-810000 | C48: BAPAC | D48: USD | E48: 810000 | F48: 0JP | G48: 180434.84 | H48: 0 | I48: 180434.84 | J48: 1 | K48: 180434.84 | L48: Profit: Last Year Unrealised Reserved | M48: BSURPF | N48: BSURPF_CSH | O48: BS | P48: 0 | Q48: FALSE
A49: 2020-10-30 | B49: BAPAC-USD0KR-810000 | C49: BAPAC | D49: USD | E49: 810000 | F49: 0KR | G49: 10725.11 | H49: 0 | I49: 10725.11 | J49: 1 | K49: 10725.11 | L49: Profit: Last Year Unrealised Reserved | M49: BSURPF | N49: BSURPF_CSH | O49: BS | P49: 0 | Q49: FALSE
A50: 2020-10-30 | B50: BAPAC-USD0NZ-810000 | C50: BAPAC | D50: USD | E50: 810000 | F50: 0NZ | G50: 22091.08 | H50: 0 | I50: 22091.08 | J50: 1 | K50: 22091.08 | L50: Profit: Last Year Unrealised Reserved | M50: BSURPF | N50: BSURPF_CSH | O50: BS | P50: 0 | Q50: FALSE
A51: 2020-10-30 | B51: BAPAC-USD0SG-810000 | C51: BAPAC | D51: USD | E51: 810000 | F51: 0SG | G51: 2715.6 | H51: 0 | I51: 2715.6 | J51: 1 | K51: 2715.6 | L51: Profit: Last Year Unrealised Reserved | M51: BSURPF | N51: BSURPF_CSH | O51: BS | P51: 0 | Q51: FALSE
A52: 2020-10-30 | B52: BAPAC-USD0TH-810000 | C52: BAPAC | D52: USD | E52: 810000 | F52: 0TH | G52: 30066.55 | H52: 0 | I52: 30066.55 | J52: 1 | K52: 30066.55 | L52: Profit: Last Year Unrealised Reserved | M52: BSURPF | N52: BSURPF_CSH | O52: BS | P52: 0 | Q52: FALSE
A53: 2020-10-30 | B53: BAPAC-USD0TW-810000 | C53: BAPAC | D53: USD | E53: 810000 | F53: 0TW | G53: 77469.44 | H53: 0 | I53: 77469.44 | J53: 1 | K53: 77469.44 | L53: Profit: Last Year Unrealised Reserved | M53: BSURPF | N53: BSURPF_CSH | O53: BS | P53: 0 | Q53: FALSE
A54: 2020-10-30 | B54: BAPAC-HKD000-830000 | C54: BAPAC | D54: HKD | E54: 830000 | F54: 000 | G54: 0.01 | H54: 0 | I54: 0.01 | J54: 7.7513 | K54: 0 | L54: Profit: Last Year Realised Retained Profit | M54: BSRRPF | N54: BSRRPF_CSH | O54: BS | P54: 0 | Q54: FALSE
A55: 2020-10-30 | B55: BAPAC-USD000-830000 | C55: BAPAC | D55: USD | E55: 830000 | F55: 000 | G55: 28738962.31 | H55: -27804174.5 | I55: 934787.81 | J55: 1 | K55: 934787.81 | L55: Profit: Last Year Realised Retained Profit | M55: BSRRPF | N55: BSRRPF_CSH | O55: BS | P55: 0 | Q55: FALSE
A56: 2020-10-30 | B56: BAPAC-USD015-989000 | C56: BAPAC | D56: USD | E56: 989000 | F56: 015 | G56: -297679.54 | H56: 258377.85 | I56: -39301.69 | J56: 1 | K56: -39301.69 | L56: Control: Last Year Unrealised GnL Investment | M56: PUGINV | N56: PUGINV_O-EQT | O56: PLU | P56: 0 | Q56: FALSE
A57: 2020-10-30 | B57: BAPAC-USD015-999000 | C57: BAPAC | D57: USD | E57: 999000 | F57: 015 | G57: -22261.65 | H57: 55181.29 | I57: 32919.64 | J57: 1 | K57: 32919.64 | L57: Control: Last Year Unrealised GnL FX Investment | M57: PUGNFX | N57: PUGNFX_O-EQT | O57: PLU | P57: 0 | Q57: FALSE
A58: 2020-10-30 | B58: BAPAC-USD000-999111 | C58: BAPAC | D58: USD | E58: 999111 | F58: 000 | G58: -338784212 | H58: 339128567.9 | I58: 344355.98 | J58: 1 | K58: 344355.98 | L58: Control: Last Year UnFXGnL of Cash, DR and CR | M58: PUGNFX | N58: PUGNFX_CSH | O58: PLU | P58: 0 | Q58: FALSE
A59: 2020-10-30 | B59: BAPAC-USD0AU-999111 | C59: BAPAC | D59: USD | E59: 999111 | F59: 0AU | G59: -813721.41 | H59: 771056.37 | I59: -42665.04 | J59: 1 | K59: -42665.04 | L59: Control: Last Year UnFXGnL of Cash, DR and CR | M59: PUGNFX | N59: PUGNFX_CSH | O59: PLU | P59: 0 | Q59: FALSE
A60: 2020-10-30 | B60: BAPAC-USD0HK-999111 | C60: BAPAC | D60: USD | E60: 999111 | F60: 0HK | G60: -2840004.63 | H60: 2631801.2 | I60: -208203.43 | J60: 1 | K60: -208203.43 | L60: Control: Last Year UnFXGnL of Cash, DR and CR | M60: PUGNFX | N60: PUGNFX_CSH | O60: PLU | P60: 0 | Q60: FALSE
A61: 2020-10-30 | B61: BAPAC-USD0ID-999111 | C61: BAPAC | D61: USD | E61: 999111 | F61: 0ID | G61: -575.24 | H61: 0 | I61: -575.24 | J61: 1 | K61: -575.24 | L61: Control: Last Year UnFXGnL of Cash, DR and CR | M61: PUGNFX | N61: PUGNFX_CSH | O61: PLU | P61: 0 | Q61: FALSE
A62: 2020-10-30 | B62: BAPAC-USD0JP-999111 | C62: BAPAC | D62: USD | E62: 999111 | F62: 0JP | G62: -180434.84 | H62: 0 | I62: -180434.84 | J62: 1 | K62: -180434.84 | L62: Control: Last Year UnFXGnL of Cash, DR and CR | M62: PUGNFX | N62: PUGNFX_CSH | O62: PLU | P62: 0 | Q62: FALSE
A63: 2020-10-30 | B63: BAPAC-USD0KR-999111 | C63: BAPAC | D63: USD | E63: 999111 | F63: 0KR | G63: -10725.11 | H63: 0 | I63: -10725.11 | J63: 1 | K63: -10725.11 | L63: Control: Last Year UnFXGnL of Cash, DR and CR | M63: PUGNFX | N63: PUGNFX_CSH | O63: PLU | P63: 0 | Q63: FALSE
A64: 2020-10-30 | B64: BAPAC-USD0NZ-999111 | C64: BAPAC | D64: USD | E64: 999111 | F64: 0NZ | G64: -22091.08 | H64: 0 | I64: -22091.08 | J64: 1 | K64: -22091.08 | L64: Control: Last Year UnFXGnL of Cash, DR and CR | M64: PUGNFX | N64: PUGNFX_CSH | O64: PLU | P64: 0 | Q64: FALSE
A65: 2020-10-30 | B65: BAPAC-USD0SG-999111 | C65: BAPAC | D65: USD | E65: 999111 | F65: 0SG | G65: -2715.6 | H65: 0 | I65: -2715.6 | J65: 1 | K65: -2715.6 | L65: Control: Last Year UnFXGnL of Cash, DR and CR | M65: PUGNFX | N65: PUGNFX_CSH | O65: PLU | P65: 0 | Q65: FALSE
A66: 2020-10-30 | B66: BAPAC-USD0TH-999111 | C66: BAPAC | D66: USD | E66: 999111 | F66: 0TH | G66: -30066.55 | H66: 0 | I66: -30066.55 | J66: 1 | K66: -30066.55 | L66: Control: Last Year UnFXGnL of Cash, DR and CR | M66: PUGNFX | N66: PUGNFX_CSH | O66: PLU | P66: 0 | Q66: FALSE
A67: 2020-10-30 | B67: BAPAC-USD0TW-999111 | C67: BAPAC | D67: USD | E67: 999111 | F67: 0TW | G67: -77469.44 | H67: 0 | I67: -77469.44 | J67: 1 | K67: -77469.44 | L67: Control: Last Year UnFXGnL of Cash, DR and CR | M67: PUGNFX | N67: PUGNFX_CSH | O67: PLU | P67: 0 | Q67: FALSE
A68: 2020-10-30 | B68: BAPAC-HKD000-999999 | C68: BAPAC | D68: HKD | E68: 999999 | F68: 000 | G68: 110678769.7 | H68: -110680558.9 | I68: -1789.21 | J68: 7.7513 | K68: -230.83 | L68: Capital: Currency Control | M68: PUGNFX | N68: PUGNFX_CSH | O68: BS | P68: 0 | Q68: FALSE
A69: 2020-10-30 | B69: BAPAC-JPY000-999999 | C69: BAPAC | D69: JPY | E69: 999999 | F69: 000 | G69: 7988927247 | H69: -7989673934 | I69: -746687 | J69: 104.6 | K69: -7138.5 | L69: Capital: Currency Control | M69: PUGNFX | N69: PUGNFX_CSH | O69: BS | P69: 0 | Q69: FALSE
A70: 2020-10-30 | B70: BAPAC-KRW000-999999 | C70: BAPAC | D70: KRW | E70: 999999 | F70: 000 | G70: 0 | H70: -271979 | I70: -271979 | J70: 1134.41 | K70: -239.75 | L70: Capital: Currency Control | M70: PUGNFX | N70: PUGNFX_CSH | O70: BS | P70: 0 | Q70: FALSE
A71: 2020-10-30 | B71: BAPAC-MYR000-999999 | C71: BAPAC | D71: MYR | E71: 999999 | F71: 000 | G71: 245110585 | H71: -245508095.7 | I71: -397510.7 | J71: 4.153 | K71: -95716.52 | L71: Capital: Currency Control | M71: PUGNFX | N71: PUGNFX_CSH | O71: BS | P71: 0 | Q71: FALSE
A72: 2020-10-30 | B72: BAPAC-SGD000-999999 | C72: BAPAC | D72: SGD | E72: 999999 | F72: 000 | G72: 131706.35 | H72: -132547.46 | I72: -841.11 | J72: 1.3659 | K72: -615.79 | L72: Capital: Currency Control | M72: PUGNFX | N72: PUGNFX_CSH | O72: BS | P72: 0 | Q72: FALSE
A73: 2020-10-30 | B73: BAPAC-USD000-999999 | C73: BAPAC | D73: USD | E73: 999999 | F73: 000 | G73: 317728903.3 | H73: -317241458.9 | I73: 487444.3273 | J73: 1 | K73: 487444.33 | L73: Capital: Currency Control | M73: PUGNFX | N73: PUGNFX_CSH | O73: BS | P73: 0 | Q73: FALSE

Sheet InTBBase (hidden)
A2: TBDate | B2: GLCode | C2: qFundCode | D2: qCurrencyCode | E2: ShortGL | F2: qAssetAccType | G2: DebitAmt | H2: CreditAmt | I2: TBValue | J2: ExRate | K2: TBValueFC | L2: Description | M2: qRptGrp1ID | N2: qAssetRptGrp | O2: TBType | P2: CashFlag | Q2: ValuationGL
A3: 2020-10-30 | B3: BAPAC-USD015-100000 | C3: BAPAC | D3: USD | E3: 100000 | F3: 015 | G3: 25613045.49 | H3: -21984280.64 | I3: 3628764.85 | J3: 1 | K3: 3628764.85 | L3: Cost: Investment | M3: BICOST | N3: BICOST_O-EQT | O3: BS | P3: 0 | Q3: FALSE
A4: 2020-10-30 | B4: BAPAC-USD015-189000 | C4: BAPAC | D4: USD | E4: 189000 | F4: 015 | G4: 133831.84 | H4: -235616.17 | I4: -101784.33 | J4: 1 | K4: -101784.33 | L4: Unrealised GnL - Investment | M4: BIURGL | N4: BIURGL_O-EQT | O4: BS | P4: 0 | Q4: TRUE
A5: 2020-10-30 | B5: BAPAC-USD015-199000 | C5: BAPAC | D5: USD | E5: 199000 | F5: 015 | G5: 44699.99 | H5: -20037.51 | I5: 24662.48 | J5: 1 | K5: 24662.48 | L5: Unrealised FX GnL - Investment | M5: BIURFX | N5: BIURFX_O-EQT | O5: BS | P5: 0 | Q5: TRUE
A6: 2020-10-30 | B6: BAPAC-MYR000-200800 | C6: BAPAC | D6: MYR | E6: 200800 | F6: 000 | G6: 178639.54 | H6: -5950.51 | I6: 172689.03 | J6: 4.153 | K6: 41581.76 | L6: Debtor: Amount Due From Manager (Creation) | M6: BOAMNG | N6: BOAMNG_CSH | O6: BS | P6: 10 | Q6: FALSE
A7: 2020-10-30 | B7: BAPAC-HKD015-299000 | C7: BAPAC | D7: HKD | E7: 299000 | F7: 015 | G7: 179801.05 | H7: -178011.85 | I7: 1789.2 | J7: 7.7513 | K7: 230.83 | L7: DivDebtor: Dividend Receivable | M7: BOADVL | N7: BOADVL_O-EQT | O7: BS | P7: 3 | Q7: FALSE
A8: 2020-10-30 | B8: BAPAC-JPY015-299000 | C8: BAPAC | D8: JPY | E8: 299000 | F8: 015 | G8: 30356370.91 | H8: -29612841.91 | I8: 743529 | J8: 104.6 | K8: 7108.31 | L8: DivDebtor: Dividend Receivable | M8: BOADVL | N8: BOADVL_O-EQT | O8: BS | P8: 3 | Q8: FALSE
A9: 2020-10-30 | B9: BAPAC-KRW015-299000 | C9: BAPAC | D9: KRW | E9: 299000 | F9: 015 | G9: 271979 | H9: 0 | I9: 271979 | J9: 1134.41 | K9: 239.75 | L9: DivDebtor: Dividend Receivable | M9: BOADVL | N9: BOADVL_O-EQT | O9: BS | P9: 3 | Q9: FALSE
A10: 2020-10-30 | B10: BAPAC-MYR000-300800 | C10: BAPAC | D10: MYR | E10: 300800 | F10: 000 | G10: 0 | H10: -30542.73 | I10: -30542.73 | J10: 4.153 | K10: -7354.38 | L10: Creditor: Amount Due to Manager (Cancellation) | M10: BLMNGT | N10: BLMNGT_CSH | O10: BS | P10: 11 | Q10: FALSE
A11: 2020-10-30 | B11: BAPAC-USD000-320103 | C11: BAPAC | D11: USD | E11: 320103 | F11: 000 | G11: 350999.26 | H11: -356626.39 | I11: -5627.13 | J11: 1 | K11: -5627.13 | L11: Creditor: Amount Due to Managers(Mngt Fee) | M11: BLMNGT | N11: BLMNGT_CSH | O11: BS | P11: 15 | Q11: FALSE
A12: 2020-10-30 | B12: BAPAC-USD000-320104 | C12: BAPAC | D12: USD | E12: 320104 | F12: 000 | G12: 15305.91 | H12: -15789.52 | I12: -483.61 | J12: 1 | K12: -483.61 | L12: Creditor: Amount Due to Trustee | M12: BLTRUS | N12: BLTRUS_CSH | O12: BS | P12: 17 | Q12: FALSE
A13: 2020-10-30 | B13: BAPAC-USD000-320105 | C13: BAPAC | D13: USD | E13: 320105 | F13: 000 | G13: 8141.9 | H13: -12533.3 | I13: -4391.4 | J13: 1 | K13: -4391.4 | L13: Creditor: Audit Fees Payable | M13: BLAUDP | N13: BLAUDP_CSH | O13: BS | P13: 18 | Q13: FALSE
A14: 2020-10-30 | B14: BAPAC-USD000-320107 | C14: BAPAC | D14: USD | E14: 320107 | F14: 000 | G14: 4904.82 | H14: -7280.51 | I14: -2375.69 | J14: 1 | K14: -2375.69 | L14: Creditor: Tax Agent's fees payable | M14: BLTXFP | N14: BLTXFP_CSH | O14: BS | P14: 21 | Q14: FALSE
A15: 2020-10-30 | B15: BAPAC-USD000-320209 | C15: BAPAC | D15: USD | E15: 320209 | F15: 000 | G15: 34839.27 | H15: -52136.06 | I15: -17296.79 | J15: 1 | K15: -17296.79 | L15: Creditor: Other Charges 2 | M15: BLSUNA | N15: BLSUNA_CSH | O15: BS | P15: 22 | Q15: FALSE
A16: 2020-10-30 | B16: BAPAC-JPY000-500000 | C16: BAPAC | D16: JPY | E16: 500000 | F16: 000 | G16: 532448090 | H16: -532444932 | I16: 3158 | J16: 104.6 | K16: 30.19 | L16: Bank: Default Bank | M16: BOABNK | N16: BOABNK_CSH | O16: BS | P16: 5 | Q16: FALSE
A17: 2020-10-30 | B17: BAPAC-MYR000-500000 | C17: BAPAC | D17: MYR | E17: 500000 | F17: 000 | G17: 304187788.7 | H17: -303932424.3 | I17: 255364.4 | J17: 4.153 | K17: 61489.14 | L17: Bank: Default Bank | M17: BOABNK | N17: BOABNK_CSH | O17: BS | P17: 5 | Q17: FALSE
A18: 2020-10-30 | B18: BAPAC-SGD000-500000 | C18: BAPAC | D18: SGD | E18: 500000 | F18: 000 | G18: 131647.46 | H18: -130806.35 | I18: 841.11 | J18: 1.3659 | K18: 615.79 | L18: Bank: Default Bank | M18: BOABNK | N18: BOABNK_CSH | O18: BS | P18: 5 | Q18: FALSE
A19: 2020-10-30 | B19: BAPAC-USD000-500000 | C19: BAPAC | D19: USD | E19: 500000 | F19: 000 | G19: 328662432.4 | H19: -328655447.5 | I19: 6984.93 | J19: 1 | K19: 6984.93 | L19: Bank: Default Bank | M19: BOABNK | N19: BOABNK_CSH | O19: BS | P19: 5 | Q19: FALSE
A20: 2020-10-30 | B20: BAPAC-USD015-600000 | C20: BAPAC | D20: USD | E20: 600000 | F20: 015 | G20: 773538.56 | H20: -847321.94 | I20: -73783.38 | J20: 1 | K20: -73783.38 | L20: Gains: Realised GnL | M20: PRRGNL | N20: PRRGNL_O-EQT | O20: PLR | P20: 0 | Q20: FALSE
A21: 2020-10-30 | B21: BAPAC-USD210-630000 | C21: BAPAC | D21: USD | E21: 630000 | F21: 210 | G21: 0 | H21: -193.62 | I21: -193.62 | J21: 1 | K21: -193.62 | L21: Income PL | M21: PRINCO | N21: PRINCO_MM | O21: PLR | P21: 0 | Q21: FALSE
A22: 2020-10-30 | B22: BAPAC-USD015-635000 | C22: BAPAC | D22: USD | E22: 635000 | F22: 015 | G22: 67490.54 | H22: -138888.98 | I22: -71398.44 | J22: 1 | K22: -71398.44 | L22: Dividend: Taxable Dividend Income | M22: PRDVTA | N22: PRDVTA_O-EQT | O22: PLR | P22: 0 | Q22: FALSE
A23: 2020-10-30 | B23: BAPAC-USD015-636000 | C23: BAPAC | D23: USD | E23: 636000 | F23: 015 | G23: 25950.31 | H23: -55174.92 | I23: -29224.61 | J23: 1 | K23: -29224.61 | L23: Dividend: Tax Exempted Dividend Income | M23: PRDVTE | N23: PRDVTE_O-EQT | O23: PLR | P23: 0 | Q23: FALSE
A24: 2020-10-30 | B24: BAPAC-USD000-640002 | C24: BAPAC | D24: USD | E24: 640002 | F24: 000 | G24: 0 | H24: -0.12 | I24: -0.12 | J24: 1 | K24: -0.12 | L24: Income: Bank Profit | M24: PRINBK | N24: PRINBK_CSH | O24: PLR | P24: 0 | Q24: FALSE
A25: 2020-10-30 | B25: BAPAC-USD000-650000 | C25: BAPAC | D25: USD | E25: 650000 | F25: 000 | G25: 61337.28 | H25: -48855.36 | I25: 12481.92 | J25: 1 | K25: 12481.92 | L25: FXGnL:Foreign FX Gains and Loss | M25: PRGNFX | N25: PRGNFX_CSH | O25: PLR | P25: 0 | Q25: FALSE
A26: 2020-10-30 | B26: BAPAC-USD015-650000 | C26: BAPAC | D26: USD | E26: 650000 | F26: 015 | G26: 12681.38 | H26: -122918.04 | I26: -110236.66 | J26: 1 | K26: -110236.66 | L26: FXGnL:Foreign FX Gains and Loss | M26: PRGNFX | N26: PRGNFX_O-EQT | O26: PLR | P26: 0 | Q26: FALSE
A27: 2020-10-30 | B27: BAPAC-USD210-650000 | C27: BAPAC | D27: USD | E27: 650000 | F27: 210 | G27: 615.3 | H27: -246.72 | I27: 368.58 | J27: 1 | K27: 368.58 | L27: FXGnL:Foreign FX Gains and Loss | M27: PRGNFX | N27: PRGNFX_MM | O27: PLR | P27: 0 | Q27: FALSE
A28: 2020-10-30 | B28: BAPAC-USD015-689000 | C28: BAPAC | D28: USD | E28: 689000 | F28: 015 | G28: 235616.17 | H28: -133831.84 | I28: 101784.33 | J28: 1 | K28: 101784.33 | L28: Unrealised GnL PL - Investment | M28: PUGINV | N28: PUGINV_O-EQT | O28: PLU | P28: 0 | Q28: TRUE
A29: 2020-10-30 | B29: BAPAC-USD015-699000 | C29: BAPAC | D29: USD | E29: 699000 | F29: 015 | G29: 20037.51 | H29: -44699.99 | I29: -24662.48 | J29: 1 | K29: -24662.48 | L29: Unrealised FX GnL PL - Investment | M29: PUGNFX | N29: PUGNFX_O-EQT | O29: PLU | P29: 0 | Q29: TRUE
A30: 2020-10-30 | B30: BAPAC-USD000-710101 | C30: BAPAC | D30: USD | E30: 710101 | F30: 000 | G30: 3204.5 | H30: -102 | I30: 3102.5 | J30: 1 | K30: 3102.5 | L30: Expenses: Audit Fees | M30: PREAUD | N30: PREAUD_CSH | O30: PLR | P30: 0 | Q30: FALSE
A31: 2020-10-30 | B31: BAPAC-USD000-710102 | C31: BAPAC | D31: USD | E31: 710102 | F31: 000 | G31: 162.39 | H31: 0 | I31: 162.39 | J31: 1 | K31: 162.39 | L31: Expenses: Bank Charges | M31: PREBKC | N31: PREBKC_CSH | O31: PLR | P31: 0 | Q31: FALSE
A32: 2020-10-30 | B32: BAPAC-USD000-710104 | C32: BAPAC | D32: USD | E32: 710104 | F32: 000 | G32: 3388.85 | H32: 0 | I32: 3388.85 | J32: 1 | K32: 3388.85 | L32: Expenses: Other Expenses | M32: PREGEN | N32: PREGEN_CSH | O32: PLR | P32: 0 | Q32: FALSE
A33: 2020-10-30 | B33: BAPAC-USD000-710106 | C33: BAPAC | D33: USD | E33: 710106 | F33: 000 | G33: 74308.51 | H33: -2199.18 | I33: 72109.33 | J33: 1 | K33: 72109.33 | L33: Expenses: Management Fees | M33: PREMNG | N33: PREMNG_CSH | O33: PLR | P33: 0 | Q33: FALSE
A34: 2020-10-30 | B34: BAPAC-USD000-710113 | C34: BAPAC | D34: USD | E34: 710113 | F34: 000 | G34: 5955.46 | H34: -189.89 | I34: 5765.57 | J34: 1 | K34: 5765.57 | L34: Expenses: Trustee Fees | M34: PRETRS | N34: PRETRS_CSH | O34: PLR | P34: 0 | Q34: FALSE
A35: 2020-10-30 | B35: BAPAC-USD000-710115 | C35: BAPAC | D35: USD | E35: 710115 | F35: 000 | G35: 991.51 | H35: -31.56 | I35: 959.95 | J35: 1 | K35: 959.95 | L35: Expenses:Tax Agent Fee | M35: PRETXA | N35: PRETXA_CSH | O35: PLR | P35: 0 | Q35: FALSE
A36: 2020-10-30 | B36: BAPAC-USD000-710121 | C36: BAPAC | D36: USD | E36: 710121 | F36: 000 | G36: 2187 | H36: 0 | I36: 2187 | J36: 1 | K36: 2187 | L36: Expenses: CDS Transfer Fee | M36: PRECTF | N36: PRECTF_CSH | O36: PLR | P36: 0 | Q36: FALSE
A37: 2020-10-30 | B37: BAPAC-USD000-710209 | C37: BAPAC | D37: USD | E37: 710209 | F37: 000 | G37: 25886.89 | H37: -1725.79 | I37: 24161.1 | J37: 1 | K37: 24161.1 | L37: Expenses: Other Charges 2 | M37: PRERST | N37: PRERST_CSH | O37: PLR | P37: 0 | Q37: FALSE
A38: 2020-10-30 | B38: BAPAC-USD000-799010 | C38: BAPAC | D38: USD | E38: 799010 | F38: 000 | G38: 0.51 | H38: -0.17 | I38: 0.34 | J38: 1 | K38: 0.34 | L38: Expenses: Dividend Postage and Handling fees | M38: PREDIV | N38: PREDIV_CSH | O38: PLR | P38: 0 | Q38: FALSE
A39: 2020-10-30 | B39: BAPAC-USD015-799010 | C39: BAPAC | D39: USD | E39: 799010 | F39: 015 | G39: 2.55 | H39: 0 | I39: 2.55 | J39: 1 | K39: 2.55 | L39: Expenses: Dividend Postage and Handling fees | M39: PREDIV | N39: PREDIV_O-EQT | O39: PLR | P39: 0 | Q39: FALSE
A40: 2020-10-30 | B40: BAPAC-USD000-799020 | C40: BAPAC | D40: USD | E40: 799020 | F40: 000 | G40: 17138.39 | H40: -9485.04 | I40: 7653.35 | J40: 1 | K40: 7653.35 | L40: Expenses:Witholding Tax | M40: PRETXF | N40: PRETXF_CSH | O40: PLR | P40: 0 | Q40: FALSE
A41: 2020-10-30 | B41: BAPAC-USD015-799020 | C41: BAPAC | D41: USD | E41: 799020 | F41: 015 | G41: 7127.05 | H41: -2833.23 | I41: 4293.82 | J41: 1 | K41: 4293.82 | L41: Expenses:Witholding Tax | M41: PRETXF | N41: PRETXF_O-EQT | O41: PLR | P41: 0 | Q41: FALSE
A42: 2020-10-30 | B42: BAPAC-USD000-799100 | C42: BAPAC | D42: USD | E42: 799100 | F42: 000 | G42: 591.46 | H42: 0 | I42: 591.46 | J42: 1 | K42: 591.46 | L42: Expenses: GST on Investment Cost | M42: PREIVT | N42: PREIVT_CSH | O42: PLR | P42: 0 | Q42: FALSE
A43: 2020-10-30 | B43: BAPAC-USD000-800000 | C43: BAPAC | D43: USD | E43: 800000 | F43: 000 | G43: 7183131.51 | H43: -12063330.69 | I43: -4880199.18 | J43: 1 | K43: -4880199.18 | L43: Capital: Unitholder Capital | M43: BCUCAP | N43: BCUCAP_CSH | O43: BS | P43: 0 | Q43: FALSE
A44: 2020-10-30 | B44: BAPAC-USD000-810000 | C44: BAPAC | D44: USD | E44: 810000 | F44: 000 | G44: 339104153.2 | H44: -339442127.1 | I44: -337973.93 | J44: 1 | K44: -337973.93 | L44: Profit: Last Year Unrealised Reserved | M44: BSURPF | N44: BSURPF_CSH | O44: BS | P44: 0 | Q44: FALSE
A45: 2020-10-30 | B45: BAPAC-USD0AU-810000 | C45: BAPAC | D45: USD | E45: 810000 | F45: 0AU | G45: 813721.41 | H45: -771056.37 | I45: 42665.04 | J45: 1 | K45: 42665.04 | L45: Profit: Last Year Unrealised Reserved | M45: BSURPF | N45: BSURPF_CSH | O45: BS | P45: 0 | Q45: FALSE
A46: 2020-10-30 | B46: BAPAC-USD0HK-810000 | C46: BAPAC | D46: USD | E46: 810000 | F46: 0HK | G46: 2840004.63 | H46: -2631801.2 | I46: 208203.43 | J46: 1 | K46: 208203.43 | L46: Profit: Last Year Unrealised Reserved | M46: BSURPF | N46: BSURPF_CSH | O46: BS | P46: 0 | Q46: FALSE
A47: 2020-10-30 | B47: BAPAC-USD0ID-810000 | C47: BAPAC | D47: USD | E47: 810000 | F47: 0ID | G47: 575.24 | H47: 0 | I47: 575.24 | J47: 1 | K47: 575.24 | L47: Profit: Last Year Unrealised Reserved | M47: BSURPF | N47: BSURPF_CSH | O47: BS | P47: 0 | Q47: FALSE
A48: 2020-10-30 | B48: BAPAC-USD0JP-810000 | C48: BAPAC | D48: USD | E48: 810000 | F48: 0JP | G48: 180434.84 | H48: 0 | I48: 180434.84 | J48: 1 | K48: 180434.84 | L48: Profit: Last Year Unrealised Reserved | M48: BSURPF | N48: BSURPF_CSH | O48: BS | P48: 0 | Q48: FALSE
A49: 2020-10-30 | B49: BAPAC-USD0KR-810000 | C49: BAPAC | D49: USD | E49: 810000 | F49: 0KR | G49: 10725.11 | H49: 0 | I49: 10725.11 | J49: 1 | K49: 10725.11 | L49: Profit: Last Year Unrealised Reserved | M49: BSURPF | N49: BSURPF_CSH | O49: BS | P49: 0 | Q49: FALSE
A50: 2020-10-30 | B50: BAPAC-USD0NZ-810000 | C50: BAPAC | D50: USD | E50: 810000 | F50: 0NZ | G50: 22091.08 | H50: 0 | I50: 22091.08 | J50: 1 | K50: 22091.08 | L50: Profit: Last Year Unrealised Reserved | M50: BSURPF | N50: BSURPF_CSH | O50: BS | P50: 0 | Q50: FALSE
A51: 2020-10-30 | B51: BAPAC-USD0SG-810000 | C51: BAPAC | D51: USD | E51: 810000 | F51: 0SG | G51: 2715.6 | H51: 0 | I51: 2715.6 | J51: 1 | K51: 2715.6 | L51: Profit: Last Year Unrealised Reserved | M51: BSURPF | N51: BSURPF_CSH | O51: BS | P51: 0 | Q51: FALSE
A52: 2020-10-30 | B52: BAPAC-USD0TH-810000 | C52: BAPAC | D52: USD | E52: 810000 | F52: 0TH | G52: 30066.55 | H52: 0 | I52: 30066.55 | J52: 1 | K52: 30066.55 | L52: Profit: Last Year Unrealised Reserved | M52: BSURPF | N52: BSURPF_CSH | O52: BS | P52: 0 | Q52: FALSE
A53: 2020-10-30 | B53: BAPAC-USD0TW-810000 | C53: BAPAC | D53: USD | E53: 810000 | F53: 0TW | G53: 77469.44 | H53: 0 | I53: 77469.44 | J53: 1 | K53: 77469.44 | L53: Profit: Last Year Unrealised Reserved | M53: BSURPF | N53: BSURPF_CSH | O53: BS | P53: 0 | Q53: FALSE
A54: 2020-10-30 | B54: BAPAC-HKD000-830000 | C54: BAPAC | D54: HKD | E54: 830000 | F54: 000 | G54: 0.01 | H54: 0 | I54: 0.01 | J54: 7.7513 | K54: 0 | L54: Profit: Last Year Realised Retained Profit | M54: BSRRPF | N54: BSRRPF_CSH | O54: BS | P54: 0 | Q54: FALSE
A55: 2020-10-30 | B55: BAPAC-USD000-830000 | C55: BAPAC | D55: USD | E55: 830000 | F55: 000 | G55: 28738962.31 | H55: -27804174.5 | I55: 934787.81 | J55: 1 | K55: 934787.81 | L55: Profit: Last Year Realised Retained Profit | M55: BSRRPF | N55: BSRRPF_CSH | O55: BS | P55: 0 | Q55: FALSE
A56: 2020-10-30 | B56: BAPAC-USD015-989000 | C56: BAPAC | D56: USD | E56: 989000 | F56: 015 | G56: -297679.54 | H56: 258377.85 | I56: -39301.69 | J56: 1 | K56: -39301.69 | L56: Control: Last Year Unrealised GnL Investment | M56: PUGINV | N56: PUGINV_O-EQT | O56: PLU | P56: 0 | Q56: FALSE
A57: 2020-10-30 | B57: BAPAC-USD015-999000 | C57: BAPAC | D57: USD | E57: 999000 | F57: 015 | G57: -22261.65 | H57: 55181.29 | I57: 32919.64 | J57: 1 | K57: 32919.64 | L57: Control: Last Year Unrealised GnL FX Investment | M57: PUGNFX | N57: PUGNFX_O-EQT | O57: PLU | P57: 0 | Q57: FALSE
A58: 2020-10-30 | B58: BAPAC-USD000-999111 | C58: BAPAC | D58: USD | E58: 999111 | F58: 000 | G58: -338784212 | H58: 339128567.9 | I58: 344355.98 | J58: 1 | K58: 344355.98 | L58: Control: Last Year UnFXGnL of Cash, DR and CR | M58: PUGNFX | N58: PUGNFX_CSH | O58: PLU | P58: 0 | Q58: FALSE
A59: 2020-10-30 | B59: BAPAC-USD0AU-999111 | C59: BAPAC | D59: USD | E59: 999111 | F59: 0AU | G59: -813721.41 | H59: 771056.37 | I59: -42665.04 | J59: 1 | K59: -42665.04 | L59: Control: Last Year UnFXGnL of Cash, DR and CR | M59: PUGNFX | N59: PUGNFX_CSH | O59: PLU | P59: 0 | Q59: FALSE
A60: 2020-10-30 | B60: BAPAC-USD0HK-999111 | C60: BAPAC | D60: USD | E60: 999111 | F60: 0HK | G60: -2840004.63 | H60: 2631801.2 | I60: -208203.43 | J60: 1 | K60: -208203.43 | L60: Control: Last Year UnFXGnL of Cash, DR and CR | M60: PUGNFX | N60: PUGNFX_CSH | O60: PLU | P60: 0 | Q60: FALSE
A61: 2020-10-30 | B61: BAPAC-USD0ID-999111 | C61: BAPAC | D61: USD | E61: 999111 | F61: 0ID | G61: -575.24 | H61: 0 | I61: -575.24 | J61: 1 | K61: -575.24 | L61: Control: Last Year UnFXGnL of Cash, DR and CR | M61: PUGNFX | N61: PUGNFX_CSH | O61: PLU | P61: 0 | Q61: FALSE
A62: 2020-10-30 | B62: BAPAC-USD0JP-999111 | C62: BAPAC | D62: USD | E62: 999111 | F62: 0JP | G62: -180434.84 | H62: 0 | I62: -180434.84 | J62: 1 | K62: -180434.84 | L62: Control: Last Year UnFXGnL of Cash, DR and CR | M62: PUGNFX | N62: PUGNFX_CSH | O62: PLU | P62: 0 | Q62: FALSE
A63: 2020-10-30 | B63: BAPAC-USD0KR-999111 | C63: BAPAC | D63: USD | E63: 999111 | F63: 0KR | G63: -10725.11 | H63: 0 | I63: -10725.11 | J63: 1 | K63: -10725.11 | L63: Control: Last Year UnFXGnL of Cash, DR and CR | M63: PUGNFX | N63: PUGNFX_CSH | O63: PLU | P63: 0 | Q63: FALSE
A64: 2020-10-30 | B64: BAPAC-USD0NZ-999111 | C64: BAPAC | D64: USD | E64: 999111 | F64: 0NZ | G64: -22091.08 | H64: 0 | I64: -22091.08 | J64: 1 | K64: -22091.08 | L64: Control: Last Year UnFXGnL of Cash, DR and CR | M64: PUGNFX | N64: PUGNFX_CSH | O64: PLU | P64: 0 | Q64: FALSE
A65: 2020-10-30 | B65: BAPAC-USD0SG-999111 | C65: BAPAC | D65: USD | E65: 999111 | F65: 0SG | G65: -2715.6 | H65: 0 | I65: -2715.6 | J65: 1 | K65: -2715.6 | L65: Control: Last Year UnFXGnL of Cash, DR and CR | M65: PUGNFX | N65: PUGNFX_CSH | O65: PLU | P65: 0 | Q65: FALSE
A66: 2020-10-30 | B66: BAPAC-USD0TH-999111 | C66: BAPAC | D66: USD | E66: 999111 | F66: 0TH | G66: -30066.55 | H66: 0 | I66: -30066.55 | J66: 1 | K66: -30066.55 | L66: Control: Last Year UnFXGnL of Cash, DR and CR | M66: PUGNFX | N66: PUGNFX_CSH | O66: PLU | P66: 0 | Q66: FALSE
A67: 2020-10-30 | B67: BAPAC-USD0TW-999111 | C67: BAPAC | D67: USD | E67: 999111 | F67: 0TW | G67: -77469.44 | H67: 0 | I67: -77469.44 | J67: 1 | K67: -77469.44 | L67: Control: Last Year UnFXGnL of Cash, DR and CR | M67: PUGNFX | N67: PUGNFX_CSH | O67: PLU | P67: 0 | Q67: FALSE
A68: 2020-10-30 | B68: BAPAC-HKD000-999999 | C68: BAPAC | D68: HKD | E68: 999999 | F68: 000 | G68: 110678769.7 | H68: -110680558.9 | I68: -1789.21 | J68: 7.7513 | K68: -230.83 | L68: Capital: Currency Control | M68: PUGNFX | N68: PUGNFX_CSH | O68: BS | P68: 0 | Q68: FALSE
A69: 2020-10-30 | B69: BAPAC-JPY000-999999 | C69: BAPAC | D69: JPY | E69: 999999 | F69: 000 | G69: 7988927247 | H69: -7989673934 | I69: -746687 | J69: 104.6 | K69: -7138.5 | L69: Capital: Currency Control | M69: PUGNFX | N69: PUGNFX_CSH | O69: BS | P69: 0 | Q69: FALSE
A70: 2020-10-30 | B70: BAPAC-KRW000-999999 | C70: BAPAC | D70: KRW | E70: 999999 | F70: 000 | G70: 0 | H70: -271979 | I70: -271979 | J70: 1134.41 | K70: -239.75 | L70: Capital: Currency Control | M70: PUGNFX | N70: PUGNFX_CSH | O70: BS | P70: 0 | Q70: FALSE
A71: 2020-10-30 | B71: BAPAC-MYR000-999999 | C71: BAPAC | D71: MYR | E71: 999999 | F71: 000 | G71: 245110585 | H71: -245508095.7 | I71: -397510.7 | J71: 4.153 | K71: -95716.52 | L71: Capital: Currency Control | M71: PUGNFX | N71: PUGNFX_CSH | O71: BS | P71: 0 | Q71: FALSE
A72: 2020-10-30 | B72: BAPAC-SGD000-999999 | C72: BAPAC | D72: SGD | E72: 999999 | F72: 000 | G72: 131706.35 | H72: -132547.46 | I72: -841.11 | J72: 1.3659 | K72: -615.79 | L72: Capital: Currency Control | M72: PUGNFX | N72: PUGNFX_CSH | O72: BS | P72: 0 | Q72: FALSE
A73: 2020-10-30 | B73: BAPAC-USD000-999999 | C73: BAPAC | D73: USD | E73: 999999 | F73: 000 | G73: 317728903.3 | H73: -317241458.9 | I73: 487444.3273 | J73: 1 | K73: 487444.33 | L73: Capital: Currency Control | M73: PUGNFX | N73: PUGNFX_CSH | O73: BS | P73: 0 | Q73: FALSE

Sheet InFund (hidden)
A1: 1 | B1: 2 | C1: 3 | D1: 4 | E1: 5 | F1: 6 | G1: 7 | H1: 8 | I1: 9
A2: qFundCode | B2: FundPrefix | C2: FundName | D2: FundDesc | E2: FundCurrency | F2: FinanceYrStart | G2: FinanceYrEnd | H2: NomFinanceYrEnd | I2: Islamic
A3: BAPAC | B3: BAPAC | C3: BIMB-ARABESQUE ASIA PACIFIC SHARIAH-ESG EQUITY | D3: BIMB-ARABESQUE ASIA PACIFIC SHARIAH-ESG EQUITY FUND | E3: USD | F3: 2015-11-05 | G3: 2020-10-30 | H3: 2016-10-31 | I3: 1
A4: BGSEF | B4: BGSEF | C4: Bimb-Arabesque Global Shariah Sustainable Equity | D4: Bimb-Arabesque Global Shariah Sustainable Equity Fund | E4: USD | F4: 2020-04-01 | G4: 2021-03-31 | H4: 2021-03-31 | I4: 1
A5: BMSEF | B5: BMSEF | C5: BIMB-Arabesque Malaysia Shariah-ESG Equity Fund | D5: BIMB-Arabesque Malaysia Shariah-ESG Equity Fund | E5: MYR | F5: 2017-03-09 | G5: 2020-05-29 | H5: 2017-05-31 | I5: 1
A6: BSF | B6: BSF | C6: BIMB ESG SUKUK FUND | D6: BIMB ESG SUKUK FUND | E6: MYR | F6: 2018-08-01 | G6: 2020-10-30 | H6: 2019-10-31 | I6: 1
A7: GD1 | B7: GD1 | C7: BIMB-Arabesque i Global Dividend Fund 1 | D7: BIMB-Arabesque i Global Dividend Fund 1 | E7: USD | F7: 2015-11-05 | G7: 2021-03-31 | H7: 2016-03-31 | I7: 1
A8: MWF | B8: MWF | C8: Makmur myWakaf Fund | D8: Makmur myWakaf Fund | E8: MYR | F8: 2021-01-01 | G8: 2020-12-31 | H8: 2021-12-31 | I8: 1
